Workbook

Sheet Instrukce
B1: INSTRUKCE
B2: "hra Švýcarským způsobem"
B3: Tento program je vytvořen pro
B4: vedení celého turnaje (až do konce), kterého se zúčastní až 128 týmů
B5: hrou "švýcarským způsobem" a dále pak KO
B6: a předání výsledků turnaje v předepsané elektronické podobě
B8: Program pro vedení turnaje je možné program parametrizovat (viz instrukce dále),
B9: pokud přednastavené hodnoty nevyhovují.
B10: V kombinaci s přihláškami na internetu máte v ruce nástroj, který významně pomáhá pořadatelům.
B11: Program přináší možnost
B12: - připravit si snadno předem prezenci do turnaje na základě přihlášek na internetu
B13: - rychle a přesně zjistit okamžité nasazení do turnaje
B14: - správně přejít do pavouka KO
B15: - při přechodu ze švýcara do pavouka dává k dipsozici přehledné mezivýsledky
B16: - mít okamžitě hotové výsledky turnaje v předepsané podobě
A17: * | B17: Je připravena varianta programu pro hru na "Dvě prohry" ve 3-4 členných skupinách (Turnaj2P.xls)
A18: * | B18: Je připravena varianta programu pro hru na "Každý s každým" ve 3-6 členných skupinách (TurnajKK.xls)
B20: Údaje se vyplňují do listů: Start.listina, 1.kolo …6.kolo, KO.., Dohrávka_5-8 a Dohrávka_9-16
B21: Vyplňují se | C21: Žlutá pole | D21: (lze vyplnit i čísla hřišť v 1.kolo…6.kolo)
B22: Obsah ostatních polí a listů (včetně skrytých) je automaticky aktualizován programem a pro uživatele je uzamčen !
A24: Využití programu, pokud chcete pouze předat výsledky (turnaj je veden ručně):
A25: 1) | B25: pracuje se jen s listem Start.listina. Startovní listina je zároveň Výsledkovou listinou
A26: 2) | B26: musí se vyplnit Start.listina - pokyny jsou uvedeny níže (musí zde být uvedeny všechny týmy, přihlášené do turnaje)
A27: 3) | B27: výsledné pořadí jednotlivých týmů se zapíše do listu Start.listina do kolonky Konečné pořadí (je vpravo na konci)
B28: (přepíše se vzoreček číslem, vyjadřujícím výsledné pořadí, neuvádí se tečky za číslicí !!!)
A29: i) předání výsledků turnaje se provádí nahráním tohoto vyplněného souboru na internet na www stránkách ČAPEK
B30: (viz tlačítko Žebříčky hráčů a volba Předávání výsledků turnaje)
B31: soubor s výsledky je třeba pojmenovat vysledkyxxxx.XLS (xxx je číslo turnaje), jinak nelze výsledky automaticky zpracovat (nerozpozná se)
B32: Prosíme zasílejte soubor pokud možno v komprimované podobě (z důvodu velikosti)!
A34: Chronologický postup práce při vedení celého turnaje je následující:
A36: a) vyplnění Start.listiny přímo z přihlášek na internetu
A37: - | B37: Týmy přihlášené přes internet lze do tohoto souboru před turnajem přenést. Stačí provést následující:
B38: 1) v seznamu nahlášených družstev na internetu zvolit Úpravy: - Vybrat vše (klávesová zkratka Ctrl-A)
B39: 2) v seznamu nahlášených družstev na internetu zvolit Úpravy: - Kopírovat (klávesová zkratka Ctrl-C)
B40: 3) v tomto programu myší kliknout na list Internet a zde kliknout na první buňku vlevo nahoře (označená A1)
B41: 4) zvolit Úpravy: - Vložit (klávesová zkratka Ctrl-V)
B42: Tímto budou přenesena data z internetu do Startovní listiny (zároveň bude nastaveno i číslo turnaje)
B43: Úpravy Startovní listiny pak lze provádět postupem uvedeným níže nebo také přímo na listu Internet (nedoporučeno)
B44: Po nasazení turnaje (viz tlačítko "Nasadit týmy do turnaje" už lze opravovat jen přímo ve Startovní listině)
B45: * Případ lichého počtu týmů doporučujeme řešit tak, že přidáme do startovního pole jeden fiktivní tým, budeme ho nazývat KONTUMACE.
B46: Tomuto týmu přiřadíme takovou sílu, aby byl posledním nasazeným v 1. koši.
B47: Tento tým bude nasazen v 1. kole proti poslednímu nasazenému z druhého koše a k týmu bez vítězství v následujících kolech.
B48: Ale pozor, je potřeba zkontrolovat, že tento tým není náhodou nalosován proti soupeři s výhrou! Pak je třeba losování kola opakovat.
B49: Po skončení turnaje dejte týmu KONTUMACE na listu Start.Listina ve sloupci AH Konečné pořadí = 0
A51: b) vyplnění Start.listiny ručně zápisem do Startovní listiny
A52: - | B52: na listu Start.listina se vyplní číslo turnaje podle Termínové listiny (to lze nalézt na listu Turnaje)
B53: automaticky se podle Termínové listiny doplní informace o turnaji
A54: - | B54: provede se nastavení kritérií "Švýcara" (viz bod c)
A55: - | B55: na listu Start.listina se vyplňují čísla licencí hráčů (program automaticky doplní zbylé údaje podle matriky a aktuálního žebříčku - viz list Hraci)
B56: (čísla licencí je možné dohledat na listu Hraci - obsahuje Seznam licencovaných hráčů ČAPEK a jejich aktuální údaje ze žebříčku ČAPEK)
A57: - | B57: pokud hráč nemá českou licenci, zapíše se jeho jméno
A58: - | B58: tým musí být kompletní, jinak je ve sloupci OK označen červeně a nevstupuje do turnaje
B59: (nekompletní tým je při nasazení vyřazen; červeně ve sloupečku OK jsou vyznačeny také duplicity licencí hráčů)
A60: - | B60: zahraniční týmy se zapisují tak, že se hráčům musí uvést číslo licence a zároveň jeho jméno (v seznamu hráčů na listu Hraci nejsou)
B61: zahraniční hráč bez licence se bere jako tuzemský neregistrovaný hráč (program pozná cizince podle toho že má licenci, ale nenajde k němu jméno v matrice)
B62: správné vyplnění cizinců ve startovní listině je podmínkou pro správné nasazení cizinců do 1.koše pro 1.kolo
A63: - | B63: zrušení zapsaného týmu ze startovní listiny se provede vymazáním licencí (nesmí se odstranit celý řádek nebo smazat vzorečky - program by potom nefungoval !!!)
A64: - | B64: po prezentaci všech týmů je na listu Start.listina zřejmé, kolik je týmů celkem
A65: - | B65: automaticky jsou počítány některé parametry turnaje (předpokládaná třída turnaje, časový odhad délky trvání fází turnaje, počet hřišť,)
A66: - | B66: některé parametry turnaje (kvalita turnaje) se spočtou až po nasazení turnaje
A67: - | B67: na listu Start.listina lze přestavit i vypočtenou třídu turnaje (P-Prestige, S-Superprestige, M-MČR, F-finále MČR) pro účely výpočtu bodů za umístění
A69: c) nastavování kritérií "Švýcara" (žebříčkové turnaje ČAPEK, hrané švýcarem, se hrají povinně Bucholz - 2)
B70: zde lze ovlivnit chování programu při řazení týmů do pořadí za sebou při výběru do pavouka KO a způsob losování kol "Švýcara"
B71: nejdříve se vždy řadí podle počtu výher
B72: potom se lze rozhodnout, jestli bude použit Bucholzův koeficient a skóre nebo jen skóre (bez vyplnění=skóre)
B73: Bucholzův koeficient zohledňuje počty výher soupeřů, program umí počítat s následujícími typy:
B74: 1 - výhry soupeřů
B75: 2 - výhry soupeřů a jejich soupeřů
B76: po kritériu skóre lze ještě zohledňovat výhry proti nasazeným týmům z 1.koše
B77: program při přechodu do pavouka (viz tlačítko Přechod do pavouka) automaticky počítá pořadí týmů podle nastavených kritérií (až do pořadí 64)
B78: které týmy se převedou do pavouka KO můžeme ovlivnit kritériem pro Počet výher nebo Počet týmů
B79: kritériem pro omezení postupu do pavouka lze stanovit počet výher v základní části, vede to obvykle na děravého pavouka, je to spravedlivé, bez pomocných kritérií
B80: často používaným kritériem pro omezení postupu do pavouka je stanovit počet týmů, které postupují do KO vede to obvykle na kompletního (plného) pavouka
B81: program poskytuje informace ke kvalitnímu rozhodování
B82: např. na základě počtu kol "Švýcara" a počtu přihlášených týmů spočítá kolik týmů bude po odehrání zápasů s 0, 1, 2, 3, … výhrami
B83: zajímavý je jistě časový odhad trvání základní části hry a pavouka KO (odhadovanou dobu trvání jednoho zápasu lze nastavit, přednastaveno je 75 min.)
B84: některé pořadatele může limitovat počet potřebných hřišť, "Švýcar" je systém náročný na počet hřišť
B86: Do dalšího kola se nasazuje podle:
B87: 1) počtu výher
B88: 2) rozdílu skóre (dává stejně silné proti sobě, aby co nejrychleji zjistil toho jednoho nejlepšího)
A90: d) po ukončení prezentace se na listu Start.listina stiskne tlačítko Nasadit týmy do turnaje
A91: - | B91: týmy se zařadí do dvou košů (všechny týmy jsou nasazeny až do konce)
A92: - | B92: pokud chcete, aby byly týmy ve druhém koši zpřeházeny, stiskněte tlačítko Zbylé týmy dolosovat (losování využívá generátor náh.čísel)
A93: - | B93: pak se vytiskne list 1. kolo na papír pro informovanost hráčů kdo s kým hraje a na jakém hřišti a zahájí se zápasy
A95: e) výsledky jednotlivých zápasů se postupně zapisují do žlutých polí na listu 1.kolo
A96: - | B96: výsledek zápasu se zapisuje jako přesné skóre (na skóre záleží)
A98: f) po zapsání všech výsledků 1.kola se přejde na list 2.kolo
A99: - | B99: zde se myší stiskne tlačítko Nalosovat kolo a program nalosuje týmy
B100: pokud jste nezvolili volbu "Klasický Švýcar", udělá to program tak, že proti sobě nastoupí náhodně týmy se stejným počtem výher
B101: pokud jste zvolili volbu "Klasický Švýcar" losuje se mezi týmy se stejným počtem výher (dává momentálně stejně silné týmy proti sobě, aby co nejrychleji zjistil nejlepšího)
B102: pokud je podklad tlačítka Nalosovat kolo zelený, je vše v pořádku, pokud je červený, nastal problém duplicity zápasu (stejní soupeři, kteří se již potkali v předchozích kolech)
B103: duplicita zápasu se řeší opětovným stiskem tlačítka Nalosovat kolo (případně vícekrát, dokud není zelená)
A104: - | B104: vytiskne se list 2. kolo na papír pro informovanost hráčů kdo s kým hraje a na jakém hřišti a zahájí se zápasy
A105: - | B105: výsledky jednotlivých zápasů se postupně zapisují do žlutých polí na listu 2.kolo
A107: g) po zapsání všech výsledků 2.kola se přejde na list 3.kolo
A108: - | B108: postup je obdobný 2.kolu, navíc zde přibylo tlačítko pro Přechod do pavouka (pro případ, že "Švýcar" je tříkolový)
B109: to se použije po zapsání všech výsledků ke stanovení pořadí pro přechod do pavouka a zároveň k zařazení týmů do pavouka KO
B110: zároveň se v tuto chvíli objeví informace na listu Pořadí švýcar
B111: tento list využijeme při vyhlášování mezivýsledků po švýcaru, řazení týmů je zde rozdílné od listu Centrum, kde je to podle nasazení v turnaji
B112: mezivýsledky lze udělat po každém kole i když se nepřechází do pavouka, ale POZOR dělejte je v záložní kopii!
A113: - | B113: přechod do pavouka KO lze udělat i ručně - zapsáním týmů do nultého kola pavouka příslušného KO (např. když je turnaj hrán Švýcarem)
B114: (pozor v tomto případě na název týmu - měl by být přesně ten, jako ve skupinách, doporučujeme kopírovat hodnotou)
A116: h) další kola probíhají stejně jako 3.kolo
B117: v určité chvíli může dojít k situaci, že opětovným losováním už se nemůžeme zbavit duplicit (když je málo týmů a vysoké kolo Švýcara)
B118: v této situaci je doporučení hrát podle nalosování, přestože některý ze zápasů bude duplicitní (ručně by to možná šlo nějak řešit, ale pak je pracné to nastavit v programu a proč to komplikovat?)
A119: - | B119: po stisku tlačítka pro Přechod do pavouka
A121: i) na listu KOxx se postupně do žlutých polí vyplňují výsledky jednotlivých zápasů v pavouku příslušného KO.
A122: - | B122: automaticky podle výsledku tým buď postupuje nebo nepostupuje do dalšího kola KO nebo úplně vypadává, případně postupuje do dohrávky
A123: j) na listu Dohrávka_5-8 se postupně do žlutých polí vyplňují výsledky jednotlivých zápasů (pokud se dohrává o 5-8)
A124: k) na listu Dohrávka_9-16 se postupně do žlutých polí vyplňují výsledky jednotlivých zápasů (pokud se dohrává o 9-16)
A125: l) po skončení všech zápasů a po jejich zapsání je na listu Konečné pořadí_1_16 zobrazeno pořadí prvních 16-ti týmů
A126: - | B126: aby Pořadí_1_16 bylo kompletní, je třeba mít vyplněné všechny výsledky v některém pavouku KO
B127: výsledky zápasů KO lze zapisovat do libovolného vhodného listu KO (údaje se přenášejí do navazujících KO a jsou propojeny až do konečných výsledků)
B128: zároveň je třeba mít vyplněné dohrávky o 5-8 a 9-16 místo !
B129: výsledky týmů, včetně bodového hodnocení, se počítají průběžně (jsou ve Start. listině vpravo za posledním hráčem)
A130: m) předání výsledků turnaje bylo popsáno výše
A132: POZOR: nerušte žádné listy tohoto programu, např. z důvodu snížení velikosti tohoto souboru (mohli by jste totiž o svoji práci a vložená data přijít)
A133: list Centrum slouží k centrální informaci o průběhu turnaje a také k vynulování turnaje (nezapisuje se do něj a normálně se v něm nespouštějí makra)
A135: Dobré rady:
A136: - | B136: ponechat soubor ve formátu XLS, nenechat si vnutit uložení do formátu XLSX ve kterém přijdete o makra, bez kterých to pak nefunguje.
A137: - | B137: povolit makra (jinak nebudou makra fungovat) - je to pod volbou Nástroje - Makro - Zabezpečení
A138: - | B138: červený trojúhelníček značí, že na buňce je komentář / vysvětlivka (zastavením myši na buňce se zobrazí) | J138: příklad komentáře
A139: - | B139: nepřepisovat žádné vzorečky s výjimkou těch, které jsou ve žlutých polích
A140: - | B140: vždy si zkontrolujte, že ve sloupečku vlevo, označeném OK, nesvítí červená barva (značí to, že je v údajích hráčů nějaký problém a že nebude tým vzat do turnaje
A141: - | B141: před jméno hráče bez licence nedávejte mezeru, rozsvítí se vám červená ve sloupečku OK
A142: - | B142: červená ve sloupečku OK se rozsvítí v případě, že číslo licence se vyskytuje ve startovním poli více jak jeden krát
A143: - | B143: pokud uvedete číslo licence, nezapisujte již jméno (rozhodující je číslo licence, jméno, které k němu patří se automaticky zobrazí, pokud nevymažete vzoreček)
B144: (v případě cizinců s licencí je naopak nutno jméno napsat)
A145: - | B145: pozor v případě, že by jste ručně psali do pavouka název týmu - měl by být přesně ten, jako v základní části (doporučujeme kopírovat hodnotou)
A146: - | B146: tlačítko Přechod do pavouka lze stisknout opakovaně a kdykoliv (nakonec ale ve správnou chvíli, kdy již jsou zavedeny všechny výsledky)
A147: - | B147: jakmile jednou nalosujete turnaj a začnete hrát 1.kolo, rozhodně se již tlačítka na nasazování a losování nedotýkejte!
A148: - | B148: jakmile jednou nalosujete kolo a začnete ho hrát, rozhodně se již tlačítka na losování tohoto kola nedotýkejte!
A149: - | B149: v důležitých a vhodných okamžicích uložte soubor (nejlépe pod jiným jménem), aby jste se měli k čemu vrátit v případě potřeby
A150: - | B150: akce provedené makry (přes tlačítka) většinou nejdou vrátit zpět !
A151: - | B151: #N/A znamená, že nastala chyba a je nutno ji odstranit (k číslu licence nenalezen hráč apod.)
A152: - | B152: neodemykejte zamčené listy, můžete něco pokazit!
A153: - | B153: nerušte řádky ve Startovní listině, přestane to celé fungovat!
A157: V případě dotazů se obracejte na autora: Pavel Vlk, tel. 602-692-489

Sheet Turnaje
A1: Seznam turnajů z Termínové listiny ČAPEK | F1: 2013-03-01
A3: cislo | B3: nazev | C3: datum | D3: misto | E3: poradatel | F3: system
A4: 13001 | C4: 28.02.2013 | F4: 1
A5: 13002 | B5: SVĚDEK | C5: 09.03.2013 | D5: Ořech | E5: CTP club Ořech | F5: 2
A6: 13003 | B6: Jarní lipnické koule | C6: 16.03.2013 | D6: Lipník | E6: PC Sokol Lipník | F6: 3
A7: 13004 | B7: Beraní koule | C7: 30.03.2013 | D7: Albrechtice | E7: PAK Albrechtice | F7: 2
A8: 13077 | B8: Nakashi Cup | C8: 30.03.2013 | D8: Loděnice | E8: CdP Loděnice | F8: 2
A9: 13005 | B9: GP pivovaru Litovel | C9: 06.04.2013 | D9: Brno - Slatina | E9: SLOPE | F9: 3
A10: 13006 | B10: Saharský pohár | C10: 13.04.2013 | D10: Vědomice | E10: SK Sahara Vědomice | F10: 2
A11: 13007 | B11: Vědomická koule | C11: 13.04.2013 | D11: Vědomice | E11: SK Sahara Vědomice | F11: 2
A12: 13008 | B12: Litovel ÓPN | C12: 20.04.2013 | D12: Litovel | E12: KLIP litovel | F12: 3
A13: 13009 | B13: Lipnický košónek Zdeňka Vavroviče | C13: 20.04.2013 | D13: Lipník | E13: PC Sokol Lipník | F13: 2
A14: 13076 | B14: Litovel Closed | C14: 20.04.2013 | D14: Litovel | E14: KLIP litovel | F14: 3
A15: 13010 | B15: Velikonoční vejce | C15: 27.04.2013 | D15: Vojnův Městec | E15: PK Vojnův Městec | F15: 2
A16: 13011 | B16: Karlova pomlázka | C16: 27.04.2013 | D16: Vojnův Městec | E16: PK Vojnův Městec | F16: 2
A17: 13078 | B17: Karlův jarní pohár | C17: 27.04.2013 | D17: Loděnice | E17: CdP Loděnice | F17: 1
A18: 13021 | B18: Poděbradka Cup | C18: 27.04.2013 | D18: Poděbrady | E18: ČPK Poděbrady | F18: 2
A19: 13012 | B19: Čarodějnické koule | C19: 30.04.2013 | D19: Kolová | E19: PC Kolová | F19: 2
A20: 13086 | B20: Prvomájové koule | C20: 01.05.2013 | D20: Lipník | E20: PC Sokol Lipník | F20: 2
A21: 13088 | B21: Soustředění + MČR juniorů | C21: 02.05.2013 | D21: Drhleny | E21: KM ČAPEK | F21: 3
A22: 13014 | B22: CENTROPE SLOVINSKO | C22: 04.05.2013 | F22: 3
A23: 13015 | B23: 17. Prvomájové koule barona Prášila | C23: 04.05.2013 | D23: Ořech | E23: CTP club Ořech | F23: 2
A24: 13016 | B24: Prvomájové koulení | C24: 04.05.2013 | D24: Valšovice | E24: SKP Hranice VI-Valšovice | F24: 3
A25: 13017 | B25: O pohár piráta Morgana | C25: 05.05.2013 | D25: Ořech | E25: CTP club Ořech | F25: 2
A26: 13018 | B26: MČR klubů 1.kolo | C26: 08.05.2013 | D26: dle rozpisu | E26: STK | F26: 0
A27: 13019 | B27: Chateau Náměšť | C27: 11.05.2013 | D27: Náměšť na Hané | E27: KB Olomouc | F27: 3
A28: 13020 | B28: Náměšť "B" | C28: 11.05.2013 | D28: Náměšť na Hané | E28: KB Olomouc | F28: 3
A29: 13083 | B29: Starostovo jarní koulení | C29: 11.05.2013 | D29: Cheb | E29: PC Egrensis | F29: 2
A30: 13022 | B30: CENTROPE POLSKO | C30: 18.05.2013 | F30: 3
A31: 13079 | B31: Turnaj dvojic | C31: 18.05.2013 | D31: Loděnice | E31: CdP Loděnice | F31: 2
A32: 13023 | B32: MČR 3x3 ženy kvalifikace na MS | C32: 25.05.2013 | D32: Litovel | E32: HAPEK | F32: 3
A33: 13024 | B33: XVII. Kolovská koule | C33: 25.05.2013 | D33: Kolová | E33: PC Kolová | F33: 2
A34: 13025 | B34: Memory Cup | C34: 25.05.2013 | D34: Orlová | E34: TOP Orlová | F34: 3
A35: 13026 | B35: CENTROPE RAKOUSKO | C35: 01.06.2013 | F35: 3
A36: 13027 | B36: Albrechtický kahan | C36: 01.06.2013 | D36: Albrechtice | E36: PAK Albrechtice | F36: 1
A37: 13028 | B37: Noční čarodějnice | C37: 01.06.2013 | D37: Lipník | E37: PC Sokol Lipník | F37: 2
A38: 13029 | B38: MČR 1x1 | C38: 08.06.2013 | D38: Vojnův Městec | E38: PK Vojnův Městec | F38: 1
A39: 13030 | B39: MČR ve vyrážení | C39: 09.06.2013 | D39: Vojnův Městec | E39: PK Vojnův Městec | F39: 1
A40: 13031 | B40: CENTROPE ČESKO | C40: 15.06.2013 | D40: ZÁMEK TRÓJA | E40: VARAN KV | F40: 3
A41: 13032 | B41: Vajtovy koule | C41: 15.06.2013 | D41: Vojnův Městec | E41: PK Vojnův Městec | F41: 2
A42: 13033 | B42: Tulamore Dew | C42: 15.06.2013 | D42: Vojnův Městec | E42: PK Vojnův Městec | F42: 2
A43: 13034 | B43: MČR 3x3 | C43: 22.06.2013 | D43: Jaroměřice n. Rokytnou | E43: CARREAU Brno | F43: 3
A44: 13035 | B44: MČR 3x3 muži kvalifikace na MS | C44: 29.06.2013 | D44: Stolín | E44: PEK Stolín | F44: 3
A45: 13035 | B45: MČR 3x3 muži kvalifikace na MS | C45: 30.06.2013 | D45: Stolín | E45: PEK Stolín | F45: 3
A46: 13036 | B46: Hanácké bakole | C46: 05.07.2013 | D46: Litovel | E46: KLIP litovel | F46: 2
A47: 13077 | B47: Hanácká brdolka | C47: 05.07.2013 | D47: Litovel | E47: KLIP litovel | F47: 2
A48: 13037 | B48: MČR klubů 2.kolo | C48: 06.07.2013 | D48: dle rozpisu | E48: STK | F48: 0
A49: 13087 | B49: O brněnskou kouli 18.ročník | C49: 07.07.2013 | D49: Brno | E49: SOP Fňáky Brno | F49: 3
A50: 13038 | B50: Maxitrh.cz | C50: 13.07.2013 | D50: Brno - Slatina | E50: SLOPE | F50: 2
A51: 13084 | B51: Vo Jarinovy koule 17.ročník | C51: 13.07.2013 | D51: Hartvíkovice | E51: HP Třebíč | F51: 3
A52: 13085 | B52: Vo Jarinku 11. ročník | C52: 13.07.2013 | D52: Hartvíkovice | E52: HP Třebíč | F52: 3
A53: 13039 | B53: Krumsínská hroda | C53: 20.07.2013 | D53: Krumsín | E53: Hrode Krumsín | F53: 3
A54: 13089 | B54: M Cup | C54: 20.07.2013 | D54: Krumsín | E54: Hrode Krumsín | F54: 3
A55: 13040 | B55: Krakonošovy koule | C55: 20.07.2013 | D55: Vrchlabí | E55: 1.KPK Vrchlabí | F55: 2
A56: 13080 | B56: O pohár CdP Loděnice | C56: 20.07.2013 | D56: Loděnice | E56: CdP Loděnice | F56: 2
A57: 13041 | B57: Grand Prix d´Austerlitz | C57: 27.07.2013 | D57: Slavkov u Brna | E57: PC Austerlitz 1805 | F57: 3
A58: 13042 | B58: Valšovický pohár | C58: 03.08.2013 | D58: Valšovice | E58: SKP Hranice VI-Valšovice | F58: 1
A59: 13043 | B59: Stolínský křečák - memoriál Jaroslava Smoly | C59: 03.08.2013 | D59: Stolín | E59: PEK Stolín | F59: 3
A60: 13013 | B60: Mastr Cup | C60: 03.08.2013 | D60: Stolín | E60: PEK Stolín | F60: 3
A61: 13044 | B61: MČR 2X2 mixy | C61: 10.08.2013 | D61: Vědomice | E61: SK Sahara Vědomice | F61: 2
A62: 13045 | B62: Podřipský pohár | C62: 17.08.2013 | D62: Vědomice | E62: SK Sahara Vědomice | F62: 2
A63: 13046 | B63: O pohár praotce Čecha | C63: 17.08.2013 | D63: Vědomice | E63: SK Sahara Vědomice | F63: 2
A64: 13047 | B64: Mozartovy koule | C64: 17.08.2013 | D64: Olomouc | E64: KB Olomouc | F64: 3
A65: 13048 | B65: CENTROPE SLOVENSKO | C65: 24.08.2013 | F65: 3
A66: 13049 | B66: Václavská podkova | C66: 24.08.2013 | D66: Kolová | E66: PC Kolová | F66: 2
A67: 13050 | B67: O pohár města Brna - VARS Cup | C67: 31.08.2013 | D67: hrad VEVEŘÍ | E67: CARREAU Brno | F67: 3
A68: 13051 | B68: MČR 2x2 | C68: 07.09.2013 | D68: Kolová | E68: PC KOLOVÁ | F68: 2
A69: 13052 | B69: CENTROPE MAĎARSKO | C69: 14.09.2013 | F69: 3
A70: 13053 | B70: Orlovský kahan | C70: 14.09.2013 | D70: Orlová | E70: TOP Orlová | F70: 3
A71: 13054 | B71: Selské koule | C71: 14.09.2013 | D71: Sněžné | E71: PEPA Sněžné | F71: 2
A72: 13081 | B72: GEKON o křišťálovou tašku | C72: 14.09.2013 | D72: Loděnice | E72: CdP Loděnice | F72: 3
A73: 13082 | B73: GEKON "B" | C73: 14.09.2013 | D73: Loděnice | E73: CdP Loděnice | F73: 3
A74: 13055 | B74: MČR klubů 3.kolo | C74: 15.09.2013 | D74: dle rozpisu | E74: STK | F74: 0
A75: 13056 | B75: MČR 55 plus | C75: 21.09.2013 | D75: Únětice | E75: UBU Únětice | F75: 3
A76: 13057 | B76: Svatováclavské dukáty | C76: 21.09.2013 | D76: Lipník | E76: PC Sokol Lipník | F76: 2
A77: 13059 | B77: VC REDA | C77: 21.09.2013 | D77: Brno - Slatina | E77: SLOPE | F77: 2
A78: 13063 | B78: MČR klubů 4.kolo | C78: 22.09.2013 | D78: dle rozpisu | E78: STK | F78: 0
A79: 13058 | B79: Grand Prix Egrensis | C79: 28.09.2013 | D79: Cheb | E79: PC Egrensis | F79: 2
A80: 13060 | B80: Svatováclavské koulení | C80: 28.09.2013 | D80: Valšovice | E80: SKP Hranice VI-Valšovice | F80: 2
A81: 13061 | B81: Svatováclavský turnaj | C81: 28.09.2013 | D81: Vojnův Městec | E81: PK Vojnův Městec | F81: 2
A82: 13062 | B82: Rychtář cup | C82: 28.09.2013 | D82: Vojnův Městec | E82: PK Vojnův Městec | F82: 2
A83: 13064 | B83: Čerlinka cup | C83: 05.10.2013 | D83: Litovel | E83: KLIP litovel | F83: 2
A84: 13065 | B84: Přebor KV a PLZ kraje 2x2 - memoriál Mirka Valenty | C84: 05.10.2013 | D84: Kolová | E84: PC Kolová | F84: 2
A85: 13066 | B85: MEVA Cup | C85: 05.10.2013 | D85: Vědomice | E85: SK Sahara Vědomice | F85: 2
A86: 13067 | B86: Polabský pohár | C86: 05.10.2013 | D86: Vědomice | E86: SK Sahara Vědomice | F86: 2
A87: 13078 | B87: O prasečí hlavu | C87: 05.10.2013 | D87: Litovel | E87: KLIP litovel | F87: 2
A88: 13068 | B88: Zlaté prasátko | C88: 12.10.2013 | D88: Brno - Slatina | E88: SLOPE | F88: 3
A89: 13069 | B89: Podzimní lipnické koule | C89: 12.10.2013 | D89: Lipník | E89: PC Sokol Lipník | F89: 2
A90: 13076 | B90: Kapucínova koule | C90: 19.10.2013 | D90: Chrudim | E90: AURA Havl. Brod . | F90: 2
A91: 13070 | B91: Albrechtický pohár | C91: 26.10.2013 | D91: Albrechtice | E91: PAK Albrechtice | F91: 2
A92: 13071 | B92: Top klip | C92: 02.11.2013 | D92: Litovel | E92: KLIP litovel | F92: 3
A93: 13072 | B93: Podzimní koule | C93: 02.11.2013 | D93: Kolová | E93: PC Kolová | F93: 2
A94: 13073 | B94: Fishing cup | C94: 09.11.2013 | D94: Brno - Slatina | E94: SLOPE | F94: 3
A95: 13074 | B95: Přimrzlé koule | C95: 07.12.2013 | D95: Ořech | E95: CTP club Ořech | F95: 2
A96: 13075 | B96: Svatoštěpánské koule | C96: 26.12.2013 | D96: Kolová | E96: PC Kolová | F96: 2

Sheet Kluby (hidden)
A1: Seznam klubů ČAPEK
A2: (výpis z matriky)
A4: Číslo | B4: Název klubu | C4: Region
A5: klubu
A6: 001 | B6: 1. KPK VRCHLABÍ | C6: S
A7: 002 | B7: 1.STAROBRNĚNSKÝ PK | C7: V
A8: 005 | B8: C.T.P. CLUB OŘECH | C8: Z
A9: 006 | B9: CP VARY | C9: Z
A10: 007 | B10: PODĚBRADY | C10: S
A11: 008 | B11: DPS | C11: Z
A12: 010 | B12: SOP FŇÁKY BRNO | C12: V
A13: 011 | B13: HEJ RUP | C13: S
A14: 013 | B14: HP TŘEBÍČ | C14: V
A15: 014 | B15: HRODE KRUMSÍN | C15: V
A16: 015 | B16: KULOVÝ BLESK | C16: V
A17: 016 | B17: PCBD | C17: V
A18: 017 | B18: Carreau Brno | C18: V
A19: 019 | B19: PC Kolová | C19: Z
A20: 020 | B20: PC Sokol LIPNÍK | C20: S
A21: 021 | B21: PEK STOLÍN | C21: S
A22: 022 | B22: PEPEK | C22: V
A23: 023 | B23: ČESKÝ RÁJ | C23: Z
A24: 024 | B24: POP PRAHA | C24: Z
A25: 027 | B25: SLOPE BRNO | C25: V
A26: 028 | B26: SOKOL STAŘÍČ | C26: V
A27: 029 | B27: TJ SOKOL SLAVKOV | C27: V
A28: 030 | B28: TOP - ORLOVÁ | C28: V
A29: 031 | B29: Varan Karlovy Vary | C29: Z
A30: 032 | B30: ŽHAVÉ KOULE Havlíčkův Brod | C30: S
A31: 033 | B31: KLIP Litovel | C31: V
A32: 035 | B32: OK Běchovice | C32: Z
A33: 036 | B33: Lesklé koule - 1.PC Líšnice | C33: Z
A34: 037 | B34: APEC Česká Třebová | C34: S
A35: 038 | B35: TJ Sokol Řepy | C35: Z
A36: 039 | B36: PC České Budějovice | C36: Z
A37: 040 | B37: PC Praha 13 | C37: Z
A38: 041 | B38: PETANQUE NIŽBOR | C38: Z
A39: 042 | B39: PCP LIPNÍK | C39: S
A40: 043 | B40: FRAPECO | C40: Z
A41: 044 | B41: Vojnův Městec | C41: S
A42: 045 | B42: FENYX | C42: Z
A43: 046 | B43: LES BOULLES HOSTIVAŘ | C43: Z
A44: 047 | B44: TJ AGRO CHEB | C44: Z
A45: 048 | B45: AURA Havlíčkův Brod | C45: S
A46: 049 | B46: PEKLUBO Bohnice | C46: Z
A47: 050 | B47: HODICE | C47: Z
A48: 051 | B48: UBU - United Balls of Únětice | C48: Z
A49: 052 | B49: PC Sokol Velim | C49: S
A50: 053 | B50: TJ SOKOL Jabkenice | C50: S
A51: 054 | B51: SK SAHARA Vědomice | C51: Z
A52: 055 | B52: PK OSIKA | C52: Z
A53: 056 | B53: HRANICE VI.-VALŠOVICE | C53: V

Sheet Hraci
A1: Seznam licencovaných hráčů ČAPEK
A2: (výpis z matriky, doplněný výsledky ze žebříčku) | E2: 2013-03-01
F3: č.
A4: licence | B4: prijmeni | C4: jmeno | D4: kat | E4: klub | F4: klubu | G4: rocnik | H4: cz | I4: sila | J4: body | K4: bonusy
A5: 96126 | B5: Ambrož | C5: Richard | E5: ČPK Poděbrady | F5: 7 | G5: 1970 | H5: 529 | I5: 0 | J5: 0 | K5: 0
A6: 24216 | B6: Anderson | C6: Ben | E6: UBU Únětice | F6: 51 | G6: 1958 | H6: 455 | I6: 0 | J6: 15 | K6: 0
A7: 24317 | B7: Anton | C7: Lubomír | E7: KLIP Litovel | F7: 33 | G7: 1954 | H7: 88 | I7: 19.188 | J7: 1174.322 | K7: 377
A8: 24250 | B8: Bareš | C8: Josef | E8: PK 1293 Vojnův Městec | F8: 44 | G8: 1963 | H8: 328 | I8: 1.5 | J8: 123.75 | K8: 56
A9: 23045 | B9: Bareš | C9: Pavel | E9: PK 1293 Vojnův Městec | F9: 44 | G9: 1967 | H9: 374 | I9: 2.375 | J9: 85.632 | K9: 0
A10: 23036 | B10: Barešová | C10: Hana | D10: Z | E10: PK 1293 Vojnův Městec | F10: 44 | G10: 1969 | H10: 530 | I10: 0 | J10: 0 | K10: 0
A11: 12050 | B11: Barnatová | C11: Jana | D11: Z | E11: CdP Loděnice | F11: 64 | G11: 1957 | H11: 425 | I11: 1.375 | J11: 31.026 | K11: 0
A12: 10136 | B12: Bartejs | C12: Lukáš | E12: PKK Třebíč | F12: 61 | G12: 1978 | H12: 340 | I12: 1.438 | J12: 115.037 | K12: 52
A13: 96209 | B13: Bartoš | C13: Martin | E13: 1. KPK Vrchlabí | F13: 1 | G13: 1962 | H13: 184 | I13: 9.969 | J13: 509.099 | K13: 133
A14: 23051 | B14: Bartošová | C14: Kristýna | D14: Z | E14: 1. KPK Vrchlabí | F14: 1 | G14: 1992 | H14: 197 | I14: 5.594 | J14: 426.361 | K14: 138
A15: 96210 | B15: Bartošová | C15: Zuzana | D15: Z | E15: 1. KPK Vrchlabí | F15: 1 | G15: 1962 | H15: 382 | I15: 2.75 | J15: 76.942 | K15: 0
A16: 28003 | B16: Basař | C16: Josef | E16: PC Sokol Lipník | F16: 20 | G16: 1951 | H16: 531 | I16: 0 | J16: 0 | K16: 0
A17: 21853 | B17: Bayer | C17: Filip | E17: PC AUSTERLITZ 1805 | F17: 29 | G17: 1992 | H17: 96 | I17: 12 | J17: 1111.201 | K17: 491
A18: 99527 | B18: Bayer | C18: Milan | E18: PC AUSTERLITZ 1805 | F18: 29 | G18: 1961 | H18: 152 | I18: 11.531 | J18: 719.299 | K18: 275
A19: 99528 | B19: Bayer | C19: Miroslav | E19: PC AUSTERLITZ 1805 | F19: 29 | G19: 1967 | H19: 84 | I19: 23.156 | J19: 1185.866 | K19: 298
A20: 21808 | B20: Bayer | C20: Tomáš | E20: PC AUSTERLITZ 1805 | F20: 29 | G20: 1989 | H20: 119 | I20: 8.125 | J20: 930.892 | K20: 470
A21: 21763 | B21: Bayerová | C21: Eva | D21: Z | E21: PC AUSTERLITZ 1805 | F21: 29 | G21: 1963 | H21: 468 | I21: 0 | J21: 10 | K21: 0
A22: 27012 | B22: Bednář | C22: Martin | E22: SK Vinohrady | F22: 59 | G22: 1984 | H22: 532 | I22: 0 | J22: 0 | K22: 0
A23: 27002 | B23: Bednář | C23: Michal | E23: SK Vinohrady | F23: 59 | G23: 1986 | H23: 489 | I23: 0 | J23: 1 | K23: 0
A24: 27001 | B24: Bednář | C24: Svatopluk | E24: SK Vinohrady | F24: 59 | G24: 1956 | H24: 415 | I24: 0 | J24: 41 | K24: 0
A25: 27009 | B25: Bednářová | C25: Jitka | D25: Z | E25: SK Vinohrady | F25: 59 | G25: 1992 | H25: 210 | I25: 6.625 | J25: 390.276 | K25: 92
A26: 27081 | B26: Beer | C26: Rostislav | E26: 1. Starobrněnský PK | F26: 2 | G26: 1962 | H26: 490 | I26: 0 | J26: 1 | K26: 0
A27: 24237 | B27: Bejvlová | C27: Jana | D27: Z | E27: PC Kolová | F27: 19 | G27: 1981 | H27: 157 | I27: 10.813 | J27: 654.622 | K27: 275
A28: 10156 | B28: Beneda | C28: Filip | E28: CdP Loděnice | F28: 64 | G28: 1987 | H28: 491 | I28: 0 | J28: 1 | K28: 0
A29: 22995 | B29: Beran | C29: Jiří | E29: KLIP Litovel | F29: 33 | G29: 1976 | H29: 533 | I29: 0 | J29: 0 | K29: 0
A30: 13001 | B30: Beranová | C30: Pavla | D30: Z | E30: PK JUPITER Vědomice | F30: 54 | G30: 1970 | H30: 350 | I30: 0.938 | J30: 104.609 | K30: 63
A31: 10100 | B31: Bernát | C31: Miroslav | E31: SENIOR TÝM Praha 1 | F31: 70 | G31: 1940 | H31: 534 | I31: 0 | J31: 0 | K31: 0
A32: 10101 | B32: Bernátová | C32: Zdenka | D32: Z | E32: SENIOR TÝM Praha 1 | F32: 70 | G32: 1938 | H32: 535 | I32: 0 | J32: 0 | K32: 0
A33: 28050 | B33: Beránek | C33: Miroslav | E33: PC Kolová | F33: 19 | G33: 1952 | H33: 52 | I33: 30 | J33: 1695.98 | K33: 585
A34: 13025 | B34: Beseda | C34: Daniel | E34: Club Rodamiento | F34: 76 | G34: 1979 | H34: 536 | I34: 0 | J34: 0 | K34: 0
A35: 13026 | B35: Besedová | C35: Lucie | D35: Z | E35: Club Rodamiento | F35: 76 | G35: 1986 | H35: 537 | I35: 0 | J35: 0 | K35: 0
A36: 23129 | B36: Blahníková | C36: Radka | D36: Z | E36: PK Osika Plzeň | F36: 55 | G36: 1975 | H36: 250 | I36: 1 | J36: 265.031 | K36: 225
A37: 13050 | B37: Blaschková | C37: Dagmar | D37: Z | E37: SENIOR TÝM Praha 1 | F37: 70 | G37: 1935 | H37: 538 | I37: 0 | J37: 0 | K37: 0
A38: 28005 | B38: Blažej | C38: Petr | E38: 1. Starobrněnský PK | F38: 2 | G38: 1953 | H38: 308 | I38: 3.25 | J38: 149.156 | K38: 0
A39: 28056 | B39: Blažejová | C39: Eva | D39: Z | E39: 1. Starobrněnský PK | F39: 2 | G39: 1952 | H39: 539 | I39: 0 | J39: 0 | K39: 0
A40: 12033 | B40: Borovička | C40: Oldřich | E40: SKP Kulová osma | F40: 73 | G40: 1948 | H40: 540 | I40: 0 | J40: 0 | K40: 0
A41: 12030 | B41: Borovičková | C41: Eliška | D41: Z | E41: SKP Kulová osma | F41: 73 | G41: 1948 | H41: 541 | I41: 0 | J41: 0 | K41: 0
A42: 26031 | B42: Borová | C42: Mária | D42: Z | E42: TOP - ORLOVÁ | F42: 30 | G42: 1960 | H42: 542 | I42: 0 | J42: 0 | K42: 0
A43: 28018 | B43: Borový | C43: Oldřich | E43: TOP - ORLOVÁ | F43: 30 | G43: 1960 | H43: 543 | I43: 0 | J43: 0 | K43: 0
A44: 12055 | B44: Boušová | C44: Ludmila | D44: Z | E44: PEK Stolín | F44: 21 | G44: 1946 | H44: 230 | I44: 4.5 | J44: 302.52 | K44: 118
A45: 10020 | B45: Boško | C45: Ivan | E45: PK Mariánské Lázně | F45: 67 | G45: 1961 | H45: 492 | I45: 0 | J45: 1 | K45: 0
A46: 12065 | B46: Boček | C46: Jan | E46: PCFT Sokoleč | F46: 74 | G46: 1958 | H46: 493 | I46: 0 | J46: 1 | K46: 0
A47: 10076 | B47: Boček | C47: Jaroslav | E47: PC Egrensis | F47: 69 | G47: 1947 | H47: 292 | I47: 5.938 | J47: 163.699 | K47: 0
A48: 25092 | B48: Brabec | C48: Petr | E48: POP Praha | F48: 24 | G48: 1969 | H48: 456 | I48: 0 | J48: 15 | K48: 0
A49: 10072 | B49: Bradáč | C49: Jiří | E49: SLOPE Brno | F49: 27 | G49: 1956 | H49: 494 | I49: 0 | J49: 1 | K49: 0
A50: 10009 | B50: Branda | C50: Jaroslav | E50: PC Sokol PP Hr. Králové | F50: 66 | G50: 1949 | H50: 495 | I50: 0 | J50: 1 | K50: 0
A51: 13055 | B51: Brevčinský | C51: Tomáš | E51: TOP - ORLOVÁ | F51: 30 | G51: 1971 | H51: 544 | I51: 0 | J51: 0 | K51: 0
A52: 96225 | B52: Brož | C52: Karel | E52: SOKOL Staříč | F52: 28 | G52: 1950 | H52: 345 | I52: 3.25 | J52: 112.476 | K52: 0
A53: 23049 | B53: Brož | C53: Oldřich Ml | E53: PK 1293 Vojnův Městec | F53: 44 | G53: 1985 | H53: 271 | I53: 6 | J53: 201.37 | K53: 0
A54: 23048 | B54: Brož | C54: Oldřich St | E54: PK 1293 Vojnův Městec | F54: 44 | G54: 1961 | H54: 135 | I54: 14.938 | J54: 836.118 | K54: 255
A55: 23033 | B55: Brožová | C55: Jitka | D55: Z | E55: PK 1293 Vojnův Městec | F55: 44 | G55: 1963 | H55: 316 | I55: 5.75 | J55: 138.788 | K55: 0
A56: 26011 | B56: Brázda | C56: Vladimír | E56: 1. KPK Vrchlabí | F56: 1 | G56: 1987 | H56: 30 | I56: 40.125 | J56: 2297.78 | K56: 819
A57: 11049 | B57: Bucek | C57: Zdeněk | E57: 1. KPK Vrchlabí | F57: 1 | G57: 1953 | H57: 545 | I57: 0 | J57: 0 | K57: 0
A58: 96005 | B58: Bukovčík | C58: Jan | E58: PAK Albrechtice | F58: 63 | G58: 1946 | H58: 71 | I58: 31.75 | J58: 1394.776 | K58: 354
A59: 24255 | B59: Bukáček | C59: Bohuslav | E59: Petanque parta Sněžné | F59: 58 | G59: 1965 | H59: 175 | I59: 12.875 | J59: 565.471 | K59: 108
A60: 24253 | B60: Bukáčková | C60: Kristýna | D60: Z | E60: Petanque parta Sněžné | F60: 58 | G60: 1990 | H60: 546 | I60: 0 | J60: 0 | K60: 0
A61: 13006 | B61: Bureš | C61: Pavel ml. | E61: HAPEK | F61: 75 | G61: 1987 | H61: 547 | I61: 0 | J61: 0 | K61: 0
A62: 13005 | B62: Bureš | C62: Pavel st. | E62: HAPEK | F62: 75 | G62: 1963 | H62: 304 | I62: 1.688 | J62: 151.896 | K62: 77
A63: 13008 | B63: Bureš | C63: Petr | E63: HAPEK | F63: 75 | G63: 1989 | H63: 548 | I63: 0 | J63: 0 | K63: 0
A64: 13007 | B64: Burešová | C64: Jana | D64: Z | E64: HAPEK | F64: 75 | G64: 1966 | H64: 549 | I64: 0 | J64: 0 | K64: 0
A65: 26029 | B65: Bury | C65: Radim | D65: J | E65: TOP - ORLOVÁ | F65: 30 | G65: 1996 | H65: 179 | I65: 16 | J65: 545.048 | K65: 0
A66: 20700 | B66: Bytešníková | C66: Zlatuše | D66: Z | E66: Carreau Brno | F66: 17 | G66: 1970 | H66: 446 | I66: 0 | J66: 20 | K66: 0
A67: 96034 | B67: Bílek | C67: Daniel | E67: 1. KPK Vrchlabí | F67: 1 | G67: 1966 | H67: 143 | I67: 17 | J67: 788.897 | K67: 278
A68: 98425 | B68: Bílek | C68: Rudolf | E68: PCP Lipník | F68: 42 | G68: 1946 | H68: 550 | I68: 0 | J68: 0 | K68: 0
A69: 13040 | B69: Bílek | C69: Vojtěch | D69: J | E69: 1. KPK Vrchlabí | F69: 1 | G69: 2003 | H69: 551 | I69: 0 | J69: 0 | K69: 0
A70: 96043 | B70: Bílková | C70: Blanka | D70: Z | E70: 1. KPK Vrchlabí | F70: 1 | G70: 1973 | H70: 370 | I70: 3.25 | J70: 90.932 | K70: 0
A71: 26009 | B71: Bím | C71: Luboš | E71: 1. KPK Vrchlabí | F71: 1 | G71: 1956 | H71: 167 | I71: 12.657 | J71: 588.553 | K71: 187
A72: 28008 | B72: Bímová | C72: Alena | D72: Z | E72: 1. KPK Vrchlabí | F72: 1 | G72: 1956 | H72: 293 | I72: 6.625 | J72: 163.642 | K72: 0
A73: 96141 | B73: Březina | C73: Jiří | E73: HP Třebíč | F73: 13 | G73: 1958 | H73: 251 | I73: 5.313 | J73: 264.052 | K73: 65
A74: 96181 | B74: Březinová | C74: Ivana | D74: Z | E74: HP Třebíč | F74: 13 | G74: 1961 | H74: 309 | I74: 1.813 | J74: 147.656 | K74: 65
A75: 13045 | B75: Chaloupek | C75: Miroslav | E75: PC Sokol Lipník | F75: 20 | G75: 1950 | H75: 552 | I75: 0 | J75: 0 | K75: 0
A76: 26081 | B76: Chaloupka | C76: Jaroslav | E76: 1. Starobrněnský PK | F76: 2 | G76: 1958 | H76: 169 | I76: 9.001 | J76: 580.978 | K76: 177
A77: 99505 | B77: Chalupa | C77: Jiří | E77: PC Sokol Lipník | F77: 20 | G77: 1966 | H77: 187 | I77: 13.438 | J77: 478.478 | K77: 0
A78: 22960 | B78: Chalupecký | C78: Václav | E78: PC Kolová | F78: 19 | G78: 1962 | H78: 189 | I78: 8.875 | J78: 468.375 | K78: 183
A79: 10051 | B79: Charvát | C79: Jan | D79: J | E79: FENYX Adamov | F79: 45 | G79: 1998 | H79: 91 | I79: 25.813 | J79: 1149.284 | K79: 179
A80: 12002 | B80: Charvát | C80: Jiří | E80: FENYX Adamov | F80: 45 | G80: 1994 | H80: 149 | I80: 14.063 | J80: 737.679 | K80: 168
A81: 11017 | B81: Charvát | C81: Jiří | E81: FENYX Adamov | F81: 45 | G81: 1947 | H81: 362 | I81: 1.375 | J81: 98.924 | K81: 0
A82: 20714 | B82: Chludilová | C82: Marie | D82: Z | E82: PC Sokol Lipník | F82: 20 | G82: 1950 | H82: 333 | I82: 2.75 | J82: 120.756 | K82: 0
A83: 10170 | B83: Chmelař | C83: David | E83: SK Šejk Peterka | F83: 72 | G83: 1981 | H83: 553 | I83: 0 | J83: 0 | K83: 0
A84: 10168 | B84: Chmelař | C84: Petr | E84: SK Šejk Peterka | F84: 72 | G84: 1978 | H84: 472 | I84: 0.375 | J84: 6.87 | K84: 0
A85: 10169 | B85: Chmelařová | C85: Kateřina | D85: Z | E85: SK Šejk Peterka | F85: 72 | G85: 1978 | H85: 554 | I85: 0 | J85: 0 | K85: 0
A86: 24207 | B86: Chovan | C86: Pavel | E86: P.C.B.D. | F86: 16 | G86: 1994 | H86: 555 | I86: 0 | J86: 0 | K86: 0
A87: 10022 | B87: Chval | C87: Jiří | E87: PK Mariánské Lázně | F87: 67 | G87: 1961 | H87: 434 | I87: 1 | J87: 24.998 | K87: 0
A88: 12061 | B88: Cimrman Formán | C88: Hana | D88: Z | E88: PC Egrensis | F88: 69 | G88: 1951 | H88: 255 | I88: 2 | J88: 234.062 | K88: 152
A89: 10172 | B89: Daněk | C89: Jan | E89: SK Šejk Peterka | F89: 72 | G89: 1980 | H89: 556 | I89: 0 | J89: 0 | K89: 0
A90: 11008 | B90: Daňková | C90: Hana | D90: Z | E90: SENIOR TÝM Praha 1 | F90: 70 | H90: 557 | I90: 0 | J90: 0 | K90: 0
A91: 99510 | B91: Demčík | C91: Milan St. | E91: PK JUPITER Vědomice | F91: 54 | G91: 1951 | H91: 51 | I91: 34.75 | J91: 1763.614 | K91: 562
A92: 99574 | B92: Demčíková | C92: Jiřina | D92: Z | E92: PK JUPITER Vědomice | F92: 54 | G92: 1949 | H92: 45 | I92: 33.5 | J92: 1900.335 | K92: 870
A93: 11007 | B93: Dimitrovová | C93: Jaroslava | D93: Z | E93: SENIOR TÝM Praha 1 | F93: 70 | G93: 1942 | H93: 558 | I93: 0 | J93: 0 | K93: 0
A94: 13027 | B94: Dlouhá | C94: Ivana | D94: Z | E94: Club Rodamiento | F94: 76 | G94: 1977 | H94: 559 | I94: 0 | J94: 0 | K94: 0
A95: 10049 | B95: Dohnal | C95: Josef | E95: FENYX Adamov | F95: 45 | G95: 1976 | H95: 272 | I95: 4.125 | J95: 200.698 | K95: 0
A96: 96100 | B96: Dohnal | C96: Karel | E96: POP Praha | F96: 24 | G96: 1968 | H96: 560 | I96: 0 | J96: 0 | K96: 0
A97: 27082 | B97: Dostál | C97: Jaromír | E97: 1. Starobrněnský PK | F97: 2 | G97: 1951 | H97: 482 | I97: 0 | J97: 2 | K97: 0
A98: 28032 | B98: Došek | C98: Martin | E98: PPA POZORKA | F98: 62 | G98: 1967 | H98: 137 | I98: 13.375 | J98: 817.036 | K98: 260
A99: 28031 | B99: Došková | C99: Renata | D99: Z | E99: PPA POZORKA | F99: 62 | G99: 1970 | H99: 267 | I99: 6 | J99: 205.797 | K99: 0
A100: 10053 | B100: Dočkalová | C100: Marie | D100: Z | E100: PCP Lipník | F100: 42 | G100: 1979 | H100: 323 | I100: 3.375 | J100: 129.088 | K100: 0
A101: 22953 | B101: Drmola | C101: David | E101: HRODE KRUMSÍN | F101: 14 | G101: 1979 | H101: 561 | I101: 0 | J101: 0 | K101: 0
A102: 99496 | B102: Drmola | C102: Michal | E102: HRODE KRUMSÍN | F102: 14 | G102: 1975 | H102: 438 | I102: 0 | J102: 22 | K102: 0
A103: 24272 | B103: Drmola | C103: Miroslav | E103: HRODE KRUMSÍN | F103: 14 | G103: 1953 | H103: 454 | I103: 0 | J103: 16 | K103: 0
A104: 10133 | B104: Duda | C104: Rainer | E104: PC Egrensis | F104: 69 | G104: 1968 | H104: 562 | I104: 0 | J104: 0 | K104: 0
A105: 26055 | B105: Dufek | C105: Jiří ml. | D105: J | E105: Petanque parta Sněžné | F105: 58 | G105: 1997 | H105: 563 | I105: 0 | J105: 0 | K105: 0
A106: 26056 | B106: Dufek | C106: Jiří st. | E106: Petanque parta Sněžné | F106: 58 | G106: 1974 | H106: 564 | I106: 0 | J106: 0 | K106: 0
A107: 26057 | B107: Dufková | C107: Kateřina | E107: Petanque parta Sněžné | F107: 58 | G107: 1975 | H107: 565 | I107: 0 | J107: 0 | K107: 0
A108: 26033 | B108: Dujava | C108: Zdeněk | E108: PAK Albrechtice | F108: 63 | G108: 1963 | H108: 109 | I108: 20.813 | J108: 1025.26 | K108: 294
A109: 29024 | B109: Dujavová | C109: Dagmar | D109: Z | E109: PAK Albrechtice | F109: 63 | G109: 1975 | H109: 257 | I109: 8.25 | J109: 231.566 | K109: 0
A110: 13057 | B110: Durajová | C110: Nikol | D110: Z | E110: PC AUSTERLITZ 1805 | F110: 29 | G110: 1992 | H110: 566 | I110: 0 | J110: 0 | K110: 0
A111: 96099 | B111: Dušková | C111: Marie | D111: Z | E111: POP Praha | F111: 24 | G111: 1953 | H111: 567 | I111: 0 | J111: 0 | K111: 0
A112: 25042 | B112: Dvořák | C112: Jaroslav | E112: HP Třebíč | F112: 13 | G112: 1983 | H112: 569 | I112: 0 | J112: 0 | K112: 0
A113: 99529 | B113: Dvořák | C113: Josef | E113: PC AUSTERLITZ 1805 | F113: 29 | G113: 1967 | H113: 568 | I113: 0 | J113: 0 | K113: 0
A114: 21760 | B114: Dvořáková | C114: Jarmila | D114: Z | E114: PC AUSTERLITZ 1805 | F114: 29 | G114: 1967 | H114: 129 | I114: 11.25 | J114: 859.782 | K114: 282
A115: 28037 | B115: Dvořáková | C115: Tatiana | D115: Z | E115: PC Kolová | F115: 19 | G115: 1953 | H115: 423 | I115: 1.25 | J115: 34.098 | K115: 0
A116: 27026 | B116: Džupín | C116: Karel | E116: CP VARY | F116: 6 | G116: 1952 | H116: 570 | I116: 0 | J116: 0 | K116: 0
A117: 27085 | B117: Dědina | C117: Martin | E117: POP Praha | F117: 24 | G117: 1985 | H117: 447 | I117: 0 | J117: 20 | K117: 0
A118: 21894 | B118: Eiselt | C118: Bohumil | E118: PC České Budějovice | F118: 39 | G118: 1948 | H118: 571 | I118: 0 | J118: 0 | K118: 0
A119: 21895 | B119: Eiseltová | C119: Ivanka | D119: Z | E119: PC České Budějovice | F119: 39 | G119: 1948 | H119: 572 | I119: 0 | J119: 0 | K119: 0
A120: 10166 | B120: Ejem | C120: Karel | E120: SK Šejk Peterka | F120: 72 | G120: 1980 | H120: 473 | I120: 0.375 | J120: 6.87 | K120: 0
A121: 10167 | B121: Ejemová | C121: Markéta | D121: Z | E121: SK Šejk Peterka | F121: 72 | G121: 1979 | H121: 573 | I121: 0 | J121: 0 | K121: 0
A122: 10077 | B122: Ernstberger | C122: Emilia | D122: Z | E122: PC Egrensis | F122: 69 | G122: 1947 | H122: 448 | I122: 0 | J122: 20 | K122: 0
A123: 28033 | B123: Faber | C123: Michal | E123: PPA POZORKA | F123: 62 | G123: 1994 | H123: 202 | I123: 5.844 | J123: 403.839 | K123: 176
A124: 96196 | B124: Fabík | C124: Arnošt | E124: HP Třebíč | F124: 13 | G124: 1962 | H124: 464 | I124: 0 | J124: 11 | K124: 0
A125: 99517 | B125: Fabík | C125: Petr | E125: HP Třebíč | F125: 13 | G125: 1988 | H125: 574 | I125: 0 | J125: 0 | K125: 0
A126: 21746 | B126: Fabíková | C126: Andrea | D126: Z | E126: HP Třebíč | F126: 13 | G126: 1990 | H126: 575 | I126: 0 | J126: 0 | K126: 0
A127: 96190 | B127: Fabíková | C127: Silvie | D127: Z | E127: HP Třebíč | F127: 13 | G127: 1965 | H127: 408 | I127: 2 | J127: 46.996 | K127: 0
A128: 12020 | B128: Fafek | C128: Petr | E128: PC Sokol Lipník | F128: 20 | G128: 1962 | H128: 286 | I128: 6 | J128: 178.746 | K128: 0
A129: 13044 | B129: Fafková | C129: Jana | D129: Z | E129: PC Sokol Lipník | F129: 20 | G129: 1962 | H129: 576 | I129: 0 | J129: 0 | K129: 0
A130: 11046 | B130: Faltýnek | C130: David | E130: HRODE KRUMSÍN | F130: 14 | G130: 1985 | H130: 28 | I130: 40.625 | J130: 2386.168 | K130: 916
A131: 29051 | B131: Fatka | C131: Martin | E131: CdP Loděnice | F131: 64 | G131: 1982 | H131: 289 | I131: 5.125 | J131: 171.824 | K131: 0
A132: 29050 | B132: Fatka | C132: Stanislav | E132: CdP Loděnice | F132: 64 | G132: 1953 | H132: 364 | I132: 3 | J132: 97.855 | K132: 0
A133: 29060 | B133: Fatka | C133: Stanislav | E133: CdP Loděnice | F133: 64 | G133: 1981 | H133: 376 | I133: 2.375 | J133: 83.875 | K133: 0
A134: 12068 | B134: Faust | C134: Petr | E134: PCFT Sokoleč | F134: 74 | G134: 1974 | H134: 577 | I134: 0 | J134: 0 | K134: 0
A135: 11056 | B135: Faško | C135: Julius | E135: PK JUPITER Vědomice | F135: 54 | G135: 1965 | H135: 483 | I135: 0 | J135: 2 | K135: 0
A136: 23131 | B136: Felčárek | C136: Jaroslav | E136: FRAPECO | F136: 43 | G136: 1954 | H136: 103 | I136: 17.251 | J136: 1073.313 | K136: 388
A137: 11010 | B137: Fereš | C137: Jiří | E137: PK 1293 Vojnův Městec | F137: 44 | G137: 1992 | H137: 125 | I137: 16.5 | J137: 889.894 | K137: 271
A138: 11009 | B138: Fereš | C138: Pavel | E138: PK 1293 Vojnův Městec | F138: 44 | G138: 1959 | H138: 77 | I138: 21.625 | J138: 1266.279 | K138: 482
A139: 22017 | B139: Ferlay | C139: Frank | E139: Carreau Brno | F139: 17 | G139: 1970 | H139: 62 | I139: 20.688 | J139: 1575.599 | K139: 576
A140: 12001 | B140: Ferlay | C140: Matyáš | D140: J | E140: Carreau Brno | F140: 17 | G140: 2003 | H140: 227 | I140: 6.75 | J140: 307.262 | K140: 58
A141: 11054 | B141: Fernández | C141: Sergio | E141: SLOPE Brno | F141: 27 | G141: 1979 | H141: 462 | I141: 0 | J141: 13 | K141: 0
A142: 13038 | B142: Fila | C142: Jakub | E142: AURA Havlíčkův Brod | F142: 48 | G142: 1994 | H142: 358 | I142: 0.906 | J142: 101.222 | K142: 61
A143: 13037 | B143: Fila | C143: Pavel | E143: AURA Havlíčkův Brod | F143: 48 | G143: 1964 | H143: 357 | I143: 0.906 | J143: 101.222 | K143: 61
A144: 21854 | B144: Fišr | C144: Vladimír | E144: KLIP Litovel | F144: 33 | G144: 1955 | H144: 249 | I144: 6 | J144: 266.555 | K144: 0
A145: 23082 | B145: František | C145: Rostislav | E145: AURA Havlíčkův Brod | F145: 48 | G145: 1956 | H145: 578 | I145: 0 | J145: 0 | K145: 0
A146: 12086 | B146: Froněk | C146: Jiří | E146: CdP Loděnice | F146: 64 | G146: 1976 | H146: 579 | I146: 0 | J146: 0 | K146: 0
A147: 10034 | B147: Fukal | C147: Milan | E147: JAPKO | F147: 68 | G147: 1959 | H147: 61 | I147: 19.501 | J147: 1597.853 | K147: 642
A148: 10036 | B148: Fukalová | C148: Klára | D148: Z | E148: JAPKO | F148: 68 | G148: 1983 | H148: 221 | I148: 3.688 | J148: 331.134 | K148: 109
A149: 10035 | B149: Fukalová | C149: Šárka | D149: Z | E149: JAPKO | F149: 68 | G149: 1959 | H149: 104 | I149: 12.188 | J149: 1064.212 | K149: 406
A150: 24218 | B150: Fuksa | C150: Petr | E150: UBU Únětice | F150: 51 | G150: 1969 | H150: 50 | I150: 26.5 | J150: 1801.401 | K150: 659
A151: 10069 | B151: Fučík | C151: Martin | E151: PKK Třebíč | F151: 61 | G151: 1983 | H151: 225 | I151: 7.563 | J151: 308.422 | K151: 58
A152: 97290 | B152: Fürst | C152: Jiří | E152: CP VARY | F152: 6 | G152: 1970 | H152: 580 | I152: 0 | J152: 0 | K152: 0
A153: 10054 | B153: Gajdová | C153: Jaroslava | D153: Z | E153: PCP Lipník | F153: 42 | G153: 1966 | H153: 581 | I153: 0 | J153: 0 | K153: 0
A154: 12056 | B154: Gargulák | C154: Jiří | E154: ŽEPEC | F154: 57 | G154: 1980 | H154: 409 | I154: 0 | J154: 45 | K154: 0
A155: 10008 | B155: Gavlas | C155: Ivo | E155: PC Sokol PP Hr. Králové | F155: 66 | G155: 1968 | H155: 398 | I155: 2 | J155: 55.048 | K155: 0
A156: 13048 | B156: Gavlasová | C156: Šárka | D156: Z | E156: PC Sokol PP Hr. Králové | F156: 66 | G156: 1970 | H156: 582 | I156: 0 | J156: 0 | K156: 0
A157: 28053 | B157: Glan | C157: Bernabe | E157: FRAPECO | F157: 43 | G157: 1975 | H157: 583 | I157: 0 | J157: 0 | K157: 0
A158: 96162 | B158: Glaser | C158: Vladimír | E158: C.T.P. Club Ořech | F158: 5 | G158: 1963 | H158: 403 | I158: 1.125 | J158: 49.384 | K158: 0
A159: 96163 | B159: Glaserová | C159: Dana | D159: Z | E159: C.T.P. Club Ořech | F159: 5 | G159: 1963 | H159: 404 | I159: 1.125 | J159: 49.384 | K159: 0
A160: 11050 | B160: Gorroňo López | C160: Blanka | D160: Z | E160: PC Sokol Lipník | F160: 20 | G160: 1976 | H160: 405 | I160: 2.5 | J160: 48.8 | K160: 0
A161: 96217 | B161: Gorroňo López | C161: Rubi | E161: PC Sokol Lipník | F161: 20 | G161: 1949 | H161: 168 | I161: 12.063 | J161: 585.861 | K161: 100
A162: 25054 | B162: Gratcl | C162: Jiří | E162: SKP Hranice VI-Valšovice | F162: 56 | G162: 1953 | H162: 43 | I162: 29 | J162: 1918.619 | K162: 595
A163: 26022 | B163: Gratcl | C163: Martin | E163: SKP Hranice VI-Valšovice | F163: 56 | G163: 1976 | H163: 335 | I163: 3 | J163: 119.308 | K163: 0
A164: 28006 | B164: Grepl | C164: Jiří | E164: SKP Hranice VI-Valšovice | F164: 56 | G164: 1992 | H164: 26 | I164: 41.25 | J164: 2430.058 | K164: 751
A165: 11019 | B165: Gruber | C165: Josef | E165: FENYX Adamov | F165: 45 | G165: 1950 | H165: 295 | I165: 1.813 | J165: 159.454 | K165: 50
A166: 29012 | B166: Grégr | C166: Josef | E166: FENYX Adamov | F166: 45 | G166: 1947 | H166: 280 | I166: 5.125 | J166: 192.734 | K166: 0
A167: 99594 | B167: Gubiš | C167: Josef | E167: PC Kolová | F167: 19 | G167: 1960 | H167: 73 | I167: 24.938 | J167: 1363.125 | K167: 450
A168: 24309 | B168: Habásko | C168: Michal | E168: AURA Havlíčkův Brod | F168: 48 | G168: 1985 | H168: 15 | I168: 34.5 | J168: 2891.856 | K168: 1196
A169: 24311 | B169: Habásko | C169: Petr | E169: AURA Havlíčkův Brod | F169: 48 | G169: 1989 | H169: 441 | I169: 0 | J169: 21 | K169: 0
A170: 10173 | B170: Hach | C170: Petr | E170: SK Šejk Peterka | F170: 72 | G170: 1978 | H170: 584 | I170: 0 | J170: 0 | K170: 0
A171: 13051 | B171: Haisová | C171: Lili | D171: Z | E171: SENIOR TÝM Praha 1 | F171: 70 | G171: 1942 | H171: 585 | I171: 0 | J171: 0 | K171: 0
A172: 10021 | B172: Hanzlík | C172: Zdeněk | E172: PK Mariánské Lázně | F172: 67 | G172: 1964 | H172: 385 | I172: 2 | J172: 73.324 | K172: 0
A173: 96059 | B173: Hančová | C173: Alice | D173: Z | E173: 1. KPK Vrchlabí | F173: 1 | G173: 1970 | H173: 212 | I173: 1 | J173: 374 | K173: 294
A174: 23052 | B174: Hančová | C174: Petra | D174: JZ | E174: 1. KPK Vrchlabí | F174: 1 | G174: 1996 | H174: 586 | I174: 0 | J174: 0 | K174: 0
A175: 24256 | B175: Haněl | C175: František | E175: Petanque parta Sněžné | F175: 58 | G175: 1961 | H175: 190 | I175: 5.5 | J175: 465.86 | K175: 201
A176: 24254 | B176: Haněl | C176: Ondřej | E176: Petanque parta Sněžné | F176: 58 | G176: 1989 | H176: 165 | I176: 10.5 | J176: 610.06 | K176: 201
A177: 26058 | B177: Hanělová | C177: Petra | D177: Z | E177: Petanque parta Sněžné | F177: 58 | G177: 1992 | H177: 587 | I177: 0 | J177: 0 | K177: 0
A178: 98419 | B178: Harašta | C178: František | E178: SLOPE Brno | F178: 27 | G178: 1952 | H178: 368 | I178: 1.688 | J178: 94.011 | K178: 0
A179: 98472 | B179: Haraštová | C179: Eva | D179: Z | E179: SLOPE Brno | F179: 27 | G179: 1960 | H179: 496 | I179: 0 | J179: 1 | K179: 0
A180: 98473 | B180: Haraštová | C180: Sylvie | D180: Z | E180: SLOPE Brno | F180: 27 | G180: 1990 | H180: 588 | I180: 0 | J180: 0 | K180: 0
A181: 98423 | B181: Hašek | C181: Milan | E181: SLOPE Brno | F181: 27 | G181: 1982 | H181: 27 | I181: 34.5 | J181: 2406.336 | K181: 989
A182: 21796 | B182: Hašková | C182: Petra | D182: Z | E182: SLOPE Brno | F182: 27 | G182: 1992 | H182: 299 | I182: 1.375 | J182: 155.34 | K182: 50
A183: 99500 | B183: Hašková | C183: Vlastimila | D183: Z | E183: SLOPE Brno | F183: 27 | G183: 1962 | H183: 449 | I183: 0 | J183: 20 | K183: 0
A184: 12004 | B184: Hejkal | C184: Artur | D184: J | E184: AURA Havlíčkův Brod | F184: 48 | G184: 1998 | H184: 352 | I184: 0.906 | J184: 103.222 | K184: 61
A185: 98477 | B185: Hejl | C185: Pavel Ml. | E185: P.C.B.D. | F185: 16 | G185: 1987 | H185: 14 | I185: 41 | J185: 2893.093 | K185: 1123
A186: 98422 | B186: Hejl | C186: Pavel St. | E186: P.C.B.D. | F186: 16 | G186: 1953 | H186: 127 | I186: 20.156 | J186: 866.818 | K186: 168
A187: 98476 | B187: Hejlová | C187: Irena | D187: Z | E187: P.C.B.D. | F187: 16 | G187: 1957 | H187: 228 | I187: 5 | J187: 302.899 | K187: 77
A188: 27011 | B188: Hejmalová | C188: Lucie | D188: Z | E188: SK Vinohrady | F188: 59 | G188: 1991 | H188: 332 | I188: 2.625 | J188: 122.168 | K188: 0
A189: 10106 | B189: Hejmová | C189: Dagmar | D189: Z | E189: SENIOR TÝM Praha 1 | F189: 70 | G189: 1936 | H189: 589 | I189: 0 | J189: 0 | K189: 0
A190: 11058 | B190: Hendrych | C190: Jan | E190: PEK Stolín | F190: 21 | G190: 1960 | H190: 366 | I190: 2.75 | J190: 95.461 | K190: 0
A191: 13054 | B191: Hildenbrand | C191: Benjamin | E191: Kulový blesk Olomouc | F191: 15 | G191: 1981 | H191: 590 | I191: 0 | J191: 0 | K191: 0
A192: 21937 | B192: Hladký | C192: Jaroslav | E192: APEC Česká Třebová | F192: 37 | G192: 1975 | H192: 47 | I192: 33.313 | J192: 1876.956 | K192: 662
A193: 11027 | B193: Hlavatý | C193: Vadim | E193: POP Praha | F193: 24 | G193: 1985 | H193: 269 | I193: 4.25 | J193: 202.784 | K193: 0
A194: 21851 | B194: Hlaváček | C194: Filip | E194: POP Praha | F194: 24 | G194: 1988 | H194: 64 | I194: 21.406 | J194: 1515.318 | K194: 602
A195: 25052 | B195: Hlaváčková | C195: Heda | D195: Z | E195: POP Praha | F195: 24 | G195: 1962 | H195: 497 | I195: 0 | J195: 1 | K195: 0
A196: 23067 | B196: Hlavín | C196: František | E196: PC Kolová | F196: 19 | G196: 1950 | H196: 215 | I196: 10.376 | J196: 349.227 | K196: 0
A197: 29045 | B197: Hložek | C197: Ivan | E197: PC Kolová | F197: 19 | G197: 1956 | H197: 224 | I197: 8.375 | J197: 310.371 | K197: 0
A198: 96089 | B198: Hnilica | C198: Pavel | E198: P.C.B.D. | F198: 16 | G198: 1968 | H198: 97 | I198: 16.5 | J198: 1110.916 | K198: 391
A199: 13028 | B199: Hobža | C199: Vladimír | E199: Club Rodamiento | F199: 76 | G199: 1959 | H199: 591 | I199: 0 | J199: 0 | K199: 0
A200: 25002 | B200: Hocková | C200: Kateřina | D200: Z | E200: PK JUPITER Vědomice | F200: 54 | G200: 1973 | H200: 253 | I200: 3 | J200: 245.96 | K200: 156
... 567 more rows

Sheet Internet
B1: seznam přihlášených týmů | C1: přihlásit se na tento turnaj | E1: 13077 | F1: English | G1: Sem se zkopírují přihlášky z internetu
B2: Počet přihlášených týmů: 32
A3: Turnaj: | B3: Nakashi Cup | C3: CdP Loděnice | E3: 2013-03-30 | F3: dvojice | G3: Odtud jdou údaje do Startovní listiny
B4: Síla turnaje: 34.4883750 | G4: tady se opravují, dokud není ve
G5: Startovní listině vše v pořádku
A8: Č. licence | B8: Příjmení a jméno [Odhlásit tým] | C8: Klub | D8: 1 | E8: CŽ | F8: Síla: 83
A9: 27039 | B9: Kauca, Jindřich | C9: PC Kolová | E9: 11 | F9: 38.500 | G9: název týmu se odvozuje
A10: 21754 | B10: Valenz, Jan | C10: VARAN | E10: 23 | F10: 44.375 | G10: od názvu klubu prvního hráče
A13: Č. licence | B13: Příjmení a jméno [Odhlásit tým] | C13: Klub | D13: 2 | E13: CŽ | F13: Síla: 72
A14: 99590 | B14: Kacerovský, Ivo | C14: PC Kolová | E14: 38 | F14: 35.813
A15: 99600 | B15: Šplíchal, Miroslav | C15: PC Kolová | E15: 36 | F15: 36.188
A18: Č. licence | B18: Příjmení a jméno [Odhlásit tým] | C18: Klub | D18: 3 | E18: CŽ | F18: Síla: 68
A19: 99510 | B19: Demčík, Milan St. | C19: PK JUPITER Vědomice | E19: 51 | F19: 34.750
A20: 99574 | B20: Demčíková, Jiřina | C20: PK JUPITER Vědomice | E20: 45 | F20: 33.500
A23: Č. licence | B23: Příjmení a jméno [Odhlásit tým] | C23: Klub | D23: 4 | E23: CŽ | F23: Síla: 66
A24: 96200 | B24: Vlk, Pavel | C24: POP Praha | E24: 35 | F24: 35.906
A25: 26074 | B25: Preuss, Ondřej | C25: POP Praha | E25: 46 | F25: 30.375
A28: Č. licence | B28: Příjmení a jméno [Odhlásit tým] | C28: Klub | D28: 5 | E28: CŽ | F28: Síla: 63
A29: 26011 | B29: Brázda, Vladimír | C29: 1. KPK Vrchlabí | E29: 30 | F29: 40.125
A30: 11037 | B30: Šebek, Viktor | C30: 1. KPK Vrchlabí | E30: 124 | F30: 22.375
A33: Č. licence | B33: Příjmení a jméno [Odhlásit tým] | C33: Klub | D33: 6 | E33: CŽ | F33: Síla: 62
A34: 98418 | B34: Pešout, Miroslav | C34: CdP Loděnice | E34: 56 | F34: 36.750
A35: 11057 | B35: Salmi, Makhlouf | C35: UBU Únětice | E35: 100 | F35: 25.531
A38: Č. licence | B38: Příjmení a jméno [Odhlásit tým] | C38: Klub | D38: 7 | E38: CŽ | F38: Síla: 53
A39: 25011 | B39: Jirkovský, Tomáš | C39: PK Osika Plzeň | E39: 102 | F39: 21.063
A40: 25017 | B40: Radoušová, Jana | C40: PK Osika Plzeň | E40: 48 | F40: 32.000
A43: Č. licence | B43: Příjmení a jméno [Odhlásit tým] | C43: Klub | D43: 8 | E43: CŽ | F43: Síla: 52
A44: 11001 | B44: Lukáš, Petr | C44: JAPKO | E44: 37 | F44: 26.750
A45: 11002 | B45: Lukášová, Jana | C45: JAPKO | E45: 54 | F45: 25.688
A48: Č. licence | B48: Příjmení a jméno [Odhlásit tým] | C48: Klub | D48: 9 | E48: CŽ | F48: Síla: 50
A49: 10060 | B49: Petrasová, Blanka | C49: PPA POZORKA | E49: 81 | F49: 22.782
A50: 28027 | B50: Volenec, František | C50: PPA POZORKA | E50: 59 | F50: 27.594
A53: Č. licence | B53: Příjmení a jméno [Odhlásit tým] | C53: Klub | D53: 10 | E53: CŽ | F53: Síla: 43
A54: 25015 | B54: Mrázová, Eva | C54: PK Osika Plzeň | E54: 122 | F54: 19.375
A55: 25075 | B55: Špitálský, Milan | C55: PK Osika Plzeň | E55: 87 | F55: 23.375
A58: Č. licence | B58: Příjmení a jméno [Odhlásit tým] | C58: Klub | D58: 11 | E58: CŽ | F58: Síla: 38
A59: 12022 | B59: Slobodová, Veronika | C59: POP Praha | E59: 9 | F59: 38.375
B60: Beluh, Pavel
A63: Č. licence | B63: Příjmení a jméno [Odhlásit tým] | C63: Klub | D63: 12 | E63: CŽ | F63: Síla: 38
A64: 21768 | B64: Plucar, Petr | C64: PC Kolová | E64: 41 | F64: 34.625
A65: 99591 | B65: Imlauf, Jan | C65: PC Kolová | E65: 208 | F65: 3.719
A68: Č. licence | B68: Příjmení a jméno [Odhlásit tým] | C68: Klub | D68: 13 | E68: CŽ | F68: Síla: 32
A69: 10034 | B69: Fukal, Milan | C69: JAPKO | E69: 61 | F69: 19.501
A70: 10035 | B70: Fukalová, Šárka | C70: JAPKO | E70: 104 | F70: 12.188
A73: Č. licence | B73: Příjmení a jméno [Odhlásit tým] | C73: Klub | D73: 14 | E73: CŽ | F73: Síla: 32
A74: 24155 | B74: Kraus, Jaroslav | C74: PK Osika Plzeň | E74: 155 | F74: 11.969
A75: 25014 | B75: Mráz, Václav | C75: PK Osika Plzeň | E75: 105 | F75: 20.500
A78: Č. licence | B78: Příjmení a jméno [Odhlásit tým] | C78: Klub | D78: 15 | E78: CŽ | F78: Síla: 31
A79: 29049 | B79: Marhoul, Jan | C79: CdP Loděnice | E79: 142 | F79: 26.188
A80: 29051 | B80: Fatka, Martin | C80: CdP Loděnice | E80: 289 | F80: 5.125
A83: Č. licence | B83: Příjmení a jméno [Odhlásit tým] | C83: Klub | D83: 16 | E83: CŽ | F83: Síla: 30
A84: 21836 | B84: Piller, Tomáš | C84: PK JUPITER Vědomice | E84: 154 | F84: 14.125
A85: 28001 | B85: Pillerová, Monika | C85: PK JUPITER Vědomice | E85: 130 | F85: 16.125
A88: Č. licence | B88: Příjmení a jméno [Odhlásit tým] | C88: Klub | D88: 17 | E88: CŽ | F88: Síla: 26
A89: 29002 | B89: Mrázková, Sylva | C89: PC Kolová | E89: 78 | F89: 25.938
A90: 12070 | B90: Mrázek, Petr | C90: CdP Loděnice | E90: 508 | F90: 0.000
A93: Č. licence | B93: Příjmení a jméno [Odhlásit tým] | C93: Klub | D93: 18 | E93: CŽ | F93: Síla: 19
A94: 23131 | B94: Felčárek, Jaroslav | C94: FRAPECO | E94: 103 | F94: 17.251
A95: 23086 | B95: Řehoř, Miroslav | C95: FRAPECO | E95: 361 | F95: 1.500
A98: Č. licence | B98: Příjmení a jméno [Odhlásit tým] | C98: Klub | D98: 19 | E98: CŽ | F98: Síla: 17
A99: 29058 | B99: Koňák, Karel | C99: CdP Loděnice | E99: 204 | F99: 13.813
A100: 29050 | B100: Fatka, Stanislav | C100: CdP Loděnice | E100: 364 | F100: 3.000
A103: Č. licence | B103: Příjmení a jméno [Odhlásit tým] | C103: Klub | D103: 20 | E103: CŽ | F103: Síla: 15
A104: 96217 | B104: Gorroňo López, Rubi | C104: PC Sokol Lipník | E104: 168 | F104: 12.063
A105: 11050 | B105: Gorroňo López, Blanka | C105: PC Sokol Lipník | E105: 405 | F105: 2.500
A108: Č. licence | B108: Příjmení a jméno [Odhlásit tým] | C108: Klub | D108: 21 | E108: CŽ | F108: Síla: 10
A109: 25016 | B109: Přibyl, Miroslav | C109: PK Osika Plzeň | E109: 226 | F109: 6.500
A110: 29021 | B110: Přibylová, Eva | C110: PK Osika Plzeň | E110: 348 | F110: 3.375
A113: Č. licence | B113: Příjmení a jméno [Odhlásit tým] | C113: Klub | D113: 22 | E113: CŽ | F113: Síla: 5
B114: Froněk, Josef
A115: 11048 | B115: Nagy, Radim | C115: CdP Loděnice | E115: 355 | F115: 5.125
A118: Č. licence | B118: Příjmení a jméno [Odhlásit tým] | C118: Klub | D118: 23 | E118: CŽ | F118: Síla: 5
A119: 11028 | B119: Javůrek, Lukáš | C119: JAPKO | E119: 387 | F119: 1.125
A120: 10036 | B120: Fukalová, Klára | C120: JAPKO | E120: 221 | F120: 3.688
A123: Č. licence | B123: Příjmení a jméno [Odhlásit tým] | C123: Klub | D123: 24 | E123: CŽ | F123: Síla: 5
A124: 29052 | B124: Paták, Jan | C124: CdP Loděnice | E124: 305 | F124: 4.625
A125: 12060 | B125: Pospíšilová, Šárka | C125: CdP Loděnice | E125: 394 | F125: 0.000
A128: Č. licence | B128: Příjmení a jméno [Odhlásit tým] | C128: Klub | D128: 25 | E128: CŽ | F128: Síla: 4
A129: 29059 | B129: Punčochář, Karel | C129: CdP Loděnice | E129: 312 | F129: 1.500
A130: 11033 | B130: Ottomanský, David | C130: CdP Loděnice | E130: 287 | F130: 2.750
A133: Č. licence | B133: Příjmení a jméno [Odhlásit tým] | C133: Klub | D133: 26 | E133: CŽ | F133: Síla: 2
A134: 13001 | B134: Beranová, Pavla | C134: PK JUPITER Vědomice | E134: 350 | F134: 0.938
A135: 13004 | B135: Mazúr, Pavel | C135: PK JUPITER Vědomice | E135: 351 | F135: 0.938
A138: Č. licence | B138: Příjmení a jméno [Odhlásit tým] | C138: Klub | D138: 27 | E138: CŽ | F138: Síla: 2
A139: 29060 | B139: Fatka, Stanislav | C139: CdP Loděnice | E139: 376 | F139: 2.375
A140: 10156 | B140: Beneda, Filip | C140: CdP Loděnice | E140: 491 | F140: 0.000
A143: Č. licence | B143: Příjmení a jméno [Odhlásit tým] | C143: Klub | D143: 28 | E143: CŽ | F143: Síla: 0
A144: 12082 | B144: Pinkas, Karel | C144: SKP Kulová osma | E144: 680 | F144: 0.000
A145: 12032 | B145: Pinkasová, Marie | C145: SKP Kulová osma | E145: 681 | F145: 0.000
A148: Č. licence | B148: Příjmení a jméno [Odhlásit tým] | C148: Klub | D148: 29 | E148: CŽ | F148: Síla: 0
B149: Janoš, Jiří
B150: Janda, Vladimír
A153: Č. licence | B153: Příjmení a jméno [Odhlásit tým] | C153: Klub | D153: 30 | E153: CŽ | F153: Síla: 0
A154: 12073 | B154: Špiclová, Adéla | C154: PK Osika Plzeň | E154: 488 | F154: 0.000
A155: 12071 | B155: Musilová, Radka | C155: PK Osika Plzeň | E155: 484 | F155: 0.000
A158: Č. licence | B158: Příjmení a jméno [Odhlásit tým] | C158: Klub | D158: 31 | E158: CŽ | F158: Síla: 0
A159: 12086 | B159: Froněk, Jiří | C159: CdP Loděnice | E159: 579 | F159: 0.000
B160: Koňák, Květoslav

Sheet Start.listina
H1: SV | I1: Startovní / výsledková listina turnaje | R1: Kvalita turnaje: | S1: ='Kvalita turnaje'!$F$1 -> 34.488375 | X1: Nastavení kritérií "švýcara": | AK1: Počty týmů podle výher | AL1: 6 | AM1: =CHOOSE($Y$2,AW1,AX1,AY1,AZ1,BA1,BB1) -> 0 | AN1: Počty týmů podle výher | BB1: =BA2/2 -> 0.5 | BC1: 6 | BG1: =5+128+128+128+128 -> 517
I2: Poř.č. turnaje | K2: =IF(Internet!$E$1=0,Turnaje!A4,Internet!$E$1) -> 13077 | M2: Třída turnaje: | N2: =IF(AND(S1>=40,OR(AND(K6=2,K7>=48),AND(K6=3,K7>=32),AND(K6=1,K7>=64))),"P","R") -> R | R2: Bonusové body: | S2: =IF(TYPE(VLOOKUP(Start.listina!N2,Bonusy!A4:B8,2,0))>3,0,VLOOKUP(Start.listina!N2,Bonusy!A4:B8,2,0)) -> 0 | X2: Počet kol švýcara: | Y2: 4 | AL2: 5 | AM2: 0 | BA2: =AZ3/2 -> 1 | BB2: =BA2/2+BA3/2 -> 3 | BC2: 5
I3: Datum | K3: =IF(ISBLANK(K2)," ",VLOOKUP(K2,Turnaje!$A$1:$G$147,3,0)) -> 30.03.2013 | R3: Paušální body: | S3: =IF(TYPE(VLOOKUP(Start.listina!N2,Paušál!A4:B7,2,0))>3,0,VLOOKUP(Start.listina!N2,Paušál!A4:B7,2,0)) -> 1 | X3: Počet výher pro KO: | AL3: 4 | AM3: 2 | AZ3: =AY4/2 -> 2 | BA3: =AZ3/2+AZ4/2 -> 5 | BB3: =BA3/2+BA4/2 -> 7.5 | BC3: 4
I4: Název | K4: =IF(ISBLANK(K2)," ",VLOOKUP(K2,Turnaje!$A$1:$G$147,2,0)) -> Nakashi Cup | P4: 0 | R4: Kola: | S4: ='Počet kol'!$D$3 -> 5 | X4: Do KO postupuje: | Y4: 8 | Z4: týmů | AL4: 3 | AM4: 8 | AY4: =AX5/2 -> 4 | AZ4: =AY4/2+AY5/2 -> 8 | BA4: =AZ4/2+AZ5/2 -> 10 | BB4: =BA4/2+BA5/2 -> 10 | BC4: 3
I5: Místo | K5: =IF(ISBLANK(K2)," ",VLOOKUP(K2,Turnaje!$A$1:$G$147,4,0)) -> Loděnice | R5: Časový odhad zákl. hry.: | S5: =Y2*U5/60 -> 5 | T5: hod. | U5: 75 | V5: minut / zápas | X5: Klasický švýcar (hra podle skóre): | AL5: 2 | AM5: 12 | AX5: =AW6/2 -> 8 | AY5: =AX6/2+AX5/2 -> 12 | AZ5: =AY5/2+AY6/2 -> 12 | BA5: =AZ5/2+AZ6/2 -> 10 | BB5: =BA5/2+BA6/2 -> 7.5 | BC5: 2
I6: Počet hráčů / tým | K6: =IF(ISBLANK(K2)," ",VLOOKUP(K2,Turnaje!$A$1:$G$147,6,0)) -> 2 | L6: Nemá soupeře | M6: 1 | N6: =IF(TYPE((K7-M7*N7)/M6)>3,"",(K7-M7*N7)/M6) -> 1 | R6: Časový odhad KO: | S6: =IF(Y4=0,0,ROUNDUP(LOG(Y4,2),0)*U5/60) -> 3.75 | T6: hod. | U6: 1 | V6: číslo prvního hřiště | X6: Bucholz: | Y6: X | AL6: 1 | AM6: 8 | AW6: =$AV$9/2 -> 16 | AX6: =AW6/2+AW7/2 -> 16 | AY6: =AX6/2+AX7/2 -> 12 | AZ6: =AY6/2+AY7/2 -> 8 | BA6: =AZ6/2+AZ7/2 -> 5 | BB6: =BA6/2+BA7/2 -> 3 | BC6: 1
I7: Počet týmů | K7: =SUM(B11:B138) -> 31 | L7: Počet zápasů : | M7: 2 | N7: =INT(K7/M7) -> 15 | O7: =IF(TYPE(N6+N7)>3,"",N6+N7) -> 16 | P7: celkem | R7: Počet hřišť: | S7: =INT(M7/2)*N7+INT(M6/2)*N6 -> 15 | X7: Typ Bucholze: | Y7: 2 | AK7: Ano | AL7: uvést číslo nasazení v názvu týmu | AM7: 2 | AW7: =$AV$9/2 -> 16 | AX7: =AW7/2 -> 8 | AY7: =AX7/2 -> 4 | AZ7: =AY7/2 -> 2 | BA7: =AZ7/2 -> 1 | BB7: =BA7/2 -> 0.5 | BC7: 0
X8: Zohlednit výhry proti nasazeným: | AI8: Počet cizinců: | AJ8: =$AU$9 -> 0 | AL8: Celkem | AM8: =SUM(AM1:AM7) -> 32 | AW8: 1 | AX8: 2 | AY8: 3 | AZ8: 4 | BA8: 5 | BB8: 6
A9: 7 | G9: =Centrum!$AE$1 -> 0 | I9: Hráč č. 1 | J9: Týmy (hráči) se vkládají nejlépe přes list Internet | O9: Hráč č. 2 | U9: Hráč č. 3 | AA9: Hráč č. 4 | AB9: náhradník | AI9: Týmů cizinců | AJ9: =$AT$9 -> 0 | AT9: =SUM(AT11:AT138) -> 0 | AU9: =SUM(AU11:AU138) -> 0 | AV9: =IF(MOD(K7,2)=1,K7+1,K7) -> 32 | AW9: =SUM(AW1:AW7) -> 32 | AX9: 32 | AY9: 32 | AZ9: 32 | BA9: 32 | BB9: 32
A10: Počet hráčů | B10: OK Tým | C10: Celkem Síla | D10: Celkem CŽ | E10: Min. CŽ hráče | F10: Klíč nasazení | G10: OK | H10: Nasazení týmu | I10: Licence | J10: Příjmení | K10: Jméno | L10: Klub | M10: CŽ | N10: Síla | O10: Licence | P10: Příjmení | Q10: Jmeno | R10: Klub | S10: CŽ | T10: Síla | U10: Licence | V10: Příjmení | W10: Jméno | X10: Klub | Y10: CŽ | Z10: Síla | AA10: Licence | AB10: Příjmení | AC10: Jméno | AD10: Klub | AE10: CŽ | AF10: Síla | AH10: Konečné pořadí | AI10: Body | AJ10: Bonus | AK10: Postupové body | AL10: Název týmu | AM10: Síla týmu | AN10: Duplicity H1 | AO10: Duplicity H2 | AP10: Duplicity H3 | AQ10: Duplicity H4 | AR10: Duplicita v týmu | AT10: Týmů cizinců | AU10: Počet cizinců
A11: =IF(OR(LEFT(J11,1)=" ",ISBLANK(J11)),0,1)+IF(OR(LEFT(P11,1)=" ",ISBLANK(P11)),0,1)+IF(OR(LEFT(V11,1)=" ",ISBLANK(V11)),0,1) -> 2 | B11: =IF(AND(TYPE(G11<15),G11=FALSE),1,0) -> 1 | C11: =IF(B11=0,0,N11+T11+Z11) -> 82.875 | D11: =IF(B11=0,99999,M11+S11+Y11) -> 10033 | E11: =MIN(M11,S11,Y11) -> 11 | F11: =CONCATENATE(IF(AND($P$4=1,H11>$O$7),"0","9"),TEXT(B11,"0"),IF(AND($P$4=1,H11>$O$7),"000000",TEXT(1000*C11,"000000")),IF(AND($P$4=1,H11>$O$7),"000000",TEXT(999999-D11,"000000")),IF(AND($P$4=1,H11>$O$7),"000000",TEXT(999999-E11,"000000")),TEXT(999999*RAND(),"000000")) -> 91082875989966999988031884 | G11: =IF(OR($K$6>A11,AR11>0),TRUE,FALSE) -> FALSE | H11: =ROW(H11)-10 -> 1 | I11: 27039 | J11: Kauca | K11: Jindřich | L11: PC Kolová | M11: 11 | N11: 38.5 | O11: 21754 | P11: Valenz | Q11: Jan | R11: VARAN | S11: 23 | T11: 44.375 | Y11: 9999 | Z11: 0 | AE11: 9999 | AF11: 0 | AH11: =IF(TYPE(VLOOKUP(H11,Centrum!$A$3:$E$130,5,0))<4,VLOOKUP(H11,Centrum!$A$3:$E$130,5,0),0) -> 11 | AI11: =IF(N($AH11)>0,VLOOKUP($AH11,Body!$A$4:$F$259,5,0),"") -> 56.04360937 | AJ11: =IF(N($AH11)>0,VLOOKUP($AH11,Body!$A$4:$F$259,6,0),"") -> 0 | AK11: =IF(N($AH11)>0,VLOOKUP($AH11,Body!$A$4:$F$259,2,0),"") -> 1.625 | AL11: =IF(N(H11)>$K$7,"",CONCATENATE(IF($AK$7="","",H11&" "),L11,IF(L11="",""," - "),J11," ",K11)) -> 1 PC Kolová - Kauca Jindřich | AM11: =C11 -> 82.875 | AN11: =IF(OR(TYPE(I11)>1,TYPE(MATCH(I11,I12:I$139,0))>1),0,MATCH(I11,I12:I$139,0))+IF(OR(TYPE(I11)>1,TYPE(MATCH(I11,O$11:O$139,0))>1),0,MATCH(I11,O$11:O$139,0))+IF(OR(TYPE(I11)>1,TYPE(MATCH(I11,U$11:U$139,0))>1),0,MATCH(I11,U$11:U$139,0))+IF(OR(TYPE(I11)>1,TYPE(MATCH(I11,AA$11:AA$139,0))>1),0,MATCH(I11,AA$11:AA$139,0)) -> 0 | AO11: =IF(OR(TYPE(O11)>1,TYPE(MATCH(O11,I$11:I$139,0))>1),0,MATCH(O11,I$11:I$139,0))+IF(OR(TYPE(O11)>1,TYPE(MATCH(O11,O12:O$139,0))>1),0,MATCH(O11,O12:O$139,0))+IF(OR(TYPE(O11)>1,TYPE(MATCH(O11,U$11:U$139,0))>1),0,MATCH(O11,U$11:U$139,0))+IF(OR(TYPE(O11)>1,TYPE(MATCH(O11,AA$11:AA$139,0))>1),0,MATCH(O11,AA$11:AA$139,0)) -> 0 | AP11: =IF(OR(TYPE(U11)>1,TYPE(MATCH(U11,I$11:I$139,0))>1),0,MATCH(U11,I$11:I$139,0))+IF(OR(TYPE(U11)>1,TYPE(MATCH(U11,O$11:O$139,0))>1),0,MATCH(U11,O$11:O$139,0))+IF(OR(TYPE(U11)>1,TYPE(MATCH(U11,U12:U$139,0))>1),0,MATCH(U11,U12:U$139,0))+IF(OR(TYPE(U11)>1,TYPE(MATCH(U11,AA$11:AA$139,0))>1),0,MATCH(U11,AA$11:AA$139,0)) -> 0 | AQ11: =IF(OR(TYPE(AA11)>1,TYPE(MATCH(AA11,I$11:I$139,0))>1),0,MATCH(AA11,I$11:I$139,0))+IF(OR(TYPE(AA11)>1,TYPE(MATCH(AA11,O$11:O$139,0))>1),0,MATCH(AA11,O$11:O$139,0))+IF(OR(TYPE(AA11)>1,TYPE(MATCH(AA11,U$11:U$139,0))>1),0,MATCH(U11,U$11:U$139,0))+IF(OR(TYPE(AA11)>1,TYPE(MATCH(AA11,AA12:AA$139,0))>1),0,MATCH(AA11,AA12:AA$139,0)) -> 0 | AR11: =SUM(AN11:AQ11) -> 0 | AT11: =IF(AU11=$K$6,1,0) -> 0 | AU11: =IF(AND(N(I11)>0,TYPE(VLOOKUP(I11,Hraci!$A$5:$A$800,1,0))>3),1,0) + IF(AND(N(O11)>0,TYPE(VLOOKUP(O11,Hraci!$A$5:$A$800,1,0))>3),1,0) + IF(AND(N(U11)>0,TYPE(VLOOKUP(U11,Hraci!$A$5:$A$800,1,0))>3),1,0) -> 0
A12: 2 | B12: 1 | C12: 72.001 | D12: 10073 | E12: 36 | F12: 91072001989926999963805520 | G12: FALSE | H12: 2 | I12: 99590 | J12: Kacerovský | K12: Ivo | L12: PC Kolová | M12: 38 | N12: 35.813 | O12: 99600 | P12: Šplíchal | Q12: Miroslav | R12: PC Kolová | S12: 36 | T12: 36.188 | Y12: 9999 | Z12: 0 | AE12: 9999 | AF12: 0 | AH12: =IF(TYPE(VLOOKUP(H12,Centrum!$A$3:$E$130,5,0))<4,VLOOKUP(H12,Centrum!$A$3:$E$130,5,0),0) -> 14 | AI12: =IF(N($AH12)>0,VLOOKUP($AH12,Body!$A$4:$F$259,5,0),"") -> 43.11046875 | AJ12: =IF(N($AH12)>0,VLOOKUP($AH12,Body!$A$4:$F$259,6,0),"") -> 0 | AK12: =IF(N($AH12)>0,VLOOKUP($AH12,Body!$A$4:$F$259,2,0),"") -> 1.25 | AL12: 2 PC Kolová - Kacerovský Ivo | AM12: 72.001 | AN12: =IF(OR(TYPE(I12)>1,TYPE(MATCH(I12,I13:I$139,0))>1),0,MATCH(I12,I13:I$139,0))+IF(OR(TYPE(I12)>1,TYPE(MATCH(I12,O$11:O$139,0))>1),0,MATCH(I12,O$11:O$139,0))+IF(OR(TYPE(I12)>1,TYPE(MATCH(I12,U$11:U$139,0))>1),0,MATCH(I12,U$11:U$139,0))+IF(OR(TYPE(I12)>1,TYPE(MATCH(I12,AA$11:AA$139,0))>1),0,MATCH(I12,AA$11:AA$139,0)) -> 0 | AO12: =IF(OR(TYPE(O12)>1,TYPE(MATCH(O12,I$11:I$139,0))>1),0,MATCH(O12,I$11:I$139,0))+IF(OR(TYPE(O12)>1,TYPE(MATCH(O12,O13:O$139,0))>1),0,MATCH(O12,O13:O$139,0))+IF(OR(TYPE(O12)>1,TYPE(MATCH(O12,U$11:U$139,0))>1),0,MATCH(O12,U$11:U$139,0))+IF(OR(TYPE(O12)>1,TYPE(MATCH(O12,AA$11:AA$139,0))>1),0,MATCH(O12,AA$11:AA$139,0)) -> 0 | AP12: =IF(OR(TYPE(U12)>1,TYPE(MATCH(U12,I$11:I$139,0))>1),0,MATCH(U12,I$11:I$139,0))+IF(OR(TYPE(U12)>1,TYPE(MATCH(U12,O$11:O$139,0))>1),0,MATCH(U12,O$11:O$139,0))+IF(OR(TYPE(U12)>1,TYPE(MATCH(U12,U13:U$139,0))>1),0,MATCH(U12,U13:U$139,0))+IF(OR(TYPE(U12)>1,TYPE(MATCH(U12,AA$11:AA$139,0))>1),0,MATCH(U12,AA$11:AA$139,0)) -> 0 | AQ12: =IF(OR(TYPE(AA12)>1,TYPE(MATCH(AA12,I$11:I$139,0))>1),0,MATCH(AA12,I$11:I$139,0))+IF(OR(TYPE(AA12)>1,TYPE(MATCH(AA12,O$11:O$139,0))>1),0,MATCH(AA12,O$11:O$139,0))+IF(OR(TYPE(AA12)>1,TYPE(MATCH(AA12,U$11:U$139,0))>1),0,MATCH(U12,U$11:U$139,0))+IF(OR(TYPE(AA12)>1,TYPE(MATCH(AA12,AA13:AA$139,0))>1),0,MATCH(AA12,AA13:AA$139,0)) -> 0 | AR12: 0 | AT12: 0 | AU12: =IF(AND(N(I12)>0,TYPE(VLOOKUP(I12,Hraci!$A$5:$A$800,1,0))>3),1,0) + IF(AND(N(O12)>0,TYPE(VLOOKUP(O12,Hraci!$A$5:$A$800,1,0))>3),1,0) + IF(AND(N(U12)>0,TYPE(VLOOKUP(U12,Hraci!$A$5:$A$800,1,0))>3),1,0) -> 0
A13: 2 | B13: 1 | C13: 68.25 | D13: 10095 | E13: 45 | F13: 91068250989904999954318264 | G13: FALSE | H13: 3 | I13: 99510 | J13: Demčík | K13: Milan St. | L13: PK JUPITER Vědomice | M13: 51 | N13: 34.75 | O13: 99574 | P13: Demčíková | Q13: Jiřina | R13: PK JUPITER Vědomice | S13: 45 | T13: 33.5 | Y13: 9999 | Z13: 0 | AE13: 9999 | AF13: 0 | AH13: =IF(TYPE(VLOOKUP(H13,Centrum!$A$3:$E$130,5,0))<4,VLOOKUP(H13,Centrum!$A$3:$E$130,5,0),0) -> 26 | AI13: =IF(N($AH13)>0,VLOOKUP($AH13,Body!$A$4:$F$259,5,0),"") -> 12.93314063 | AJ13: =IF(N($AH13)>0,VLOOKUP($AH13,Body!$A$4:$F$259,6,0),"") -> 0 | AK13: =IF(N($AH13)>0,VLOOKUP($AH13,Body!$A$4:$F$259,2,0),"") -> 0.375 | AL13: 3 PK JUPITER Vědomice - Demčík Milan St. | AM13: 68.25 | AN13: =IF(OR(TYPE(I13)>1,TYPE(MATCH(I13,I14:I$139,0))>1),0,MATCH(I13,I14:I$139,0))+IF(OR(TYPE(I13)>1,TYPE(MATCH(I13,O$11:O$139,0))>1),0,MATCH(I13,O$11:O$139,0))+IF(OR(TYPE(I13)>1,TYPE(MATCH(I13,U$11:U$139,0))>1),0,MATCH(I13,U$11:U$139,0))+IF(OR(TYPE(I13)>1,TYPE(MATCH(I13,AA$11:AA$139,0))>1),0,MATCH(I13,AA$11:AA$139,0)) -> 0 | AO13: =IF(OR(TYPE(O13)>1,TYPE(MATCH(O13,I$11:I$139,0))>1),0,MATCH(O13,I$11:I$139,0))+IF(OR(TYPE(O13)>1,TYPE(MATCH(O13,O14:O$139,0))>1),0,MATCH(O13,O14:O$139,0))+IF(OR(TYPE(O13)>1,TYPE(MATCH(O13,U$11:U$139,0))>1),0,MATCH(O13,U$11:U$139,0))+IF(OR(TYPE(O13)>1,TYPE(MATCH(O13,AA$11:AA$139,0))>1),0,MATCH(O13,AA$11:AA$139,0)) -> 0 | AP13: =IF(OR(TYPE(U13)>1,TYPE(MATCH(U13,I$11:I$139,0))>1),0,MATCH(U13,I$11:I$139,0))+IF(OR(TYPE(U13)>1,TYPE(MATCH(U13,O$11:O$139,0))>1),0,MATCH(U13,O$11:O$139,0))+IF(OR(TYPE(U13)>1,TYPE(MATCH(U13,U14:U$139,0))>1),0,MATCH(U13,U14:U$139,0))+IF(OR(TYPE(U13)>1,TYPE(MATCH(U13,AA$11:AA$139,0))>1),0,MATCH(U13,AA$11:AA$139,0)) -> 0 | AQ13: =IF(OR(TYPE(AA13)>1,TYPE(MATCH(AA13,I$11:I$139,0))>1),0,MATCH(AA13,I$11:I$139,0))+IF(OR(TYPE(AA13)>1,TYPE(MATCH(AA13,O$11:O$139,0))>1),0,MATCH(AA13,O$11:O$139,0))+IF(OR(TYPE(AA13)>1,TYPE(MATCH(AA13,U$11:U$139,0))>1),0,MATCH(U13,U$11:U$139,0))+IF(OR(TYPE(AA13)>1,TYPE(MATCH(AA13,AA14:AA$139,0))>1),0,MATCH(AA13,AA14:AA$139,0)) -> 0 | AR13: 0 | AT13: 0 | AU13: =IF(AND(N(I13)>0,TYPE(VLOOKUP(I13,Hraci!$A$5:$A$800,1,0))>3),1,0) + IF(AND(N(O13)>0,TYPE(VLOOKUP(O13,Hraci!$A$5:$A$800,1,0))>3),1,0) + IF(AND(N(U13)>0,TYPE(VLOOKUP(U13,Hraci!$A$5:$A$800,1,0))>3),1,0) -> 0
A14: 2 | B14: 1 | C14: 66.281 | D14: 10080 | E14: 35 | F14: 91066281989919999964975687 | G14: FALSE | H14: 4 | I14: 96200 | J14: Vlk | K14: Pavel | L14: POP Praha | M14: 35 | N14: 35.906 | O14: 26074 | P14: Preuss | Q14: Ondřej | R14: POP Praha | S14: 46 | T14: 30.375 | Y14: 9999 | Z14: 0 | AE14: 9999 | AF14: 0 | AH14: =IF(TYPE(VLOOKUP(H14,Centrum!$A$3:$E$130,5,0))<4,VLOOKUP(H14,Centrum!$A$3:$E$130,5,0),0) -> 1 | AI14: =IF(N($AH14)>0,VLOOKUP($AH14,Body!$A$4:$F$259,5,0),"") -> 172.441875 | AJ14: =IF(N($AH14)>0,VLOOKUP($AH14,Body!$A$4:$F$259,6,0),"") -> 0 | AK14: =IF(N($AH14)>0,VLOOKUP($AH14,Body!$A$4:$F$259,2,0),"") -> 5 | AL14: 4 POP Praha - Vlk Pavel | AM14: 66.281 | AN14: =IF(OR(TYPE(I14)>1,TYPE(MATCH(I14,I15:I$139,0))>1),0,MATCH(I14,I15:I$139,0))+IF(OR(TYPE(I14)>1,TYPE(MATCH(I14,O$11:O$139,0))>1),0,MATCH(I14,O$11:O$139,0))+IF(OR(TYPE(I14)>1,TYPE(MATCH(I14,U$11:U$139,0))>1),0,MATCH(I14,U$11:U$139,0))+IF(OR(TYPE(I14)>1,TYPE(MATCH(I14,AA$11:AA$139,0))>1),0,MATCH(I14,AA$11:AA$139,0)) -> 0 | AO14: =IF(OR(TYPE(O14)>1,TYPE(MATCH(O14,I$11:I$139,0))>1),0,MATCH(O14,I$11:I$139,0))+IF(OR(TYPE(O14)>1,TYPE(MATCH(O14,O15:O$139,0))>1),0,MATCH(O14,O15:O$139,0))+IF(OR(TYPE(O14)>1,TYPE(MATCH(O14,U$11:U$139,0))>1),0,MATCH(O14,U$11:U$139,0))+IF(OR(TYPE(O14)>1,TYPE(MATCH(O14,AA$11:AA$139,0))>1),0,MATCH(O14,AA$11:AA$139,0)) -> 0 | AP14: =IF(OR(TYPE(U14)>1,TYPE(MATCH(U14,I$11:I$139,0))>1),0,MATCH(U14,I$11:I$139,0))+IF(OR(TYPE(U14)>1,TYPE(MATCH(U14,O$11:O$139,0))>1),0,MATCH(U14,O$11:O$139,0))+IF(OR(TYPE(U14)>1,TYPE(MATCH(U14,U15:U$139,0))>1),0,MATCH(U14,U15:U$139,0))+IF(OR(TYPE(U14)>1,TYPE(MATCH(U14,AA$11:AA$139,0))>1),0,MATCH(U14,AA$11:AA$139,0)) -> 0 | AQ14: =IF(OR(TYPE(AA14)>1,TYPE(MATCH(AA14,I$11:I$139,0))>1),0,MATCH(AA14,I$11:I$139,0))+IF(OR(TYPE(AA14)>1,TYPE(MATCH(AA14,O$11:O$139,0))>1),0,MATCH(AA14,O$11:O$139,0))+IF(OR(TYPE(AA14)>1,TYPE(MATCH(AA14,U$11:U$139,0))>1),0,MATCH(U14,U$11:U$139,0))+IF(OR(TYPE(AA14)>1,TYPE(MATCH(AA14,AA15:AA$139,0))>1),0,MATCH(AA14,AA15:AA$139,0)) -> 0 | AR14: 0 | AT14: 0 | AU14: =IF(AND(N(I14)>0,TYPE(VLOOKUP(I14,Hraci!$A$5:$A$800,1,0))>3),1,0) + IF(AND(N(O14)>0,TYPE(VLOOKUP(O14,Hraci!$A$5:$A$800,1,0))>3),1,0) + IF(AND(N(U14)>0,TYPE(VLOOKUP(U14,Hraci!$A$5:$A$800,1,0))>3),1,0) -> 0
A15: 2 | B15: 1 | C15: 62.5 | D15: 10153 | E15: 30 | F15: 91062500989846999969419851 | G15: FALSE | H15: 5 | I15: 26011 | J15: Brázda | K15: Vladimír | L15: 1. KPK Vrchlabí | M15: 30 | N15: 40.125 | O15: 11037 | P15: Šebek | Q15: Viktor | R15: 1. KPK Vrchlabí | S15: 124 | T15: 22.375 | Y15: 9999 | Z15: 0 | AE15: 9999 | AF15: 0 | AH15: =IF(TYPE(VLOOKUP(H15,Centrum!$A$3:$E$130,5,0))<4,VLOOKUP(H15,Centrum!$A$3:$E$130,5,0),0) -> 13 | AI15: =IF(N($AH15)>0,VLOOKUP($AH15,Body!$A$4:$F$259,5,0),"") -> 47.42151562 | AJ15: =IF(N($AH15)>0,VLOOKUP($AH15,Body!$A$4:$F$259,6,0),"") -> 0 | AK15: =IF(N($AH15)>0,VLOOKUP($AH15,Body!$A$4:$F$259,2,0),"") -> 1.375 | AL15: 5 1. KPK Vrchlabí - Brázda Vladimír | AM15: 62.5 | AN15: =IF(OR(TYPE(I15)>1,TYPE(MATCH(I15,I16:I$139,0))>1),0,MATCH(I15,I16:I$139,0))+IF(OR(TYPE(I15)>1,TYPE(MATCH(I15,O$11:O$139,0))>1),0,MATCH(I15,O$11:O$139,0))+IF(OR(TYPE(I15)>1,TYPE(MATCH(I15,U$11:U$139,0))>1),0,MATCH(I15,U$11:U$139,0))+IF(OR(TYPE(I15)>1,TYPE(MATCH(I15,AA$11:AA$139,0))>1),0,MATCH(I15,AA$11:AA$139,0)) -> 0 | AO15: =IF(OR(TYPE(O15)>1,TYPE(MATCH(O15,I$11:I$139,0))>1),0,MATCH(O15,I$11:I$139,0))+IF(OR(TYPE(O15)>1,TYPE(MATCH(O15,O16:O$139,0))>1),0,MATCH(O15,O16:O$139,0))+IF(OR(TYPE(O15)>1,TYPE(MATCH(O15,U$11:U$139,0))>1),0,MATCH(O15,U$11:U$139,0))+IF(OR(TYPE(O15)>1,TYPE(MATCH(O15,AA$11:AA$139,0))>1),0,MATCH(O15,AA$11:AA$139,0)) -> 0 | AP15: =IF(OR(TYPE(U15)>1,TYPE(MATCH(U15,I$11:I$139,0))>1),0,MATCH(U15,I$11:I$139,0))+IF(OR(TYPE(U15)>1,TYPE(MATCH(U15,O$11:O$139,0))>1),0,MATCH(U15,O$11:O$139,0))+IF(OR(TYPE(U15)>1,TYPE(MATCH(U15,U16:U$139,0))>1),0,MATCH(U15,U16:U$139,0))+IF(OR(TYPE(U15)>1,TYPE(MATCH(U15,AA$11:AA$139,0))>1),0,MATCH(U15,AA$11:AA$139,0)) -> 0 | AQ15: =IF(OR(TYPE(AA15)>1,TYPE(MATCH(AA15,I$11:I$139,0))>1),0,MATCH(AA15,I$11:I$139,0))+IF(OR(TYPE(AA15)>1,TYPE(MATCH(AA15,O$11:O$139,0))>1),0,MATCH(AA15,O$11:O$139,0))+IF(OR(TYPE(AA15)>1,TYPE(MATCH(AA15,U$11:U$139,0))>1),0,MATCH(U15,U$11:U$139,0))+IF(OR(TYPE(AA15)>1,TYPE(MATCH(AA15,AA16:AA$139,0))>1),0,MATCH(AA15,AA16:AA$139,0)) -> 0 | AR15: 0 | AT15: 0 | AU15: =IF(AND(N(I15)>0,TYPE(VLOOKUP(I15,Hraci!$A$5:$A$800,1,0))>3),1,0) + IF(AND(N(O15)>0,TYPE(VLOOKUP(O15,Hraci!$A$5:$A$800,1,0))>3),1,0) + IF(AND(N(U15)>0,TYPE(VLOOKUP(U15,Hraci!$A$5:$A$800,1,0))>3),1,0) -> 0
A16: 2 | B16: 1 | C16: 62.281 | D16: 10155 | E16: 56 | F16: 91062281989844999943604513 | G16: FALSE | H16: 6 | I16: 98418 | J16: Pešout | K16: Miroslav | L16: CdP Loděnice | M16: 56 | N16: 36.75 | O16: 11057 | P16: Salmi | Q16: Makhlouf | R16: UBU Únětice | S16: 100 | T16: 25.531 | Y16: 9999 | Z16: 0 | AE16: 9999 | AF16: 0 | AH16: =IF(TYPE(VLOOKUP(H16,Centrum!$A$3:$E$130,5,0))<4,VLOOKUP(H16,Centrum!$A$3:$E$130,5,0),0) -> 2 | AI16: =IF(N($AH16)>0,VLOOKUP($AH16,Body!$A$4:$F$259,5,0),"") -> 137.9535 | AJ16: =IF(N($AH16)>0,VLOOKUP($AH16,Body!$A$4:$F$259,6,0),"") -> 0 | AK16: =IF(N($AH16)>0,VLOOKUP($AH16,Body!$A$4:$F$259,2,0),"") -> 4 | AL16: 6 CdP Loděnice - Pešout Miroslav | AM16: 62.281 | AN16: =IF(OR(TYPE(I16)>1,TYPE(MATCH(I16,I17:I$139,0))>1),0,MATCH(I16,I17:I$139,0))+IF(OR(TYPE(I16)>1,TYPE(MATCH(I16,O$11:O$139,0))>1),0,MATCH(I16,O$11:O$139,0))+IF(OR(TYPE(I16)>1,TYPE(MATCH(I16,U$11:U$139,0))>1),0,MATCH(I16,U$11:U$139,0))+IF(OR(TYPE(I16)>1,TYPE(MATCH(I16,AA$11:AA$139,0))>1),0,MATCH(I16,AA$11:AA$139,0)) -> 0 | AO16: =IF(OR(TYPE(O16)>1,TYPE(MATCH(O16,I$11:I$139,0))>1),0,MATCH(O16,I$11:I$139,0))+IF(OR(TYPE(O16)>1,TYPE(MATCH(O16,O17:O$139,0))>1),0,MATCH(O16,O17:O$139,0))+IF(OR(TYPE(O16)>1,TYPE(MATCH(O16,U$11:U$139,0))>1),0,MATCH(O16,U$11:U$139,0))+IF(OR(TYPE(O16)>1,TYPE(MATCH(O16,AA$11:AA$139,0))>1),0,MATCH(O16,AA$11:AA$139,0)) -> 0 | AP16: =IF(OR(TYPE(U16)>1,TYPE(MATCH(U16,I$11:I$139,0))>1),0,MATCH(U16,I$11:I$139,0))+IF(OR(TYPE(U16)>1,TYPE(MATCH(U16,O$11:O$139,0))>1),0,MATCH(U16,O$11:O$139,0))+IF(OR(TYPE(U16)>1,TYPE(MATCH(U16,U17:U$139,0))>1),0,MATCH(U16,U17:U$139,0))+IF(OR(TYPE(U16)>1,TYPE(MATCH(U16,AA$11:AA$139,0))>1),0,MATCH(U16,AA$11:AA$139,0)) -> 0 | AQ16: =IF(OR(TYPE(AA16)>1,TYPE(MATCH(AA16,I$11:I$139,0))>1),0,MATCH(AA16,I$11:I$139,0))+IF(OR(TYPE(AA16)>1,TYPE(MATCH(AA16,O$11:O$139,0))>1),0,MATCH(AA16,O$11:O$139,0))+IF(OR(TYPE(AA16)>1,TYPE(MATCH(AA16,U$11:U$139,0))>1),0,MATCH(U16,U$11:U$139,0))+IF(OR(TYPE(AA16)>1,TYPE(MATCH(AA16,AA17:AA$139,0))>1),0,MATCH(AA16,AA17:AA$139,0)) -> 0 | AR16: 0 | AT16: 0 | AU16: =IF(AND(N(I16)>0,TYPE(VLOOKUP(I16,Hraci!$A$5:$A$800,1,0))>3),1,0) + IF(AND(N(O16)>0,TYPE(VLOOKUP(O16,Hraci!$A$5:$A$800,1,0))>3),1,0) + IF(AND(N(U16)>0,TYPE(VLOOKUP(U16,Hraci!$A$5:$A$800,1,0))>3),1,0) -> 0
A17: 2 | B17: 1 | C17: 53.063 | D17: 10149 | E17: 48 | F17: 91053063989850999951504413 | G17: FALSE | H17: 7 | I17: 25011 | J17: Jirkovský | K17: Tomáš | L17: PK Osika Plzeň | M17: 102 | N17: 21.063 | O17: 25017 | P17: Radoušová | Q17: Jana | R17: PK Osika Plzeň | S17: 48 | T17: 32 | Y17: 9999 | Z17: 0 | AE17: 9999 | AF17: 0 | AH17: =IF(TYPE(VLOOKUP(H17,Centrum!$A$3:$E$130,5,0))<4,VLOOKUP(H17,Centrum!$A$3:$E$130,5,0),0) -> 22 | AI17: =IF(N($AH17)>0,VLOOKUP($AH17,Body!$A$4:$F$259,5,0),"") -> 21.55523437 | AJ17: =IF(N($AH17)>0,VLOOKUP($AH17,Body!$A$4:$F$259,6,0),"") -> 0 | AK17: =IF(N($AH17)>0,VLOOKUP($AH17,Body!$A$4:$F$259,2,0),"") -> 0.625 | AL17: 7 PK Osika Plzeň - Jirkovský Tomáš | AM17: 53.063 | AN17: =IF(OR(TYPE(I17)>1,TYPE(MATCH(I17,I18:I$139,0))>1),0,MATCH(I17,I18:I$139,0))+IF(OR(TYPE(I17)>1,TYPE(MATCH(I17,O$11:O$139,0))>1),0,MATCH(I17,O$11:O$139,0))+IF(OR(TYPE(I17)>1,TYPE(MATCH(I17,U$11:U$139,0))>1),0,MATCH(I17,U$11:U$139,0))+IF(OR(TYPE(I17)>1,TYPE(MATCH(I17,AA$11:AA$139,0))>1),0,MATCH(I17,AA$11:AA$139,0)) -> 0 | AO17: =IF(OR(TYPE(O17)>1,TYPE(MATCH(O17,I$11:I$139,0))>1),0,MATCH(O17,I$11:I$139,0))+IF(OR(TYPE(O17)>1,TYPE(MATCH(O17,O18:O$139,0))>1),0,MATCH(O17,O18:O$139,0))+IF(OR(TYPE(O17)>1,TYPE(MATCH(O17,U$11:U$139,0))>1),0,MATCH(O17,U$11:U$139,0))+IF(OR(TYPE(O17)>1,TYPE(MATCH(O17,AA$11:AA$139,0))>1),0,MATCH(O17,AA$11:AA$139,0)) -> 0 | AP17: =IF(OR(TYPE(U17)>1,TYPE(MATCH(U17,I$11:I$139,0))>1),0,MATCH(U17,I$11:I$139,0))+IF(OR(TYPE(U17)>1,TYPE(MATCH(U17,O$11:O$139,0))>1),0,MATCH(U17,O$11:O$139,0))+IF(OR(TYPE(U17)>1,TYPE(MATCH(U17,U18:U$139,0))>1),0,MATCH(U17,U18:U$139,0))+IF(OR(TYPE(U17)>1,TYPE(MATCH(U17,AA$11:AA$139,0))>1),0,MATCH(U17,AA$11:AA$139,0)) -> 0 | AQ17: =IF(OR(TYPE(AA17)>1,TYPE(MATCH(AA17,I$11:I$139,0))>1),0,MATCH(AA17,I$11:I$139,0))+IF(OR(TYPE(AA17)>1,TYPE(MATCH(AA17,O$11:O$139,0))>1),0,MATCH(AA17,O$11:O$139,0))+IF(OR(TYPE(AA17)>1,TYPE(MATCH(AA17,U$11:U$139,0))>1),0,MATCH(U17,U$11:U$139,0))+IF(OR(TYPE(AA17)>1,TYPE(MATCH(AA17,AA18:AA$139,0))>1),0,MATCH(AA17,AA18:AA$139,0)) -> 0 | AR17: 0 | AT17: 0 | AU17: =IF(AND(N(I17)>0,TYPE(VLOOKUP(I17,Hraci!$A$5:$A$800,1,0))>3),1,0) + IF(AND(N(O17)>0,TYPE(VLOOKUP(O17,Hraci!$A$5:$A$800,1,0))>3),1,0) + IF(AND(N(U17)>0,TYPE(VLOOKUP(U17,Hraci!$A$5:$A$800,1,0))>3),1,0) -> 0
A18: 2 | B18: 1 | C18: 52.438 | D18: 10090 | E18: 37 | F18: 91052438989909999962346939 | G18: FALSE | H18: 8 | I18: 11001 | J18: Lukáš | K18: Petr | L18: JAPKO | M18: 37 | N18: 26.75 | O18: 11002 | P18: Lukášová | Q18: Jana | R18: JAPKO | S18: 54 | T18: 25.688 | Y18: 9999 | Z18: 0 | AE18: 9999 | AF18: 0 | AH18: =IF(TYPE(VLOOKUP(H18,Centrum!$A$3:$E$130,5,0))<4,VLOOKUP(H18,Centrum!$A$3:$E$130,5,0),0) -> 7 | AI18: =IF(N($AH18)>0,VLOOKUP($AH18,Body!$A$4:$F$259,5,0),"") -> 77.59884375 | AJ18: =IF(N($AH18)>0,VLOOKUP($AH18,Body!$A$4:$F$259,6,0),"") -> 0 | AK18: =IF(N($AH18)>0,VLOOKUP($AH18,Body!$A$4:$F$259,2,0),"") -> 2.25 | AL18: 8 JAPKO - Lukáš Petr | AM18: 52.438 | AN18: =IF(OR(TYPE(I18)>1,TYPE(MATCH(I18,I19:I$139,0))>1),0,MATCH(I18,I19:I$139,0))+IF(OR(TYPE(I18)>1,TYPE(MATCH(I18,O$11:O$139,0))>1),0,MATCH(I18,O$11:O$139,0))+IF(OR(TYPE(I18)>1,TYPE(MATCH(I18,U$11:U$139,0))>1),0,MATCH(I18,U$11:U$139,0))+IF(OR(TYPE(I18)>1,TYPE(MATCH(I18,AA$11:AA$139,0))>1),0,MATCH(I18,AA$11:AA$139,0)) -> 0 | AO18: =IF(OR(TYPE(O18)>1,TYPE(MATCH(O18,I$11:I$139,0))>1),0,MATCH(O18,I$11:I$139,0))+IF(OR(TYPE(O18)>1,TYPE(MATCH(O18,O19:O$139,0))>1),0,MATCH(O18,O19:O$139,0))+IF(OR(TYPE(O18)>1,TYPE(MATCH(O18,U$11:U$139,0))>1),0,MATCH(O18,U$11:U$139,0))+IF(OR(TYPE(O18)>1,TYPE(MATCH(O18,AA$11:AA$139,0))>1),0,MATCH(O18,AA$11:AA$139,0)) -> 0 | AP18: =IF(OR(TYPE(U18)>1,TYPE(MATCH(U18,I$11:I$139,0))>1),0,MATCH(U18,I$11:I$139,0))+IF(OR(TYPE(U18)>1,TYPE(MATCH(U18,O$11:O$139,0))>1),0,MATCH(U18,O$11:O$139,0))+IF(OR(TYPE(U18)>1,TYPE(MATCH(U18,U19:U$139,0))>1),0,MATCH(U18,U19:U$139,0))+IF(OR(TYPE(U18)>1,TYPE(MATCH(U18,AA$11:AA$139,0))>1),0,MATCH(U18,AA$11:AA$139,0)) -> 0 | AQ18: =IF(OR(TYPE(AA18)>1,TYPE(MATCH(AA18,I$11:I$139,0))>1),0,MATCH(AA18,I$11:I$139,0))+IF(OR(TYPE(AA18)>1,TYPE(MATCH(AA18,O$11:O$139,0))>1),0,MATCH(AA18,O$11:O$139,0))+IF(OR(TYPE(AA18)>1,TYPE(MATCH(AA18,U$11:U$139,0))>1),0,MATCH(U18,U$11:U$139,0))+IF(OR(TYPE(AA18)>1,TYPE(MATCH(AA18,AA19:AA$139,0))>1),0,MATCH(AA18,AA19:AA$139,0)) -> 0 | AR18: 0 | AT18: 0 | AU18: =IF(AND(N(I18)>0,TYPE(VLOOKUP(I18,Hraci!$A$5:$A$800,1,0))>3),1,0) + IF(AND(N(O18)>0,TYPE(VLOOKUP(O18,Hraci!$A$5:$A$800,1,0))>3),1,0) + IF(AND(N(U18)>0,TYPE(VLOOKUP(U18,Hraci!$A$5:$A$800,1,0))>3),1,0) -> 0
A19: 2 | B19: 1 | C19: 50.376 | D19: 10139 | E19: 59 | F19: 91050376989860999940336970 | G19: FALSE | H19: 9 | I19: 10060 | J19: Petrasová | K19: Blanka | L19: PPA POZORKA | M19: 81 | N19: 22.782 | O19: 28027 | P19: Volenec | Q19: František | R19: PPA POZORKA | S19: 59 | T19: 27.594 | Y19: 9999 | Z19: 0 | AE19: 9999 | AF19: 0 | AH19: =IF(TYPE(VLOOKUP(H19,Centrum!$A$3:$E$130,5,0))<4,VLOOKUP(H19,Centrum!$A$3:$E$130,5,0),0) -> 5 | AI19: =IF(N($AH19)>0,VLOOKUP($AH19,Body!$A$4:$F$259,5,0),"") -> 94.84303125 | AJ19: =IF(N($AH19)>0,VLOOKUP($AH19,Body!$A$4:$F$259,6,0),"") -> 0 | AK19: =IF(N($AH19)>0,VLOOKUP($AH19,Body!$A$4:$F$259,2,0),"") -> 2.75 | AL19: 9 PPA POZORKA - Petrasová Blanka | AM19: 50.376 | AN19: =IF(OR(TYPE(I19)>1,TYPE(MATCH(I19,I20:I$139,0))>1),0,MATCH(I19,I20:I$139,0))+IF(OR(TYPE(I19)>1,TYPE(MATCH(I19,O$11:O$139,0))>1),0,MATCH(I19,O$11:O$139,0))+IF(OR(TYPE(I19)>1,TYPE(MATCH(I19,U$11:U$139,0))>1),0,MATCH(I19,U$11:U$139,0))+IF(OR(TYPE(I19)>1,TYPE(MATCH(I19,AA$11:AA$139,0))>1),0,MATCH(I19,AA$11:AA$139,0)) -> 0 | AO19: =IF(OR(TYPE(O19)>1,TYPE(MATCH(O19,I$11:I$139,0))>1),0,MATCH(O19,I$11:I$139,0))+IF(OR(TYPE(O19)>1,TYPE(MATCH(O19,O20:O$139,0))>1),0,MATCH(O19,O20:O$139,0))+IF(OR(TYPE(O19)>1,TYPE(MATCH(O19,U$11:U$139,0))>1),0,MATCH(O19,U$11:U$139,0))+IF(OR(TYPE(O19)>1,TYPE(MATCH(O19,AA$11:AA$139,0))>1),0,MATCH(O19,AA$11:AA$139,0)) -> 0 | AP19: =IF(OR(TYPE(U19)>1,TYPE(MATCH(U19,I$11:I$139,0))>1),0,MATCH(U19,I$11:I$139,0))+IF(OR(TYPE(U19)>1,TYPE(MATCH(U19,O$11:O$139,0))>1),0,MATCH(U19,O$11:O$139,0))+IF(OR(TYPE(U19)>1,TYPE(MATCH(U19,U20:U$139,0))>1),0,MATCH(U19,U20:U$139,0))+IF(OR(TYPE(U19)>1,TYPE(MATCH(U19,AA$11:AA$139,0))>1),0,MATCH(U19,AA$11:AA$139,0)) -> 0 | AQ19: =IF(OR(TYPE(AA19)>1,TYPE(MATCH(AA19,I$11:I$139,0))>1),0,MATCH(AA19,I$11:I$139,0))+IF(OR(TYPE(AA19)>1,TYPE(MATCH(AA19,O$11:O$139,0))>1),0,MATCH(AA19,O$11:O$139,0))+IF(OR(TYPE(AA19)>1,TYPE(MATCH(AA19,U$11:U$139,0))>1),0,MATCH(U19,U$11:U$139,0))+IF(OR(TYPE(AA19)>1,TYPE(MATCH(AA19,AA20:AA$139,0))>1),0,MATCH(AA19,AA20:AA$139,0)) -> 0 | AR19: 0 | AT19: 0 | AU19: =IF(AND(N(I19)>0,TYPE(VLOOKUP(I19,Hraci!$A$5:$A$800,1,0))>3),1,0) + IF(AND(N(O19)>0,TYPE(VLOOKUP(O19,Hraci!$A$5:$A$800,1,0))>3),1,0) + IF(AND(N(U19)>0,TYPE(VLOOKUP(U19,Hraci!$A$5:$A$800,1,0))>3),1,0) -> 0
A20: 2 | B20: 1 | C20: 42.75 | D20: 10208 | E20: 87 | F20: 91042750989791999912932382 | G20: FALSE | H20: 10 | I20: 25015 | J20: Mrázová | K20: Eva | L20: PK Osika Plzeň | M20: 122 | N20: 19.375 | O20: 25075 | P20: Špitálský | Q20: Milan | R20: PK Osika Plzeň | S20: 87 | T20: 23.375 | Y20: 9999 | Z20: 0 | AE20: 9999 | AF20: 0 | AH20: =IF(TYPE(VLOOKUP(H20,Centrum!$A$3:$E$130,5,0))<4,VLOOKUP(H20,Centrum!$A$3:$E$130,5,0),0) -> 4 | AI20: =IF(N($AH20)>0,VLOOKUP($AH20,Body!$A$4:$F$259,5,0),"") -> 103.465125 | AJ20: =IF(N($AH20)>0,VLOOKUP($AH20,Body!$A$4:$F$259,6,0),"") -> 0 | AK20: =IF(N($AH20)>0,VLOOKUP($AH20,Body!$A$4:$F$259,2,0),"") -> 3 | AL20: 10 PK Osika Plzeň - Mrázová Eva | AM20: 42.75 | AN20: =IF(OR(TYPE(I20)>1,TYPE(MATCH(I20,I21:I$139,0))>1),0,MATCH(I20,I21:I$139,0))+IF(OR(TYPE(I20)>1,TYPE(MATCH(I20,O$11:O$139,0))>1),0,MATCH(I20,O$11:O$139,0))+IF(OR(TYPE(I20)>1,TYPE(MATCH(I20,U$11:U$139,0))>1),0,MATCH(I20,U$11:U$139,0))+IF(OR(TYPE(I20)>1,TYPE(MATCH(I20,AA$11:AA$139,0))>1),0,MATCH(I20,AA$11:AA$139,0)) -> 0 | AO20: =IF(OR(TYPE(O20)>1,TYPE(MATCH(O20,I$11:I$139,0))>1),0,MATCH(O20,I$11:I$139,0))+IF(OR(TYPE(O20)>1,TYPE(MATCH(O20,O21:O$139,0))>1),0,MATCH(O20,O21:O$139,0))+IF(OR(TYPE(O20)>1,TYPE(MATCH(O20,U$11:U$139,0))>1),0,MATCH(O20,U$11:U$139,0))+IF(OR(TYPE(O20)>1,TYPE(MATCH(O20,AA$11:AA$139,0))>1),0,MATCH(O20,AA$11:AA$139,0)) -> 0 | AP20: =IF(OR(TYPE(U20)>1,TYPE(MATCH(U20,I$11:I$139,0))>1),0,MATCH(U20,I$11:I$139,0))+IF(OR(TYPE(U20)>1,TYPE(MATCH(U20,O$11:O$139,0))>1),0,MATCH(U20,O$11:O$139,0))+IF(OR(TYPE(U20)>1,TYPE(MATCH(U20,U21:U$139,0))>1),0,MATCH(U20,U21:U$139,0))+IF(OR(TYPE(U20)>1,TYPE(MATCH(U20,AA$11:AA$139,0))>1),0,MATCH(U20,AA$11:AA$139,0)) -> 0 | AQ20: =IF(OR(TYPE(AA20)>1,TYPE(MATCH(AA20,I$11:I$139,0))>1),0,MATCH(AA20,I$11:I$139,0))+IF(OR(TYPE(AA20)>1,TYPE(MATCH(AA20,O$11:O$139,0))>1),0,MATCH(AA20,O$11:O$139,0))+IF(OR(TYPE(AA20)>1,TYPE(MATCH(AA20,U$11:U$139,0))>1),0,MATCH(U20,U$11:U$139,0))+IF(OR(TYPE(AA20)>1,TYPE(MATCH(AA20,AA21:AA$139,0))>1),0,MATCH(AA20,AA21:AA$139,0)) -> 0 | AR20: 0 | AT20: 0 | AU20: =IF(AND(N(I20)>0,TYPE(VLOOKUP(I20,Hraci!$A$5:$A$800,1,0))>3),1,0) + IF(AND(N(O20)>0,TYPE(VLOOKUP(O20,Hraci!$A$5:$A$800,1,0))>3),1,0) + IF(AND(N(U20)>0,TYPE(VLOOKUP(U20,Hraci!$A$5:$A$800,1,0))>3),1,0) -> 0
A21: 2 | B21: 1 | C21: 38.375 | D21: 20007 | E21: 9 | F21: 91038375979992999990819613 | G21: FALSE | H21: 11 | I21: 12022 | J21: Slobodová | K21: Veronika | L21: POP Praha | M21: 9 | N21: 38.375 | P21: Beluh, Pavel | S21: 9999 | T21: 0 | Y21: 9999 | Z21: 0 | AE21: 9999 | AF21: 0 | AH21: =IF(TYPE(VLOOKUP(H21,Centrum!$A$3:$E$130,5,0))<4,VLOOKUP(H21,Centrum!$A$3:$E$130,5,0),0) -> 20 | AI21: =IF(N($AH21)>0,VLOOKUP($AH21,Body!$A$4:$F$259,5,0),"") -> 25.86628125 | AJ21: =IF(N($AH21)>0,VLOOKUP($AH21,Body!$A$4:$F$259,6,0),"") -> 0 | AK21: =IF(N($AH21)>0,VLOOKUP($AH21,Body!$A$4:$F$259,2,0),"") -> 0.75 | AL21: 11 POP Praha - Slobodová Veronika | AM21: 38.375 | AN21: =IF(OR(TYPE(I21)>1,TYPE(MATCH(I21,I22:I$139,0))>1),0,MATCH(I21,I22:I$139,0))+IF(OR(TYPE(I21)>1,TYPE(MATCH(I21,O$11:O$139,0))>1),0,MATCH(I21,O$11:O$139,0))+IF(OR(TYPE(I21)>1,TYPE(MATCH(I21,U$11:U$139,0))>1),0,MATCH(I21,U$11:U$139,0))+IF(OR(TYPE(I21)>1,TYPE(MATCH(I21,AA$11:AA$139,0))>1),0,MATCH(I21,AA$11:AA$139,0)) -> 0 | AO21: =IF(OR(TYPE(O21)>1,TYPE(MATCH(O21,I$11:I$139,0))>1),0,MATCH(O21,I$11:I$139,0))+IF(OR(TYPE(O21)>1,TYPE(MATCH(O21,O22:O$139,0))>1),0,MATCH(O21,O22:O$139,0))+IF(OR(TYPE(O21)>1,TYPE(MATCH(O21,U$11:U$139,0))>1),0,MATCH(O21,U$11:U$139,0))+IF(OR(TYPE(O21)>1,TYPE(MATCH(O21,AA$11:AA$139,0))>1),0,MATCH(O21,AA$11:AA$139,0)) -> 0 | AP21: =IF(OR(TYPE(U21)>1,TYPE(MATCH(U21,I$11:I$139,0))>1),0,MATCH(U21,I$11:I$139,0))+IF(OR(TYPE(U21)>1,TYPE(MATCH(U21,O$11:O$139,0))>1),0,MATCH(U21,O$11:O$139,0))+IF(OR(TYPE(U21)>1,TYPE(MATCH(U21,U22:U$139,0))>1),0,MATCH(U21,U22:U$139,0))+IF(OR(TYPE(U21)>1,TYPE(MATCH(U21,AA$11:AA$139,0))>1),0,MATCH(U21,AA$11:AA$139,0)) -> 0 | AQ21: =IF(OR(TYPE(AA21)>1,TYPE(MATCH(AA21,I$11:I$139,0))>1),0,MATCH(AA21,I$11:I$139,0))+IF(OR(TYPE(AA21)>1,TYPE(MATCH(AA21,O$11:O$139,0))>1),0,MATCH(AA21,O$11:O$139,0))+IF(OR(TYPE(AA21)>1,TYPE(MATCH(AA21,U$11:U$139,0))>1),0,MATCH(U21,U$11:U$139,0))+IF(OR(TYPE(AA21)>1,TYPE(MATCH(AA21,AA22:AA$139,0))>1),0,MATCH(AA21,AA22:AA$139,0)) -> 0 | AR21: 0 | AT21: 0 | AU21: =IF(AND(N(I21)>0,TYPE(VLOOKUP(I21,Hraci!$A$5:$A$800,1,0))>3),1,0) + IF(AND(N(O21)>0,TYPE(VLOOKUP(O21,Hraci!$A$5:$A$800,1,0))>3),1,0) + IF(AND(N(U21)>0,TYPE(VLOOKUP(U21,Hraci!$A$5:$A$800,1,0))>3),1,0) -> 0
A22: 2 | B22: 1 | C22: 38.344 | D22: 10248 | E22: 41 | F22: 91038344989751999958993711 | G22: FALSE | H22: 12 | I22: 21768 | J22: Plucar | K22: Petr | L22: PC Kolová | M22: 41 | N22: 34.625 | O22: 99591 | P22: Imlauf | Q22: Jan | R22: PC Kolová | S22: 208 | T22: 3.719 | Y22: 9999 | Z22: 0 | AE22: 9999 | AF22: 0 | AH22: =IF(TYPE(VLOOKUP(H22,Centrum!$A$3:$E$130,5,0))<4,VLOOKUP(H22,Centrum!$A$3:$E$130,5,0),0) -> 6 | AI22: =IF(N($AH22)>0,VLOOKUP($AH22,Body!$A$4:$F$259,5,0),"") -> 86.2209375 | AJ22: =IF(N($AH22)>0,VLOOKUP($AH22,Body!$A$4:$F$259,6,0),"") -> 0 | AK22: =IF(N($AH22)>0,VLOOKUP($AH22,Body!$A$4:$F$259,2,0),"") -> 2.5 | AL22: 12 PC Kolová - Plucar Petr | AM22: 38.344 | AN22: =IF(OR(TYPE(I22)>1,TYPE(MATCH(I22,I23:I$139,0))>1),0,MATCH(I22,I23:I$139,0))+IF(OR(TYPE(I22)>1,TYPE(MATCH(I22,O$11:O$139,0))>1),0,MATCH(I22,O$11:O$139,0))+IF(OR(TYPE(I22)>1,TYPE(MATCH(I22,U$11:U$139,0))>1),0,MATCH(I22,U$11:U$139,0))+IF(OR(TYPE(I22)>1,TYPE(MATCH(I22,AA$11:AA$139,0))>1),0,MATCH(I22,AA$11:AA$139,0)) -> 0 | AO22: =IF(OR(TYPE(O22)>1,TYPE(MATCH(O22,I$11:I$139,0))>1),0,MATCH(O22,I$11:I$139,0))+IF(OR(TYPE(O22)>1,TYPE(MATCH(O22,O23:O$139,0))>1),0,MATCH(O22,O23:O$139,0))+IF(OR(TYPE(O22)>1,TYPE(MATCH(O22,U$11:U$139,0))>1),0,MATCH(O22,U$11:U$139,0))+IF(OR(TYPE(O22)>1,TYPE(MATCH(O22,AA$11:AA$139,0))>1),0,MATCH(O22,AA$11:AA$139,0)) -> 0 | AP22: =IF(OR(TYPE(U22)>1,TYPE(MATCH(U22,I$11:I$139,0))>1),0,MATCH(U22,I$11:I$139,0))+IF(OR(TYPE(U22)>1,TYPE(MATCH(U22,O$11:O$139,0))>1),0,MATCH(U22,O$11:O$139,0))+IF(OR(TYPE(U22)>1,TYPE(MATCH(U22,U23:U$139,0))>1),0,MATCH(U22,U23:U$139,0))+IF(OR(TYPE(U22)>1,TYPE(MATCH(U22,AA$11:AA$139,0))>1),0,MATCH(U22,AA$11:AA$139,0)) -> 0 | AQ22: =IF(OR(TYPE(AA22)>1,TYPE(MATCH(AA22,I$11:I$139,0))>1),0,MATCH(AA22,I$11:I$139,0))+IF(OR(TYPE(AA22)>1,TYPE(MATCH(AA22,O$11:O$139,0))>1),0,MATCH(AA22,O$11:O$139,0))+IF(OR(TYPE(AA22)>1,TYPE(MATCH(AA22,U$11:U$139,0))>1),0,MATCH(U22,U$11:U$139,0))+IF(OR(TYPE(AA22)>1,TYPE(MATCH(AA22,AA23:AA$139,0))>1),0,MATCH(AA22,AA23:AA$139,0)) -> 0 | AR22: 0 | AT22: 0 | AU22: =IF(AND(N(I22)>0,TYPE(VLOOKUP(I22,Hraci!$A$5:$A$800,1,0))>3),1,0) + IF(AND(N(O22)>0,TYPE(VLOOKUP(O22,Hraci!$A$5:$A$800,1,0))>3),1,0) + IF(AND(N(U22)>0,TYPE(VLOOKUP(U22,Hraci!$A$5:$A$800,1,0))>3),1,0) -> 0
A23: 2 | B23: 1 | C23: 32.469 | D23: 10259 | E23: 105 | F23: 91032469989740999894884756 | G23: FALSE | H23: 13 | I23: 24155 | J23: Kraus | K23: Jaroslav | L23: PK Osika Plzeň | M23: 155 | N23: 11.969 | O23: 25014 | P23: Mráz | Q23: Václav | R23: PK Osika Plzeň | S23: 105 | T23: 20.5 | Y23: 9999 | Z23: 0 | AE23: 9999 | AF23: 0 | AH23: =IF(TYPE(VLOOKUP(H23,Centrum!$A$3:$E$130,5,0))<4,VLOOKUP(H23,Centrum!$A$3:$E$130,5,0),0) -> 3 | AI23: =IF(N($AH23)>0,VLOOKUP($AH23,Body!$A$4:$F$259,5,0),"") -> 120.7093125 | AJ23: =IF(N($AH23)>0,VLOOKUP($AH23,Body!$A$4:$F$259,6,0),"") -> 0 | AK23: =IF(N($AH23)>0,VLOOKUP($AH23,Body!$A$4:$F$259,2,0),"") -> 3.5 | AL23: 13 PK Osika Plzeň - Kraus Jaroslav | AM23: 32.469 | AN23: =IF(OR(TYPE(I23)>1,TYPE(MATCH(I23,I24:I$139,0))>1),0,MATCH(I23,I24:I$139,0))+IF(OR(TYPE(I23)>1,TYPE(MATCH(I23,O$11:O$139,0))>1),0,MATCH(I23,O$11:O$139,0))+IF(OR(TYPE(I23)>1,TYPE(MATCH(I23,U$11:U$139,0))>1),0,MATCH(I23,U$11:U$139,0))+IF(OR(TYPE(I23)>1,TYPE(MATCH(I23,AA$11:AA$139,0))>1),0,MATCH(I23,AA$11:AA$139,0)) -> 0 | AO23: =IF(OR(TYPE(O23)>1,TYPE(MATCH(O23,I$11:I$139,0))>1),0,MATCH(O23,I$11:I$139,0))+IF(OR(TYPE(O23)>1,TYPE(MATCH(O23,O24:O$139,0))>1),0,MATCH(O23,O24:O$139,0))+IF(OR(TYPE(O23)>1,TYPE(MATCH(O23,U$11:U$139,0))>1),0,MATCH(O23,U$11:U$139,0))+IF(OR(TYPE(O23)>1,TYPE(MATCH(O23,AA$11:AA$139,0))>1),0,MATCH(O23,AA$11:AA$139,0)) -> 0 | AP23: =IF(OR(TYPE(U23)>1,TYPE(MATCH(U23,I$11:I$139,0))>1),0,MATCH(U23,I$11:I$139,0))+IF(OR(TYPE(U23)>1,TYPE(MATCH(U23,O$11:O$139,0))>1),0,MATCH(U23,O$11:O$139,0))+IF(OR(TYPE(U23)>1,TYPE(MATCH(U23,U24:U$139,0))>1),0,MATCH(U23,U24:U$139,0))+IF(OR(TYPE(U23)>1,TYPE(MATCH(U23,AA$11:AA$139,0))>1),0,MATCH(U23,AA$11:AA$139,0)) -> 0 | AQ23: =IF(OR(TYPE(AA23)>1,TYPE(MATCH(AA23,I$11:I$139,0))>1),0,MATCH(AA23,I$11:I$139,0))+IF(OR(TYPE(AA23)>1,TYPE(MATCH(AA23,O$11:O$139,0))>1),0,MATCH(AA23,O$11:O$139,0))+IF(OR(TYPE(AA23)>1,TYPE(MATCH(AA23,U$11:U$139,0))>1),0,MATCH(U23,U$11:U$139,0))+IF(OR(TYPE(AA23)>1,TYPE(MATCH(AA23,AA24:AA$139,0))>1),0,MATCH(AA23,AA24:AA$139,0)) -> 0 | AR23: 0 | AT23: 0 | AU23: =IF(AND(N(I23)>0,TYPE(VLOOKUP(I23,Hraci!$A$5:$A$800,1,0))>3),1,0) + IF(AND(N(O23)>0,TYPE(VLOOKUP(O23,Hraci!$A$5:$A$800,1,0))>3),1,0) + IF(AND(N(U23)>0,TYPE(VLOOKUP(U23,Hraci!$A$5:$A$800,1,0))>3),1,0) -> 0
A24: 2 | B24: 1 | C24: 31.689 | D24: 10164 | E24: 61 | F24: 91031689989835999938914582 | G24: FALSE | H24: 14 | I24: 10034 | J24: Fukal | K24: Milan | L24: JAPKO | M24: 61 | N24: 19.501 | O24: 10035 | P24: Fukalová | Q24: Šárka | R24: JAPKO | S24: 104 | T24: 12.188 | Y24: 9999 | Z24: 0 | AE24: 9999 | AF24: 0 | AH24: =IF(TYPE(VLOOKUP(H24,Centrum!$A$3:$E$130,5,0))<4,VLOOKUP(H24,Centrum!$A$3:$E$130,5,0),0) -> 12 | AI24: =IF(N($AH24)>0,VLOOKUP($AH24,Body!$A$4:$F$259,5,0),"") -> 51.7325625 | AJ24: =IF(N($AH24)>0,VLOOKUP($AH24,Body!$A$4:$F$259,6,0),"") -> 0 | AK24: =IF(N($AH24)>0,VLOOKUP($AH24,Body!$A$4:$F$259,2,0),"") -> 1.5 | AL24: 14 JAPKO - Fukal Milan | AM24: 31.689 | AN24: =IF(OR(TYPE(I24)>1,TYPE(MATCH(I24,I25:I$139,0))>1),0,MATCH(I24,I25:I$139,0))+IF(OR(TYPE(I24)>1,TYPE(MATCH(I24,O$11:O$139,0))>1),0,MATCH(I24,O$11:O$139,0))+IF(OR(TYPE(I24)>1,TYPE(MATCH(I24,U$11:U$139,0))>1),0,MATCH(I24,U$11:U$139,0))+IF(OR(TYPE(I24)>1,TYPE(MATCH(I24,AA$11:AA$139,0))>1),0,MATCH(I24,AA$11:AA$139,0)) -> 0 | AO24: =IF(OR(TYPE(O24)>1,TYPE(MATCH(O24,I$11:I$139,0))>1),0,MATCH(O24,I$11:I$139,0))+IF(OR(TYPE(O24)>1,TYPE(MATCH(O24,O25:O$139,0))>1),0,MATCH(O24,O25:O$139,0))+IF(OR(TYPE(O24)>1,TYPE(MATCH(O24,U$11:U$139,0))>1),0,MATCH(O24,U$11:U$139,0))+IF(OR(TYPE(O24)>1,TYPE(MATCH(O24,AA$11:AA$139,0))>1),0,MATCH(O24,AA$11:AA$139,0)) -> 0 | AP24: =IF(OR(TYPE(U24)>1,TYPE(MATCH(U24,I$11:I$139,0))>1),0,MATCH(U24,I$11:I$139,0))+IF(OR(TYPE(U24)>1,TYPE(MATCH(U24,O$11:O$139,0))>1),0,MATCH(U24,O$11:O$139,0))+IF(OR(TYPE(U24)>1,TYPE(MATCH(U24,U25:U$139,0))>1),0,MATCH(U24,U25:U$139,0))+IF(OR(TYPE(U24)>1,TYPE(MATCH(U24,AA$11:AA$139,0))>1),0,MATCH(U24,AA$11:AA$139,0)) -> 0 | AQ24: =IF(OR(TYPE(AA24)>1,TYPE(MATCH(AA24,I$11:I$139,0))>1),0,MATCH(AA24,I$11:I$139,0))+IF(OR(TYPE(AA24)>1,TYPE(MATCH(AA24,O$11:O$139,0))>1),0,MATCH(AA24,O$11:O$139,0))+IF(OR(TYPE(AA24)>1,TYPE(MATCH(AA24,U$11:U$139,0))>1),0,MATCH(U24,U$11:U$139,0))+IF(OR(TYPE(AA24)>1,TYPE(MATCH(AA24,AA25:AA$139,0))>1),0,MATCH(AA24,AA25:AA$139,0)) -> 0 | AR24: 0 | AT24: 0 | AU24: =IF(AND(N(I24)>0,TYPE(VLOOKUP(I24,Hraci!$A$5:$A$800,1,0))>3),1,0) + IF(AND(N(O24)>0,TYPE(VLOOKUP(O24,Hraci!$A$5:$A$800,1,0))>3),1,0) + IF(AND(N(U24)>0,TYPE(VLOOKUP(U24,Hraci!$A$5:$A$800,1,0))>3),1,0) -> 0
A25: 2 | B25: 1 | C25: 31.313 | D25: 10430 | E25: 142 | F25: 91031313989569999857855513 | G25: FALSE | H25: 15 | I25: 29049 | J25: Marhoul | K25: Jan | L25: CdP Loděnice | M25: 142 | N25: 26.188 | O25: 29051 | P25: Fatka | Q25: Martin | R25: CdP Loděnice | S25: 289 | T25: 5.125 | Y25: 9999 | Z25: 0 | AE25: 9999 | AF25: 0 | AH25: =IF(TYPE(VLOOKUP(H25,Centrum!$A$3:$E$130,5,0))<4,VLOOKUP(H25,Centrum!$A$3:$E$130,5,0),0) -> 10 | AI25: =IF(N($AH25)>0,VLOOKUP($AH25,Body!$A$4:$F$259,5,0),"") -> 60.35465625 | AJ25: =IF(N($AH25)>0,VLOOKUP($AH25,Body!$A$4:$F$259,6,0),"") -> 0 | AK25: =IF(N($AH25)>0,VLOOKUP($AH25,Body!$A$4:$F$259,2,0),"") -> 1.75 | AL25: 15 CdP Loděnice - Marhoul Jan | AM25: 31.313 | AN25: =IF(OR(TYPE(I25)>1,TYPE(MATCH(I25,I26:I$139,0))>1),0,MATCH(I25,I26:I$139,0))+IF(OR(TYPE(I25)>1,TYPE(MATCH(I25,O$11:O$139,0))>1),0,MATCH(I25,O$11:O$139,0))+IF(OR(TYPE(I25)>1,TYPE(MATCH(I25,U$11:U$139,0))>1),0,MATCH(I25,U$11:U$139,0))+IF(OR(TYPE(I25)>1,TYPE(MATCH(I25,AA$11:AA$139,0))>1),0,MATCH(I25,AA$11:AA$139,0)) -> 0 | AO25: =IF(OR(TYPE(O25)>1,TYPE(MATCH(O25,I$11:I$139,0))>1),0,MATCH(O25,I$11:I$139,0))+IF(OR(TYPE(O25)>1,TYPE(MATCH(O25,O26:O$139,0))>1),0,MATCH(O25,O26:O$139,0))+IF(OR(TYPE(O25)>1,TYPE(MATCH(O25,U$11:U$139,0))>1),0,MATCH(O25,U$11:U$139,0))+IF(OR(TYPE(O25)>1,TYPE(MATCH(O25,AA$11:AA$139,0))>1),0,MATCH(O25,AA$11:AA$139,0)) -> 0 | AP25: =IF(OR(TYPE(U25)>1,TYPE(MATCH(U25,I$11:I$139,0))>1),0,MATCH(U25,I$11:I$139,0))+IF(OR(TYPE(U25)>1,TYPE(MATCH(U25,O$11:O$139,0))>1),0,MATCH(U25,O$11:O$139,0))+IF(OR(TYPE(U25)>1,TYPE(MATCH(U25,U26:U$139,0))>1),0,MATCH(U25,U26:U$139,0))+IF(OR(TYPE(U25)>1,TYPE(MATCH(U25,AA$11:AA$139,0))>1),0,MATCH(U25,AA$11:AA$139,0)) -> 0 | AQ25: =IF(OR(TYPE(AA25)>1,TYPE(MATCH(AA25,I$11:I$139,0))>1),0,MATCH(AA25,I$11:I$139,0))+IF(OR(TYPE(AA25)>1,TYPE(MATCH(AA25,O$11:O$139,0))>1),0,MATCH(AA25,O$11:O$139,0))+IF(OR(TYPE(AA25)>1,TYPE(MATCH(AA25,U$11:U$139,0))>1),0,MATCH(U25,U$11:U$139,0))+IF(OR(TYPE(AA25)>1,TYPE(MATCH(AA25,AA26:AA$139,0))>1),0,MATCH(AA25,AA26:AA$139,0)) -> 0 | AR25: 0 | AT25: 0 | AU25: =IF(AND(N(I25)>0,TYPE(VLOOKUP(I25,Hraci!$A$5:$A$800,1,0))>3),1,0) + IF(AND(N(O25)>0,TYPE(VLOOKUP(O25,Hraci!$A$5:$A$800,1,0))>3),1,0) + IF(AND(N(U25)>0,TYPE(VLOOKUP(U25,Hraci!$A$5:$A$800,1,0))>3),1,0) -> 0
A26: 2 | B26: 1 | C26: 30.25 | D26: 10283 | E26: 130 | F26: 91030250989716999869581688 | G26: FALSE | H26: 16 | I26: 21836 | J26: Piller | K26: Tomáš | L26: PK JUPITER Vědomice | M26: 154 | N26: 14.125 | O26: 28001 | P26: Pillerová | Q26: Monika | R26: PK JUPITER Vědomice | S26: 130 | T26: 16.125 | Y26: 9999 | Z26: 0 | AE26: 9999 | AF26: 0 | AH26: =IF(TYPE(VLOOKUP(H26,Centrum!$A$3:$E$130,5,0))<4,VLOOKUP(H26,Centrum!$A$3:$E$130,5,0),0) -> 18 | AI26: =IF(N($AH26)>0,VLOOKUP($AH26,Body!$A$4:$F$259,5,0),"") -> 30.17732812 | AJ26: =IF(N($AH26)>0,VLOOKUP($AH26,Body!$A$4:$F$259,6,0),"") -> 0 | AK26: =IF(N($AH26)>0,VLOOKUP($AH26,Body!$A$4:$F$259,2,0),"") -> 0.875 | AL26: 16 PK JUPITER Vědomice - Piller Tomáš | AM26: 30.25 | AN26: =IF(OR(TYPE(I26)>1,TYPE(MATCH(I26,I27:I$139,0))>1),0,MATCH(I26,I27:I$139,0))+IF(OR(TYPE(I26)>1,TYPE(MATCH(I26,O$11:O$139,0))>1),0,MATCH(I26,O$11:O$139,0))+IF(OR(TYPE(I26)>1,TYPE(MATCH(I26,U$11:U$139,0))>1),0,MATCH(I26,U$11:U$139,0))+IF(OR(TYPE(I26)>1,TYPE(MATCH(I26,AA$11:AA$139,0))>1),0,MATCH(I26,AA$11:AA$139,0)) -> 0 | AO26: =IF(OR(TYPE(O26)>1,TYPE(MATCH(O26,I$11:I$139,0))>1),0,MATCH(O26,I$11:I$139,0))+IF(OR(TYPE(O26)>1,TYPE(MATCH(O26,O27:O$139,0))>1),0,MATCH(O26,O27:O$139,0))+IF(OR(TYPE(O26)>1,TYPE(MATCH(O26,U$11:U$139,0))>1),0,MATCH(O26,U$11:U$139,0))+IF(OR(TYPE(O26)>1,TYPE(MATCH(O26,AA$11:AA$139,0))>1),0,MATCH(O26,AA$11:AA$139,0)) -> 0 | AP26: =IF(OR(TYPE(U26)>1,TYPE(MATCH(U26,I$11:I$139,0))>1),0,MATCH(U26,I$11:I$139,0))+IF(OR(TYPE(U26)>1,TYPE(MATCH(U26,O$11:O$139,0))>1),0,MATCH(U26,O$11:O$139,0))+IF(OR(TYPE(U26)>1,TYPE(MATCH(U26,U27:U$139,0))>1),0,MATCH(U26,U27:U$139,0))+IF(OR(TYPE(U26)>1,TYPE(MATCH(U26,AA$11:AA$139,0))>1),0,MATCH(U26,AA$11:AA$139,0)) -> 0 | AQ26: =IF(OR(TYPE(AA26)>1,TYPE(MATCH(AA26,I$11:I$139,0))>1),0,MATCH(AA26,I$11:I$139,0))+IF(OR(TYPE(AA26)>1,TYPE(MATCH(AA26,O$11:O$139,0))>1),0,MATCH(AA26,O$11:O$139,0))+IF(OR(TYPE(AA26)>1,TYPE(MATCH(AA26,U$11:U$139,0))>1),0,MATCH(U26,U$11:U$139,0))+IF(OR(TYPE(AA26)>1,TYPE(MATCH(AA26,AA27:AA$139,0))>1),0,MATCH(AA26,AA27:AA$139,0)) -> 0 | AR26: 0 | AT26: 0 | AU26: =IF(AND(N(I26)>0,TYPE(VLOOKUP(I26,Hraci!$A$5:$A$800,1,0))>3),1,0) + IF(AND(N(O26)>0,TYPE(VLOOKUP(O26,Hraci!$A$5:$A$800,1,0))>3),1,0) + IF(AND(N(U26)>0,TYPE(VLOOKUP(U26,Hraci!$A$5:$A$800,1,0))>3),1,0) -> 0
A27: 2 | B27: 1 | C27: 25.938 | D27: 10585 | E27: 78 | F27: 91025938989414999921149907 | G27: FALSE | H27: 17 | I27: 29002 | J27: Mrázková | K27: Sylva | L27: PC Kolová | M27: 78 | N27: 25.938 | O27: 12070 | P27: Mrázek | Q27: Petr | R27: CdP Loděnice | S27: 508 | T27: 0 | Y27: 9999 | Z27: 0 | AE27: 9999 | AF27: 0 | AH27: =IF(TYPE(VLOOKUP(H27,Centrum!$A$3:$E$130,5,0))<4,VLOOKUP(H27,Centrum!$A$3:$E$130,5,0),0) -> 29 | AI27: =IF(N($AH27)>0,VLOOKUP($AH27,Body!$A$4:$F$259,5,0),"") -> 6.466570313 | AJ27: =IF(N($AH27)>0,VLOOKUP($AH27,Body!$A$4:$F$259,6,0),"") -> 0 | AK27: =IF(N($AH27)>0,VLOOKUP($AH27,Body!$A$4:$F$259,2,0),"") -> 0.1875 | AL27: 17 PC Kolová - Mrázková Sylva | AM27: 25.938 | AN27: =IF(OR(TYPE(I27)>1,TYPE(MATCH(I27,I28:I$139,0))>1),0,MATCH(I27,I28:I$139,0))+IF(OR(TYPE(I27)>1,TYPE(MATCH(I27,O$11:O$139,0))>1),0,MATCH(I27,O$11:O$139,0))+IF(OR(TYPE(I27)>1,TYPE(MATCH(I27,U$11:U$139,0))>1),0,MATCH(I27,U$11:U$139,0))+IF(OR(TYPE(I27)>1,TYPE(MATCH(I27,AA$11:AA$139,0))>1),0,MATCH(I27,AA$11:AA$139,0)) -> 0 | AO27: =IF(OR(TYPE(O27)>1,TYPE(MATCH(O27,I$11:I$139,0))>1),0,MATCH(O27,I$11:I$139,0))+IF(OR(TYPE(O27)>1,TYPE(MATCH(O27,O28:O$139,0))>1),0,MATCH(O27,O28:O$139,0))+IF(OR(TYPE(O27)>1,TYPE(MATCH(O27,U$11:U$139,0))>1),0,MATCH(O27,U$11:U$139,0))+IF(OR(TYPE(O27)>1,TYPE(MATCH(O27,AA$11:AA$139,0))>1),0,MATCH(O27,AA$11:AA$139,0)) -> 0 | AP27: =IF(OR(TYPE(U27)>1,TYPE(MATCH(U27,I$11:I$139,0))>1),0,MATCH(U27,I$11:I$139,0))+IF(OR(TYPE(U27)>1,TYPE(MATCH(U27,O$11:O$139,0))>1),0,MATCH(U27,O$11:O$139,0))+IF(OR(TYPE(U27)>1,TYPE(MATCH(U27,U28:U$139,0))>1),0,MATCH(U27,U28:U$139,0))+IF(OR(TYPE(U27)>1,TYPE(MATCH(U27,AA$11:AA$139,0))>1),0,MATCH(U27,AA$11:AA$139,0)) -> 0 | AQ27: =IF(OR(TYPE(AA27)>1,TYPE(MATCH(AA27,I$11:I$139,0))>1),0,MATCH(AA27,I$11:I$139,0))+IF(OR(TYPE(AA27)>1,TYPE(MATCH(AA27,O$11:O$139,0))>1),0,MATCH(AA27,O$11:O$139,0))+IF(OR(TYPE(AA27)>1,TYPE(MATCH(AA27,U$11:U$139,0))>1),0,MATCH(U27,U$11:U$139,0))+IF(OR(TYPE(AA27)>1,TYPE(MATCH(AA27,AA28:AA$139,0))>1),0,MATCH(AA27,AA28:AA$139,0)) -> 0 | AR27: 0 | AT27: 0 | AU27: =IF(AND(N(I27)>0,TYPE(VLOOKUP(I27,Hraci!$A$5:$A$800,1,0))>3),1,0) + IF(AND(N(O27)>0,TYPE(VLOOKUP(O27,Hraci!$A$5:$A$800,1,0))>3),1,0) + IF(AND(N(U27)>0,TYPE(VLOOKUP(U27,Hraci!$A$5:$A$800,1,0))>3),1,0) -> 0
A28: 2 | B28: 1 | C28: 18.751 | D28: 10463 | E28: 103 | F28: 91018751989536999896701214 | G28: FALSE | H28: 18 | I28: 23131 | J28: Felčárek | K28: Jaroslav | L28: FRAPECO | M28: 103 | N28: 17.251 | O28: 23086 | P28: Řehoř | Q28: Miroslav | R28: FRAPECO | S28: 361 | T28: 1.5 | Y28: 9999 | Z28: 0 | AE28: 9999 | AF28: 0 | AH28: =IF(TYPE(VLOOKUP(H28,Centrum!$A$3:$E$130,5,0))<4,VLOOKUP(H28,Centrum!$A$3:$E$130,5,0),0) -> 21 | AI28: =IF(N($AH28)>0,VLOOKUP($AH28,Body!$A$4:$F$259,5,0),"") -> 23.71075781 | AJ28: =IF(N($AH28)>0,VLOOKUP($AH28,Body!$A$4:$F$259,6,0),"") -> 0 | AK28: =IF(N($AH28)>0,VLOOKUP($AH28,Body!$A$4:$F$259,2,0),"") -> 0.6875 | AL28: 18 FRAPECO - Felčárek Jaroslav | AM28: 18.751 | AN28: =IF(OR(TYPE(I28)>1,TYPE(MATCH(I28,I29:I$139,0))>1),0,MATCH(I28,I29:I$139,0))+IF(OR(TYPE(I28)>1,TYPE(MATCH(I28,O$11:O$139,0))>1),0,MATCH(I28,O$11:O$139,0))+IF(OR(TYPE(I28)>1,TYPE(MATCH(I28,U$11:U$139,0))>1),0,MATCH(I28,U$11:U$139,0))+IF(OR(TYPE(I28)>1,TYPE(MATCH(I28,AA$11:AA$139,0))>1),0,MATCH(I28,AA$11:AA$139,0)) -> 0 | AO28: =IF(OR(TYPE(O28)>1,TYPE(MATCH(O28,I$11:I$139,0))>1),0,MATCH(O28,I$11:I$139,0))+IF(OR(TYPE(O28)>1,TYPE(MATCH(O28,O29:O$139,0))>1),0,MATCH(O28,O29:O$139,0))+IF(OR(TYPE(O28)>1,TYPE(MATCH(O28,U$11:U$139,0))>1),0,MATCH(O28,U$11:U$139,0))+IF(OR(TYPE(O28)>1,TYPE(MATCH(O28,AA$11:AA$139,0))>1),0,MATCH(O28,AA$11:AA$139,0)) -> 0 | AP28: =IF(OR(TYPE(U28)>1,TYPE(MATCH(U28,I$11:I$139,0))>1),0,MATCH(U28,I$11:I$139,0))+IF(OR(TYPE(U28)>1,TYPE(MATCH(U28,O$11:O$139,0))>1),0,MATCH(U28,O$11:O$139,0))+IF(OR(TYPE(U28)>1,TYPE(MATCH(U28,U29:U$139,0))>1),0,MATCH(U28,U29:U$139,0))+IF(OR(TYPE(U28)>1,TYPE(MATCH(U28,AA$11:AA$139,0))>1),0,MATCH(U28,AA$11:AA$139,0)) -> 0 | AQ28: =IF(OR(TYPE(AA28)>1,TYPE(MATCH(AA28,I$11:I$139,0))>1),0,MATCH(AA28,I$11:I$139,0))+IF(OR(TYPE(AA28)>1,TYPE(MATCH(AA28,O$11:O$139,0))>1),0,MATCH(AA28,O$11:O$139,0))+IF(OR(TYPE(AA28)>1,TYPE(MATCH(AA28,U$11:U$139,0))>1),0,MATCH(U28,U$11:U$139,0))+IF(OR(TYPE(AA28)>1,TYPE(MATCH(AA28,AA29:AA$139,0))>1),0,MATCH(AA28,AA29:AA$139,0)) -> 0 | AR28: 0 | AT28: 0 | AU28: =IF(AND(N(I28)>0,TYPE(VLOOKUP(I28,Hraci!$A$5:$A$800,1,0))>3),1,0) + IF(AND(N(O28)>0,TYPE(VLOOKUP(O28,Hraci!$A$5:$A$800,1,0))>3),1,0) + IF(AND(N(U28)>0,TYPE(VLOOKUP(U28,Hraci!$A$5:$A$800,1,0))>3),1,0) -> 0
A29: 2 | B29: 1 | C29: 16.813 | D29: 10567 | E29: 204 | F29: 91016813989432999795558616 | G29: FALSE | H29: 19 | I29: 29058 | J29: Koňák | K29: Karel | L29: CdP Loděnice | M29: 204 | N29: 13.813 | O29: 29050 | P29: Fatka | Q29: Stanislav | R29: CdP Loděnice | S29: 364 | T29: 3 | Y29: 9999 | Z29: 0 | AE29: 9999 | AF29: 0 | AH29: =IF(TYPE(VLOOKUP(H29,Centrum!$A$3:$E$130,5,0))<4,VLOOKUP(H29,Centrum!$A$3:$E$130,5,0),0) -> 28 | AI29: =IF(N($AH29)>0,VLOOKUP($AH29,Body!$A$4:$F$259,5,0),"") -> 8.62209375 | AJ29: =IF(N($AH29)>0,VLOOKUP($AH29,Body!$A$4:$F$259,6,0),"") -> 0 | AK29: =IF(N($AH29)>0,VLOOKUP($AH29,Body!$A$4:$F$259,2,0),"") -> 0.25 | AL29: 19 CdP Loděnice - Koňák Karel | AM29: 16.813 | AN29: =IF(OR(TYPE(I29)>1,TYPE(MATCH(I29,I30:I$139,0))>1),0,MATCH(I29,I30:I$139,0))+IF(OR(TYPE(I29)>1,TYPE(MATCH(I29,O$11:O$139,0))>1),0,MATCH(I29,O$11:O$139,0))+IF(OR(TYPE(I29)>1,TYPE(MATCH(I29,U$11:U$139,0))>1),0,MATCH(I29,U$11:U$139,0))+IF(OR(TYPE(I29)>1,TYPE(MATCH(I29,AA$11:AA$139,0))>1),0,MATCH(I29,AA$11:AA$139,0)) -> 0 | AO29: =IF(OR(TYPE(O29)>1,TYPE(MATCH(O29,I$11:I$139,0))>1),0,MATCH(O29,I$11:I$139,0))+IF(OR(TYPE(O29)>1,TYPE(MATCH(O29,O30:O$139,0))>1),0,MATCH(O29,O30:O$139,0))+IF(OR(TYPE(O29)>1,TYPE(MATCH(O29,U$11:U$139,0))>1),0,MATCH(O29,U$11:U$139,0))+IF(OR(TYPE(O29)>1,TYPE(MATCH(O29,AA$11:AA$139,0))>1),0,MATCH(O29,AA$11:AA$139,0)) -> 0 | AP29: =IF(OR(TYPE(U29)>1,TYPE(MATCH(U29,I$11:I$139,0))>1),0,MATCH(U29,I$11:I$139,0))+IF(OR(TYPE(U29)>1,TYPE(MATCH(U29,O$11:O$139,0))>1),0,MATCH(U29,O$11:O$139,0))+IF(OR(TYPE(U29)>1,TYPE(MATCH(U29,U30:U$139,0))>1),0,MATCH(U29,U30:U$139,0))+IF(OR(TYPE(U29)>1,TYPE(MATCH(U29,AA$11:AA$139,0))>1),0,MATCH(U29,AA$11:AA$139,0)) -> 0 | AQ29: =IF(OR(TYPE(AA29)>1,TYPE(MATCH(AA29,I$11:I$139,0))>1),0,MATCH(AA29,I$11:I$139,0))+IF(OR(TYPE(AA29)>1,TYPE(MATCH(AA29,O$11:O$139,0))>1),0,MATCH(AA29,O$11:O$139,0))+IF(OR(TYPE(AA29)>1,TYPE(MATCH(AA29,U$11:U$139,0))>1),0,MATCH(U29,U$11:U$139,0))+IF(OR(TYPE(AA29)>1,TYPE(MATCH(AA29,AA30:AA$139,0))>1),0,MATCH(AA29,AA30:AA$139,0)) -> 0 | AR29: 0 | AT29: 0 | AU29: =IF(AND(N(I29)>0,TYPE(VLOOKUP(I29,Hraci!$A$5:$A$800,1,0))>3),1,0) + IF(AND(N(O29)>0,TYPE(VLOOKUP(O29,Hraci!$A$5:$A$800,1,0))>3),1,0) + IF(AND(N(U29)>0,TYPE(VLOOKUP(U29,Hraci!$A$5:$A$800,1,0))>3),1,0) -> 0
A30: 2 | B30: 1 | C30: 14.563 | D30: 10572 | E30: 168 | F30: 91014563989427999831356194 | G30: FALSE | H30: 20 | I30: 96217 | J30: Gorroňo López | K30: Rubi | L30: PC Sokol Lipník | M30: 168 | N30: 12.063 | O30: 11050 | P30: Gorroňo López | Q30: Blanka | R30: PC Sokol Lipník | S30: 405 | T30: 2.5 | Y30: 9999 | Z30: 0 | AE30: 9999 | AF30: 0 | AH30: =IF(TYPE(VLOOKUP(H30,Centrum!$A$3:$E$130,5,0))<4,VLOOKUP(H30,Centrum!$A$3:$E$130,5,0),0) -> 25 | AI30: =IF(N($AH30)>0,VLOOKUP($AH30,Body!$A$4:$F$259,5,0),"") -> 15.08866406 | AJ30: =IF(N($AH30)>0,VLOOKUP($AH30,Body!$A$4:$F$259,6,0),"") -> 0 | AK30: =IF(N($AH30)>0,VLOOKUP($AH30,Body!$A$4:$F$259,2,0),"") -> 0.4375 | AL30: 20 PC Sokol Lipník - Gorroňo López Rubi | AM30: 14.563 | AN30: =IF(OR(TYPE(I30)>1,TYPE(MATCH(I30,I31:I$139,0))>1),0,MATCH(I30,I31:I$139,0))+IF(OR(TYPE(I30)>1,TYPE(MATCH(I30,O$11:O$139,0))>1),0,MATCH(I30,O$11:O$139,0))+IF(OR(TYPE(I30)>1,TYPE(MATCH(I30,U$11:U$139,0))>1),0,MATCH(I30,U$11:U$139,0))+IF(OR(TYPE(I30)>1,TYPE(MATCH(I30,AA$11:AA$139,0))>1),0,MATCH(I30,AA$11:AA$139,0)) -> 0 | AO30: =IF(OR(TYPE(O30)>1,TYPE(MATCH(O30,I$11:I$139,0))>1),0,MATCH(O30,I$11:I$139,0))+IF(OR(TYPE(O30)>1,TYPE(MATCH(O30,O31:O$139,0))>1),0,MATCH(O30,O31:O$139,0))+IF(OR(TYPE(O30)>1,TYPE(MATCH(O30,U$11:U$139,0))>1),0,MATCH(O30,U$11:U$139,0))+IF(OR(TYPE(O30)>1,TYPE(MATCH(O30,AA$11:AA$139,0))>1),0,MATCH(O30,AA$11:AA$139,0)) -> 0 | AP30: =IF(OR(TYPE(U30)>1,TYPE(MATCH(U30,I$11:I$139,0))>1),0,MATCH(U30,I$11:I$139,0))+IF(OR(TYPE(U30)>1,TYPE(MATCH(U30,O$11:O$139,0))>1),0,MATCH(U30,O$11:O$139,0))+IF(OR(TYPE(U30)>1,TYPE(MATCH(U30,U31:U$139,0))>1),0,MATCH(U30,U31:U$139,0))+IF(OR(TYPE(U30)>1,TYPE(MATCH(U30,AA$11:AA$139,0))>1),0,MATCH(U30,AA$11:AA$139,0)) -> 0 | AQ30: =IF(OR(TYPE(AA30)>1,TYPE(MATCH(AA30,I$11:I$139,0))>1),0,MATCH(AA30,I$11:I$139,0))+IF(OR(TYPE(AA30)>1,TYPE(MATCH(AA30,O$11:O$139,0))>1),0,MATCH(AA30,O$11:O$139,0))+IF(OR(TYPE(AA30)>1,TYPE(MATCH(AA30,U$11:U$139,0))>1),0,MATCH(U30,U$11:U$139,0))+IF(OR(TYPE(AA30)>1,TYPE(MATCH(AA30,AA31:AA$139,0))>1),0,MATCH(AA30,AA31:AA$139,0)) -> 0 | AR30: 0 | AT30: 0 | AU30: =IF(AND(N(I30)>0,TYPE(VLOOKUP(I30,Hraci!$A$5:$A$800,1,0))>3),1,0) + IF(AND(N(O30)>0,TYPE(VLOOKUP(O30,Hraci!$A$5:$A$800,1,0))>3),1,0) + IF(AND(N(U30)>0,TYPE(VLOOKUP(U30,Hraci!$A$5:$A$800,1,0))>3),1,0) -> 0
A31: 2 | B31: 1 | C31: 9.875 | D31: 10573 | E31: 226 | F31: 91009875989426999773128241 | G31: FALSE | H31: 21 | I31: 25016 | J31: Přibyl | K31: Miroslav | L31: PK Osika Plzeň | M31: 226 | N31: 6.5 | O31: 29021 | P31: Přibylová | Q31: Eva | R31: PK Osika Plzeň | S31: 348 | T31: 3.375 | Y31: 9999 | Z31: 0 | AE31: 9999 | AF31: 0 | AH31: =IF(TYPE(VLOOKUP(H31,Centrum!$A$3:$E$130,5,0))<4,VLOOKUP(H31,Centrum!$A$3:$E$130,5,0),0) -> 17 | AI31: =IF(N($AH31)>0,VLOOKUP($AH31,Body!$A$4:$F$259,5,0),"") -> 32.33285156 | AJ31: =IF(N($AH31)>0,VLOOKUP($AH31,Body!$A$4:$F$259,6,0),"") -> 0 | AK31: =IF(N($AH31)>0,VLOOKUP($AH31,Body!$A$4:$F$259,2,0),"") -> 0.9375 | AL31: 21 PK Osika Plzeň - Přibyl Miroslav | AM31: 9.875 | AN31: =IF(OR(TYPE(I31)>1,TYPE(MATCH(I31,I32:I$139,0))>1),0,MATCH(I31,I32:I$139,0))+IF(OR(TYPE(I31)>1,TYPE(MATCH(I31,O$11:O$139,0))>1),0,MATCH(I31,O$11:O$139,0))+IF(OR(TYPE(I31)>1,TYPE(MATCH(I31,U$11:U$139,0))>1),0,MATCH(I31,U$11:U$139,0))+IF(OR(TYPE(I31)>1,TYPE(MATCH(I31,AA$11:AA$139,0))>1),0,MATCH(I31,AA$11:AA$139,0)) -> 0 | AO31: =IF(OR(TYPE(O31)>1,TYPE(MATCH(O31,I$11:I$139,0))>1),0,MATCH(O31,I$11:I$139,0))+IF(OR(TYPE(O31)>1,TYPE(MATCH(O31,O32:O$139,0))>1),0,MATCH(O31,O32:O$139,0))+IF(OR(TYPE(O31)>1,TYPE(MATCH(O31,U$11:U$139,0))>1),0,MATCH(O31,U$11:U$139,0))+IF(OR(TYPE(O31)>1,TYPE(MATCH(O31,AA$11:AA$139,0))>1),0,MATCH(O31,AA$11:AA$139,0)) -> 0 | AP31: =IF(OR(TYPE(U31)>1,TYPE(MATCH(U31,I$11:I$139,0))>1),0,MATCH(U31,I$11:I$139,0))+IF(OR(TYPE(U31)>1,TYPE(MATCH(U31,O$11:O$139,0))>1),0,MATCH(U31,O$11:O$139,0))+IF(OR(TYPE(U31)>1,TYPE(MATCH(U31,U32:U$139,0))>1),0,MATCH(U31,U32:U$139,0))+IF(OR(TYPE(U31)>1,TYPE(MATCH(U31,AA$11:AA$139,0))>1),0,MATCH(U31,AA$11:AA$139,0)) -> 0 | AQ31: =IF(OR(TYPE(AA31)>1,TYPE(MATCH(AA31,I$11:I$139,0))>1),0,MATCH(AA31,I$11:I$139,0))+IF(OR(TYPE(AA31)>1,TYPE(MATCH(AA31,O$11:O$139,0))>1),0,MATCH(AA31,O$11:O$139,0))+IF(OR(TYPE(AA31)>1,TYPE(MATCH(AA31,U$11:U$139,0))>1),0,MATCH(U31,U$11:U$139,0))+IF(OR(TYPE(AA31)>1,TYPE(MATCH(AA31,AA32:AA$139,0))>1),0,MATCH(AA31,AA32:AA$139,0)) -> 0 | AR31: 0 | AT31: 0 | AU31: =IF(AND(N(I31)>0,TYPE(VLOOKUP(I31,Hraci!$A$5:$A$800,1,0))>3),1,0) + IF(AND(N(O31)>0,TYPE(VLOOKUP(O31,Hraci!$A$5:$A$800,1,0))>3),1,0) + IF(AND(N(U31)>0,TYPE(VLOOKUP(U31,Hraci!$A$5:$A$800,1,0))>3),1,0) -> 0
A32: 2 | B32: 1 | C32: 5.125 | D32: 20353 | E32: 355 | F32: 91005125979646999644093756 | G32: FALSE | H32: 22 | J32: Froněk, Josef | M32: 9999 | N32: 0 | O32: 11048 | P32: Nagy | Q32: Radim | R32: CdP Loděnice | S32: 355 | T32: 5.125 | Y32: 9999 | Z32: 0 | AE32: 9999 | AF32: 0 | AH32: =IF(TYPE(VLOOKUP(H32,Centrum!$A$3:$E$130,5,0))<4,VLOOKUP(H32,Centrum!$A$3:$E$130,5,0),0) -> 31 | AI32: =IF(N($AH32)>0,VLOOKUP($AH32,Body!$A$4:$F$259,5,0),"") -> 1 | AJ32: =IF(N($AH32)>0,VLOOKUP($AH32,Body!$A$4:$F$259,6,0),"") -> 0 | AK32: =IF(N($AH32)>0,VLOOKUP($AH32,Body!$A$4:$F$259,2,0),"") -> 0 | AL32: 22 - Froněk, Josef | AM32: 5.125 | AN32: =IF(OR(TYPE(I32)>1,TYPE(MATCH(I32,I33:I$139,0))>1),0,MATCH(I32,I33:I$139,0))+IF(OR(TYPE(I32)>1,TYPE(MATCH(I32,O$11:O$139,0))>1),0,MATCH(I32,O$11:O$139,0))+IF(OR(TYPE(I32)>1,TYPE(MATCH(I32,U$11:U$139,0))>1),0,MATCH(I32,U$11:U$139,0))+IF(OR(TYPE(I32)>1,TYPE(MATCH(I32,AA$11:AA$139,0))>1),0,MATCH(I32,AA$11:AA$139,0)) -> 0 | AO32: =IF(OR(TYPE(O32)>1,TYPE(MATCH(O32,I$11:I$139,0))>1),0,MATCH(O32,I$11:I$139,0))+IF(OR(TYPE(O32)>1,TYPE(MATCH(O32,O33:O$139,0))>1),0,MATCH(O32,O33:O$139,0))+IF(OR(TYPE(O32)>1,TYPE(MATCH(O32,U$11:U$139,0))>1),0,MATCH(O32,U$11:U$139,0))+IF(OR(TYPE(O32)>1,TYPE(MATCH(O32,AA$11:AA$139,0))>1),0,MATCH(O32,AA$11:AA$139,0)) -> 0 | AP32: =IF(OR(TYPE(U32)>1,TYPE(MATCH(U32,I$11:I$139,0))>1),0,MATCH(U32,I$11:I$139,0))+IF(OR(TYPE(U32)>1,TYPE(MATCH(U32,O$11:O$139,0))>1),0,MATCH(U32,O$11:O$139,0))+IF(OR(TYPE(U32)>1,TYPE(MATCH(U32,U33:U$139,0))>1),0,MATCH(U32,U33:U$139,0))+IF(OR(TYPE(U32)>1,TYPE(MATCH(U32,AA$11:AA$139,0))>1),0,MATCH(U32,AA$11:AA$139,0)) -> 0 | AQ32: =IF(OR(TYPE(AA32)>1,TYPE(MATCH(AA32,I$11:I$139,0))>1),0,MATCH(AA32,I$11:I$139,0))+IF(OR(TYPE(AA32)>1,TYPE(MATCH(AA32,O$11:O$139,0))>1),0,MATCH(AA32,O$11:O$139,0))+IF(OR(TYPE(AA32)>1,TYPE(MATCH(AA32,U$11:U$139,0))>1),0,MATCH(U32,U$11:U$139,0))+IF(OR(TYPE(AA32)>1,TYPE(MATCH(AA32,AA33:AA$139,0))>1),0,MATCH(AA32,AA33:AA$139,0)) -> 0 | AR32: 0 | AT32: 0 | AU32: =IF(AND(N(I32)>0,TYPE(VLOOKUP(I32,Hraci!$A$5:$A$800,1,0))>3),1,0) + IF(AND(N(O32)>0,TYPE(VLOOKUP(O32,Hraci!$A$5:$A$800,1,0))>3),1,0) + IF(AND(N(U32)>0,TYPE(VLOOKUP(U32,Hraci!$A$5:$A$800,1,0))>3),1,0) -> 0
A33: 2 | B33: 1 | C33: 4.813 | D33: 10607 | E33: 221 | F33: 91004813989392999778137503 | G33: FALSE | H33: 23 | I33: 11028 | J33: Javůrek | K33: Lukáš | L33: JAPKO | M33: 387 | N33: 1.125 | O33: 10036 | P33: Fukalová | Q33: Klára | R33: JAPKO | S33: 221 | T33: 3.688 | Y33: 9999 | Z33: 0 | AE33: 9999 | AF33: 0 | AH33: =IF(TYPE(VLOOKUP(H33,Centrum!$A$3:$E$130,5,0))<4,VLOOKUP(H33,Centrum!$A$3:$E$130,5,0),0) -> 23 | AI33: =IF(N($AH33)>0,VLOOKUP($AH33,Body!$A$4:$F$259,5,0),"") -> 19.39971094 | AJ33: =IF(N($AH33)>0,VLOOKUP($AH33,Body!$A$4:$F$259,6,0),"") -> 0 | AK33: =IF(N($AH33)>0,VLOOKUP($AH33,Body!$A$4:$F$259,2,0),"") -> 0.5625 | AL33: 23 JAPKO - Javůrek Lukáš | AM33: 4.813 | AN33: =IF(OR(TYPE(I33)>1,TYPE(MATCH(I33,I34:I$139,0))>1),0,MATCH(I33,I34:I$139,0))+IF(OR(TYPE(I33)>1,TYPE(MATCH(I33,O$11:O$139,0))>1),0,MATCH(I33,O$11:O$139,0))+IF(OR(TYPE(I33)>1,TYPE(MATCH(I33,U$11:U$139,0))>1),0,MATCH(I33,U$11:U$139,0))+IF(OR(TYPE(I33)>1,TYPE(MATCH(I33,AA$11:AA$139,0))>1),0,MATCH(I33,AA$11:AA$139,0)) -> 0 | AO33: =IF(OR(TYPE(O33)>1,TYPE(MATCH(O33,I$11:I$139,0))>1),0,MATCH(O33,I$11:I$139,0))+IF(OR(TYPE(O33)>1,TYPE(MATCH(O33,O34:O$139,0))>1),0,MATCH(O33,O34:O$139,0))+IF(OR(TYPE(O33)>1,TYPE(MATCH(O33,U$11:U$139,0))>1),0,MATCH(O33,U$11:U$139,0))+IF(OR(TYPE(O33)>1,TYPE(MATCH(O33,AA$11:AA$139,0))>1),0,MATCH(O33,AA$11:AA$139,0)) -> 0 | AP33: =IF(OR(TYPE(U33)>1,TYPE(MATCH(U33,I$11:I$139,0))>1),0,MATCH(U33,I$11:I$139,0))+IF(OR(TYPE(U33)>1,TYPE(MATCH(U33,O$11:O$139,0))>1),0,MATCH(U33,O$11:O$139,0))+IF(OR(TYPE(U33)>1,TYPE(MATCH(U33,U34:U$139,0))>1),0,MATCH(U33,U34:U$139,0))+IF(OR(TYPE(U33)>1,TYPE(MATCH(U33,AA$11:AA$139,0))>1),0,MATCH(U33,AA$11:AA$139,0)) -> 0 | AQ33: =IF(OR(TYPE(AA33)>1,TYPE(MATCH(AA33,I$11:I$139,0))>1),0,MATCH(AA33,I$11:I$139,0))+IF(OR(TYPE(AA33)>1,TYPE(MATCH(AA33,O$11:O$139,0))>1),0,MATCH(AA33,O$11:O$139,0))+IF(OR(TYPE(AA33)>1,TYPE(MATCH(AA33,U$11:U$139,0))>1),0,MATCH(U33,U$11:U$139,0))+IF(OR(TYPE(AA33)>1,TYPE(MATCH(AA33,AA34:AA$139,0))>1),0,MATCH(AA33,AA34:AA$139,0)) -> 0 | AR33: 0 | AT33: 0 | AU33: =IF(AND(N(I33)>0,TYPE(VLOOKUP(I33,Hraci!$A$5:$A$800,1,0))>3),1,0) + IF(AND(N(O33)>0,TYPE(VLOOKUP(O33,Hraci!$A$5:$A$800,1,0))>3),1,0) + IF(AND(N(U33)>0,TYPE(VLOOKUP(U33,Hraci!$A$5:$A$800,1,0))>3),1,0) -> 0
A34: 2 | B34: 1 | C34: 4.625 | D34: 10698 | E34: 305 | F34: 91004625989301999694599451 | G34: FALSE | H34: 24 | I34: 29052 | J34: Paták | K34: Jan | L34: CdP Loděnice | M34: 305 | N34: 4.625 | O34: 12060 | P34: Pospíšilová | Q34: Šárka | R34: CdP Loděnice | S34: 394 | T34: 0 | Y34: 9999 | Z34: 0 | AE34: 9999 | AF34: 0 | AH34: =IF(TYPE(VLOOKUP(H34,Centrum!$A$3:$E$130,5,0))<4,VLOOKUP(H34,Centrum!$A$3:$E$130,5,0),0) -> 30 | AI34: =IF(N($AH34)>0,VLOOKUP($AH34,Body!$A$4:$F$259,5,0),"") -> 4.311046875 | AJ34: =IF(N($AH34)>0,VLOOKUP($AH34,Body!$A$4:$F$259,6,0),"") -> 0 | AK34: =IF(N($AH34)>0,VLOOKUP($AH34,Body!$A$4:$F$259,2,0),"") -> 0.125 | AL34: 24 CdP Loděnice - Paták Jan | AM34: 4.625 | AN34: =IF(OR(TYPE(I34)>1,TYPE(MATCH(I34,I35:I$139,0))>1),0,MATCH(I34,I35:I$139,0))+IF(OR(TYPE(I34)>1,TYPE(MATCH(I34,O$11:O$139,0))>1),0,MATCH(I34,O$11:O$139,0))+IF(OR(TYPE(I34)>1,TYPE(MATCH(I34,U$11:U$139,0))>1),0,MATCH(I34,U$11:U$139,0))+IF(OR(TYPE(I34)>1,TYPE(MATCH(I34,AA$11:AA$139,0))>1),0,MATCH(I34,AA$11:AA$139,0)) -> 0 | AO34: =IF(OR(TYPE(O34)>1,TYPE(MATCH(O34,I$11:I$139,0))>1),0,MATCH(O34,I$11:I$139,0))+IF(OR(TYPE(O34)>1,TYPE(MATCH(O34,O35:O$139,0))>1),0,MATCH(O34,O35:O$139,0))+IF(OR(TYPE(O34)>1,TYPE(MATCH(O34,U$11:U$139,0))>1),0,MATCH(O34,U$11:U$139,0))+IF(OR(TYPE(O34)>1,TYPE(MATCH(O34,AA$11:AA$139,0))>1),0,MATCH(O34,AA$11:AA$139,0)) -> 0 | AP34: =IF(OR(TYPE(U34)>1,TYPE(MATCH(U34,I$11:I$139,0))>1),0,MATCH(U34,I$11:I$139,0))+IF(OR(TYPE(U34)>1,TYPE(MATCH(U34,O$11:O$139,0))>1),0,MATCH(U34,O$11:O$139,0))+IF(OR(TYPE(U34)>1,TYPE(MATCH(U34,U35:U$139,0))>1),0,MATCH(U34,U35:U$139,0))+IF(OR(TYPE(U34)>1,TYPE(MATCH(U34,AA$11:AA$139,0))>1),0,MATCH(U34,AA$11:AA$139,0)) -> 0 | AQ34: =IF(OR(TYPE(AA34)>1,TYPE(MATCH(AA34,I$11:I$139,0))>1),0,MATCH(AA34,I$11:I$139,0))+IF(OR(TYPE(AA34)>1,TYPE(MATCH(AA34,O$11:O$139,0))>1),0,MATCH(AA34,O$11:O$139,0))+IF(OR(TYPE(AA34)>1,TYPE(MATCH(AA34,U$11:U$139,0))>1),0,MATCH(U34,U$11:U$139,0))+IF(OR(TYPE(AA34)>1,TYPE(MATCH(AA34,AA35:AA$139,0))>1),0,MATCH(AA34,AA35:AA$139,0)) -> 0 | AR34: 0 | AT34: 0 | AU34: =IF(AND(N(I34)>0,TYPE(VLOOKUP(I34,Hraci!$A$5:$A$800,1,0))>3),1,0) + IF(AND(N(O34)>0,TYPE(VLOOKUP(O34,Hraci!$A$5:$A$800,1,0))>3),1,0) + IF(AND(N(U34)>0,TYPE(VLOOKUP(U34,Hraci!$A$5:$A$800,1,0))>3),1,0) -> 0
A35: 2 | B35: 1 | C35: 4.25 | D35: 10598 | E35: 287 | F35: 91004250989401999712411029 | G35: FALSE | H35: 25 | I35: 29059 | J35: Punčochář | K35: Karel | L35: CdP Loděnice | M35: 312 | N35: 1.5 | O35: 11033 | P35: Ottomanský | Q35: David | R35: CdP Loděnice | S35: 287 | T35: 2.75 | Y35: 9999 | Z35: 0 | AE35: 9999 | AF35: 0 | AH35: =IF(TYPE(VLOOKUP(H35,Centrum!$A$3:$E$130,5,0))<4,VLOOKUP(H35,Centrum!$A$3:$E$130,5,0),0) -> 8 | AI35: =IF(N($AH35)>0,VLOOKUP($AH35,Body!$A$4:$F$259,5,0),"") -> 68.97675 | AJ35: =IF(N($AH35)>0,VLOOKUP($AH35,Body!$A$4:$F$259,6,0),"") -> 0 | AK35: =IF(N($AH35)>0,VLOOKUP($AH35,Body!$A$4:$F$259,2,0),"") -> 2 | AL35: 25 CdP Loděnice - Punčochář Karel | AM35: 4.25 | AN35: =IF(OR(TYPE(I35)>1,TYPE(MATCH(I35,I36:I$139,0))>1),0,MATCH(I35,I36:I$139,0))+IF(OR(TYPE(I35)>1,TYPE(MATCH(I35,O$11:O$139,0))>1),0,MATCH(I35,O$11:O$139,0))+IF(OR(TYPE(I35)>1,TYPE(MATCH(I35,U$11:U$139,0))>1),0,MATCH(I35,U$11:U$139,0))+IF(OR(TYPE(I35)>1,TYPE(MATCH(I35,AA$11:AA$139,0))>1),0,MATCH(I35,AA$11:AA$139,0)) -> 0 | AO35: =IF(OR(TYPE(O35)>1,TYPE(MATCH(O35,I$11:I$139,0))>1),0,MATCH(O35,I$11:I$139,0))+IF(OR(TYPE(O35)>1,TYPE(MATCH(O35,O36:O$139,0))>1),0,MATCH(O35,O36:O$139,0))+IF(OR(TYPE(O35)>1,TYPE(MATCH(O35,U$11:U$139,0))>1),0,MATCH(O35,U$11:U$139,0))+IF(OR(TYPE(O35)>1,TYPE(MATCH(O35,AA$11:AA$139,0))>1),0,MATCH(O35,AA$11:AA$139,0)) -> 0 | AP35: =IF(OR(TYPE(U35)>1,TYPE(MATCH(U35,I$11:I$139,0))>1),0,MATCH(U35,I$11:I$139,0))+IF(OR(TYPE(U35)>1,TYPE(MATCH(U35,O$11:O$139,0))>1),0,MATCH(U35,O$11:O$139,0))+IF(OR(TYPE(U35)>1,TYPE(MATCH(U35,U36:U$139,0))>1),0,MATCH(U35,U36:U$139,0))+IF(OR(TYPE(U35)>1,TYPE(MATCH(U35,AA$11:AA$139,0))>1),0,MATCH(U35,AA$11:AA$139,0)) -> 0 | AQ35: =IF(OR(TYPE(AA35)>1,TYPE(MATCH(AA35,I$11:I$139,0))>1),0,MATCH(AA35,I$11:I$139,0))+IF(OR(TYPE(AA35)>1,TYPE(MATCH(AA35,O$11:O$139,0))>1),0,MATCH(AA35,O$11:O$139,0))+IF(OR(TYPE(AA35)>1,TYPE(MATCH(AA35,U$11:U$139,0))>1),0,MATCH(U35,U$11:U$139,0))+IF(OR(TYPE(AA35)>1,TYPE(MATCH(AA35,AA36:AA$139,0))>1),0,MATCH(AA35,AA36:AA$139,0)) -> 0 | AR35: 0 | AT35: 0 | AU35: =IF(AND(N(I35)>0,TYPE(VLOOKUP(I35,Hraci!$A$5:$A$800,1,0))>3),1,0) + IF(AND(N(O35)>0,TYPE(VLOOKUP(O35,Hraci!$A$5:$A$800,1,0))>3),1,0) + IF(AND(N(U35)>0,TYPE(VLOOKUP(U35,Hraci!$A$5:$A$800,1,0))>3),1,0) -> 0
A36: 2 | B36: 1 | C36: 2.375 | D36: 10866 | E36: 376 | F36: 91002375989133999623520622 | G36: FALSE | H36: 26 | I36: 29060 | J36: Fatka | K36: Stanislav | L36: CdP Loděnice | M36: 376 | N36: 2.375 | O36: 10156 | P36: Beneda | Q36: Filip | R36: CdP Loděnice | S36: 491 | T36: 0 | Y36: 9999 | Z36: 0 | AE36: 9999 | AF36: 0 | AH36: =IF(TYPE(VLOOKUP(H36,Centrum!$A$3:$E$130,5,0))<4,VLOOKUP(H36,Centrum!$A$3:$E$130,5,0),0) -> 19 | AI36: =IF(N($AH36)>0,VLOOKUP($AH36,Body!$A$4:$F$259,5,0),"") -> 28.02180469 | AJ36: =IF(N($AH36)>0,VLOOKUP($AH36,Body!$A$4:$F$259,6,0),"") -> 0 | AK36: =IF(N($AH36)>0,VLOOKUP($AH36,Body!$A$4:$F$259,2,0),"") -> 0.8125 | AL36: 26 CdP Loděnice - Fatka Stanislav | AM36: 2.375 | AN36: =IF(OR(TYPE(I36)>1,TYPE(MATCH(I36,I37:I$139,0))>1),0,MATCH(I36,I37:I$139,0))+IF(OR(TYPE(I36)>1,TYPE(MATCH(I36,O$11:O$139,0))>1),0,MATCH(I36,O$11:O$139,0))+IF(OR(TYPE(I36)>1,TYPE(MATCH(I36,U$11:U$139,0))>1),0,MATCH(I36,U$11:U$139,0))+IF(OR(TYPE(I36)>1,TYPE(MATCH(I36,AA$11:AA$139,0))>1),0,MATCH(I36,AA$11:AA$139,0)) -> 0 | AO36: =IF(OR(TYPE(O36)>1,TYPE(MATCH(O36,I$11:I$139,0))>1),0,MATCH(O36,I$11:I$139,0))+IF(OR(TYPE(O36)>1,TYPE(MATCH(O36,O37:O$139,0))>1),0,MATCH(O36,O37:O$139,0))+IF(OR(TYPE(O36)>1,TYPE(MATCH(O36,U$11:U$139,0))>1),0,MATCH(O36,U$11:U$139,0))+IF(OR(TYPE(O36)>1,TYPE(MATCH(O36,AA$11:AA$139,0))>1),0,MATCH(O36,AA$11:AA$139,0)) -> 0 | AP36: =IF(OR(TYPE(U36)>1,TYPE(MATCH(U36,I$11:I$139,0))>1),0,MATCH(U36,I$11:I$139,0))+IF(OR(TYPE(U36)>1,TYPE(MATCH(U36,O$11:O$139,0))>1),0,MATCH(U36,O$11:O$139,0))+IF(OR(TYPE(U36)>1,TYPE(MATCH(U36,U37:U$139,0))>1),0,MATCH(U36,U37:U$139,0))+IF(OR(TYPE(U36)>1,TYPE(MATCH(U36,AA$11:AA$139,0))>1),0,MATCH(U36,AA$11:AA$139,0)) -> 0 | AQ36: =IF(OR(TYPE(AA36)>1,TYPE(MATCH(AA36,I$11:I$139,0))>1),0,MATCH(AA36,I$11:I$139,0))+IF(OR(TYPE(AA36)>1,TYPE(MATCH(AA36,O$11:O$139,0))>1),0,MATCH(AA36,O$11:O$139,0))+IF(OR(TYPE(AA36)>1,TYPE(MATCH(AA36,U$11:U$139,0))>1),0,MATCH(U36,U$11:U$139,0))+IF(OR(TYPE(AA36)>1,TYPE(MATCH(AA36,AA37:AA$139,0))>1),0,MATCH(AA36,AA37:AA$139,0)) -> 0 | AR36: 0 | AT36: 0 | AU36: =IF(AND(N(I36)>0,TYPE(VLOOKUP(I36,Hraci!$A$5:$A$800,1,0))>3),1,0) + IF(AND(N(O36)>0,TYPE(VLOOKUP(O36,Hraci!$A$5:$A$800,1,0))>3),1,0) + IF(AND(N(U36)>0,TYPE(VLOOKUP(U36,Hraci!$A$5:$A$800,1,0))>3),1,0) -> 0
A37: 2 | B37: 1 | C37: 1.876 | D37: 10700 | E37: 350 | F37: 91001876989299999649035438 | G37: FALSE | H37: 27 | I37: 13001 | J37: Beranová | K37: Pavla | L37: PK JUPITER Vědomice | M37: 350 | N37: 0.938 | O37: 13004 | P37: Mazúr | Q37: Pavel | R37: PK JUPITER Vědomice | S37: 351 | T37: 0.938 | Y37: 9999 | Z37: 0 | AE37: 9999 | AF37: 0 | AH37: =IF(TYPE(VLOOKUP(H37,Centrum!$A$3:$E$130,5,0))<4,VLOOKUP(H37,Centrum!$A$3:$E$130,5,0),0) -> 9 | AI37: =IF(N($AH37)>0,VLOOKUP($AH37,Body!$A$4:$F$259,5,0),"") -> 64.66570312 | AJ37: =IF(N($AH37)>0,VLOOKUP($AH37,Body!$A$4:$F$259,6,0),"") -> 0 | AK37: =IF(N($AH37)>0,VLOOKUP($AH37,Body!$A$4:$F$259,2,0),"") -> 1.875 | AL37: 27 PK JUPITER Vědomice - Beranová Pavla | AM37: 1.876 | AN37: =IF(OR(TYPE(I37)>1,TYPE(MATCH(I37,I38:I$139,0))>1),0,MATCH(I37,I38:I$139,0))+IF(OR(TYPE(I37)>1,TYPE(MATCH(I37,O$11:O$139,0))>1),0,MATCH(I37,O$11:O$139,0))+IF(OR(TYPE(I37)>1,TYPE(MATCH(I37,U$11:U$139,0))>1),0,MATCH(I37,U$11:U$139,0))+IF(OR(TYPE(I37)>1,TYPE(MATCH(I37,AA$11:AA$139,0))>1),0,MATCH(I37,AA$11:AA$139,0)) -> 0 | AO37: =IF(OR(TYPE(O37)>1,TYPE(MATCH(O37,I$11:I$139,0))>1),0,MATCH(O37,I$11:I$139,0))+IF(OR(TYPE(O37)>1,TYPE(MATCH(O37,O38:O$139,0))>1),0,MATCH(O37,O38:O$139,0))+IF(OR(TYPE(O37)>1,TYPE(MATCH(O37,U$11:U$139,0))>1),0,MATCH(O37,U$11:U$139,0))+IF(OR(TYPE(O37)>1,TYPE(MATCH(O37,AA$11:AA$139,0))>1),0,MATCH(O37,AA$11:AA$139,0)) -> 0 | AP37: =IF(OR(TYPE(U37)>1,TYPE(MATCH(U37,I$11:I$139,0))>1),0,MATCH(U37,I$11:I$139,0))+IF(OR(TYPE(U37)>1,TYPE(MATCH(U37,O$11:O$139,0))>1),0,MATCH(U37,O$11:O$139,0))+IF(OR(TYPE(U37)>1,TYPE(MATCH(U37,U38:U$139,0))>1),0,MATCH(U37,U38:U$139,0))+IF(OR(TYPE(U37)>1,TYPE(MATCH(U37,AA$11:AA$139,0))>1),0,MATCH(U37,AA$11:AA$139,0)) -> 0 | AQ37: =IF(OR(TYPE(AA37)>1,TYPE(MATCH(AA37,I$11:I$139,0))>1),0,MATCH(AA37,I$11:I$139,0))+IF(OR(TYPE(AA37)>1,TYPE(MATCH(AA37,O$11:O$139,0))>1),0,MATCH(AA37,O$11:O$139,0))+IF(OR(TYPE(AA37)>1,TYPE(MATCH(AA37,U$11:U$139,0))>1),0,MATCH(U37,U$11:U$139,0))+IF(OR(TYPE(AA37)>1,TYPE(MATCH(AA37,AA38:AA$139,0))>1),0,MATCH(AA37,AA38:AA$139,0)) -> 0 | AR37: 0 | AT37: 0 | AU37: =IF(AND(N(I37)>0,TYPE(VLOOKUP(I37,Hraci!$A$5:$A$800,1,0))>3),1,0) + IF(AND(N(O37)>0,TYPE(VLOOKUP(O37,Hraci!$A$5:$A$800,1,0))>3),1,0) + IF(AND(N(U37)>0,TYPE(VLOOKUP(U37,Hraci!$A$5:$A$800,1,0))>3),1,0) -> 0
A38: 2 | B38: 1 | C38: 0 | D38: 10971 | E38: 484 | F38: 91000000989028999515137567 | G38: FALSE | H38: 28 | I38: 12073 | J38: Špiclová | K38: Adéla | L38: PK Osika Plzeň | M38: 488 | N38: 0 | O38: 12071 | P38: Musilová | Q38: Radka | R38: PK Osika Plzeň | S38: 484 | T38: 0 | Y38: 9999 | Z38: 0 | AE38: 9999 | AF38: 0 | AH38: =IF(TYPE(VLOOKUP(H38,Centrum!$A$3:$E$130,5,0))<4,VLOOKUP(H38,Centrum!$A$3:$E$130,5,0),0) -> 27 | AI38: =IF(N($AH38)>0,VLOOKUP($AH38,Body!$A$4:$F$259,5,0),"") -> 10.77761719 | AJ38: =IF(N($AH38)>0,VLOOKUP($AH38,Body!$A$4:$F$259,6,0),"") -> 0 | AK38: =IF(N($AH38)>0,VLOOKUP($AH38,Body!$A$4:$F$259,2,0),"") -> 0.3125 | AL38: 28 PK Osika Plzeň - Špiclová Adéla | AM38: 0 | AN38: =IF(OR(TYPE(I38)>1,TYPE(MATCH(I38,I39:I$139,0))>1),0,MATCH(I38,I39:I$139,0))+IF(OR(TYPE(I38)>1,TYPE(MATCH(I38,O$11:O$139,0))>1),0,MATCH(I38,O$11:O$139,0))+IF(OR(TYPE(I38)>1,TYPE(MATCH(I38,U$11:U$139,0))>1),0,MATCH(I38,U$11:U$139,0))+IF(OR(TYPE(I38)>1,TYPE(MATCH(I38,AA$11:AA$139,0))>1),0,MATCH(I38,AA$11:AA$139,0)) -> 0 | AO38: =IF(OR(TYPE(O38)>1,TYPE(MATCH(O38,I$11:I$139,0))>1),0,MATCH(O38,I$11:I$139,0))+IF(OR(TYPE(O38)>1,TYPE(MATCH(O38,O39:O$139,0))>1),0,MATCH(O38,O39:O$139,0))+IF(OR(TYPE(O38)>1,TYPE(MATCH(O38,U$11:U$139,0))>1),0,MATCH(O38,U$11:U$139,0))+IF(OR(TYPE(O38)>1,TYPE(MATCH(O38,AA$11:AA$139,0))>1),0,MATCH(O38,AA$11:AA$139,0)) -> 0 | AP38: =IF(OR(TYPE(U38)>1,TYPE(MATCH(U38,I$11:I$139,0))>1),0,MATCH(U38,I$11:I$139,0))+IF(OR(TYPE(U38)>1,TYPE(MATCH(U38,O$11:O$139,0))>1),0,MATCH(U38,O$11:O$139,0))+IF(OR(TYPE(U38)>1,TYPE(MATCH(U38,U39:U$139,0))>1),0,MATCH(U38,U39:U$139,0))+IF(OR(TYPE(U38)>1,TYPE(MATCH(U38,AA$11:AA$139,0))>1),0,MATCH(U38,AA$11:AA$139,0)) -> 0 | AQ38: =IF(OR(TYPE(AA38)>1,TYPE(MATCH(AA38,I$11:I$139,0))>1),0,MATCH(AA38,I$11:I$139,0))+IF(OR(TYPE(AA38)>1,TYPE(MATCH(AA38,O$11:O$139,0))>1),0,MATCH(AA38,O$11:O$139,0))+IF(OR(TYPE(AA38)>1,TYPE(MATCH(AA38,U$11:U$139,0))>1),0,MATCH(U38,U$11:U$139,0))+IF(OR(TYPE(AA38)>1,TYPE(MATCH(AA38,AA39:AA$139,0))>1),0,MATCH(AA38,AA39:AA$139,0)) -> 0 | AR38: 0 | AT38: 0 | AU38: =IF(AND(N(I38)>0,TYPE(VLOOKUP(I38,Hraci!$A$5:$A$800,1,0))>3),1,0) + IF(AND(N(O38)>0,TYPE(VLOOKUP(O38,Hraci!$A$5:$A$800,1,0))>3),1,0) + IF(AND(N(U38)>0,TYPE(VLOOKUP(U38,Hraci!$A$5:$A$800,1,0))>3),1,0) -> 0
A39: 2 | B39: 1 | C39: 0 | D39: 11360 | E39: 680 | F39: 91000000988639999319816820 | G39: FALSE | H39: 29 | I39: 12082 | J39: Pinkas | K39: Karel | L39: SKP Kulová osma | M39: 680 | N39: 0 | O39: 12032 | P39: Pinkasová | Q39: Marie | R39: SKP Kulová osma | S39: 681 | T39: 0 | Y39: 9999 | Z39: 0 | AE39: 9999 | AF39: 0 | AH39: =IF(TYPE(VLOOKUP(H39,Centrum!$A$3:$E$130,5,0))<4,VLOOKUP(H39,Centrum!$A$3:$E$130,5,0),0) -> 16 | AI39: =IF(N($AH39)>0,VLOOKUP($AH39,Body!$A$4:$F$259,5,0),"") -> 34.488375 | AJ39: =IF(N($AH39)>0,VLOOKUP($AH39,Body!$A$4:$F$259,6,0),"") -> 0 | AK39: =IF(N($AH39)>0,VLOOKUP($AH39,Body!$A$4:$F$259,2,0),"") -> 1 | AL39: 29 SKP Kulová osma - Pinkas Karel | AM39: 0 | AN39: =IF(OR(TYPE(I39)>1,TYPE(MATCH(I39,I40:I$139,0))>1),0,MATCH(I39,I40:I$139,0))+IF(OR(TYPE(I39)>1,TYPE(MATCH(I39,O$11:O$139,0))>1),0,MATCH(I39,O$11:O$139,0))+IF(OR(TYPE(I39)>1,TYPE(MATCH(I39,U$11:U$139,0))>1),0,MATCH(I39,U$11:U$139,0))+IF(OR(TYPE(I39)>1,TYPE(MATCH(I39,AA$11:AA$139,0))>1),0,MATCH(I39,AA$11:AA$139,0)) -> 0 | AO39: =IF(OR(TYPE(O39)>1,TYPE(MATCH(O39,I$11:I$139,0))>1),0,MATCH(O39,I$11:I$139,0))+IF(OR(TYPE(O39)>1,TYPE(MATCH(O39,O40:O$139,0))>1),0,MATCH(O39,O40:O$139,0))+IF(OR(TYPE(O39)>1,TYPE(MATCH(O39,U$11:U$139,0))>1),0,MATCH(O39,U$11:U$139,0))+IF(OR(TYPE(O39)>1,TYPE(MATCH(O39,AA$11:AA$139,0))>1),0,MATCH(O39,AA$11:AA$139,0)) -> 0 | AP39: =IF(OR(TYPE(U39)>1,TYPE(MATCH(U39,I$11:I$139,0))>1),0,MATCH(U39,I$11:I$139,0))+IF(OR(TYPE(U39)>1,TYPE(MATCH(U39,O$11:O$139,0))>1),0,MATCH(U39,O$11:O$139,0))+IF(OR(TYPE(U39)>1,TYPE(MATCH(U39,U40:U$139,0))>1),0,MATCH(U39,U40:U$139,0))+IF(OR(TYPE(U39)>1,TYPE(MATCH(U39,AA$11:AA$139,0))>1),0,MATCH(U39,AA$11:AA$139,0)) -> 0 | AQ39: =IF(OR(TYPE(AA39)>1,TYPE(MATCH(AA39,I$11:I$139,0))>1),0,MATCH(AA39,I$11:I$139,0))+IF(OR(TYPE(AA39)>1,TYPE(MATCH(AA39,O$11:O$139,0))>1),0,MATCH(AA39,O$11:O$139,0))+IF(OR(TYPE(AA39)>1,TYPE(MATCH(AA39,U$11:U$139,0))>1),0,MATCH(U39,U$11:U$139,0))+IF(OR(TYPE(AA39)>1,TYPE(MATCH(AA39,AA40:AA$139,0))>1),0,MATCH(AA39,AA40:AA$139,0)) -> 0 | AR39: 0 | AT39: 0 | AU39: =IF(AND(N(I39)>0,TYPE(VLOOKUP(I39,Hraci!$A$5:$A$800,1,0))>3),1,0) + IF(AND(N(O39)>0,TYPE(VLOOKUP(O39,Hraci!$A$5:$A$800,1,0))>3),1,0) + IF(AND(N(U39)>0,TYPE(VLOOKUP(U39,Hraci!$A$5:$A$800,1,0))>3),1,0) -> 0
A40: 2 | B40: 1 | C40: 0 | D40: 20577 | E40: 579 | F40: 91000000979422999420140884 | G40: FALSE | H40: 30 | I40: 12086 | J40: Froněk | K40: Jiří | L40: CdP Loděnice | M40: 579 | N40: 0 | P40: Koňák, Květoslav | S40: 9999 | T40: 0 | Y40: 9999 | Z40: 0 | AE40: 9999 | AF40: 0 | AH40: =IF(TYPE(VLOOKUP(H40,Centrum!$A$3:$E$130,5,0))<4,VLOOKUP(H40,Centrum!$A$3:$E$130,5,0),0) -> 15 | AI40: =IF(N($AH40)>0,VLOOKUP($AH40,Body!$A$4:$F$259,5,0),"") -> 38.79942188 | AJ40: =IF(N($AH40)>0,VLOOKUP($AH40,Body!$A$4:$F$259,6,0),"") -> 0 | AK40: =IF(N($AH40)>0,VLOOKUP($AH40,Body!$A$4:$F$259,2,0),"") -> 1.125 | AL40: 30 CdP Loděnice - Froněk Jiří | AM40: 0 | AN40: =IF(OR(TYPE(I40)>1,TYPE(MATCH(I40,I41:I$139,0))>1),0,MATCH(I40,I41:I$139,0))+IF(OR(TYPE(I40)>1,TYPE(MATCH(I40,O$11:O$139,0))>1),0,MATCH(I40,O$11:O$139,0))+IF(OR(TYPE(I40)>1,TYPE(MATCH(I40,U$11:U$139,0))>1),0,MATCH(I40,U$11:U$139,0))+IF(OR(TYPE(I40)>1,TYPE(MATCH(I40,AA$11:AA$139,0))>1),0,MATCH(I40,AA$11:AA$139,0)) -> 0 | AO40: =IF(OR(TYPE(O40)>1,TYPE(MATCH(O40,I$11:I$139,0))>1),0,MATCH(O40,I$11:I$139,0))+IF(OR(TYPE(O40)>1,TYPE(MATCH(O40,O41:O$139,0))>1),0,MATCH(O40,O41:O$139,0))+IF(OR(TYPE(O40)>1,TYPE(MATCH(O40,U$11:U$139,0))>1),0,MATCH(O40,U$11:U$139,0))+IF(OR(TYPE(O40)>1,TYPE(MATCH(O40,AA$11:AA$139,0))>1),0,MATCH(O40,AA$11:AA$139,0)) -> 0 | AP40: =IF(OR(TYPE(U40)>1,TYPE(MATCH(U40,I$11:I$139,0))>1),0,MATCH(U40,I$11:I$139,0))+IF(OR(TYPE(U40)>1,TYPE(MATCH(U40,O$11:O$139,0))>1),0,MATCH(U40,O$11:O$139,0))+IF(OR(TYPE(U40)>1,TYPE(MATCH(U40,U41:U$139,0))>1),0,MATCH(U40,U41:U$139,0))+IF(OR(TYPE(U40)>1,TYPE(MATCH(U40,AA$11:AA$139,0))>1),0,MATCH(U40,AA$11:AA$139,0)) -> 0 | AQ40: =IF(OR(TYPE(AA40)>1,TYPE(MATCH(AA40,I$11:I$139,0))>1),0,MATCH(AA40,I$11:I$139,0))+IF(OR(TYPE(AA40)>1,TYPE(MATCH(AA40,O$11:O$139,0))>1),0,MATCH(AA40,O$11:O$139,0))+IF(OR(TYPE(AA40)>1,TYPE(MATCH(AA40,U$11:U$139,0))>1),0,MATCH(U40,U$11:U$139,0))+IF(OR(TYPE(AA40)>1,TYPE(MATCH(AA40,AA41:AA$139,0))>1),0,MATCH(AA40,AA41:AA$139,0)) -> 0 | AR40: 0 | AT40: 0 | AU40: =IF(AND(N(I40)>0,TYPE(VLOOKUP(I40,Hraci!$A$5:$A$800,1,0))>3),1,0) + IF(AND(N(O40)>0,TYPE(VLOOKUP(O40,Hraci!$A$5:$A$800,1,0))>3),1,0) + IF(AND(N(U40)>0,TYPE(VLOOKUP(U40,Hraci!$A$5:$A$800,1,0))>3),1,0) -> 0
A41: 2 | B41: 1 | C41: 0 | D41: 29997 | E41: 9999 | F41: 91000000970002990000441415 | G41: FALSE | H41: 31 | J41: Janoš, Jiří | M41: 9999 | N41: 0 | P41: Janda, Vladimír | S41: 9999 | T41: 0 | Y41: 9999 | Z41: 0 | AE41: 9999 | AF41: 0 | AH41: =IF(TYPE(VLOOKUP(H41,Centrum!$A$3:$E$130,5,0))<4,VLOOKUP(H41,Centrum!$A$3:$E$130,5,0),0) -> 24 | AI41: =IF(N($AH41)>0,VLOOKUP($AH41,Body!$A$4:$F$259,5,0),"") -> 17.2441875 | AJ41: =IF(N($AH41)>0,VLOOKUP($AH41,Body!$A$4:$F$259,6,0),"") -> 0 | AK41: =IF(N($AH41)>0,VLOOKUP($AH41,Body!$A$4:$F$259,2,0),"") -> 0.5 | AL41: 31 - Janoš, Jiří | AM41: 0 | AN41: =IF(OR(TYPE(I41)>1,TYPE(MATCH(I41,I42:I$139,0))>1),0,MATCH(I41,I42:I$139,0))+IF(OR(TYPE(I41)>1,TYPE(MATCH(I41,O$11:O$139,0))>1),0,MATCH(I41,O$11:O$139,0))+IF(OR(TYPE(I41)>1,TYPE(MATCH(I41,U$11:U$139,0))>1),0,MATCH(I41,U$11:U$139,0))+IF(OR(TYPE(I41)>1,TYPE(MATCH(I41,AA$11:AA$139,0))>1),0,MATCH(I41,AA$11:AA$139,0)) -> 0 | AO41: =IF(OR(TYPE(O41)>1,TYPE(MATCH(O41,I$11:I$139,0))>1),0,MATCH(O41,I$11:I$139,0))+IF(OR(TYPE(O41)>1,TYPE(MATCH(O41,O42:O$139,0))>1),0,MATCH(O41,O42:O$139,0))+IF(OR(TYPE(O41)>1,TYPE(MATCH(O41,U$11:U$139,0))>1),0,MATCH(O41,U$11:U$139,0))+IF(OR(TYPE(O41)>1,TYPE(MATCH(O41,AA$11:AA$139,0))>1),0,MATCH(O41,AA$11:AA$139,0)) -> 0 | AP41: =IF(OR(TYPE(U41)>1,TYPE(MATCH(U41,I$11:I$139,0))>1),0,MATCH(U41,I$11:I$139,0))+IF(OR(TYPE(U41)>1,TYPE(MATCH(U41,O$11:O$139,0))>1),0,MATCH(U41,O$11:O$139,0))+IF(OR(TYPE(U41)>1,TYPE(MATCH(U41,U42:U$139,0))>1),0,MATCH(U41,U42:U$139,0))+IF(OR(TYPE(U41)>1,TYPE(MATCH(U41,AA$11:AA$139,0))>1),0,MATCH(U41,AA$11:AA$139,0)) -> 0 | AQ41: =IF(OR(TYPE(AA41)>1,TYPE(MATCH(AA41,I$11:I$139,0))>1),0,MATCH(AA41,I$11:I$139,0))+IF(OR(TYPE(AA41)>1,TYPE(MATCH(AA41,O$11:O$139,0))>1),0,MATCH(AA41,O$11:O$139,0))+IF(OR(TYPE(AA41)>1,TYPE(MATCH(AA41,U$11:U$139,0))>1),0,MATCH(U41,U$11:U$139,0))+IF(OR(TYPE(AA41)>1,TYPE(MATCH(AA41,AA42:AA$139,0))>1),0,MATCH(AA41,AA42:AA$139,0)) -> 0 | AR41: 0 | AT41: 0 | AU41: =IF(AND(N(I41)>0,TYPE(VLOOKUP(I41,Hraci!$A$5:$A$800,1,0))>3),1,0) + IF(AND(N(O41)>0,TYPE(VLOOKUP(O41,Hraci!$A$5:$A$800,1,0))>3),1,0) + IF(AND(N(U41)>0,TYPE(VLOOKUP(U41,Hraci!$A$5:$A$800,1,0))>3),1,0) -> 0
A42: 0 | B42: 0 | C42: 0 | D42: 99999 | E42: 9999 | F42: 90000000900000990000624931 | G42: TRUE | H42: 32 | M42: 9999 | N42: 0 | S42: 9999 | T42: 0 | Y42: 9999 | Z42: 0 | AE42: 9999 | AF42: 0 | AH42: =IF(TYPE(VLOOKUP(H42,Centrum!$A$3:$E$130,5,0))<4,VLOOKUP(H42,Centrum!$A$3:$E$130,5,0),0) -> 0 | AI42: =IF(N($AH42)>0,VLOOKUP($AH42,Body!$A$4:$F$259,5,0),"") ->  | AJ42: =IF(N($AH42)>0,VLOOKUP($AH42,Body!$A$4:$F$259,6,0),"") ->  | AK42: =IF(N($AH42)>0,VLOOKUP($AH42,Body!$A$4:$F$259,2,0),"") ->  | AM42: 0 | AN42: =IF(OR(TYPE(I42)>1,TYPE(MATCH(I42,I43:I$139,0))>1),0,MATCH(I42,I43:I$139,0))+IF(OR(TYPE(I42)>1,TYPE(MATCH(I42,O$11:O$139,0))>1),0,MATCH(I42,O$11:O$139,0))+IF(OR(TYPE(I42)>1,TYPE(MATCH(I42,U$11:U$139,0))>1),0,MATCH(I42,U$11:U$139,0))+IF(OR(TYPE(I42)>1,TYPE(MATCH(I42,AA$11:AA$139,0))>1),0,MATCH(I42,AA$11:AA$139,0)) -> 0 | AO42: =IF(OR(TYPE(O42)>1,TYPE(MATCH(O42,I$11:I$139,0))>1),0,MATCH(O42,I$11:I$139,0))+IF(OR(TYPE(O42)>1,TYPE(MATCH(O42,O43:O$139,0))>1),0,MATCH(O42,O43:O$139,0))+IF(OR(TYPE(O42)>1,TYPE(MATCH(O42,U$11:U$139,0))>1),0,MATCH(O42,U$11:U$139,0))+IF(OR(TYPE(O42)>1,TYPE(MATCH(O42,AA$11:AA$139,0))>1),0,MATCH(O42,AA$11:AA$139,0)) -> 0 | AP42: =IF(OR(TYPE(U42)>1,TYPE(MATCH(U42,I$11:I$139,0))>1),0,MATCH(U42,I$11:I$139,0))+IF(OR(TYPE(U42)>1,TYPE(MATCH(U42,O$11:O$139,0))>1),0,MATCH(U42,O$11:O$139,0))+IF(OR(TYPE(U42)>1,TYPE(MATCH(U42,U43:U$139,0))>1),0,MATCH(U42,U43:U$139,0))+IF(OR(TYPE(U42)>1,TYPE(MATCH(U42,AA$11:AA$139,0))>1),0,MATCH(U42,AA$11:AA$139,0)) -> 0 | AQ42: =IF(OR(TYPE(AA42)>1,TYPE(MATCH(AA42,I$11:I$139,0))>1),0,MATCH(AA42,I$11:I$139,0))+IF(OR(TYPE(AA42)>1,TYPE(MATCH(AA42,O$11:O$139,0))>1),0,MATCH(AA42,O$11:O$139,0))+IF(OR(TYPE(AA42)>1,TYPE(MATCH(AA42,U$11:U$139,0))>1),0,MATCH(U42,U$11:U$139,0))+IF(OR(TYPE(AA42)>1,TYPE(MATCH(AA42,AA43:AA$139,0))>1),0,MATCH(AA42,AA43:AA$139,0)) -> 0 | AR42: 0 | AT42: 0 | AU42: =IF(AND(N(I42)>0,TYPE(VLOOKUP(I42,Hraci!$A$5:$A$800,1,0))>3),1,0) + IF(AND(N(O42)>0,TYPE(VLOOKUP(O42,Hraci!$A$5:$A$800,1,0))>3),1,0) + IF(AND(N(U42)>0,TYPE(VLOOKUP(U42,Hraci!$A$5:$A$800,1,0))>3),1,0) -> 0
A43: =IF(OR(LEFT(J43,1)=" ",ISBLANK(J43)),0,1)+IF(OR(LEFT(P43,1)=" ",ISBLANK(P43)),0,1)+IF(OR(LEFT(V43,1)=" ",ISBLANK(V43)),0,1) -> 0 | B43: =IF(AND(TYPE(G43<15),G43=FALSE),1,0) -> 0 | C43: =IF(B43=0,0,N43+T43+Z43) -> 0 | D43: =IF(B43=0,99999,M43+S43+Y43) -> 99999 | E43: =MIN(M43,S43,Y43) -> 9999 | F43: =CONCATENATE(IF(AND($P$4=1,H43>$O$7),"0","9"),TEXT(B43,"0"),IF(AND($P$4=1,H43>$O$7),"000000",TEXT(1000*C43,"000000")),IF(AND($P$4=1,H43>$O$7),"000000",TEXT(999999-D43,"000000")),IF(AND($P$4=1,H43>$O$7),"000000",TEXT(999999-E43,"000000")),TEXT(999999*RAND(),"000000")) -> 90000000900000990000675752 | G43: =IF(OR($K$6>A43,AR43>0),TRUE,FALSE) -> TRUE | H43: =ROW(H43)-10 -> 33 | M43: 9999 | N43: 0 | S43: 9999 | T43: 0 | Y43: 9999 | Z43: 0 | AE43: 9999 | AF43: 0 | AH43: =IF(TYPE(VLOOKUP(H43,Centrum!$A$3:$E$130,5,0))<4,VLOOKUP(H43,Centrum!$A$3:$E$130,5,0),0) -> 0 | AI43: =IF(N($AH43)>0,VLOOKUP($AH43,Body!$A$4:$F$259,5,0),"") ->  | AJ43: =IF(N($AH43)>0,VLOOKUP($AH43,Body!$A$4:$F$259,6,0),"") ->  | AK43: =IF(N($AH43)>0,VLOOKUP($AH43,Body!$A$4:$F$259,2,0),"") ->  | AL43: =IF(N(H43)>$K$7,"",CONCATENATE(IF($AK$7="","",H43&" "),L43,IF(L43="",""," - "),J43," ",K43)) ->  | AM43: =C43 -> 0 | AN43: =IF(OR(TYPE(I43)>1,TYPE(MATCH(I43,I44:I$139,0))>1),0,MATCH(I43,I44:I$139,0))+IF(OR(TYPE(I43)>1,TYPE(MATCH(I43,O$11:O$139,0))>1),0,MATCH(I43,O$11:O$139,0))+IF(OR(TYPE(I43)>1,TYPE(MATCH(I43,U$11:U$139,0))>1),0,MATCH(I43,U$11:U$139,0))+IF(OR(TYPE(I43)>1,TYPE(MATCH(I43,AA$11:AA$139,0))>1),0,MATCH(I43,AA$11:AA$139,0)) -> 0 | AO43: =IF(OR(TYPE(O43)>1,TYPE(MATCH(O43,I$11:I$139,0))>1),0,MATCH(O43,I$11:I$139,0))+IF(OR(TYPE(O43)>1,TYPE(MATCH(O43,O44:O$139,0))>1),0,MATCH(O43,O44:O$139,0))+IF(OR(TYPE(O43)>1,TYPE(MATCH(O43,U$11:U$139,0))>1),0,MATCH(O43,U$11:U$139,0))+IF(OR(TYPE(O43)>1,TYPE(MATCH(O43,AA$11:AA$139,0))>1),0,MATCH(O43,AA$11:AA$139,0)) -> 0 | AP43: =IF(OR(TYPE(U43)>1,TYPE(MATCH(U43,I$11:I$139,0))>1),0,MATCH(U43,I$11:I$139,0))+IF(OR(TYPE(U43)>1,TYPE(MATCH(U43,O$11:O$139,0))>1),0,MATCH(U43,O$11:O$139,0))+IF(OR(TYPE(U43)>1,TYPE(MATCH(U43,U44:U$139,0))>1),0,MATCH(U43,U44:U$139,0))+IF(OR(TYPE(U43)>1,TYPE(MATCH(U43,AA$11:AA$139,0))>1),0,MATCH(U43,AA$11:AA$139,0)) -> 0 | AQ43: =IF(OR(TYPE(AA43)>1,TYPE(MATCH(AA43,I$11:I$139,0))>1),0,MATCH(AA43,I$11:I$139,0))+IF(OR(TYPE(AA43)>1,TYPE(MATCH(AA43,O$11:O$139,0))>1),0,MATCH(AA43,O$11:O$139,0))+IF(OR(TYPE(AA43)>1,TYPE(MATCH(AA43,U$11:U$139,0))>1),0,MATCH(U43,U$11:U$139,0))+IF(OR(TYPE(AA43)>1,TYPE(MATCH(AA43,AA44:AA$139,0))>1),0,MATCH(AA43,AA44:AA$139,0)) -> 0 | AR43: =SUM(AN43:AQ43) -> 0 | AT43: =IF(AU43=$K$6,1,0) -> 0 | AU43: =IF(AND(N(I43)>0,TYPE(VLOOKUP(I43,Hraci!$A$5:$A$800,1,0))>3),1,0) + IF(AND(N(O43)>0,TYPE(VLOOKUP(O43,Hraci!$A$5:$A$800,1,0))>3),1,0) + IF(AND(N(U43)>0,TYPE(VLOOKUP(U43,Hraci!$A$5:$A$800,1,0))>3),1,0) -> 0
A44: 0 | B44: 0 | C44: 0 | D44: 99999 | E44: 9999 | F44: 90000000900000990000903628 | G44: TRUE | H44: 34 | M44: 9999 | N44: 0 | S44: 9999 | T44: 0 | Y44: 9999 | Z44: 0 | AE44: 9999 | AF44: 0 | AH44: =IF(TYPE(VLOOKUP(H44,Centrum!$A$3:$E$130,5,0))<4,VLOOKUP(H44,Centrum!$A$3:$E$130,5,0),0) -> 0 | AI44: =IF(N($AH44)>0,VLOOKUP($AH44,Body!$A$4:$F$259,5,0),"") ->  | AJ44: =IF(N($AH44)>0,VLOOKUP($AH44,Body!$A$4:$F$259,6,0),"") ->  | AK44: =IF(N($AH44)>0,VLOOKUP($AH44,Body!$A$4:$F$259,2,0),"") ->  | AM44: 0 | AN44: =IF(OR(TYPE(I44)>1,TYPE(MATCH(I44,I45:I$139,0))>1),0,MATCH(I44,I45:I$139,0))+IF(OR(TYPE(I44)>1,TYPE(MATCH(I44,O$11:O$139,0))>1),0,MATCH(I44,O$11:O$139,0))+IF(OR(TYPE(I44)>1,TYPE(MATCH(I44,U$11:U$139,0))>1),0,MATCH(I44,U$11:U$139,0))+IF(OR(TYPE(I44)>1,TYPE(MATCH(I44,AA$11:AA$139,0))>1),0,MATCH(I44,AA$11:AA$139,0)) -> 0 | AO44: =IF(OR(TYPE(O44)>1,TYPE(MATCH(O44,I$11:I$139,0))>1),0,MATCH(O44,I$11:I$139,0))+IF(OR(TYPE(O44)>1,TYPE(MATCH(O44,O45:O$139,0))>1),0,MATCH(O44,O45:O$139,0))+IF(OR(TYPE(O44)>1,TYPE(MATCH(O44,U$11:U$139,0))>1),0,MATCH(O44,U$11:U$139,0))+IF(OR(TYPE(O44)>1,TYPE(MATCH(O44,AA$11:AA$139,0))>1),0,MATCH(O44,AA$11:AA$139,0)) -> 0 | AP44: =IF(OR(TYPE(U44)>1,TYPE(MATCH(U44,I$11:I$139,0))>1),0,MATCH(U44,I$11:I$139,0))+IF(OR(TYPE(U44)>1,TYPE(MATCH(U44,O$11:O$139,0))>1),0,MATCH(U44,O$11:O$139,0))+IF(OR(TYPE(U44)>1,TYPE(MATCH(U44,U45:U$139,0))>1),0,MATCH(U44,U45:U$139,0))+IF(OR(TYPE(U44)>1,TYPE(MATCH(U44,AA$11:AA$139,0))>1),0,MATCH(U44,AA$11:AA$139,0)) -> 0 | AQ44: =IF(OR(TYPE(AA44)>1,TYPE(MATCH(AA44,I$11:I$139,0))>1),0,MATCH(AA44,I$11:I$139,0))+IF(OR(TYPE(AA44)>1,TYPE(MATCH(AA44,O$11:O$139,0))>1),0,MATCH(AA44,O$11:O$139,0))+IF(OR(TYPE(AA44)>1,TYPE(MATCH(AA44,U$11:U$139,0))>1),0,MATCH(U44,U$11:U$139,0))+IF(OR(TYPE(AA44)>1,TYPE(MATCH(AA44,AA45:AA$139,0))>1),0,MATCH(AA44,AA45:AA$139,0)) -> 0 | AR44: 0 | AT44: 0 | AU44: =IF(AND(N(I44)>0,TYPE(VLOOKUP(I44,Hraci!$A$5:$A$800,1,0))>3),1,0) + IF(AND(N(O44)>0,TYPE(VLOOKUP(O44,Hraci!$A$5:$A$800,1,0))>3),1,0) + IF(AND(N(U44)>0,TYPE(VLOOKUP(U44,Hraci!$A$5:$A$800,1,0))>3),1,0) -> 0
A45: 0 | B45: 0 | C45: 0 | D45: 99999 | E45: 9999 | F45: 90000000900000990000865381 | G45: TRUE | H45: 35 | M45: 9999 | N45: 0 | S45: 9999 | T45: 0 | Y45: 9999 | Z45: 0 | AE45: 9999 | AF45: 0 | AH45: =IF(TYPE(VLOOKUP(H45,Centrum!$A$3:$E$130,5,0))<4,VLOOKUP(H45,Centrum!$A$3:$E$130,5,0),0) -> 0 | AI45: =IF(N($AH45)>0,VLOOKUP($AH45,Body!$A$4:$F$259,5,0),"") ->  | AJ45: =IF(N($AH45)>0,VLOOKUP($AH45,Body!$A$4:$F$259,6,0),"") ->  | AK45: =IF(N($AH45)>0,VLOOKUP($AH45,Body!$A$4:$F$259,2,0),"") ->  | AM45: 0 | AN45: =IF(OR(TYPE(I45)>1,TYPE(MATCH(I45,I46:I$139,0))>1),0,MATCH(I45,I46:I$139,0))+IF(OR(TYPE(I45)>1,TYPE(MATCH(I45,O$11:O$139,0))>1),0,MATCH(I45,O$11:O$139,0))+IF(OR(TYPE(I45)>1,TYPE(MATCH(I45,U$11:U$139,0))>1),0,MATCH(I45,U$11:U$139,0))+IF(OR(TYPE(I45)>1,TYPE(MATCH(I45,AA$11:AA$139,0))>1),0,MATCH(I45,AA$11:AA$139,0)) -> 0 | AO45: =IF(OR(TYPE(O45)>1,TYPE(MATCH(O45,I$11:I$139,0))>1),0,MATCH(O45,I$11:I$139,0))+IF(OR(TYPE(O45)>1,TYPE(MATCH(O45,O46:O$139,0))>1),0,MATCH(O45,O46:O$139,0))+IF(OR(TYPE(O45)>1,TYPE(MATCH(O45,U$11:U$139,0))>1),0,MATCH(O45,U$11:U$139,0))+IF(OR(TYPE(O45)>1,TYPE(MATCH(O45,AA$11:AA$139,0))>1),0,MATCH(O45,AA$11:AA$139,0)) -> 0 | AP45: =IF(OR(TYPE(U45)>1,TYPE(MATCH(U45,I$11:I$139,0))>1),0,MATCH(U45,I$11:I$139,0))+IF(OR(TYPE(U45)>1,TYPE(MATCH(U45,O$11:O$139,0))>1),0,MATCH(U45,O$11:O$139,0))+IF(OR(TYPE(U45)>1,TYPE(MATCH(U45,U46:U$139,0))>1),0,MATCH(U45,U46:U$139,0))+IF(OR(TYPE(U45)>1,TYPE(MATCH(U45,AA$11:AA$139,0))>1),0,MATCH(U45,AA$11:AA$139,0)) -> 0 | AQ45: =IF(OR(TYPE(AA45)>1,TYPE(MATCH(AA45,I$11:I$139,0))>1),0,MATCH(AA45,I$11:I$139,0))+IF(OR(TYPE(AA45)>1,TYPE(MATCH(AA45,O$11:O$139,0))>1),0,MATCH(AA45,O$11:O$139,0))+IF(OR(TYPE(AA45)>1,TYPE(MATCH(AA45,U$11:U$139,0))>1),0,MATCH(U45,U$11:U$139,0))+IF(OR(TYPE(AA45)>1,TYPE(MATCH(AA45,AA46:AA$139,0))>1),0,MATCH(AA45,AA46:AA$139,0)) -> 0 | AR45: 0 | AT45: 0 | AU45: =IF(AND(N(I45)>0,TYPE(VLOOKUP(I45,Hraci!$A$5:$A$800,1,0))>3),1,0) + IF(AND(N(O45)>0,TYPE(VLOOKUP(O45,Hraci!$A$5:$A$800,1,0))>3),1,0) + IF(AND(N(U45)>0,TYPE(VLOOKUP(U45,Hraci!$A$5:$A$800,1,0))>3),1,0) -> 0
A46: 0 | B46: 0 | C46: 0 | D46: 99999 | E46: 9999 | F46: 90000000900000990000404226 | G46: TRUE | H46: 36 | M46: 9999 | N46: 0 | S46: 9999 | T46: 0 | Y46: 9999 | Z46: 0 | AE46: 9999 | AF46: 0 | AH46: =IF(TYPE(VLOOKUP(H46,Centrum!$A$3:$E$130,5,0))<4,VLOOKUP(H46,Centrum!$A$3:$E$130,5,0),0) -> 0 | AI46: =IF(N($AH46)>0,VLOOKUP($AH46,Body!$A$4:$F$259,5,0),"") ->  | AJ46: =IF(N($AH46)>0,VLOOKUP($AH46,Body!$A$4:$F$259,6,0),"") ->  | AK46: =IF(N($AH46)>0,VLOOKUP($AH46,Body!$A$4:$F$259,2,0),"") ->  | AM46: 0 | AN46: =IF(OR(TYPE(I46)>1,TYPE(MATCH(I46,I47:I$139,0))>1),0,MATCH(I46,I47:I$139,0))+IF(OR(TYPE(I46)>1,TYPE(MATCH(I46,O$11:O$139,0))>1),0,MATCH(I46,O$11:O$139,0))+IF(OR(TYPE(I46)>1,TYPE(MATCH(I46,U$11:U$139,0))>1),0,MATCH(I46,U$11:U$139,0))+IF(OR(TYPE(I46)>1,TYPE(MATCH(I46,AA$11:AA$139,0))>1),0,MATCH(I46,AA$11:AA$139,0)) -> 0 | AO46: =IF(OR(TYPE(O46)>1,TYPE(MATCH(O46,I$11:I$139,0))>1),0,MATCH(O46,I$11:I$139,0))+IF(OR(TYPE(O46)>1,TYPE(MATCH(O46,O47:O$139,0))>1),0,MATCH(O46,O47:O$139,0))+IF(OR(TYPE(O46)>1,TYPE(MATCH(O46,U$11:U$139,0))>1),0,MATCH(O46,U$11:U$139,0))+IF(OR(TYPE(O46)>1,TYPE(MATCH(O46,AA$11:AA$139,0))>1),0,MATCH(O46,AA$11:AA$139,0)) -> 0 | AP46: =IF(OR(TYPE(U46)>1,TYPE(MATCH(U46,I$11:I$139,0))>1),0,MATCH(U46,I$11:I$139,0))+IF(OR(TYPE(U46)>1,TYPE(MATCH(U46,O$11:O$139,0))>1),0,MATCH(U46,O$11:O$139,0))+IF(OR(TYPE(U46)>1,TYPE(MATCH(U46,U47:U$139,0))>1),0,MATCH(U46,U47:U$139,0))+IF(OR(TYPE(U46)>1,TYPE(MATCH(U46,AA$11:AA$139,0))>1),0,MATCH(U46,AA$11:AA$139,0)) -> 0 | AQ46: =IF(OR(TYPE(AA46)>1,TYPE(MATCH(AA46,I$11:I$139,0))>1),0,MATCH(AA46,I$11:I$139,0))+IF(OR(TYPE(AA46)>1,TYPE(MATCH(AA46,O$11:O$139,0))>1),0,MATCH(AA46,O$11:O$139,0))+IF(OR(TYPE(AA46)>1,TYPE(MATCH(AA46,U$11:U$139,0))>1),0,MATCH(U46,U$11:U$139,0))+IF(OR(TYPE(AA46)>1,TYPE(MATCH(AA46,AA47:AA$139,0))>1),0,MATCH(AA46,AA47:AA$139,0)) -> 0 | AR46: 0 | AT46: 0 | AU46: =IF(AND(N(I46)>0,TYPE(VLOOKUP(I46,Hraci!$A$5:$A$800,1,0))>3),1,0) + IF(AND(N(O46)>0,TYPE(VLOOKUP(O46,Hraci!$A$5:$A$800,1,0))>3),1,0) + IF(AND(N(U46)>0,TYPE(VLOOKUP(U46,Hraci!$A$5:$A$800,1,0))>3),1,0) -> 0
A47: 0 | B47: 0 | C47: 0 | D47: 99999 | E47: 9999 | F47: 90000000900000990000743101 | G47: TRUE | H47: 37 | M47: 9999 | N47: 0 | S47: 9999 | T47: 0 | Y47: 9999 | Z47: 0 | AE47: 9999 | AF47: 0 | AH47: =IF(TYPE(VLOOKUP(H47,Centrum!$A$3:$E$130,5,0))<4,VLOOKUP(H47,Centrum!$A$3:$E$130,5,0),0) -> 0 | AI47: =IF(N($AH47)>0,VLOOKUP($AH47,Body!$A$4:$F$259,5,0),"") ->  | AJ47: =IF(N($AH47)>0,VLOOKUP($AH47,Body!$A$4:$F$259,6,0),"") ->  | AK47: =IF(N($AH47)>0,VLOOKUP($AH47,Body!$A$4:$F$259,2,0),"") ->  | AM47: 0 | AN47: =IF(OR(TYPE(I47)>1,TYPE(MATCH(I47,I48:I$139,0))>1),0,MATCH(I47,I48:I$139,0))+IF(OR(TYPE(I47)>1,TYPE(MATCH(I47,O$11:O$139,0))>1),0,MATCH(I47,O$11:O$139,0))+IF(OR(TYPE(I47)>1,TYPE(MATCH(I47,U$11:U$139,0))>1),0,MATCH(I47,U$11:U$139,0))+IF(OR(TYPE(I47)>1,TYPE(MATCH(I47,AA$11:AA$139,0))>1),0,MATCH(I47,AA$11:AA$139,0)) -> 0 | AO47: =IF(OR(TYPE(O47)>1,TYPE(MATCH(O47,I$11:I$139,0))>1),0,MATCH(O47,I$11:I$139,0))+IF(OR(TYPE(O47)>1,TYPE(MATCH(O47,O48:O$139,0))>1),0,MATCH(O47,O48:O$139,0))+IF(OR(TYPE(O47)>1,TYPE(MATCH(O47,U$11:U$139,0))>1),0,MATCH(O47,U$11:U$139,0))+IF(OR(TYPE(O47)>1,TYPE(MATCH(O47,AA$11:AA$139,0))>1),0,MATCH(O47,AA$11:AA$139,0)) -> 0 | AP47: =IF(OR(TYPE(U47)>1,TYPE(MATCH(U47,I$11:I$139,0))>1),0,MATCH(U47,I$11:I$139,0))+IF(OR(TYPE(U47)>1,TYPE(MATCH(U47,O$11:O$139,0))>1),0,MATCH(U47,O$11:O$139,0))+IF(OR(TYPE(U47)>1,TYPE(MATCH(U47,U48:U$139,0))>1),0,MATCH(U47,U48:U$139,0))+IF(OR(TYPE(U47)>1,TYPE(MATCH(U47,AA$11:AA$139,0))>1),0,MATCH(U47,AA$11:AA$139,0)) -> 0 | AQ47: =IF(OR(TYPE(AA47)>1,TYPE(MATCH(AA47,I$11:I$139,0))>1),0,MATCH(AA47,I$11:I$139,0))+IF(OR(TYPE(AA47)>1,TYPE(MATCH(AA47,O$11:O$139,0))>1),0,MATCH(AA47,O$11:O$139,0))+IF(OR(TYPE(AA47)>1,TYPE(MATCH(AA47,U$11:U$139,0))>1),0,MATCH(U47,U$11:U$139,0))+IF(OR(TYPE(AA47)>1,TYPE(MATCH(AA47,AA48:AA$139,0))>1),0,MATCH(AA47,AA48:AA$139,0)) -> 0 | AR47: 0 | AT47: 0 | AU47: =IF(AND(N(I47)>0,TYPE(VLOOKUP(I47,Hraci!$A$5:$A$800,1,0))>3),1,0) + IF(AND(N(O47)>0,TYPE(VLOOKUP(O47,Hraci!$A$5:$A$800,1,0))>3),1,0) + IF(AND(N(U47)>0,TYPE(VLOOKUP(U47,Hraci!$A$5:$A$800,1,0))>3),1,0) -> 0
A48: 0 | B48: 0 | C48: 0 | D48: 99999 | E48: 9999 | F48: 90000000900000990000005547 | G48: TRUE | H48: 38 | M48: 9999 | N48: 0 | S48: 9999 | T48: 0 | Y48: 9999 | Z48: 0 | AE48: 9999 | AF48: 0 | AH48: =IF(TYPE(VLOOKUP(H48,Centrum!$A$3:$E$130,5,0))<4,VLOOKUP(H48,Centrum!$A$3:$E$130,5,0),0) -> 0 | AI48: =IF(N($AH48)>0,VLOOKUP($AH48,Body!$A$4:$F$259,5,0),"") ->  | AJ48: =IF(N($AH48)>0,VLOOKUP($AH48,Body!$A$4:$F$259,6,0),"") ->  | AK48: =IF(N($AH48)>0,VLOOKUP($AH48,Body!$A$4:$F$259,2,0),"") ->  | AM48: 0 | AN48: =IF(OR(TYPE(I48)>1,TYPE(MATCH(I48,I49:I$139,0))>1),0,MATCH(I48,I49:I$139,0))+IF(OR(TYPE(I48)>1,TYPE(MATCH(I48,O$11:O$139,0))>1),0,MATCH(I48,O$11:O$139,0))+IF(OR(TYPE(I48)>1,TYPE(MATCH(I48,U$11:U$139,0))>1),0,MATCH(I48,U$11:U$139,0))+IF(OR(TYPE(I48)>1,TYPE(MATCH(I48,AA$11:AA$139,0))>1),0,MATCH(I48,AA$11:AA$139,0)) -> 0 | AO48: =IF(OR(TYPE(O48)>1,TYPE(MATCH(O48,I$11:I$139,0))>1),0,MATCH(O48,I$11:I$139,0))+IF(OR(TYPE(O48)>1,TYPE(MATCH(O48,O49:O$139,0))>1),0,MATCH(O48,O49:O$139,0))+IF(OR(TYPE(O48)>1,TYPE(MATCH(O48,U$11:U$139,0))>1),0,MATCH(O48,U$11:U$139,0))+IF(OR(TYPE(O48)>1,TYPE(MATCH(O48,AA$11:AA$139,0))>1),0,MATCH(O48,AA$11:AA$139,0)) -> 0 | AP48: =IF(OR(TYPE(U48)>1,TYPE(MATCH(U48,I$11:I$139,0))>1),0,MATCH(U48,I$11:I$139,0))+IF(OR(TYPE(U48)>1,TYPE(MATCH(U48,O$11:O$139,0))>1),0,MATCH(U48,O$11:O$139,0))+IF(OR(TYPE(U48)>1,TYPE(MATCH(U48,U49:U$139,0))>1),0,MATCH(U48,U49:U$139,0))+IF(OR(TYPE(U48)>1,TYPE(MATCH(U48,AA$11:AA$139,0))>1),0,MATCH(U48,AA$11:AA$139,0)) -> 0 | AQ48: =IF(OR(TYPE(AA48)>1,TYPE(MATCH(AA48,I$11:I$139,0))>1),0,MATCH(AA48,I$11:I$139,0))+IF(OR(TYPE(AA48)>1,TYPE(MATCH(AA48,O$11:O$139,0))>1),0,MATCH(AA48,O$11:O$139,0))+IF(OR(TYPE(AA48)>1,TYPE(MATCH(AA48,U$11:U$139,0))>1),0,MATCH(U48,U$11:U$139,0))+IF(OR(TYPE(AA48)>1,TYPE(MATCH(AA48,AA49:AA$139,0))>1),0,MATCH(AA48,AA49:AA$139,0)) -> 0 | AR48: 0 | AT48: 0 | AU48: =IF(AND(N(I48)>0,TYPE(VLOOKUP(I48,Hraci!$A$5:$A$800,1,0))>3),1,0) + IF(AND(N(O48)>0,TYPE(VLOOKUP(O48,Hraci!$A$5:$A$800,1,0))>3),1,0) + IF(AND(N(U48)>0,TYPE(VLOOKUP(U48,Hraci!$A$5:$A$800,1,0))>3),1,0) -> 0
A49: 0 | B49: 0 | C49: 0 | D49: 99999 | E49: 9999 | F49: 90000000900000990000278878 | G49: TRUE | H49: 39 | M49: 9999 | N49: 0 | S49: 9999 | T49: 0 | Y49: 9999 | Z49: 0 | AE49: 9999 | AF49: 0 | AH49: =IF(TYPE(VLOOKUP(H49,Centrum!$A$3:$E$130,5,0))<4,VLOOKUP(H49,Centrum!$A$3:$E$130,5,0),0) -> 0 | AI49: =IF(N($AH49)>0,VLOOKUP($AH49,Body!$A$4:$F$259,5,0),"") ->  | AJ49: =IF(N($AH49)>0,VLOOKUP($AH49,Body!$A$4:$F$259,6,0),"") ->  | AK49: =IF(N($AH49)>0,VLOOKUP($AH49,Body!$A$4:$F$259,2,0),"") ->  | AM49: 0 | AN49: =IF(OR(TYPE(I49)>1,TYPE(MATCH(I49,I50:I$139,0))>1),0,MATCH(I49,I50:I$139,0))+IF(OR(TYPE(I49)>1,TYPE(MATCH(I49,O$11:O$139,0))>1),0,MATCH(I49,O$11:O$139,0))+IF(OR(TYPE(I49)>1,TYPE(MATCH(I49,U$11:U$139,0))>1),0,MATCH(I49,U$11:U$139,0))+IF(OR(TYPE(I49)>1,TYPE(MATCH(I49,AA$11:AA$139,0))>1),0,MATCH(I49,AA$11:AA$139,0)) -> 0 | AO49: =IF(OR(TYPE(O49)>1,TYPE(MATCH(O49,I$11:I$139,0))>1),0,MATCH(O49,I$11:I$139,0))+IF(OR(TYPE(O49)>1,TYPE(MATCH(O49,O50:O$139,0))>1),0,MATCH(O49,O50:O$139,0))+IF(OR(TYPE(O49)>1,TYPE(MATCH(O49,U$11:U$139,0))>1),0,MATCH(O49,U$11:U$139,0))+IF(OR(TYPE(O49)>1,TYPE(MATCH(O49,AA$11:AA$139,0))>1),0,MATCH(O49,AA$11:AA$139,0)) -> 0 | AP49: =IF(OR(TYPE(U49)>1,TYPE(MATCH(U49,I$11:I$139,0))>1),0,MATCH(U49,I$11:I$139,0))+IF(OR(TYPE(U49)>1,TYPE(MATCH(U49,O$11:O$139,0))>1),0,MATCH(U49,O$11:O$139,0))+IF(OR(TYPE(U49)>1,TYPE(MATCH(U49,U50:U$139,0))>1),0,MATCH(U49,U50:U$139,0))+IF(OR(TYPE(U49)>1,TYPE(MATCH(U49,AA$11:AA$139,0))>1),0,MATCH(U49,AA$11:AA$139,0)) -> 0 | AQ49: =IF(OR(TYPE(AA49)>1,TYPE(MATCH(AA49,I$11:I$139,0))>1),0,MATCH(AA49,I$11:I$139,0))+IF(OR(TYPE(AA49)>1,TYPE(MATCH(AA49,O$11:O$139,0))>1),0,MATCH(AA49,O$11:O$139,0))+IF(OR(TYPE(AA49)>1,TYPE(MATCH(AA49,U$11:U$139,0))>1),0,MATCH(U49,U$11:U$139,0))+IF(OR(TYPE(AA49)>1,TYPE(MATCH(AA49,AA50:AA$139,0))>1),0,MATCH(AA49,AA50:AA$139,0)) -> 0 | AR49: 0 | AT49: 0 | AU49: =IF(AND(N(I49)>0,TYPE(VLOOKUP(I49,Hraci!$A$5:$A$800,1,0))>3),1,0) + IF(AND(N(O49)>0,TYPE(VLOOKUP(O49,Hraci!$A$5:$A$800,1,0))>3),1,0) + IF(AND(N(U49)>0,TYPE(VLOOKUP(U49,Hraci!$A$5:$A$800,1,0))>3),1,0) -> 0
A50: 0 | B50: 0 | C50: 0 | D50: 99999 | E50: 9999 | F50: 90000000900000990000409134 | G50: TRUE | H50: 40 | M50: 9999 | N50: 0 | S50: 9999 | T50: 0 | Y50: 9999 | Z50: 0 | AE50: 9999 | AF50: 0 | AH50: =IF(TYPE(VLOOKUP(H50,Centrum!$A$3:$E$130,5,0))<4,VLOOKUP(H50,Centrum!$A$3:$E$130,5,0),0) -> 0 | AI50: =IF(N($AH50)>0,VLOOKUP($AH50,Body!$A$4:$F$259,5,0),"") ->  | AJ50: =IF(N($AH50)>0,VLOOKUP($AH50,Body!$A$4:$F$259,6,0),"") ->  | AK50: =IF(N($AH50)>0,VLOOKUP($AH50,Body!$A$4:$F$259,2,0),"") ->  | AM50: 0 | AN50: =IF(OR(TYPE(I50)>1,TYPE(MATCH(I50,I51:I$139,0))>1),0,MATCH(I50,I51:I$139,0))+IF(OR(TYPE(I50)>1,TYPE(MATCH(I50,O$11:O$139,0))>1),0,MATCH(I50,O$11:O$139,0))+IF(OR(TYPE(I50)>1,TYPE(MATCH(I50,U$11:U$139,0))>1),0,MATCH(I50,U$11:U$139,0))+IF(OR(TYPE(I50)>1,TYPE(MATCH(I50,AA$11:AA$139,0))>1),0,MATCH(I50,AA$11:AA$139,0)) -> 0 | AO50: =IF(OR(TYPE(O50)>1,TYPE(MATCH(O50,I$11:I$139,0))>1),0,MATCH(O50,I$11:I$139,0))+IF(OR(TYPE(O50)>1,TYPE(MATCH(O50,O51:O$139,0))>1),0,MATCH(O50,O51:O$139,0))+IF(OR(TYPE(O50)>1,TYPE(MATCH(O50,U$11:U$139,0))>1),0,MATCH(O50,U$11:U$139,0))+IF(OR(TYPE(O50)>1,TYPE(MATCH(O50,AA$11:AA$139,0))>1),0,MATCH(O50,AA$11:AA$139,0)) -> 0 | AP50: =IF(OR(TYPE(U50)>1,TYPE(MATCH(U50,I$11:I$139,0))>1),0,MATCH(U50,I$11:I$139,0))+IF(OR(TYPE(U50)>1,TYPE(MATCH(U50,O$11:O$139,0))>1),0,MATCH(U50,O$11:O$139,0))+IF(OR(TYPE(U50)>1,TYPE(MATCH(U50,U51:U$139,0))>1),0,MATCH(U50,U51:U$139,0))+IF(OR(TYPE(U50)>1,TYPE(MATCH(U50,AA$11:AA$139,0))>1),0,MATCH(U50,AA$11:AA$139,0)) -> 0 | AQ50: =IF(OR(TYPE(AA50)>1,TYPE(MATCH(AA50,I$11:I$139,0))>1),0,MATCH(AA50,I$11:I$139,0))+IF(OR(TYPE(AA50)>1,TYPE(MATCH(AA50,O$11:O$139,0))>1),0,MATCH(AA50,O$11:O$139,0))+IF(OR(TYPE(AA50)>1,TYPE(MATCH(AA50,U$11:U$139,0))>1),0,MATCH(U50,U$11:U$139,0))+IF(OR(TYPE(AA50)>1,TYPE(MATCH(AA50,AA51:AA$139,0))>1),0,MATCH(AA50,AA51:AA$139,0)) -> 0 | AR50: 0 | AT50: 0 | AU50: =IF(AND(N(I50)>0,TYPE(VLOOKUP(I50,Hraci!$A$5:$A$800,1,0))>3),1,0) + IF(AND(N(O50)>0,TYPE(VLOOKUP(O50,Hraci!$A$5:$A$800,1,0))>3),1,0) + IF(AND(N(U50)>0,TYPE(VLOOKUP(U50,Hraci!$A$5:$A$800,1,0))>3),1,0) -> 0
A51: 0 | B51: 0 | C51: 0 | D51: 99999 | E51: 9999 | F51: 90000000900000990000611389 | G51: TRUE | H51: 41 | M51: 9999 | N51: 0 | S51: 9999 | T51: 0 | Y51: 9999 | Z51: 0 | AE51: 9999 | AF51: 0 | AH51: =IF(TYPE(VLOOKUP(H51,Centrum!$A$3:$E$130,5,0))<4,VLOOKUP(H51,Centrum!$A$3:$E$130,5,0),0) -> 0 | AI51: =IF(N($AH51)>0,VLOOKUP($AH51,Body!$A$4:$F$259,5,0),"") ->  | AJ51: =IF(N($AH51)>0,VLOOKUP($AH51,Body!$A$4:$F$259,6,0),"") ->  | AK51: =IF(N($AH51)>0,VLOOKUP($AH51,Body!$A$4:$F$259,2,0),"") ->  | AM51: 0 | AN51: =IF(OR(TYPE(I51)>1,TYPE(MATCH(I51,I52:I$139,0))>1),0,MATCH(I51,I52:I$139,0))+IF(OR(TYPE(I51)>1,TYPE(MATCH(I51,O$11:O$139,0))>1),0,MATCH(I51,O$11:O$139,0))+IF(OR(TYPE(I51)>1,TYPE(MATCH(I51,U$11:U$139,0))>1),0,MATCH(I51,U$11:U$139,0))+IF(OR(TYPE(I51)>1,TYPE(MATCH(I51,AA$11:AA$139,0))>1),0,MATCH(I51,AA$11:AA$139,0)) -> 0 | AO51: =IF(OR(TYPE(O51)>1,TYPE(MATCH(O51,I$11:I$139,0))>1),0,MATCH(O51,I$11:I$139,0))+IF(OR(TYPE(O51)>1,TYPE(MATCH(O51,O52:O$139,0))>1),0,MATCH(O51,O52:O$139,0))+IF(OR(TYPE(O51)>1,TYPE(MATCH(O51,U$11:U$139,0))>1),0,MATCH(O51,U$11:U$139,0))+IF(OR(TYPE(O51)>1,TYPE(MATCH(O51,AA$11:AA$139,0))>1),0,MATCH(O51,AA$11:AA$139,0)) -> 0 | AP51: =IF(OR(TYPE(U51)>1,TYPE(MATCH(U51,I$11:I$139,0))>1),0,MATCH(U51,I$11:I$139,0))+IF(OR(TYPE(U51)>1,TYPE(MATCH(U51,O$11:O$139,0))>1),0,MATCH(U51,O$11:O$139,0))+IF(OR(TYPE(U51)>1,TYPE(MATCH(U51,U52:U$139,0))>1),0,MATCH(U51,U52:U$139,0))+IF(OR(TYPE(U51)>1,TYPE(MATCH(U51,AA$11:AA$139,0))>1),0,MATCH(U51,AA$11:AA$139,0)) -> 0 | AQ51: =IF(OR(TYPE(AA51)>1,TYPE(MATCH(AA51,I$11:I$139,0))>1),0,MATCH(AA51,I$11:I$139,0))+IF(OR(TYPE(AA51)>1,TYPE(MATCH(AA51,O$11:O$139,0))>1),0,MATCH(AA51,O$11:O$139,0))+IF(OR(TYPE(AA51)>1,TYPE(MATCH(AA51,U$11:U$139,0))>1),0,MATCH(U51,U$11:U$139,0))+IF(OR(TYPE(AA51)>1,TYPE(MATCH(AA51,AA52:AA$139,0))>1),0,MATCH(AA51,AA52:AA$139,0)) -> 0 | AR51: 0 | AT51: 0 | AU51: =IF(AND(N(I51)>0,TYPE(VLOOKUP(I51,Hraci!$A$5:$A$800,1,0))>3),1,0) + IF(AND(N(O51)>0,TYPE(VLOOKUP(O51,Hraci!$A$5:$A$800,1,0))>3),1,0) + IF(AND(N(U51)>0,TYPE(VLOOKUP(U51,Hraci!$A$5:$A$800,1,0))>3),1,0) -> 0
A52: 0 | B52: 0 | C52: 0 | D52: 99999 | E52: 9999 | F52: 90000000900000990000564549 | G52: TRUE | H52: 42 | M52: 9999 | N52: 0 | S52: 9999 | T52: 0 | Y52: 9999 | Z52: 0 | AE52: 9999 | AF52: 0 | AH52: =IF(TYPE(VLOOKUP(H52,Centrum!$A$3:$E$130,5,0))<4,VLOOKUP(H52,Centrum!$A$3:$E$130,5,0),0) -> 0 | AI52: =IF(N($AH52)>0,VLOOKUP($AH52,Body!$A$4:$F$259,5,0),"") ->  | AJ52: =IF(N($AH52)>0,VLOOKUP($AH52,Body!$A$4:$F$259,6,0),"") ->  | AK52: =IF(N($AH52)>0,VLOOKUP($AH52,Body!$A$4:$F$259,2,0),"") ->  | AM52: 0 | AN52: =IF(OR(TYPE(I52)>1,TYPE(MATCH(I52,I53:I$139,0))>1),0,MATCH(I52,I53:I$139,0))+IF(OR(TYPE(I52)>1,TYPE(MATCH(I52,O$11:O$139,0))>1),0,MATCH(I52,O$11:O$139,0))+IF(OR(TYPE(I52)>1,TYPE(MATCH(I52,U$11:U$139,0))>1),0,MATCH(I52,U$11:U$139,0))+IF(OR(TYPE(I52)>1,TYPE(MATCH(I52,AA$11:AA$139,0))>1),0,MATCH(I52,AA$11:AA$139,0)) -> 0 | AO52: =IF(OR(TYPE(O52)>1,TYPE(MATCH(O52,I$11:I$139,0))>1),0,MATCH(O52,I$11:I$139,0))+IF(OR(TYPE(O52)>1,TYPE(MATCH(O52,O53:O$139,0))>1),0,MATCH(O52,O53:O$139,0))+IF(OR(TYPE(O52)>1,TYPE(MATCH(O52,U$11:U$139,0))>1),0,MATCH(O52,U$11:U$139,0))+IF(OR(TYPE(O52)>1,TYPE(MATCH(O52,AA$11:AA$139,0))>1),0,MATCH(O52,AA$11:AA$139,0)) -> 0 | AP52: =IF(OR(TYPE(U52)>1,TYPE(MATCH(U52,I$11:I$139,0))>1),0,MATCH(U52,I$11:I$139,0))+IF(OR(TYPE(U52)>1,TYPE(MATCH(U52,O$11:O$139,0))>1),0,MATCH(U52,O$11:O$139,0))+IF(OR(TYPE(U52)>1,TYPE(MATCH(U52,U53:U$139,0))>1),0,MATCH(U52,U53:U$139,0))+IF(OR(TYPE(U52)>1,TYPE(MATCH(U52,AA$11:AA$139,0))>1),0,MATCH(U52,AA$11:AA$139,0)) -> 0 | AQ52: =IF(OR(TYPE(AA52)>1,TYPE(MATCH(AA52,I$11:I$139,0))>1),0,MATCH(AA52,I$11:I$139,0))+IF(OR(TYPE(AA52)>1,TYPE(MATCH(AA52,O$11:O$139,0))>1),0,MATCH(AA52,O$11:O$139,0))+IF(OR(TYPE(AA52)>1,TYPE(MATCH(AA52,U$11:U$139,0))>1),0,MATCH(U52,U$11:U$139,0))+IF(OR(TYPE(AA52)>1,TYPE(MATCH(AA52,AA53:AA$139,0))>1),0,MATCH(AA52,AA53:AA$139,0)) -> 0 | AR52: 0 | AT52: 0 | AU52: =IF(AND(N(I52)>0,TYPE(VLOOKUP(I52,Hraci!$A$5:$A$800,1,0))>3),1,0) + IF(AND(N(O52)>0,TYPE(VLOOKUP(O52,Hraci!$A$5:$A$800,1,0))>3),1,0) + IF(AND(N(U52)>0,TYPE(VLOOKUP(U52,Hraci!$A$5:$A$800,1,0))>3),1,0) -> 0
A53: 0 | B53: 0 | C53: 0 | D53: 99999 | E53: 9999 | F53: 90000000900000990000230307 | G53: TRUE | H53: 43 | M53: 9999 | N53: 0 | S53: 9999 | T53: 0 | Y53: 9999 | Z53: 0 | AE53: 9999 | AF53: 0 | AH53: =IF(TYPE(VLOOKUP(H53,Centrum!$A$3:$E$130,5,0))<4,VLOOKUP(H53,Centrum!$A$3:$E$130,5,0),0) -> 0 | AI53: =IF(N($AH53)>0,VLOOKUP($AH53,Body!$A$4:$F$259,5,0),"") ->  | AJ53: =IF(N($AH53)>0,VLOOKUP($AH53,Body!$A$4:$F$259,6,0),"") ->  | AK53: =IF(N($AH53)>0,VLOOKUP($AH53,Body!$A$4:$F$259,2,0),"") ->  | AM53: 0 | AN53: =IF(OR(TYPE(I53)>1,TYPE(MATCH(I53,I54:I$139,0))>1),0,MATCH(I53,I54:I$139,0))+IF(OR(TYPE(I53)>1,TYPE(MATCH(I53,O$11:O$139,0))>1),0,MATCH(I53,O$11:O$139,0))+IF(OR(TYPE(I53)>1,TYPE(MATCH(I53,U$11:U$139,0))>1),0,MATCH(I53,U$11:U$139,0))+IF(OR(TYPE(I53)>1,TYPE(MATCH(I53,AA$11:AA$139,0))>1),0,MATCH(I53,AA$11:AA$139,0)) -> 0 | AO53: =IF(OR(TYPE(O53)>1,TYPE(MATCH(O53,I$11:I$139,0))>1),0,MATCH(O53,I$11:I$139,0))+IF(OR(TYPE(O53)>1,TYPE(MATCH(O53,O54:O$139,0))>1),0,MATCH(O53,O54:O$139,0))+IF(OR(TYPE(O53)>1,TYPE(MATCH(O53,U$11:U$139,0))>1),0,MATCH(O53,U$11:U$139,0))+IF(OR(TYPE(O53)>1,TYPE(MATCH(O53,AA$11:AA$139,0))>1),0,MATCH(O53,AA$11:AA$139,0)) -> 0 | AP53: =IF(OR(TYPE(U53)>1,TYPE(MATCH(U53,I$11:I$139,0))>1),0,MATCH(U53,I$11:I$139,0))+IF(OR(TYPE(U53)>1,TYPE(MATCH(U53,O$11:O$139,0))>1),0,MATCH(U53,O$11:O$139,0))+IF(OR(TYPE(U53)>1,TYPE(MATCH(U53,U54:U$139,0))>1),0,MATCH(U53,U54:U$139,0))+IF(OR(TYPE(U53)>1,TYPE(MATCH(U53,AA$11:AA$139,0))>1),0,MATCH(U53,AA$11:AA$139,0)) -> 0 | AQ53: =IF(OR(TYPE(AA53)>1,TYPE(MATCH(AA53,I$11:I$139,0))>1),0,MATCH(AA53,I$11:I$139,0))+IF(OR(TYPE(AA53)>1,TYPE(MATCH(AA53,O$11:O$139,0))>1),0,MATCH(AA53,O$11:O$139,0))+IF(OR(TYPE(AA53)>1,TYPE(MATCH(AA53,U$11:U$139,0))>1),0,MATCH(U53,U$11:U$139,0))+IF(OR(TYPE(AA53)>1,TYPE(MATCH(AA53,AA54:AA$139,0))>1),0,MATCH(AA53,AA54:AA$139,0)) -> 0 | AR53: 0 | AT53: 0 | AU53: =IF(AND(N(I53)>0,TYPE(VLOOKUP(I53,Hraci!$A$5:$A$800,1,0))>3),1,0) + IF(AND(N(O53)>0,TYPE(VLOOKUP(O53,Hraci!$A$5:$A$800,1,0))>3),1,0) + IF(AND(N(U53)>0,TYPE(VLOOKUP(U53,Hraci!$A$5:$A$800,1,0))>3),1,0) -> 0
A54: 0 | B54: 0 | C54: 0 | D54: 99999 | E54: 9999 | F54: 90000000900000990000670991 | G54: TRUE | H54: 44 | M54: 9999 | N54: 0 | S54: 9999 | T54: 0 | Y54: 9999 | Z54: 0 | AE54: 9999 | AF54: 0 | AH54: =IF(TYPE(VLOOKUP(H54,Centrum!$A$3:$E$130,5,0))<4,VLOOKUP(H54,Centrum!$A$3:$E$130,5,0),0) -> 0 | AI54: =IF(N($AH54)>0,VLOOKUP($AH54,Body!$A$4:$F$259,5,0),"") ->  | AJ54: =IF(N($AH54)>0,VLOOKUP($AH54,Body!$A$4:$F$259,6,0),"") ->  | AK54: =IF(N($AH54)>0,VLOOKUP($AH54,Body!$A$4:$F$259,2,0),"") ->  | AM54: 0 | AN54: =IF(OR(TYPE(I54)>1,TYPE(MATCH(I54,I55:I$139,0))>1),0,MATCH(I54,I55:I$139,0))+IF(OR(TYPE(I54)>1,TYPE(MATCH(I54,O$11:O$139,0))>1),0,MATCH(I54,O$11:O$139,0))+IF(OR(TYPE(I54)>1,TYPE(MATCH(I54,U$11:U$139,0))>1),0,MATCH(I54,U$11:U$139,0))+IF(OR(TYPE(I54)>1,TYPE(MATCH(I54,AA$11:AA$139,0))>1),0,MATCH(I54,AA$11:AA$139,0)) -> 0 | AO54: =IF(OR(TYPE(O54)>1,TYPE(MATCH(O54,I$11:I$139,0))>1),0,MATCH(O54,I$11:I$139,0))+IF(OR(TYPE(O54)>1,TYPE(MATCH(O54,O55:O$139,0))>1),0,MATCH(O54,O55:O$139,0))+IF(OR(TYPE(O54)>1,TYPE(MATCH(O54,U$11:U$139,0))>1),0,MATCH(O54,U$11:U$139,0))+IF(OR(TYPE(O54)>1,TYPE(MATCH(O54,AA$11:AA$139,0))>1),0,MATCH(O54,AA$11:AA$139,0)) -> 0 | AP54: =IF(OR(TYPE(U54)>1,TYPE(MATCH(U54,I$11:I$139,0))>1),0,MATCH(U54,I$11:I$139,0))+IF(OR(TYPE(U54)>1,TYPE(MATCH(U54,O$11:O$139,0))>1),0,MATCH(U54,O$11:O$139,0))+IF(OR(TYPE(U54)>1,TYPE(MATCH(U54,U55:U$139,0))>1),0,MATCH(U54,U55:U$139,0))+IF(OR(TYPE(U54)>1,TYPE(MATCH(U54,AA$11:AA$139,0))>1),0,MATCH(U54,AA$11:AA$139,0)) -> 0 | AQ54: =IF(OR(TYPE(AA54)>1,TYPE(MATCH(AA54,I$11:I$139,0))>1),0,MATCH(AA54,I$11:I$139,0))+IF(OR(TYPE(AA54)>1,TYPE(MATCH(AA54,O$11:O$139,0))>1),0,MATCH(AA54,O$11:O$139,0))+IF(OR(TYPE(AA54)>1,TYPE(MATCH(AA54,U$11:U$139,0))>1),0,MATCH(U54,U$11:U$139,0))+IF(OR(TYPE(AA54)>1,TYPE(MATCH(AA54,AA55:AA$139,0))>1),0,MATCH(AA54,AA55:AA$139,0)) -> 0 | AR54: 0 | AT54: 0 | AU54: =IF(AND(N(I54)>0,TYPE(VLOOKUP(I54,Hraci!$A$5:$A$800,1,0))>3),1,0) + IF(AND(N(O54)>0,TYPE(VLOOKUP(O54,Hraci!$A$5:$A$800,1,0))>3),1,0) + IF(AND(N(U54)>0,TYPE(VLOOKUP(U54,Hraci!$A$5:$A$800,1,0))>3),1,0) -> 0
A55: 0 | B55: 0 | C55: 0 | D55: 99999 | E55: 9999 | F55: 90000000900000990000924518 | G55: TRUE | H55: 45 | M55: 9999 | N55: 0 | S55: 9999 | T55: 0 | Y55: 9999 | Z55: 0 | AE55: 9999 | AF55: 0 | AH55: =IF(TYPE(VLOOKUP(H55,Centrum!$A$3:$E$130,5,0))<4,VLOOKUP(H55,Centrum!$A$3:$E$130,5,0),0) -> 0 | AI55: =IF(N($AH55)>0,VLOOKUP($AH55,Body!$A$4:$F$259,5,0),"") ->  | AJ55: =IF(N($AH55)>0,VLOOKUP($AH55,Body!$A$4:$F$259,6,0),"") ->  | AK55: =IF(N($AH55)>0,VLOOKUP($AH55,Body!$A$4:$F$259,2,0),"") ->  | AM55: 0 | AN55: =IF(OR(TYPE(I55)>1,TYPE(MATCH(I55,I56:I$139,0))>1),0,MATCH(I55,I56:I$139,0))+IF(OR(TYPE(I55)>1,TYPE(MATCH(I55,O$11:O$139,0))>1),0,MATCH(I55,O$11:O$139,0))+IF(OR(TYPE(I55)>1,TYPE(MATCH(I55,U$11:U$139,0))>1),0,MATCH(I55,U$11:U$139,0))+IF(OR(TYPE(I55)>1,TYPE(MATCH(I55,AA$11:AA$139,0))>1),0,MATCH(I55,AA$11:AA$139,0)) -> 0 | AO55: =IF(OR(TYPE(O55)>1,TYPE(MATCH(O55,I$11:I$139,0))>1),0,MATCH(O55,I$11:I$139,0))+IF(OR(TYPE(O55)>1,TYPE(MATCH(O55,O56:O$139,0))>1),0,MATCH(O55,O56:O$139,0))+IF(OR(TYPE(O55)>1,TYPE(MATCH(O55,U$11:U$139,0))>1),0,MATCH(O55,U$11:U$139,0))+IF(OR(TYPE(O55)>1,TYPE(MATCH(O55,AA$11:AA$139,0))>1),0,MATCH(O55,AA$11:AA$139,0)) -> 0 | AP55: =IF(OR(TYPE(U55)>1,TYPE(MATCH(U55,I$11:I$139,0))>1),0,MATCH(U55,I$11:I$139,0))+IF(OR(TYPE(U55)>1,TYPE(MATCH(U55,O$11:O$139,0))>1),0,MATCH(U55,O$11:O$139,0))+IF(OR(TYPE(U55)>1,TYPE(MATCH(U55,U56:U$139,0))>1),0,MATCH(U55,U56:U$139,0))+IF(OR(TYPE(U55)>1,TYPE(MATCH(U55,AA$11:AA$139,0))>1),0,MATCH(U55,AA$11:AA$139,0)) -> 0 | AQ55: =IF(OR(TYPE(AA55)>1,TYPE(MATCH(AA55,I$11:I$139,0))>1),0,MATCH(AA55,I$11:I$139,0))+IF(OR(TYPE(AA55)>1,TYPE(MATCH(AA55,O$11:O$139,0))>1),0,MATCH(AA55,O$11:O$139,0))+IF(OR(TYPE(AA55)>1,TYPE(MATCH(AA55,U$11:U$139,0))>1),0,MATCH(U55,U$11:U$139,0))+IF(OR(TYPE(AA55)>1,TYPE(MATCH(AA55,AA56:AA$139,0))>1),0,MATCH(AA55,AA56:AA$139,0)) -> 0 | AR55: 0 | AT55: 0 | AU55: =IF(AND(N(I55)>0,TYPE(VLOOKUP(I55,Hraci!$A$5:$A$800,1,0))>3),1,0) + IF(AND(N(O55)>0,TYPE(VLOOKUP(O55,Hraci!$A$5:$A$800,1,0))>3),1,0) + IF(AND(N(U55)>0,TYPE(VLOOKUP(U55,Hraci!$A$5:$A$800,1,0))>3),1,0) -> 0
A56: 0 | B56: 0 | C56: 0 | D56: 99999 | E56: 9999 | F56: 90000000900000990000728192 | G56: TRUE | H56: 46 | M56: 9999 | N56: 0 | S56: 9999 | T56: 0 | Y56: 9999 | Z56: 0 | AE56: 9999 | AF56: 0 | AH56: =IF(TYPE(VLOOKUP(H56,Centrum!$A$3:$E$130,5,0))<4,VLOOKUP(H56,Centrum!$A$3:$E$130,5,0),0) -> 0 | AI56: =IF(N($AH56)>0,VLOOKUP($AH56,Body!$A$4:$F$259,5,0),"") ->  | AJ56: =IF(N($AH56)>0,VLOOKUP($AH56,Body!$A$4:$F$259,6,0),"") ->  | AK56: =IF(N($AH56)>0,VLOOKUP($AH56,Body!$A$4:$F$259,2,0),"") ->  | AM56: 0 | AN56: =IF(OR(TYPE(I56)>1,TYPE(MATCH(I56,I57:I$139,0))>1),0,MATCH(I56,I57:I$139,0))+IF(OR(TYPE(I56)>1,TYPE(MATCH(I56,O$11:O$139,0))>1),0,MATCH(I56,O$11:O$139,0))+IF(OR(TYPE(I56)>1,TYPE(MATCH(I56,U$11:U$139,0))>1),0,MATCH(I56,U$11:U$139,0))+IF(OR(TYPE(I56)>1,TYPE(MATCH(I56,AA$11:AA$139,0))>1),0,MATCH(I56,AA$11:AA$139,0)) -> 0 | AO56: =IF(OR(TYPE(O56)>1,TYPE(MATCH(O56,I$11:I$139,0))>1),0,MATCH(O56,I$11:I$139,0))+IF(OR(TYPE(O56)>1,TYPE(MATCH(O56,O57:O$139,0))>1),0,MATCH(O56,O57:O$139,0))+IF(OR(TYPE(O56)>1,TYPE(MATCH(O56,U$11:U$139,0))>1),0,MATCH(O56,U$11:U$139,0))+IF(OR(TYPE(O56)>1,TYPE(MATCH(O56,AA$11:AA$139,0))>1),0,MATCH(O56,AA$11:AA$139,0)) -> 0 | AP56: =IF(OR(TYPE(U56)>1,TYPE(MATCH(U56,I$11:I$139,0))>1),0,MATCH(U56,I$11:I$139,0))+IF(OR(TYPE(U56)>1,TYPE(MATCH(U56,O$11:O$139,0))>1),0,MATCH(U56,O$11:O$139,0))+IF(OR(TYPE(U56)>1,TYPE(MATCH(U56,U57:U$139,0))>1),0,MATCH(U56,U57:U$139,0))+IF(OR(TYPE(U56)>1,TYPE(MATCH(U56,AA$11:AA$139,0))>1),0,MATCH(U56,AA$11:AA$139,0)) -> 0 | AQ56: =IF(OR(TYPE(AA56)>1,TYPE(MATCH(AA56,I$11:I$139,0))>1),0,MATCH(AA56,I$11:I$139,0))+IF(OR(TYPE(AA56)>1,TYPE(MATCH(AA56,O$11:O$139,0))>1),0,MATCH(AA56,O$11:O$139,0))+IF(OR(TYPE(AA56)>1,TYPE(MATCH(AA56,U$11:U$139,0))>1),0,MATCH(U56,U$11:U$139,0))+IF(OR(TYPE(AA56)>1,TYPE(MATCH(AA56,AA57:AA$139,0))>1),0,MATCH(AA56,AA57:AA$139,0)) -> 0 | AR56: 0 | AT56: 0 | AU56: =IF(AND(N(I56)>0,TYPE(VLOOKUP(I56,Hraci!$A$5:$A$800,1,0))>3),1,0) + IF(AND(N(O56)>0,TYPE(VLOOKUP(O56,Hraci!$A$5:$A$800,1,0))>3),1,0) + IF(AND(N(U56)>0,TYPE(VLOOKUP(U56,Hraci!$A$5:$A$800,1,0))>3),1,0) -> 0
A57: 0 | B57: 0 | C57: 0 | D57: 99999 | E57: 9999 | F57: 90000000900000990000330834 | G57: TRUE | H57: 47 | M57: 9999 | N57: 0 | S57: 9999 | T57: 0 | Y57: 9999 | Z57: 0 | AE57: 9999 | AF57: 0 | AH57: =IF(TYPE(VLOOKUP(H57,Centrum!$A$3:$E$130,5,0))<4,VLOOKUP(H57,Centrum!$A$3:$E$130,5,0),0) -> 0 | AI57: =IF(N($AH57)>0,VLOOKUP($AH57,Body!$A$4:$F$259,5,0),"") ->  | AJ57: =IF(N($AH57)>0,VLOOKUP($AH57,Body!$A$4:$F$259,6,0),"") ->  | AK57: =IF(N($AH57)>0,VLOOKUP($AH57,Body!$A$4:$F$259,2,0),"") ->  | AM57: 0 | AN57: =IF(OR(TYPE(I57)>1,TYPE(MATCH(I57,I58:I$139,0))>1),0,MATCH(I57,I58:I$139,0))+IF(OR(TYPE(I57)>1,TYPE(MATCH(I57,O$11:O$139,0))>1),0,MATCH(I57,O$11:O$139,0))+IF(OR(TYPE(I57)>1,TYPE(MATCH(I57,U$11:U$139,0))>1),0,MATCH(I57,U$11:U$139,0))+IF(OR(TYPE(I57)>1,TYPE(MATCH(I57,AA$11:AA$139,0))>1),0,MATCH(I57,AA$11:AA$139,0)) -> 0 | AO57: =IF(OR(TYPE(O57)>1,TYPE(MATCH(O57,I$11:I$139,0))>1),0,MATCH(O57,I$11:I$139,0))+IF(OR(TYPE(O57)>1,TYPE(MATCH(O57,O58:O$139,0))>1),0,MATCH(O57,O58:O$139,0))+IF(OR(TYPE(O57)>1,TYPE(MATCH(O57,U$11:U$139,0))>1),0,MATCH(O57,U$11:U$139,0))+IF(OR(TYPE(O57)>1,TYPE(MATCH(O57,AA$11:AA$139,0))>1),0,MATCH(O57,AA$11:AA$139,0)) -> 0 | AP57: =IF(OR(TYPE(U57)>1,TYPE(MATCH(U57,I$11:I$139,0))>1),0,MATCH(U57,I$11:I$139,0))+IF(OR(TYPE(U57)>1,TYPE(MATCH(U57,O$11:O$139,0))>1),0,MATCH(U57,O$11:O$139,0))+IF(OR(TYPE(U57)>1,TYPE(MATCH(U57,U58:U$139,0))>1),0,MATCH(U57,U58:U$139,0))+IF(OR(TYPE(U57)>1,TYPE(MATCH(U57,AA$11:AA$139,0))>1),0,MATCH(U57,AA$11:AA$139,0)) -> 0 | AQ57: =IF(OR(TYPE(AA57)>1,TYPE(MATCH(AA57,I$11:I$139,0))>1),0,MATCH(AA57,I$11:I$139,0))+IF(OR(TYPE(AA57)>1,TYPE(MATCH(AA57,O$11:O$139,0))>1),0,MATCH(AA57,O$11:O$139,0))+IF(OR(TYPE(AA57)>1,TYPE(MATCH(AA57,U$11:U$139,0))>1),0,MATCH(U57,U$11:U$139,0))+IF(OR(TYPE(AA57)>1,TYPE(MATCH(AA57,AA58:AA$139,0))>1),0,MATCH(AA57,AA58:AA$139,0)) -> 0 | AR57: 0 | AT57: 0 | AU57: =IF(AND(N(I57)>0,TYPE(VLOOKUP(I57,Hraci!$A$5:$A$800,1,0))>3),1,0) + IF(AND(N(O57)>0,TYPE(VLOOKUP(O57,Hraci!$A$5:$A$800,1,0))>3),1,0) + IF(AND(N(U57)>0,TYPE(VLOOKUP(U57,Hraci!$A$5:$A$800,1,0))>3),1,0) -> 0
A58: 0 | B58: 0 | C58: 0 | D58: 99999 | E58: 9999 | F58: 90000000900000990000166306 | G58: TRUE | H58: 48 | M58: 9999 | N58: 0 | S58: 9999 | T58: 0 | Y58: 9999 | Z58: 0 | AE58: 9999 | AF58: 0 | AH58: =IF(TYPE(VLOOKUP(H58,Centrum!$A$3:$E$130,5,0))<4,VLOOKUP(H58,Centrum!$A$3:$E$130,5,0),0) -> 0 | AI58: =IF(N($AH58)>0,VLOOKUP($AH58,Body!$A$4:$F$259,5,0),"") ->  | AJ58: =IF(N($AH58)>0,VLOOKUP($AH58,Body!$A$4:$F$259,6,0),"") ->  | AK58: =IF(N($AH58)>0,VLOOKUP($AH58,Body!$A$4:$F$259,2,0),"") ->  | AM58: 0 | AN58: =IF(OR(TYPE(I58)>1,TYPE(MATCH(I58,I59:I$139,0))>1),0,MATCH(I58,I59:I$139,0))+IF(OR(TYPE(I58)>1,TYPE(MATCH(I58,O$11:O$139,0))>1),0,MATCH(I58,O$11:O$139,0))+IF(OR(TYPE(I58)>1,TYPE(MATCH(I58,U$11:U$139,0))>1),0,MATCH(I58,U$11:U$139,0))+IF(OR(TYPE(I58)>1,TYPE(MATCH(I58,AA$11:AA$139,0))>1),0,MATCH(I58,AA$11:AA$139,0)) -> 0 | AO58: =IF(OR(TYPE(O58)>1,TYPE(MATCH(O58,I$11:I$139,0))>1),0,MATCH(O58,I$11:I$139,0))+IF(OR(TYPE(O58)>1,TYPE(MATCH(O58,O59:O$139,0))>1),0,MATCH(O58,O59:O$139,0))+IF(OR(TYPE(O58)>1,TYPE(MATCH(O58,U$11:U$139,0))>1),0,MATCH(O58,U$11:U$139,0))+IF(OR(TYPE(O58)>1,TYPE(MATCH(O58,AA$11:AA$139,0))>1),0,MATCH(O58,AA$11:AA$139,0)) -> 0 | AP58: =IF(OR(TYPE(U58)>1,TYPE(MATCH(U58,I$11:I$139,0))>1),0,MATCH(U58,I$11:I$139,0))+IF(OR(TYPE(U58)>1,TYPE(MATCH(U58,O$11:O$139,0))>1),0,MATCH(U58,O$11:O$139,0))+IF(OR(TYPE(U58)>1,TYPE(MATCH(U58,U59:U$139,0))>1),0,MATCH(U58,U59:U$139,0))+IF(OR(TYPE(U58)>1,TYPE(MATCH(U58,AA$11:AA$139,0))>1),0,MATCH(U58,AA$11:AA$139,0)) -> 0 | AQ58: =IF(OR(TYPE(AA58)>1,TYPE(MATCH(AA58,I$11:I$139,0))>1),0,MATCH(AA58,I$11:I$139,0))+IF(OR(TYPE(AA58)>1,TYPE(MATCH(AA58,O$11:O$139,0))>1),0,MATCH(AA58,O$11:O$139,0))+IF(OR(TYPE(AA58)>1,TYPE(MATCH(AA58,U$11:U$139,0))>1),0,MATCH(U58,U$11:U$139,0))+IF(OR(TYPE(AA58)>1,TYPE(MATCH(AA58,AA59:AA$139,0))>1),0,MATCH(AA58,AA59:AA$139,0)) -> 0 | AR58: 0 | AT58: 0 | AU58: =IF(AND(N(I58)>0,TYPE(VLOOKUP(I58,Hraci!$A$5:$A$800,1,0))>3),1,0) + IF(AND(N(O58)>0,TYPE(VLOOKUP(O58,Hraci!$A$5:$A$800,1,0))>3),1,0) + IF(AND(N(U58)>0,TYPE(VLOOKUP(U58,Hraci!$A$5:$A$800,1,0))>3),1,0) -> 0
A59: 0 | B59: 0 | C59: 0 | D59: 99999 | E59: 9999 | F59: 90000000900000990000595874 | G59: TRUE | H59: 49 | M59: 9999 | N59: 0 | S59: 9999 | T59: 0 | Y59: 9999 | Z59: 0 | AE59: 9999 | AF59: 0 | AH59: =IF(TYPE(VLOOKUP(H59,Centrum!$A$3:$E$130,5,0))<4,VLOOKUP(H59,Centrum!$A$3:$E$130,5,0),0) -> 0 | AI59: =IF(N($AH59)>0,VLOOKUP($AH59,Body!$A$4:$F$259,5,0),"") ->  | AJ59: =IF(N($AH59)>0,VLOOKUP($AH59,Body!$A$4:$F$259,6,0),"") ->  | AK59: =IF(N($AH59)>0,VLOOKUP($AH59,Body!$A$4:$F$259,2,0),"") ->  | AM59: 0 | AN59: =IF(OR(TYPE(I59)>1,TYPE(MATCH(I59,I60:I$139,0))>1),0,MATCH(I59,I60:I$139,0))+IF(OR(TYPE(I59)>1,TYPE(MATCH(I59,O$11:O$139,0))>1),0,MATCH(I59,O$11:O$139,0))+IF(OR(TYPE(I59)>1,TYPE(MATCH(I59,U$11:U$139,0))>1),0,MATCH(I59,U$11:U$139,0))+IF(OR(TYPE(I59)>1,TYPE(MATCH(I59,AA$11:AA$139,0))>1),0,MATCH(I59,AA$11:AA$139,0)) -> 0 | AO59: =IF(OR(TYPE(O59)>1,TYPE(MATCH(O59,I$11:I$139,0))>1),0,MATCH(O59,I$11:I$139,0))+IF(OR(TYPE(O59)>1,TYPE(MATCH(O59,O60:O$139,0))>1),0,MATCH(O59,O60:O$139,0))+IF(OR(TYPE(O59)>1,TYPE(MATCH(O59,U$11:U$139,0))>1),0,MATCH(O59,U$11:U$139,0))+IF(OR(TYPE(O59)>1,TYPE(MATCH(O59,AA$11:AA$139,0))>1),0,MATCH(O59,AA$11:AA$139,0)) -> 0 | AP59: =IF(OR(TYPE(U59)>1,TYPE(MATCH(U59,I$11:I$139,0))>1),0,MATCH(U59,I$11:I$139,0))+IF(OR(TYPE(U59)>1,TYPE(MATCH(U59,O$11:O$139,0))>1),0,MATCH(U59,O$11:O$139,0))+IF(OR(TYPE(U59)>1,TYPE(MATCH(U59,U60:U$139,0))>1),0,MATCH(U59,U60:U$139,0))+IF(OR(TYPE(U59)>1,TYPE(MATCH(U59,AA$11:AA$139,0))>1),0,MATCH(U59,AA$11:AA$139,0)) -> 0 | AQ59: =IF(OR(TYPE(AA59)>1,TYPE(MATCH(AA59,I$11:I$139,0))>1),0,MATCH(AA59,I$11:I$139,0))+IF(OR(TYPE(AA59)>1,TYPE(MATCH(AA59,O$11:O$139,0))>1),0,MATCH(AA59,O$11:O$139,0))+IF(OR(TYPE(AA59)>1,TYPE(MATCH(AA59,U$11:U$139,0))>1),0,MATCH(U59,U$11:U$139,0))+IF(OR(TYPE(AA59)>1,TYPE(MATCH(AA59,AA60:AA$139,0))>1),0,MATCH(AA59,AA60:AA$139,0)) -> 0 | AR59: 0 | AT59: 0 | AU59: =IF(AND(N(I59)>0,TYPE(VLOOKUP(I59,Hraci!$A$5:$A$800,1,0))>3),1,0) + IF(AND(N(O59)>0,TYPE(VLOOKUP(O59,Hraci!$A$5:$A$800,1,0))>3),1,0) + IF(AND(N(U59)>0,TYPE(VLOOKUP(U59,Hraci!$A$5:$A$800,1,0))>3),1,0) -> 0
A60: 0 | B60: 0 | C60: 0 | D60: 99999 | E60: 9999 | F60: 90000000900000990000987386 | G60: TRUE | H60: 50 | M60: 9999 | N60: 0 | S60: 9999 | T60: 0 | Y60: 9999 | Z60: 0 | AE60: 9999 | AF60: 0 | AH60: =IF(TYPE(VLOOKUP(H60,Centrum!$A$3:$E$130,5,0))<4,VLOOKUP(H60,Centrum!$A$3:$E$130,5,0),0) -> 0 | AI60: =IF(N($AH60)>0,VLOOKUP($AH60,Body!$A$4:$F$259,5,0),"") ->  | AJ60: =IF(N($AH60)>0,VLOOKUP($AH60,Body!$A$4:$F$259,6,0),"") ->  | AK60: =IF(N($AH60)>0,VLOOKUP($AH60,Body!$A$4:$F$259,2,0),"") ->  | AM60: 0 | AN60: =IF(OR(TYPE(I60)>1,TYPE(MATCH(I60,I61:I$139,0))>1),0,MATCH(I60,I61:I$139,0))+IF(OR(TYPE(I60)>1,TYPE(MATCH(I60,O$11:O$139,0))>1),0,MATCH(I60,O$11:O$139,0))+IF(OR(TYPE(I60)>1,TYPE(MATCH(I60,U$11:U$139,0))>1),0,MATCH(I60,U$11:U$139,0))+IF(OR(TYPE(I60)>1,TYPE(MATCH(I60,AA$11:AA$139,0))>1),0,MATCH(I60,AA$11:AA$139,0)) -> 0 | AO60: =IF(OR(TYPE(O60)>1,TYPE(MATCH(O60,I$11:I$139,0))>1),0,MATCH(O60,I$11:I$139,0))+IF(OR(TYPE(O60)>1,TYPE(MATCH(O60,O61:O$139,0))>1),0,MATCH(O60,O61:O$139,0))+IF(OR(TYPE(O60)>1,TYPE(MATCH(O60,U$11:U$139,0))>1),0,MATCH(O60,U$11:U$139,0))+IF(OR(TYPE(O60)>1,TYPE(MATCH(O60,AA$11:AA$139,0))>1),0,MATCH(O60,AA$11:AA$139,0)) -> 0 | AP60: =IF(OR(TYPE(U60)>1,TYPE(MATCH(U60,I$11:I$139,0))>1),0,MATCH(U60,I$11:I$139,0))+IF(OR(TYPE(U60)>1,TYPE(MATCH(U60,O$11:O$139,0))>1),0,MATCH(U60,O$11:O$139,0))+IF(OR(TYPE(U60)>1,TYPE(MATCH(U60,U61:U$139,0))>1),0,MATCH(U60,U61:U$139,0))+IF(OR(TYPE(U60)>1,TYPE(MATCH(U60,AA$11:AA$139,0))>1),0,MATCH(U60,AA$11:AA$139,0)) -> 0 | AQ60: =IF(OR(TYPE(AA60)>1,TYPE(MATCH(AA60,I$11:I$139,0))>1),0,MATCH(AA60,I$11:I$139,0))+IF(OR(TYPE(AA60)>1,TYPE(MATCH(AA60,O$11:O$139,0))>1),0,MATCH(AA60,O$11:O$139,0))+IF(OR(TYPE(AA60)>1,TYPE(MATCH(AA60,U$11:U$139,0))>1),0,MATCH(U60,U$11:U$139,0))+IF(OR(TYPE(AA60)>1,TYPE(MATCH(AA60,AA61:AA$139,0))>1),0,MATCH(AA60,AA61:AA$139,0)) -> 0 | AR60: 0 | AT60: 0 | AU60: =IF(AND(N(I60)>0,TYPE(VLOOKUP(I60,Hraci!$A$5:$A$800,1,0))>3),1,0) + IF(AND(N(O60)>0,TYPE(VLOOKUP(O60,Hraci!$A$5:$A$800,1,0))>3),1,0) + IF(AND(N(U60)>0,TYPE(VLOOKUP(U60,Hraci!$A$5:$A$800,1,0))>3),1,0) -> 0
A61: 0 | B61: 0 | C61: 0 | D61: 99999 | E61: 9999 | F61: 90000000900000990000768061 | G61: TRUE | H61: 51 | M61: 9999 | N61: 0 | S61: 9999 | T61: 0 | Y61: 9999 | Z61: 0 | AE61: 9999 | AF61: 0 | AH61: =IF(TYPE(VLOOKUP(H61,Centrum!$A$3:$E$130,5,0))<4,VLOOKUP(H61,Centrum!$A$3:$E$130,5,0),0) -> 0 | AI61: =IF(N($AH61)>0,VLOOKUP($AH61,Body!$A$4:$F$259,5,0),"") ->  | AJ61: =IF(N($AH61)>0,VLOOKUP($AH61,Body!$A$4:$F$259,6,0),"") ->  | AK61: =IF(N($AH61)>0,VLOOKUP($AH61,Body!$A$4:$F$259,2,0),"") ->  | AM61: 0 | AN61: =IF(OR(TYPE(I61)>1,TYPE(MATCH(I61,I62:I$139,0))>1),0,MATCH(I61,I62:I$139,0))+IF(OR(TYPE(I61)>1,TYPE(MATCH(I61,O$11:O$139,0))>1),0,MATCH(I61,O$11:O$139,0))+IF(OR(TYPE(I61)>1,TYPE(MATCH(I61,U$11:U$139,0))>1),0,MATCH(I61,U$11:U$139,0))+IF(OR(TYPE(I61)>1,TYPE(MATCH(I61,AA$11:AA$139,0))>1),0,MATCH(I61,AA$11:AA$139,0)) -> 0 | AO61: =IF(OR(TYPE(O61)>1,TYPE(MATCH(O61,I$11:I$139,0))>1),0,MATCH(O61,I$11:I$139,0))+IF(OR(TYPE(O61)>1,TYPE(MATCH(O61,O62:O$139,0))>1),0,MATCH(O61,O62:O$139,0))+IF(OR(TYPE(O61)>1,TYPE(MATCH(O61,U$11:U$139,0))>1),0,MATCH(O61,U$11:U$139,0))+IF(OR(TYPE(O61)>1,TYPE(MATCH(O61,AA$11:AA$139,0))>1),0,MATCH(O61,AA$11:AA$139,0)) -> 0 | AP61: =IF(OR(TYPE(U61)>1,TYPE(MATCH(U61,I$11:I$139,0))>1),0,MATCH(U61,I$11:I$139,0))+IF(OR(TYPE(U61)>1,TYPE(MATCH(U61,O$11:O$139,0))>1),0,MATCH(U61,O$11:O$139,0))+IF(OR(TYPE(U61)>1,TYPE(MATCH(U61,U62:U$139,0))>1),0,MATCH(U61,U62:U$139,0))+IF(OR(TYPE(U61)>1,TYPE(MATCH(U61,AA$11:AA$139,0))>1),0,MATCH(U61,AA$11:AA$139,0)) -> 0 | AQ61: =IF(OR(TYPE(AA61)>1,TYPE(MATCH(AA61,I$11:I$139,0))>1),0,MATCH(AA61,I$11:I$139,0))+IF(OR(TYPE(AA61)>1,TYPE(MATCH(AA61,O$11:O$139,0))>1),0,MATCH(AA61,O$11:O$139,0))+IF(OR(TYPE(AA61)>1,TYPE(MATCH(AA61,U$11:U$139,0))>1),0,MATCH(U61,U$11:U$139,0))+IF(OR(TYPE(AA61)>1,TYPE(MATCH(AA61,AA62:AA$139,0))>1),0,MATCH(AA61,AA62:AA$139,0)) -> 0 | AR61: 0 | AT61: 0 | AU61: =IF(AND(N(I61)>0,TYPE(VLOOKUP(I61,Hraci!$A$5:$A$800,1,0))>3),1,0) + IF(AND(N(O61)>0,TYPE(VLOOKUP(O61,Hraci!$A$5:$A$800,1,0))>3),1,0) + IF(AND(N(U61)>0,TYPE(VLOOKUP(U61,Hraci!$A$5:$A$800,1,0))>3),1,0) -> 0
A62: 0 | B62: 0 | C62: 0 | D62: 99999 | E62: 9999 | F62: 90000000900000990000201290 | G62: TRUE | H62: 52 | M62: 9999 | N62: 0 | S62: 9999 | T62: 0 | Y62: 9999 | Z62: 0 | AE62: 9999 | AF62: 0 | AH62: =IF(TYPE(VLOOKUP(H62,Centrum!$A$3:$E$130,5,0))<4,VLOOKUP(H62,Centrum!$A$3:$E$130,5,0),0) -> 0 | AI62: =IF(N($AH62)>0,VLOOKUP($AH62,Body!$A$4:$F$259,5,0),"") ->  | AJ62: =IF(N($AH62)>0,VLOOKUP($AH62,Body!$A$4:$F$259,6,0),"") ->  | AK62: =IF(N($AH62)>0,VLOOKUP($AH62,Body!$A$4:$F$259,2,0),"") ->  | AM62: 0 | AN62: =IF(OR(TYPE(I62)>1,TYPE(MATCH(I62,I63:I$139,0))>1),0,MATCH(I62,I63:I$139,0))+IF(OR(TYPE(I62)>1,TYPE(MATCH(I62,O$11:O$139,0))>1),0,MATCH(I62,O$11:O$139,0))+IF(OR(TYPE(I62)>1,TYPE(MATCH(I62,U$11:U$139,0))>1),0,MATCH(I62,U$11:U$139,0))+IF(OR(TYPE(I62)>1,TYPE(MATCH(I62,AA$11:AA$139,0))>1),0,MATCH(I62,AA$11:AA$139,0)) -> 0 | AO62: =IF(OR(TYPE(O62)>1,TYPE(MATCH(O62,I$11:I$139,0))>1),0,MATCH(O62,I$11:I$139,0))+IF(OR(TYPE(O62)>1,TYPE(MATCH(O62,O63:O$139,0))>1),0,MATCH(O62,O63:O$139,0))+IF(OR(TYPE(O62)>1,TYPE(MATCH(O62,U$11:U$139,0))>1),0,MATCH(O62,U$11:U$139,0))+IF(OR(TYPE(O62)>1,TYPE(MATCH(O62,AA$11:AA$139,0))>1),0,MATCH(O62,AA$11:AA$139,0)) -> 0 | AP62: =IF(OR(TYPE(U62)>1,TYPE(MATCH(U62,I$11:I$139,0))>1),0,MATCH(U62,I$11:I$139,0))+IF(OR(TYPE(U62)>1,TYPE(MATCH(U62,O$11:O$139,0))>1),0,MATCH(U62,O$11:O$139,0))+IF(OR(TYPE(U62)>1,TYPE(MATCH(U62,U63:U$139,0))>1),0,MATCH(U62,U63:U$139,0))+IF(OR(TYPE(U62)>1,TYPE(MATCH(U62,AA$11:AA$139,0))>1),0,MATCH(U62,AA$11:AA$139,0)) -> 0 | AQ62: =IF(OR(TYPE(AA62)>1,TYPE(MATCH(AA62,I$11:I$139,0))>1),0,MATCH(AA62,I$11:I$139,0))+IF(OR(TYPE(AA62)>1,TYPE(MATCH(AA62,O$11:O$139,0))>1),0,MATCH(AA62,O$11:O$139,0))+IF(OR(TYPE(AA62)>1,TYPE(MATCH(AA62,U$11:U$139,0))>1),0,MATCH(U62,U$11:U$139,0))+IF(OR(TYPE(AA62)>1,TYPE(MATCH(AA62,AA63:AA$139,0))>1),0,MATCH(AA62,AA63:AA$139,0)) -> 0 | AR62: 0 | AT62: 0 | AU62: =IF(AND(N(I62)>0,TYPE(VLOOKUP(I62,Hraci!$A$5:$A$800,1,0))>3),1,0) + IF(AND(N(O62)>0,TYPE(VLOOKUP(O62,Hraci!$A$5:$A$800,1,0))>3),1,0) + IF(AND(N(U62)>0,TYPE(VLOOKUP(U62,Hraci!$A$5:$A$800,1,0))>3),1,0) -> 0
A63: 0 | B63: 0 | C63: 0 | D63: 99999 | E63: 9999 | F63: 90000000900000990000930560 | G63: TRUE | H63: 53 | M63: 9999 | N63: 0 | S63: 9999 | T63: 0 | Y63: 9999 | Z63: 0 | AE63: 9999 | AF63: 0 | AH63: =IF(TYPE(VLOOKUP(H63,Centrum!$A$3:$E$130,5,0))<4,VLOOKUP(H63,Centrum!$A$3:$E$130,5,0),0) -> 0 | AI63: =IF(N($AH63)>0,VLOOKUP($AH63,Body!$A$4:$F$259,5,0),"") ->  | AJ63: =IF(N($AH63)>0,VLOOKUP($AH63,Body!$A$4:$F$259,6,0),"") ->  | AK63: =IF(N($AH63)>0,VLOOKUP($AH63,Body!$A$4:$F$259,2,0),"") ->  | AM63: 0 | AN63: =IF(OR(TYPE(I63)>1,TYPE(MATCH(I63,I64:I$139,0))>1),0,MATCH(I63,I64:I$139,0))+IF(OR(TYPE(I63)>1,TYPE(MATCH(I63,O$11:O$139,0))>1),0,MATCH(I63,O$11:O$139,0))+IF(OR(TYPE(I63)>1,TYPE(MATCH(I63,U$11:U$139,0))>1),0,MATCH(I63,U$11:U$139,0))+IF(OR(TYPE(I63)>1,TYPE(MATCH(I63,AA$11:AA$139,0))>1),0,MATCH(I63,AA$11:AA$139,0)) -> 0 | AO63: =IF(OR(TYPE(O63)>1,TYPE(MATCH(O63,I$11:I$139,0))>1),0,MATCH(O63,I$11:I$139,0))+IF(OR(TYPE(O63)>1,TYPE(MATCH(O63,O64:O$139,0))>1),0,MATCH(O63,O64:O$139,0))+IF(OR(TYPE(O63)>1,TYPE(MATCH(O63,U$11:U$139,0))>1),0,MATCH(O63,U$11:U$139,0))+IF(OR(TYPE(O63)>1,TYPE(MATCH(O63,AA$11:AA$139,0))>1),0,MATCH(O63,AA$11:AA$139,0)) -> 0 | AP63: =IF(OR(TYPE(U63)>1,TYPE(MATCH(U63,I$11:I$139,0))>1),0,MATCH(U63,I$11:I$139,0))+IF(OR(TYPE(U63)>1,TYPE(MATCH(U63,O$11:O$139,0))>1),0,MATCH(U63,O$11:O$139,0))+IF(OR(TYPE(U63)>1,TYPE(MATCH(U63,U64:U$139,0))>1),0,MATCH(U63,U64:U$139,0))+IF(OR(TYPE(U63)>1,TYPE(MATCH(U63,AA$11:AA$139,0))>1),0,MATCH(U63,AA$11:AA$139,0)) -> 0 | AQ63: =IF(OR(TYPE(AA63)>1,TYPE(MATCH(AA63,I$11:I$139,0))>1),0,MATCH(AA63,I$11:I$139,0))+IF(OR(TYPE(AA63)>1,TYPE(MATCH(AA63,O$11:O$139,0))>1),0,MATCH(AA63,O$11:O$139,0))+IF(OR(TYPE(AA63)>1,TYPE(MATCH(AA63,U$11:U$139,0))>1),0,MATCH(U63,U$11:U$139,0))+IF(OR(TYPE(AA63)>1,TYPE(MATCH(AA63,AA64:AA$139,0))>1),0,MATCH(AA63,AA64:AA$139,0)) -> 0 | AR63: 0 | AT63: 0 | AU63: =IF(AND(N(I63)>0,TYPE(VLOOKUP(I63,Hraci!$A$5:$A$800,1,0))>3),1,0) + IF(AND(N(O63)>0,TYPE(VLOOKUP(O63,Hraci!$A$5:$A$800,1,0))>3),1,0) + IF(AND(N(U63)>0,TYPE(VLOOKUP(U63,Hraci!$A$5:$A$800,1,0))>3),1,0) -> 0
A64: 0 | B64: 0 | C64: 0 | D64: 99999 | E64: 9999 | F64: 90000000900000990000725650 | G64: TRUE | H64: 54 | M64: 9999 | N64: 0 | S64: 9999 | T64: 0 | Y64: 9999 | Z64: 0 | AE64: 9999 | AF64: 0 | AH64: =IF(TYPE(VLOOKUP(H64,Centrum!$A$3:$E$130,5,0))<4,VLOOKUP(H64,Centrum!$A$3:$E$130,5,0),0) -> 0 | AI64: =IF(N($AH64)>0,VLOOKUP($AH64,Body!$A$4:$F$259,5,0),"") ->  | AJ64: =IF(N($AH64)>0,VLOOKUP($AH64,Body!$A$4:$F$259,6,0),"") ->  | AK64: =IF(N($AH64)>0,VLOOKUP($AH64,Body!$A$4:$F$259,2,0),"") ->  | AM64: 0 | AN64: =IF(OR(TYPE(I64)>1,TYPE(MATCH(I64,I65:I$139,0))>1),0,MATCH(I64,I65:I$139,0))+IF(OR(TYPE(I64)>1,TYPE(MATCH(I64,O$11:O$139,0))>1),0,MATCH(I64,O$11:O$139,0))+IF(OR(TYPE(I64)>1,TYPE(MATCH(I64,U$11:U$139,0))>1),0,MATCH(I64,U$11:U$139,0))+IF(OR(TYPE(I64)>1,TYPE(MATCH(I64,AA$11:AA$139,0))>1),0,MATCH(I64,AA$11:AA$139,0)) -> 0 | AO64: =IF(OR(TYPE(O64)>1,TYPE(MATCH(O64,I$11:I$139,0))>1),0,MATCH(O64,I$11:I$139,0))+IF(OR(TYPE(O64)>1,TYPE(MATCH(O64,O65:O$139,0))>1),0,MATCH(O64,O65:O$139,0))+IF(OR(TYPE(O64)>1,TYPE(MATCH(O64,U$11:U$139,0))>1),0,MATCH(O64,U$11:U$139,0))+IF(OR(TYPE(O64)>1,TYPE(MATCH(O64,AA$11:AA$139,0))>1),0,MATCH(O64,AA$11:AA$139,0)) -> 0 | AP64: =IF(OR(TYPE(U64)>1,TYPE(MATCH(U64,I$11:I$139,0))>1),0,MATCH(U64,I$11:I$139,0))+IF(OR(TYPE(U64)>1,TYPE(MATCH(U64,O$11:O$139,0))>1),0,MATCH(U64,O$11:O$139,0))+IF(OR(TYPE(U64)>1,TYPE(MATCH(U64,U65:U$139,0))>1),0,MATCH(U64,U65:U$139,0))+IF(OR(TYPE(U64)>1,TYPE(MATCH(U64,AA$11:AA$139,0))>1),0,MATCH(U64,AA$11:AA$139,0)) -> 0 | AQ64: =IF(OR(TYPE(AA64)>1,TYPE(MATCH(AA64,I$11:I$139,0))>1),0,MATCH(AA64,I$11:I$139,0))+IF(OR(TYPE(AA64)>1,TYPE(MATCH(AA64,O$11:O$139,0))>1),0,MATCH(AA64,O$11:O$139,0))+IF(OR(TYPE(AA64)>1,TYPE(MATCH(AA64,U$11:U$139,0))>1),0,MATCH(U64,U$11:U$139,0))+IF(OR(TYPE(AA64)>1,TYPE(MATCH(AA64,AA65:AA$139,0))>1),0,MATCH(AA64,AA65:AA$139,0)) -> 0 | AR64: 0 | AT64: 0 | AU64: =IF(AND(N(I64)>0,TYPE(VLOOKUP(I64,Hraci!$A$5:$A$800,1,0))>3),1,0) + IF(AND(N(O64)>0,TYPE(VLOOKUP(O64,Hraci!$A$5:$A$800,1,0))>3),1,0) + IF(AND(N(U64)>0,TYPE(VLOOKUP(U64,Hraci!$A$5:$A$800,1,0))>3),1,0) -> 0
A65: 0 | B65: 0 | C65: 0 | D65: 99999 | E65: 9999 | F65: 90000000900000990000306063 | G65: TRUE | H65: 55 | M65: 9999 | N65: 0 | S65: 9999 | T65: 0 | Y65: 9999 | Z65: 0 | AE65: 9999 | AF65: 0 | AH65: =IF(TYPE(VLOOKUP(H65,Centrum!$A$3:$E$130,5,0))<4,VLOOKUP(H65,Centrum!$A$3:$E$130,5,0),0) -> 0 | AI65: =IF(N($AH65)>0,VLOOKUP($AH65,Body!$A$4:$F$259,5,0),"") ->  | AJ65: =IF(N($AH65)>0,VLOOKUP($AH65,Body!$A$4:$F$259,6,0),"") ->  | AK65: =IF(N($AH65)>0,VLOOKUP($AH65,Body!$A$4:$F$259,2,0),"") ->  | AM65: 0 | AN65: =IF(OR(TYPE(I65)>1,TYPE(MATCH(I65,I66:I$139,0))>1),0,MATCH(I65,I66:I$139,0))+IF(OR(TYPE(I65)>1,TYPE(MATCH(I65,O$11:O$139,0))>1),0,MATCH(I65,O$11:O$139,0))+IF(OR(TYPE(I65)>1,TYPE(MATCH(I65,U$11:U$139,0))>1),0,MATCH(I65,U$11:U$139,0))+IF(OR(TYPE(I65)>1,TYPE(MATCH(I65,AA$11:AA$139,0))>1),0,MATCH(I65,AA$11:AA$139,0)) -> 0 | AO65: =IF(OR(TYPE(O65)>1,TYPE(MATCH(O65,I$11:I$139,0))>1),0,MATCH(O65,I$11:I$139,0))+IF(OR(TYPE(O65)>1,TYPE(MATCH(O65,O66:O$139,0))>1),0,MATCH(O65,O66:O$139,0))+IF(OR(TYPE(O65)>1,TYPE(MATCH(O65,U$11:U$139,0))>1),0,MATCH(O65,U$11:U$139,0))+IF(OR(TYPE(O65)>1,TYPE(MATCH(O65,AA$11:AA$139,0))>1),0,MATCH(O65,AA$11:AA$139,0)) -> 0 | AP65: =IF(OR(TYPE(U65)>1,TYPE(MATCH(U65,I$11:I$139,0))>1),0,MATCH(U65,I$11:I$139,0))+IF(OR(TYPE(U65)>1,TYPE(MATCH(U65,O$11:O$139,0))>1),0,MATCH(U65,O$11:O$139,0))+IF(OR(TYPE(U65)>1,TYPE(MATCH(U65,U66:U$139,0))>1),0,MATCH(U65,U66:U$139,0))+IF(OR(TYPE(U65)>1,TYPE(MATCH(U65,AA$11:AA$139,0))>1),0,MATCH(U65,AA$11:AA$139,0)) -> 0 | AQ65: =IF(OR(TYPE(AA65)>1,TYPE(MATCH(AA65,I$11:I$139,0))>1),0,MATCH(AA65,I$11:I$139,0))+IF(OR(TYPE(AA65)>1,TYPE(MATCH(AA65,O$11:O$139,0))>1),0,MATCH(AA65,O$11:O$139,0))+IF(OR(TYPE(AA65)>1,TYPE(MATCH(AA65,U$11:U$139,0))>1),0,MATCH(U65,U$11:U$139,0))+IF(OR(TYPE(AA65)>1,TYPE(MATCH(AA65,AA66:AA$139,0))>1),0,MATCH(AA65,AA66:AA$139,0)) -> 0 | AR65: 0 | AT65: 0 | AU65: =IF(AND(N(I65)>0,TYPE(VLOOKUP(I65,Hraci!$A$5:$A$800,1,0))>3),1,0) + IF(AND(N(O65)>0,TYPE(VLOOKUP(O65,Hraci!$A$5:$A$800,1,0))>3),1,0) + IF(AND(N(U65)>0,TYPE(VLOOKUP(U65,Hraci!$A$5:$A$800,1,0))>3),1,0) -> 0
A66: 0 | B66: 0 | C66: 0 | D66: 99999 | E66: 9999 | F66: 90000000900000990000428829 | G66: TRUE | H66: 56 | M66: 9999 | N66: 0 | S66: 9999 | T66: 0 | Y66: 9999 | Z66: 0 | AE66: 9999 | AF66: 0 | AH66: =IF(TYPE(VLOOKUP(H66,Centrum!$A$3:$E$130,5,0))<4,VLOOKUP(H66,Centrum!$A$3:$E$130,5,0),0) -> 0 | AI66: =IF(N($AH66)>0,VLOOKUP($AH66,Body!$A$4:$F$259,5,0),"") ->  | AJ66: =IF(N($AH66)>0,VLOOKUP($AH66,Body!$A$4:$F$259,6,0),"") ->  | AK66: =IF(N($AH66)>0,VLOOKUP($AH66,Body!$A$4:$F$259,2,0),"") ->  | AM66: 0 | AN66: =IF(OR(TYPE(I66)>1,TYPE(MATCH(I66,I67:I$139,0))>1),0,MATCH(I66,I67:I$139,0))+IF(OR(TYPE(I66)>1,TYPE(MATCH(I66,O$11:O$139,0))>1),0,MATCH(I66,O$11:O$139,0))+IF(OR(TYPE(I66)>1,TYPE(MATCH(I66,U$11:U$139,0))>1),0,MATCH(I66,U$11:U$139,0))+IF(OR(TYPE(I66)>1,TYPE(MATCH(I66,AA$11:AA$139,0))>1),0,MATCH(I66,AA$11:AA$139,0)) -> 0 | AO66: =IF(OR(TYPE(O66)>1,TYPE(MATCH(O66,I$11:I$139,0))>1),0,MATCH(O66,I$11:I$139,0))+IF(OR(TYPE(O66)>1,TYPE(MATCH(O66,O67:O$139,0))>1),0,MATCH(O66,O67:O$139,0))+IF(OR(TYPE(O66)>1,TYPE(MATCH(O66,U$11:U$139,0))>1),0,MATCH(O66,U$11:U$139,0))+IF(OR(TYPE(O66)>1,TYPE(MATCH(O66,AA$11:AA$139,0))>1),0,MATCH(O66,AA$11:AA$139,0)) -> 0 | AP66: =IF(OR(TYPE(U66)>1,TYPE(MATCH(U66,I$11:I$139,0))>1),0,MATCH(U66,I$11:I$139,0))+IF(OR(TYPE(U66)>1,TYPE(MATCH(U66,O$11:O$139,0))>1),0,MATCH(U66,O$11:O$139,0))+IF(OR(TYPE(U66)>1,TYPE(MATCH(U66,U67:U$139,0))>1),0,MATCH(U66,U67:U$139,0))+IF(OR(TYPE(U66)>1,TYPE(MATCH(U66,AA$11:AA$139,0))>1),0,MATCH(U66,AA$11:AA$139,0)) -> 0 | AQ66: =IF(OR(TYPE(AA66)>1,TYPE(MATCH(AA66,I$11:I$139,0))>1),0,MATCH(AA66,I$11:I$139,0))+IF(OR(TYPE(AA66)>1,TYPE(MATCH(AA66,O$11:O$139,0))>1),0,MATCH(AA66,O$11:O$139,0))+IF(OR(TYPE(AA66)>1,TYPE(MATCH(AA66,U$11:U$139,0))>1),0,MATCH(U66,U$11:U$139,0))+IF(OR(TYPE(AA66)>1,TYPE(MATCH(AA66,AA67:AA$139,0))>1),0,MATCH(AA66,AA67:AA$139,0)) -> 0 | AR66: 0 | AT66: 0 | AU66: =IF(AND(N(I66)>0,TYPE(VLOOKUP(I66,Hraci!$A$5:$A$800,1,0))>3),1,0) + IF(AND(N(O66)>0,TYPE(VLOOKUP(O66,Hraci!$A$5:$A$800,1,0))>3),1,0) + IF(AND(N(U66)>0,TYPE(VLOOKUP(U66,Hraci!$A$5:$A$800,1,0))>3),1,0) -> 0
A67: 0 | B67: 0 | C67: 0 | D67: 99999 | E67: 9999 | F67: 90000000900000990000199315 | G67: TRUE | H67: 57 | M67: 9999 | N67: 0 | S67: 9999 | T67: 0 | Y67: 9999 | Z67: 0 | AE67: 9999 | AF67: 0 | AH67: =IF(TYPE(VLOOKUP(H67,Centrum!$A$3:$E$130,5,0))<4,VLOOKUP(H67,Centrum!$A$3:$E$130,5,0),0) -> 0 | AI67: =IF(N($AH67)>0,VLOOKUP($AH67,Body!$A$4:$F$259,5,0),"") ->  | AJ67: =IF(N($AH67)>0,VLOOKUP($AH67,Body!$A$4:$F$259,6,0),"") ->  | AK67: =IF(N($AH67)>0,VLOOKUP($AH67,Body!$A$4:$F$259,2,0),"") ->  | AM67: 0 | AN67: =IF(OR(TYPE(I67)>1,TYPE(MATCH(I67,I68:I$139,0))>1),0,MATCH(I67,I68:I$139,0))+IF(OR(TYPE(I67)>1,TYPE(MATCH(I67,O$11:O$139,0))>1),0,MATCH(I67,O$11:O$139,0))+IF(OR(TYPE(I67)>1,TYPE(MATCH(I67,U$11:U$139,0))>1),0,MATCH(I67,U$11:U$139,0))+IF(OR(TYPE(I67)>1,TYPE(MATCH(I67,AA$11:AA$139,0))>1),0,MATCH(I67,AA$11:AA$139,0)) -> 0 | AO67: =IF(OR(TYPE(O67)>1,TYPE(MATCH(O67,I$11:I$139,0))>1),0,MATCH(O67,I$11:I$139,0))+IF(OR(TYPE(O67)>1,TYPE(MATCH(O67,O68:O$139,0))>1),0,MATCH(O67,O68:O$139,0))+IF(OR(TYPE(O67)>1,TYPE(MATCH(O67,U$11:U$139,0))>1),0,MATCH(O67,U$11:U$139,0))+IF(OR(TYPE(O67)>1,TYPE(MATCH(O67,AA$11:AA$139,0))>1),0,MATCH(O67,AA$11:AA$139,0)) -> 0 | AP67: =IF(OR(TYPE(U67)>1,TYPE(MATCH(U67,I$11:I$139,0))>1),0,MATCH(U67,I$11:I$139,0))+IF(OR(TYPE(U67)>1,TYPE(MATCH(U67,O$11:O$139,0))>1),0,MATCH(U67,O$11:O$139,0))+IF(OR(TYPE(U67)>1,TYPE(MATCH(U67,U68:U$139,0))>1),0,MATCH(U67,U68:U$139,0))+IF(OR(TYPE(U67)>1,TYPE(MATCH(U67,AA$11:AA$139,0))>1),0,MATCH(U67,AA$11:AA$139,0)) -> 0 | AQ67: =IF(OR(TYPE(AA67)>1,TYPE(MATCH(AA67,I$11:I$139,0))>1),0,MATCH(AA67,I$11:I$139,0))+IF(OR(TYPE(AA67)>1,TYPE(MATCH(AA67,O$11:O$139,0))>1),0,MATCH(AA67,O$11:O$139,0))+IF(OR(TYPE(AA67)>1,TYPE(MATCH(AA67,U$11:U$139,0))>1),0,MATCH(U67,U$11:U$139,0))+IF(OR(TYPE(AA67)>1,TYPE(MATCH(AA67,AA68:AA$139,0))>1),0,MATCH(AA67,AA68:AA$139,0)) -> 0 | AR67: 0 | AT67: 0 | AU67: =IF(AND(N(I67)>0,TYPE(VLOOKUP(I67,Hraci!$A$5:$A$800,1,0))>3),1,0) + IF(AND(N(O67)>0,TYPE(VLOOKUP(O67,Hraci!$A$5:$A$800,1,0))>3),1,0) + IF(AND(N(U67)>0,TYPE(VLOOKUP(U67,Hraci!$A$5:$A$800,1,0))>3),1,0) -> 0
A68: 0 | B68: 0 | C68: 0 | D68: 99999 | E68: 9999 | F68: 90000000900000990000843993 | G68: TRUE | H68: 58 | M68: 9999 | N68: 0 | S68: 9999 | T68: 0 | Y68: 9999 | Z68: 0 | AE68: 9999 | AF68: 0 | AH68: =IF(TYPE(VLOOKUP(H68,Centrum!$A$3:$E$130,5,0))<4,VLOOKUP(H68,Centrum!$A$3:$E$130,5,0),0) -> 0 | AI68: =IF(N($AH68)>0,VLOOKUP($AH68,Body!$A$4:$F$259,5,0),"") ->  | AJ68: =IF(N($AH68)>0,VLOOKUP($AH68,Body!$A$4:$F$259,6,0),"") ->  | AK68: =IF(N($AH68)>0,VLOOKUP($AH68,Body!$A$4:$F$259,2,0),"") ->  | AM68: 0 | AN68: =IF(OR(TYPE(I68)>1,TYPE(MATCH(I68,I69:I$139,0))>1),0,MATCH(I68,I69:I$139,0))+IF(OR(TYPE(I68)>1,TYPE(MATCH(I68,O$11:O$139,0))>1),0,MATCH(I68,O$11:O$139,0))+IF(OR(TYPE(I68)>1,TYPE(MATCH(I68,U$11:U$139,0))>1),0,MATCH(I68,U$11:U$139,0))+IF(OR(TYPE(I68)>1,TYPE(MATCH(I68,AA$11:AA$139,0))>1),0,MATCH(I68,AA$11:AA$139,0)) -> 0 | AO68: =IF(OR(TYPE(O68)>1,TYPE(MATCH(O68,I$11:I$139,0))>1),0,MATCH(O68,I$11:I$139,0))+IF(OR(TYPE(O68)>1,TYPE(MATCH(O68,O69:O$139,0))>1),0,MATCH(O68,O69:O$139,0))+IF(OR(TYPE(O68)>1,TYPE(MATCH(O68,U$11:U$139,0))>1),0,MATCH(O68,U$11:U$139,0))+IF(OR(TYPE(O68)>1,TYPE(MATCH(O68,AA$11:AA$139,0))>1),0,MATCH(O68,AA$11:AA$139,0)) -> 0 | AP68: =IF(OR(TYPE(U68)>1,TYPE(MATCH(U68,I$11:I$139,0))>1),0,MATCH(U68,I$11:I$139,0))+IF(OR(TYPE(U68)>1,TYPE(MATCH(U68,O$11:O$139,0))>1),0,MATCH(U68,O$11:O$139,0))+IF(OR(TYPE(U68)>1,TYPE(MATCH(U68,U69:U$139,0))>1),0,MATCH(U68,U69:U$139,0))+IF(OR(TYPE(U68)>1,TYPE(MATCH(U68,AA$11:AA$139,0))>1),0,MATCH(U68,AA$11:AA$139,0)) -> 0 | AQ68: =IF(OR(TYPE(AA68)>1,TYPE(MATCH(AA68,I$11:I$139,0))>1),0,MATCH(AA68,I$11:I$139,0))+IF(OR(TYPE(AA68)>1,TYPE(MATCH(AA68,O$11:O$139,0))>1),0,MATCH(AA68,O$11:O$139,0))+IF(OR(TYPE(AA68)>1,TYPE(MATCH(AA68,U$11:U$139,0))>1),0,MATCH(U68,U$11:U$139,0))+IF(OR(TYPE(AA68)>1,TYPE(MATCH(AA68,AA69:AA$139,0))>1),0,MATCH(AA68,AA69:AA$139,0)) -> 0 | AR68: 0 | AT68: 0 | AU68: =IF(AND(N(I68)>0,TYPE(VLOOKUP(I68,Hraci!$A$5:$A$800,1,0))>3),1,0) + IF(AND(N(O68)>0,TYPE(VLOOKUP(O68,Hraci!$A$5:$A$800,1,0))>3),1,0) + IF(AND(N(U68)>0,TYPE(VLOOKUP(U68,Hraci!$A$5:$A$800,1,0))>3),1,0) -> 0
A69: 0 | B69: 0 | C69: 0 | D69: 99999 | E69: 9999 | F69: 90000000900000990000588245 | G69: TRUE | H69: 59 | M69: 9999 | N69: 0 | S69: 9999 | T69: 0 | Y69: 9999 | Z69: 0 | AE69: 9999 | AF69: 0 | AH69: =IF(TYPE(VLOOKUP(H69,Centrum!$A$3:$E$130,5,0))<4,VLOOKUP(H69,Centrum!$A$3:$E$130,5,0),0) -> 0 | AI69: =IF(N($AH69)>0,VLOOKUP($AH69,Body!$A$4:$F$259,5,0),"") ->  | AJ69: =IF(N($AH69)>0,VLOOKUP($AH69,Body!$A$4:$F$259,6,0),"") ->  | AK69: =IF(N($AH69)>0,VLOOKUP($AH69,Body!$A$4:$F$259,2,0),"") ->  | AM69: 0 | AN69: =IF(OR(TYPE(I69)>1,TYPE(MATCH(I69,I70:I$139,0))>1),0,MATCH(I69,I70:I$139,0))+IF(OR(TYPE(I69)>1,TYPE(MATCH(I69,O$11:O$139,0))>1),0,MATCH(I69,O$11:O$139,0))+IF(OR(TYPE(I69)>1,TYPE(MATCH(I69,U$11:U$139,0))>1),0,MATCH(I69,U$11:U$139,0))+IF(OR(TYPE(I69)>1,TYPE(MATCH(I69,AA$11:AA$139,0))>1),0,MATCH(I69,AA$11:AA$139,0)) -> 0 | AO69: =IF(OR(TYPE(O69)>1,TYPE(MATCH(O69,I$11:I$139,0))>1),0,MATCH(O69,I$11:I$139,0))+IF(OR(TYPE(O69)>1,TYPE(MATCH(O69,O70:O$139,0))>1),0,MATCH(O69,O70:O$139,0))+IF(OR(TYPE(O69)>1,TYPE(MATCH(O69,U$11:U$139,0))>1),0,MATCH(O69,U$11:U$139,0))+IF(OR(TYPE(O69)>1,TYPE(MATCH(O69,AA$11:AA$139,0))>1),0,MATCH(O69,AA$11:AA$139,0)) -> 0 | AP69: =IF(OR(TYPE(U69)>1,TYPE(MATCH(U69,I$11:I$139,0))>1),0,MATCH(U69,I$11:I$139,0))+IF(OR(TYPE(U69)>1,TYPE(MATCH(U69,O$11:O$139,0))>1),0,MATCH(U69,O$11:O$139,0))+IF(OR(TYPE(U69)>1,TYPE(MATCH(U69,U70:U$139,0))>1),0,MATCH(U69,U70:U$139,0))+IF(OR(TYPE(U69)>1,TYPE(MATCH(U69,AA$11:AA$139,0))>1),0,MATCH(U69,AA$11:AA$139,0)) -> 0 | AQ69: =IF(OR(TYPE(AA69)>1,TYPE(MATCH(AA69,I$11:I$139,0))>1),0,MATCH(AA69,I$11:I$139,0))+IF(OR(TYPE(AA69)>1,TYPE(MATCH(AA69,O$11:O$139,0))>1),0,MATCH(AA69,O$11:O$139,0))+IF(OR(TYPE(AA69)>1,TYPE(MATCH(AA69,U$11:U$139,0))>1),0,MATCH(U69,U$11:U$139,0))+IF(OR(TYPE(AA69)>1,TYPE(MATCH(AA69,AA70:AA$139,0))>1),0,MATCH(AA69,AA70:AA$139,0)) -> 0 | AR69: 0 | AT69: 0 | AU69: =IF(AND(N(I69)>0,TYPE(VLOOKUP(I69,Hraci!$A$5:$A$800,1,0))>3),1,0) + IF(AND(N(O69)>0,TYPE(VLOOKUP(O69,Hraci!$A$5:$A$800,1,0))>3),1,0) + IF(AND(N(U69)>0,TYPE(VLOOKUP(U69,Hraci!$A$5:$A$800,1,0))>3),1,0) -> 0
A70: 0 | B70: 0 | C70: 0 | D70: 99999 | E70: 9999 | F70: 90000000900000990000800320 | G70: TRUE | H70: 60 | M70: 9999 | N70: 0 | S70: 9999 | T70: 0 | Y70: 9999 | Z70: 0 | AE70: 9999 | AF70: 0 | AH70: =IF(TYPE(VLOOKUP(H70,Centrum!$A$3:$E$130,5,0))<4,VLOOKUP(H70,Centrum!$A$3:$E$130,5,0),0) -> 0 | AI70: =IF(N($AH70)>0,VLOOKUP($AH70,Body!$A$4:$F$259,5,0),"") ->  | AJ70: =IF(N($AH70)>0,VLOOKUP($AH70,Body!$A$4:$F$259,6,0),"") ->  | AK70: =IF(N($AH70)>0,VLOOKUP($AH70,Body!$A$4:$F$259,2,0),"") ->  | AM70: 0 | AN70: =IF(OR(TYPE(I70)>1,TYPE(MATCH(I70,I71:I$139,0))>1),0,MATCH(I70,I71:I$139,0))+IF(OR(TYPE(I70)>1,TYPE(MATCH(I70,O$11:O$139,0))>1),0,MATCH(I70,O$11:O$139,0))+IF(OR(TYPE(I70)>1,TYPE(MATCH(I70,U$11:U$139,0))>1),0,MATCH(I70,U$11:U$139,0))+IF(OR(TYPE(I70)>1,TYPE(MATCH(I70,AA$11:AA$139,0))>1),0,MATCH(I70,AA$11:AA$139,0)) -> 0 | AO70: =IF(OR(TYPE(O70)>1,TYPE(MATCH(O70,I$11:I$139,0))>1),0,MATCH(O70,I$11:I$139,0))+IF(OR(TYPE(O70)>1,TYPE(MATCH(O70,O71:O$139,0))>1),0,MATCH(O70,O71:O$139,0))+IF(OR(TYPE(O70)>1,TYPE(MATCH(O70,U$11:U$139,0))>1),0,MATCH(O70,U$11:U$139,0))+IF(OR(TYPE(O70)>1,TYPE(MATCH(O70,AA$11:AA$139,0))>1),0,MATCH(O70,AA$11:AA$139,0)) -> 0 | AP70: =IF(OR(TYPE(U70)>1,TYPE(MATCH(U70,I$11:I$139,0))>1),0,MATCH(U70,I$11:I$139,0))+IF(OR(TYPE(U70)>1,TYPE(MATCH(U70,O$11:O$139,0))>1),0,MATCH(U70,O$11:O$139,0))+IF(OR(TYPE(U70)>1,TYPE(MATCH(U70,U71:U$139,0))>1),0,MATCH(U70,U71:U$139,0))+IF(OR(TYPE(U70)>1,TYPE(MATCH(U70,AA$11:AA$139,0))>1),0,MATCH(U70,AA$11:AA$139,0)) -> 0 | AQ70: =IF(OR(TYPE(AA70)>1,TYPE(MATCH(AA70,I$11:I$139,0))>1),0,MATCH(AA70,I$11:I$139,0))+IF(OR(TYPE(AA70)>1,TYPE(MATCH(AA70,O$11:O$139,0))>1),0,MATCH(AA70,O$11:O$139,0))+IF(OR(TYPE(AA70)>1,TYPE(MATCH(AA70,U$11:U$139,0))>1),0,MATCH(U70,U$11:U$139,0))+IF(OR(TYPE(AA70)>1,TYPE(MATCH(AA70,AA71:AA$139,0))>1),0,MATCH(AA70,AA71:AA$139,0)) -> 0 | AR70: 0 | AT70: 0 | AU70: =IF(AND(N(I70)>0,TYPE(VLOOKUP(I70,Hraci!$A$5:$A$800,1,0))>3),1,0) + IF(AND(N(O70)>0,TYPE(VLOOKUP(O70,Hraci!$A$5:$A$800,1,0))>3),1,0) + IF(AND(N(U70)>0,TYPE(VLOOKUP(U70,Hraci!$A$5:$A$800,1,0))>3),1,0) -> 0
A71: 0 | B71: 0 | C71: 0 | D71: 99999 | E71: 9999 | F71: 90000000900000990000284926 | G71: TRUE | H71: 61 | M71: 9999 | N71: 0 | S71: 9999 | T71: 0 | Y71: 9999 | Z71: 0 | AE71: 9999 | AF71: 0 | AH71: =IF(TYPE(VLOOKUP(H71,Centrum!$A$3:$E$130,5,0))<4,VLOOKUP(H71,Centrum!$A$3:$E$130,5,0),0) -> 0 | AI71: =IF(N($AH71)>0,VLOOKUP($AH71,Body!$A$4:$F$259,5,0),"") ->  | AJ71: =IF(N($AH71)>0,VLOOKUP($AH71,Body!$A$4:$F$259,6,0),"") ->  | AK71: =IF(N($AH71)>0,VLOOKUP($AH71,Body!$A$4:$F$259,2,0),"") ->  | AM71: 0 | AN71: =IF(OR(TYPE(I71)>1,TYPE(MATCH(I71,I72:I$139,0))>1),0,MATCH(I71,I72:I$139,0))+IF(OR(TYPE(I71)>1,TYPE(MATCH(I71,O$11:O$139,0))>1),0,MATCH(I71,O$11:O$139,0))+IF(OR(TYPE(I71)>1,TYPE(MATCH(I71,U$11:U$139,0))>1),0,MATCH(I71,U$11:U$139,0))+IF(OR(TYPE(I71)>1,TYPE(MATCH(I71,AA$11:AA$139,0))>1),0,MATCH(I71,AA$11:AA$139,0)) -> 0 | AO71: =IF(OR(TYPE(O71)>1,TYPE(MATCH(O71,I$11:I$139,0))>1),0,MATCH(O71,I$11:I$139,0))+IF(OR(TYPE(O71)>1,TYPE(MATCH(O71,O72:O$139,0))>1),0,MATCH(O71,O72:O$139,0))+IF(OR(TYPE(O71)>1,TYPE(MATCH(O71,U$11:U$139,0))>1),0,MATCH(O71,U$11:U$139,0))+IF(OR(TYPE(O71)>1,TYPE(MATCH(O71,AA$11:AA$139,0))>1),0,MATCH(O71,AA$11:AA$139,0)) -> 0 | AP71: =IF(OR(TYPE(U71)>1,TYPE(MATCH(U71,I$11:I$139,0))>1),0,MATCH(U71,I$11:I$139,0))+IF(OR(TYPE(U71)>1,TYPE(MATCH(U71,O$11:O$139,0))>1),0,MATCH(U71,O$11:O$139,0))+IF(OR(TYPE(U71)>1,TYPE(MATCH(U71,U72:U$139,0))>1),0,MATCH(U71,U72:U$139,0))+IF(OR(TYPE(U71)>1,TYPE(MATCH(U71,AA$11:AA$139,0))>1),0,MATCH(U71,AA$11:AA$139,0)) -> 0 | AQ71: =IF(OR(TYPE(AA71)>1,TYPE(MATCH(AA71,I$11:I$139,0))>1),0,MATCH(AA71,I$11:I$139,0))+IF(OR(TYPE(AA71)>1,TYPE(MATCH(AA71,O$11:O$139,0))>1),0,MATCH(AA71,O$11:O$139,0))+IF(OR(TYPE(AA71)>1,TYPE(MATCH(AA71,U$11:U$139,0))>1),0,MATCH(U71,U$11:U$139,0))+IF(OR(TYPE(AA71)>1,TYPE(MATCH(AA71,AA72:AA$139,0))>1),0,MATCH(AA71,AA72:AA$139,0)) -> 0 | AR71: 0 | AT71: 0 | AU71: =IF(AND(N(I71)>0,TYPE(VLOOKUP(I71,Hraci!$A$5:$A$800,1,0))>3),1,0) + IF(AND(N(O71)>0,TYPE(VLOOKUP(O71,Hraci!$A$5:$A$800,1,0))>3),1,0) + IF(AND(N(U71)>0,TYPE(VLOOKUP(U71,Hraci!$A$5:$A$800,1,0))>3),1,0) -> 0
A72: 0 | B72: 0 | C72: 0 | D72: 99999 | E72: 9999 | F72: 90000000900000990000032571 | G72: TRUE | H72: 62 | M72: 9999 | N72: 0 | S72: 9999 | T72: 0 | Y72: 9999 | Z72: 0 | AE72: 9999 | AF72: 0 | AH72: =IF(TYPE(VLOOKUP(H72,Centrum!$A$3:$E$130,5,0))<4,VLOOKUP(H72,Centrum!$A$3:$E$130,5,0),0) -> 0 | AI72: =IF(N($AH72)>0,VLOOKUP($AH72,Body!$A$4:$F$259,5,0),"") ->  | AJ72: =IF(N($AH72)>0,VLOOKUP($AH72,Body!$A$4:$F$259,6,0),"") ->  | AK72: =IF(N($AH72)>0,VLOOKUP($AH72,Body!$A$4:$F$259,2,0),"") ->  | AM72: 0 | AN72: =IF(OR(TYPE(I72)>1,TYPE(MATCH(I72,I73:I$139,0))>1),0,MATCH(I72,I73:I$139,0))+IF(OR(TYPE(I72)>1,TYPE(MATCH(I72,O$11:O$139,0))>1),0,MATCH(I72,O$11:O$139,0))+IF(OR(TYPE(I72)>1,TYPE(MATCH(I72,U$11:U$139,0))>1),0,MATCH(I72,U$11:U$139,0))+IF(OR(TYPE(I72)>1,TYPE(MATCH(I72,AA$11:AA$139,0))>1),0,MATCH(I72,AA$11:AA$139,0)) -> 0 | AO72: =IF(OR(TYPE(O72)>1,TYPE(MATCH(O72,I$11:I$139,0))>1),0,MATCH(O72,I$11:I$139,0))+IF(OR(TYPE(O72)>1,TYPE(MATCH(O72,O73:O$139,0))>1),0,MATCH(O72,O73:O$139,0))+IF(OR(TYPE(O72)>1,TYPE(MATCH(O72,U$11:U$139,0))>1),0,MATCH(O72,U$11:U$139,0))+IF(OR(TYPE(O72)>1,TYPE(MATCH(O72,AA$11:AA$139,0))>1),0,MATCH(O72,AA$11:AA$139,0)) -> 0 | AP72: =IF(OR(TYPE(U72)>1,TYPE(MATCH(U72,I$11:I$139,0))>1),0,MATCH(U72,I$11:I$139,0))+IF(OR(TYPE(U72)>1,TYPE(MATCH(U72,O$11:O$139,0))>1),0,MATCH(U72,O$11:O$139,0))+IF(OR(TYPE(U72)>1,TYPE(MATCH(U72,U73:U$139,0))>1),0,MATCH(U72,U73:U$139,0))+IF(OR(TYPE(U72)>1,TYPE(MATCH(U72,AA$11:AA$139,0))>1),0,MATCH(U72,AA$11:AA$139,0)) -> 0 | AQ72: =IF(OR(TYPE(AA72)>1,TYPE(MATCH(AA72,I$11:I$139,0))>1),0,MATCH(AA72,I$11:I$139,0))+IF(OR(TYPE(AA72)>1,TYPE(MATCH(AA72,O$11:O$139,0))>1),0,MATCH(AA72,O$11:O$139,0))+IF(OR(TYPE(AA72)>1,TYPE(MATCH(AA72,U$11:U$139,0))>1),0,MATCH(U72,U$11:U$139,0))+IF(OR(TYPE(AA72)>1,TYPE(MATCH(AA72,AA73:AA$139,0))>1),0,MATCH(AA72,AA73:AA$139,0)) -> 0 | AR72: 0 | AT72: 0 | AU72: =IF(AND(N(I72)>0,TYPE(VLOOKUP(I72,Hraci!$A$5:$A$800,1,0))>3),1,0) + IF(AND(N(O72)>0,TYPE(VLOOKUP(O72,Hraci!$A$5:$A$800,1,0))>3),1,0) + IF(AND(N(U72)>0,TYPE(VLOOKUP(U72,Hraci!$A$5:$A$800,1,0))>3),1,0) -> 0
A73: 0 | B73: 0 | C73: 0 | D73: 99999 | E73: 9999 | F73: 90000000900000990000288114 | G73: TRUE | H73: 63 | M73: 9999 | N73: 0 | S73: 9999 | T73: 0 | Y73: 9999 | Z73: 0 | AE73: 9999 | AF73: 0 | AH73: =IF(TYPE(VLOOKUP(H73,Centrum!$A$3:$E$130,5,0))<4,VLOOKUP(H73,Centrum!$A$3:$E$130,5,0),0) -> 0 | AI73: =IF(N($AH73)>0,VLOOKUP($AH73,Body!$A$4:$F$259,5,0),"") ->  | AJ73: =IF(N($AH73)>0,VLOOKUP($AH73,Body!$A$4:$F$259,6,0),"") ->  | AK73: =IF(N($AH73)>0,VLOOKUP($AH73,Body!$A$4:$F$259,2,0),"") ->  | AM73: 0 | AN73: =IF(OR(TYPE(I73)>1,TYPE(MATCH(I73,I74:I$139,0))>1),0,MATCH(I73,I74:I$139,0))+IF(OR(TYPE(I73)>1,TYPE(MATCH(I73,O$11:O$139,0))>1),0,MATCH(I73,O$11:O$139,0))+IF(OR(TYPE(I73)>1,TYPE(MATCH(I73,U$11:U$139,0))>1),0,MATCH(I73,U$11:U$139,0))+IF(OR(TYPE(I73)>1,TYPE(MATCH(I73,AA$11:AA$139,0))>1),0,MATCH(I73,AA$11:AA$139,0)) -> 0 | AO73: =IF(OR(TYPE(O73)>1,TYPE(MATCH(O73,I$11:I$139,0))>1),0,MATCH(O73,I$11:I$139,0))+IF(OR(TYPE(O73)>1,TYPE(MATCH(O73,O74:O$139,0))>1),0,MATCH(O73,O74:O$139,0))+IF(OR(TYPE(O73)>1,TYPE(MATCH(O73,U$11:U$139,0))>1),0,MATCH(O73,U$11:U$139,0))+IF(OR(TYPE(O73)>1,TYPE(MATCH(O73,AA$11:AA$139,0))>1),0,MATCH(O73,AA$11:AA$139,0)) -> 0 | AP73: =IF(OR(TYPE(U73)>1,TYPE(MATCH(U73,I$11:I$139,0))>1),0,MATCH(U73,I$11:I$139,0))+IF(OR(TYPE(U73)>1,TYPE(MATCH(U73,O$11:O$139,0))>1),0,MATCH(U73,O$11:O$139,0))+IF(OR(TYPE(U73)>1,TYPE(MATCH(U73,U74:U$139,0))>1),0,MATCH(U73,U74:U$139,0))+IF(OR(TYPE(U73)>1,TYPE(MATCH(U73,AA$11:AA$139,0))>1),0,MATCH(U73,AA$11:AA$139,0)) -> 0 | AQ73: =IF(OR(TYPE(AA73)>1,TYPE(MATCH(AA73,I$11:I$139,0))>1),0,MATCH(AA73,I$11:I$139,0))+IF(OR(TYPE(AA73)>1,TYPE(MATCH(AA73,O$11:O$139,0))>1),0,MATCH(AA73,O$11:O$139,0))+IF(OR(TYPE(AA73)>1,TYPE(MATCH(AA73,U$11:U$139,0))>1),0,MATCH(U73,U$11:U$139,0))+IF(OR(TYPE(AA73)>1,TYPE(MATCH(AA73,AA74:AA$139,0))>1),0,MATCH(AA73,AA74:AA$139,0)) -> 0 | AR73: 0 | AT73: 0 | AU73: =IF(AND(N(I73)>0,TYPE(VLOOKUP(I73,Hraci!$A$5:$A$800,1,0))>3),1,0) + IF(AND(N(O73)>0,TYPE(VLOOKUP(O73,Hraci!$A$5:$A$800,1,0))>3),1,0) + IF(AND(N(U73)>0,TYPE(VLOOKUP(U73,Hraci!$A$5:$A$800,1,0))>3),1,0) -> 0
A74: 0 | B74: 0 | C74: 0 | D74: 99999 | E74: 9999 | F74: 90000000900000990000524779 | G74: TRUE | H74: 64 | M74: 9999 | N74: 0 | S74: 9999 | T74: 0 | Y74: 9999 | Z74: 0 | AE74: 9999 | AF74: 0 | AH74: =IF(TYPE(VLOOKUP(H74,Centrum!$A$3:$E$130,5,0))<4,VLOOKUP(H74,Centrum!$A$3:$E$130,5,0),0) -> 0 | AI74: =IF(N($AH74)>0,VLOOKUP($AH74,Body!$A$4:$F$259,5,0),"") ->  | AJ74: =IF(N($AH74)>0,VLOOKUP($AH74,Body!$A$4:$F$259,6,0),"") ->  | AK74: =IF(N($AH74)>0,VLOOKUP($AH74,Body!$A$4:$F$259,2,0),"") ->  | AM74: 0 | AN74: =IF(OR(TYPE(I74)>1,TYPE(MATCH(I74,I75:I$139,0))>1),0,MATCH(I74,I75:I$139,0))+IF(OR(TYPE(I74)>1,TYPE(MATCH(I74,O$11:O$139,0))>1),0,MATCH(I74,O$11:O$139,0))+IF(OR(TYPE(I74)>1,TYPE(MATCH(I74,U$11:U$139,0))>1),0,MATCH(I74,U$11:U$139,0))+IF(OR(TYPE(I74)>1,TYPE(MATCH(I74,AA$11:AA$139,0))>1),0,MATCH(I74,AA$11:AA$139,0)) -> 0 | AO74: =IF(OR(TYPE(O74)>1,TYPE(MATCH(O74,I$11:I$139,0))>1),0,MATCH(O74,I$11:I$139,0))+IF(OR(TYPE(O74)>1,TYPE(MATCH(O74,O75:O$139,0))>1),0,MATCH(O74,O75:O$139,0))+IF(OR(TYPE(O74)>1,TYPE(MATCH(O74,U$11:U$139,0))>1),0,MATCH(O74,U$11:U$139,0))+IF(OR(TYPE(O74)>1,TYPE(MATCH(O74,AA$11:AA$139,0))>1),0,MATCH(O74,AA$11:AA$139,0)) -> 0 | AP74: =IF(OR(TYPE(U74)>1,TYPE(MATCH(U74,I$11:I$139,0))>1),0,MATCH(U74,I$11:I$139,0))+IF(OR(TYPE(U74)>1,TYPE(MATCH(U74,O$11:O$139,0))>1),0,MATCH(U74,O$11:O$139,0))+IF(OR(TYPE(U74)>1,TYPE(MATCH(U74,U75:U$139,0))>1),0,MATCH(U74,U75:U$139,0))+IF(OR(TYPE(U74)>1,TYPE(MATCH(U74,AA$11:AA$139,0))>1),0,MATCH(U74,AA$11:AA$139,0)) -> 0 | AQ74: =IF(OR(TYPE(AA74)>1,TYPE(MATCH(AA74,I$11:I$139,0))>1),0,MATCH(AA74,I$11:I$139,0))+IF(OR(TYPE(AA74)>1,TYPE(MATCH(AA74,O$11:O$139,0))>1),0,MATCH(AA74,O$11:O$139,0))+IF(OR(TYPE(AA74)>1,TYPE(MATCH(AA74,U$11:U$139,0))>1),0,MATCH(U74,U$11:U$139,0))+IF(OR(TYPE(AA74)>1,TYPE(MATCH(AA74,AA75:AA$139,0))>1),0,MATCH(AA74,AA75:AA$139,0)) -> 0 | AR74: 0 | AT74: 0 | AU74: =IF(AND(N(I74)>0,TYPE(VLOOKUP(I74,Hraci!$A$5:$A$800,1,0))>3),1,0) + IF(AND(N(O74)>0,TYPE(VLOOKUP(O74,Hraci!$A$5:$A$800,1,0))>3),1,0) + IF(AND(N(U74)>0,TYPE(VLOOKUP(U74,Hraci!$A$5:$A$800,1,0))>3),1,0) -> 0
A75: =IF(OR(LEFT(J75,1)=" ",ISBLANK(J75)),0,1)+IF(OR(LEFT(P75,1)=" ",ISBLANK(P75)),0,1)+IF(OR(LEFT(V75,1)=" ",ISBLANK(V75)),0,1) -> 0 | B75: =IF(AND(TYPE(G75<15),G75=FALSE),1,0) -> 0 | C75: =IF(B75=0,0,N75+T75+Z75) -> 0 | D75: =IF(B75=0,99999,M75+S75+Y75) -> 99999 | E75: =MIN(M75,S75,Y75) -> 9999 | F75: =CONCATENATE(IF(AND($P$4=1,H75>$O$7),"0","9"),TEXT(B75,"0"),IF(AND($P$4=1,H75>$O$7),"000000",TEXT(1000*C75,"000000")),IF(AND($P$4=1,H75>$O$7),"000000",TEXT(999999-D75,"000000")),IF(AND($P$4=1,H75>$O$7),"000000",TEXT(999999-E75,"000000")),TEXT(999999*RAND(),"000000")) -> 90000000900000990000921931 | G75: =IF(OR($K$6>A75,AR75>0),TRUE,FALSE) -> TRUE | H75: =ROW(H75)-10 -> 65 | M75: 9999 | N75: 0 | S75: 9999 | T75: 0 | Y75: 9999 | Z75: 0 | AE75: 9999 | AF75: 0 | AH75: =IF(TYPE(VLOOKUP(H75,Centrum!$A$3:$E$130,5,0))<4,VLOOKUP(H75,Centrum!$A$3:$E$130,5,0),0) -> 0 | AI75: =IF(N($AH75)>0,VLOOKUP($AH75,Body!$A$4:$F$259,5,0),"") ->  | AJ75: =IF(N($AH75)>0,VLOOKUP($AH75,Body!$A$4:$F$259,6,0),"") ->  | AK75: =IF(N($AH75)>0,VLOOKUP($AH75,Body!$A$4:$F$259,2,0),"") ->  | AL75: =IF(N(H75)>$K$7,"",CONCATENATE(IF($AK$7="","",H75&" "),L75,IF(L75="",""," - "),J75," ",K75)) ->  | AM75: =C75 -> 0 | AN75: =IF(OR(TYPE(I75)>1,TYPE(MATCH(I75,I76:I$139,0))>1),0,MATCH(I75,I76:I$139,0))+IF(OR(TYPE(I75)>1,TYPE(MATCH(I75,O$11:O$139,0))>1),0,MATCH(I75,O$11:O$139,0))+IF(OR(TYPE(I75)>1,TYPE(MATCH(I75,U$11:U$139,0))>1),0,MATCH(I75,U$11:U$139,0))+IF(OR(TYPE(I75)>1,TYPE(MATCH(I75,AA$11:AA$139,0))>1),0,MATCH(I75,AA$11:AA$139,0)) -> 0 | AO75: =IF(OR(TYPE(O75)>1,TYPE(MATCH(O75,I$11:I$139,0))>1),0,MATCH(O75,I$11:I$139,0))+IF(OR(TYPE(O75)>1,TYPE(MATCH(O75,O76:O$139,0))>1),0,MATCH(O75,O76:O$139,0))+IF(OR(TYPE(O75)>1,TYPE(MATCH(O75,U$11:U$139,0))>1),0,MATCH(O75,U$11:U$139,0))+IF(OR(TYPE(O75)>1,TYPE(MATCH(O75,AA$11:AA$139,0))>1),0,MATCH(O75,AA$11:AA$139,0)) -> 0 | AP75: =IF(OR(TYPE(U75)>1,TYPE(MATCH(U75,I$11:I$139,0))>1),0,MATCH(U75,I$11:I$139,0))+IF(OR(TYPE(U75)>1,TYPE(MATCH(U75,O$11:O$139,0))>1),0,MATCH(U75,O$11:O$139,0))+IF(OR(TYPE(U75)>1,TYPE(MATCH(U75,U76:U$139,0))>1),0,MATCH(U75,U76:U$139,0))+IF(OR(TYPE(U75)>1,TYPE(MATCH(U75,AA$11:AA$139,0))>1),0,MATCH(U75,AA$11:AA$139,0)) -> 0 | AQ75: =IF(OR(TYPE(AA75)>1,TYPE(MATCH(AA75,I$11:I$139,0))>1),0,MATCH(AA75,I$11:I$139,0))+IF(OR(TYPE(AA75)>1,TYPE(MATCH(AA75,O$11:O$139,0))>1),0,MATCH(AA75,O$11:O$139,0))+IF(OR(TYPE(AA75)>1,TYPE(MATCH(AA75,U$11:U$139,0))>1),0,MATCH(U75,U$11:U$139,0))+IF(OR(TYPE(AA75)>1,TYPE(MATCH(AA75,AA76:AA$139,0))>1),0,MATCH(AA75,AA76:AA$139,0)) -> 0 | AR75: =SUM(AN75:AQ75) -> 0 | AT75: =IF(AU75=$K$6,1,0) -> 0 | AU75: =IF(AND(N(I75)>0,TYPE(VLOOKUP(I75,Hraci!$A$5:$A$800,1,0))>3),1,0) + IF(AND(N(O75)>0,TYPE(VLOOKUP(O75,Hraci!$A$5:$A$800,1,0))>3),1,0) + IF(AND(N(U75)>0,TYPE(VLOOKUP(U75,Hraci!$A$5:$A$800,1,0))>3),1,0) -> 0
A76: 0 | B76: 0 | C76: 0 | D76: 99999 | E76: 9999 | F76: 90000000900000990000782028 | G76: TRUE | H76: 66 | M76: 9999 | N76: 0 | S76: 9999 | T76: 0 | Y76: 9999 | Z76: 0 | AE76: 9999 | AF76: 0 | AH76: =IF(TYPE(VLOOKUP(H76,Centrum!$A$3:$E$130,5,0))<4,VLOOKUP(H76,Centrum!$A$3:$E$130,5,0),0) -> 0 | AI76: =IF(N($AH76)>0,VLOOKUP($AH76,Body!$A$4:$F$259,5,0),"") ->  | AJ76: =IF(N($AH76)>0,VLOOKUP($AH76,Body!$A$4:$F$259,6,0),"") ->  | AK76: =IF(N($AH76)>0,VLOOKUP($AH76,Body!$A$4:$F$259,2,0),"") ->  | AM76: 0 | AN76: =IF(OR(TYPE(I76)>1,TYPE(MATCH(I76,I77:I$139,0))>1),0,MATCH(I76,I77:I$139,0))+IF(OR(TYPE(I76)>1,TYPE(MATCH(I76,O$11:O$139,0))>1),0,MATCH(I76,O$11:O$139,0))+IF(OR(TYPE(I76)>1,TYPE(MATCH(I76,U$11:U$139,0))>1),0,MATCH(I76,U$11:U$139,0))+IF(OR(TYPE(I76)>1,TYPE(MATCH(I76,AA$11:AA$139,0))>1),0,MATCH(I76,AA$11:AA$139,0)) -> 0 | AO76: =IF(OR(TYPE(O76)>1,TYPE(MATCH(O76,I$11:I$139,0))>1),0,MATCH(O76,I$11:I$139,0))+IF(OR(TYPE(O76)>1,TYPE(MATCH(O76,O77:O$139,0))>1),0,MATCH(O76,O77:O$139,0))+IF(OR(TYPE(O76)>1,TYPE(MATCH(O76,U$11:U$139,0))>1),0,MATCH(O76,U$11:U$139,0))+IF(OR(TYPE(O76)>1,TYPE(MATCH(O76,AA$11:AA$139,0))>1),0,MATCH(O76,AA$11:AA$139,0)) -> 0 | AP76: =IF(OR(TYPE(U76)>1,TYPE(MATCH(U76,I$11:I$139,0))>1),0,MATCH(U76,I$11:I$139,0))+IF(OR(TYPE(U76)>1,TYPE(MATCH(U76,O$11:O$139,0))>1),0,MATCH(U76,O$11:O$139,0))+IF(OR(TYPE(U76)>1,TYPE(MATCH(U76,U77:U$139,0))>1),0,MATCH(U76,U77:U$139,0))+IF(OR(TYPE(U76)>1,TYPE(MATCH(U76,AA$11:AA$139,0))>1),0,MATCH(U76,AA$11:AA$139,0)) -> 0 | AQ76: =IF(OR(TYPE(AA76)>1,TYPE(MATCH(AA76,I$11:I$139,0))>1),0,MATCH(AA76,I$11:I$139,0))+IF(OR(TYPE(AA76)>1,TYPE(MATCH(AA76,O$11:O$139,0))>1),0,MATCH(AA76,O$11:O$139,0))+IF(OR(TYPE(AA76)>1,TYPE(MATCH(AA76,U$11:U$139,0))>1),0,MATCH(U76,U$11:U$139,0))+IF(OR(TYPE(AA76)>1,TYPE(MATCH(AA76,AA77:AA$139,0))>1),0,MATCH(AA76,AA77:AA$139,0)) -> 0 | AR76: 0 | AT76: 0 | AU76: =IF(AND(N(I76)>0,TYPE(VLOOKUP(I76,Hraci!$A$5:$A$800,1,0))>3),1,0) + IF(AND(N(O76)>0,TYPE(VLOOKUP(O76,Hraci!$A$5:$A$800,1,0))>3),1,0) + IF(AND(N(U76)>0,TYPE(VLOOKUP(U76,Hraci!$A$5:$A$800,1,0))>3),1,0) -> 0
A77: 0 | B77: 0 | C77: 0 | D77: 99999 | E77: 9999 | F77: 90000000900000990000696934 | G77: TRUE | H77: 67 | M77: 9999 | N77: 0 | S77: 9999 | T77: 0 | Y77: 9999 | Z77: 0 | AE77: 9999 | AF77: 0 | AH77: =IF(TYPE(VLOOKUP(H77,Centrum!$A$3:$E$130,5,0))<4,VLOOKUP(H77,Centrum!$A$3:$E$130,5,0),0) -> 0 | AI77: =IF(N($AH77)>0,VLOOKUP($AH77,Body!$A$4:$F$259,5,0),"") ->  | AJ77: =IF(N($AH77)>0,VLOOKUP($AH77,Body!$A$4:$F$259,6,0),"") ->  | AK77: =IF(N($AH77)>0,VLOOKUP($AH77,Body!$A$4:$F$259,2,0),"") ->  | AM77: 0 | AN77: =IF(OR(TYPE(I77)>1,TYPE(MATCH(I77,I78:I$139,0))>1),0,MATCH(I77,I78:I$139,0))+IF(OR(TYPE(I77)>1,TYPE(MATCH(I77,O$11:O$139,0))>1),0,MATCH(I77,O$11:O$139,0))+IF(OR(TYPE(I77)>1,TYPE(MATCH(I77,U$11:U$139,0))>1),0,MATCH(I77,U$11:U$139,0))+IF(OR(TYPE(I77)>1,TYPE(MATCH(I77,AA$11:AA$139,0))>1),0,MATCH(I77,AA$11:AA$139,0)) -> 0 | AO77: =IF(OR(TYPE(O77)>1,TYPE(MATCH(O77,I$11:I$139,0))>1),0,MATCH(O77,I$11:I$139,0))+IF(OR(TYPE(O77)>1,TYPE(MATCH(O77,O78:O$139,0))>1),0,MATCH(O77,O78:O$139,0))+IF(OR(TYPE(O77)>1,TYPE(MATCH(O77,U$11:U$139,0))>1),0,MATCH(O77,U$11:U$139,0))+IF(OR(TYPE(O77)>1,TYPE(MATCH(O77,AA$11:AA$139,0))>1),0,MATCH(O77,AA$11:AA$139,0)) -> 0 | AP77: =IF(OR(TYPE(U77)>1,TYPE(MATCH(U77,I$11:I$139,0))>1),0,MATCH(U77,I$11:I$139,0))+IF(OR(TYPE(U77)>1,TYPE(MATCH(U77,O$11:O$139,0))>1),0,MATCH(U77,O$11:O$139,0))+IF(OR(TYPE(U77)>1,TYPE(MATCH(U77,U78:U$139,0))>1),0,MATCH(U77,U78:U$139,0))+IF(OR(TYPE(U77)>1,TYPE(MATCH(U77,AA$11:AA$139,0))>1),0,MATCH(U77,AA$11:AA$139,0)) -> 0 | AQ77: =IF(OR(TYPE(AA77)>1,TYPE(MATCH(AA77,I$11:I$139,0))>1),0,MATCH(AA77,I$11:I$139,0))+IF(OR(TYPE(AA77)>1,TYPE(MATCH(AA77,O$11:O$139,0))>1),0,MATCH(AA77,O$11:O$139,0))+IF(OR(TYPE(AA77)>1,TYPE(MATCH(AA77,U$11:U$139,0))>1),0,MATCH(U77,U$11:U$139,0))+IF(OR(TYPE(AA77)>1,TYPE(MATCH(AA77,AA78:AA$139,0))>1),0,MATCH(AA77,AA78:AA$139,0)) -> 0 | AR77: 0 | AT77: 0 | AU77: =IF(AND(N(I77)>0,TYPE(VLOOKUP(I77,Hraci!$A$5:$A$800,1,0))>3),1,0) + IF(AND(N(O77)>0,TYPE(VLOOKUP(O77,Hraci!$A$5:$A$800,1,0))>3),1,0) + IF(AND(N(U77)>0,TYPE(VLOOKUP(U77,Hraci!$A$5:$A$800,1,0))>3),1,0) -> 0
A78: 0 | B78: 0 | C78: 0 | D78: 99999 | E78: 9999 | F78: 90000000900000990000158374 | G78: TRUE | H78: 68 | M78: 9999 | N78: 0 | S78: 9999 | T78: 0 | Y78: 9999 | Z78: 0 | AE78: 9999 | AF78: 0 | AH78: =IF(TYPE(VLOOKUP(H78,Centrum!$A$3:$E$130,5,0))<4,VLOOKUP(H78,Centrum!$A$3:$E$130,5,0),0) -> 0 | AI78: =IF(N($AH78)>0,VLOOKUP($AH78,Body!$A$4:$F$259,5,0),"") ->  | AJ78: =IF(N($AH78)>0,VLOOKUP($AH78,Body!$A$4:$F$259,6,0),"") ->  | AK78: =IF(N($AH78)>0,VLOOKUP($AH78,Body!$A$4:$F$259,2,0),"") ->  | AM78: 0 | AN78: =IF(OR(TYPE(I78)>1,TYPE(MATCH(I78,I79:I$139,0))>1),0,MATCH(I78,I79:I$139,0))+IF(OR(TYPE(I78)>1,TYPE(MATCH(I78,O$11:O$139,0))>1),0,MATCH(I78,O$11:O$139,0))+IF(OR(TYPE(I78)>1,TYPE(MATCH(I78,U$11:U$139,0))>1),0,MATCH(I78,U$11:U$139,0))+IF(OR(TYPE(I78)>1,TYPE(MATCH(I78,AA$11:AA$139,0))>1),0,MATCH(I78,AA$11:AA$139,0)) -> 0 | AO78: =IF(OR(TYPE(O78)>1,TYPE(MATCH(O78,I$11:I$139,0))>1),0,MATCH(O78,I$11:I$139,0))+IF(OR(TYPE(O78)>1,TYPE(MATCH(O78,O79:O$139,0))>1),0,MATCH(O78,O79:O$139,0))+IF(OR(TYPE(O78)>1,TYPE(MATCH(O78,U$11:U$139,0))>1),0,MATCH(O78,U$11:U$139,0))+IF(OR(TYPE(O78)>1,TYPE(MATCH(O78,AA$11:AA$139,0))>1),0,MATCH(O78,AA$11:AA$139,0)) -> 0 | AP78: =IF(OR(TYPE(U78)>1,TYPE(MATCH(U78,I$11:I$139,0))>1),0,MATCH(U78,I$11:I$139,0))+IF(OR(TYPE(U78)>1,TYPE(MATCH(U78,O$11:O$139,0))>1),0,MATCH(U78,O$11:O$139,0))+IF(OR(TYPE(U78)>1,TYPE(MATCH(U78,U79:U$139,0))>1),0,MATCH(U78,U79:U$139,0))+IF(OR(TYPE(U78)>1,TYPE(MATCH(U78,AA$11:AA$139,0))>1),0,MATCH(U78,AA$11:AA$139,0)) -> 0 | AQ78: =IF(OR(TYPE(AA78)>1,TYPE(MATCH(AA78,I$11:I$139,0))>1),0,MATCH(AA78,I$11:I$139,0))+IF(OR(TYPE(AA78)>1,TYPE(MATCH(AA78,O$11:O$139,0))>1),0,MATCH(AA78,O$11:O$139,0))+IF(OR(TYPE(AA78)>1,TYPE(MATCH(AA78,U$11:U$139,0))>1),0,MATCH(U78,U$11:U$139,0))+IF(OR(TYPE(AA78)>1,TYPE(MATCH(AA78,AA79:AA$139,0))>1),0,MATCH(AA78,AA79:AA$139,0)) -> 0 | AR78: 0 | AT78: 0 | AU78: =IF(AND(N(I78)>0,TYPE(VLOOKUP(I78,Hraci!$A$5:$A$800,1,0))>3),1,0) + IF(AND(N(O78)>0,TYPE(VLOOKUP(O78,Hraci!$A$5:$A$800,1,0))>3),1,0) + IF(AND(N(U78)>0,TYPE(VLOOKUP(U78,Hraci!$A$5:$A$800,1,0))>3),1,0) -> 0
A79: 0 | B79: 0 | C79: 0 | D79: 99999 | E79: 9999 | F79: 90000000900000990000265050 | G79: TRUE | H79: 69 | M79: 9999 | N79: 0 | S79: 9999 | T79: 0 | Y79: 9999 | Z79: 0 | AE79: 9999 | AF79: 0 | AH79: =IF(TYPE(VLOOKUP(H79,Centrum!$A$3:$E$130,5,0))<4,VLOOKUP(H79,Centrum!$A$3:$E$130,5,0),0) -> 0 | AI79: =IF(N($AH79)>0,VLOOKUP($AH79,Body!$A$4:$F$259,5,0),"") ->  | AJ79: =IF(N($AH79)>0,VLOOKUP($AH79,Body!$A$4:$F$259,6,0),"") ->  | AK79: =IF(N($AH79)>0,VLOOKUP($AH79,Body!$A$4:$F$259,2,0),"") ->  | AM79: 0 | AN79: =IF(OR(TYPE(I79)>1,TYPE(MATCH(I79,I80:I$139,0))>1),0,MATCH(I79,I80:I$139,0))+IF(OR(TYPE(I79)>1,TYPE(MATCH(I79,O$11:O$139,0))>1),0,MATCH(I79,O$11:O$139,0))+IF(OR(TYPE(I79)>1,TYPE(MATCH(I79,U$11:U$139,0))>1),0,MATCH(I79,U$11:U$139,0))+IF(OR(TYPE(I79)>1,TYPE(MATCH(I79,AA$11:AA$139,0))>1),0,MATCH(I79,AA$11:AA$139,0)) -> 0 | AO79: =IF(OR(TYPE(O79)>1,TYPE(MATCH(O79,I$11:I$139,0))>1),0,MATCH(O79,I$11:I$139,0))+IF(OR(TYPE(O79)>1,TYPE(MATCH(O79,O80:O$139,0))>1),0,MATCH(O79,O80:O$139,0))+IF(OR(TYPE(O79)>1,TYPE(MATCH(O79,U$11:U$139,0))>1),0,MATCH(O79,U$11:U$139,0))+IF(OR(TYPE(O79)>1,TYPE(MATCH(O79,AA$11:AA$139,0))>1),0,MATCH(O79,AA$11:AA$139,0)) -> 0 | AP79: =IF(OR(TYPE(U79)>1,TYPE(MATCH(U79,I$11:I$139,0))>1),0,MATCH(U79,I$11:I$139,0))+IF(OR(TYPE(U79)>1,TYPE(MATCH(U79,O$11:O$139,0))>1),0,MATCH(U79,O$11:O$139,0))+IF(OR(TYPE(U79)>1,TYPE(MATCH(U79,U80:U$139,0))>1),0,MATCH(U79,U80:U$139,0))+IF(OR(TYPE(U79)>1,TYPE(MATCH(U79,AA$11:AA$139,0))>1),0,MATCH(U79,AA$11:AA$139,0)) -> 0 | AQ79: =IF(OR(TYPE(AA79)>1,TYPE(MATCH(AA79,I$11:I$139,0))>1),0,MATCH(AA79,I$11:I$139,0))+IF(OR(TYPE(AA79)>1,TYPE(MATCH(AA79,O$11:O$139,0))>1),0,MATCH(AA79,O$11:O$139,0))+IF(OR(TYPE(AA79)>1,TYPE(MATCH(AA79,U$11:U$139,0))>1),0,MATCH(U79,U$11:U$139,0))+IF(OR(TYPE(AA79)>1,TYPE(MATCH(AA79,AA80:AA$139,0))>1),0,MATCH(AA79,AA80:AA$139,0)) -> 0 | AR79: 0 | AT79: 0 | AU79: =IF(AND(N(I79)>0,TYPE(VLOOKUP(I79,Hraci!$A$5:$A$800,1,0))>3),1,0) + IF(AND(N(O79)>0,TYPE(VLOOKUP(O79,Hraci!$A$5:$A$800,1,0))>3),1,0) + IF(AND(N(U79)>0,TYPE(VLOOKUP(U79,Hraci!$A$5:$A$800,1,0))>3),1,0) -> 0
A80: 0 | B80: 0 | C80: 0 | D80: 99999 | E80: 9999 | F80: 90000000900000990000629745 | G80: TRUE | H80: 70 | M80: 9999 | N80: 0 | S80: 9999 | T80: 0 | Y80: 9999 | Z80: 0 | AE80: 9999 | AF80: 0 | AH80: =IF(TYPE(VLOOKUP(H80,Centrum!$A$3:$E$130,5,0))<4,VLOOKUP(H80,Centrum!$A$3:$E$130,5,0),0) -> 0 | AI80: =IF(N($AH80)>0,VLOOKUP($AH80,Body!$A$4:$F$259,5,0),"") ->  | AJ80: =IF(N($AH80)>0,VLOOKUP($AH80,Body!$A$4:$F$259,6,0),"") ->  | AK80: =IF(N($AH80)>0,VLOOKUP($AH80,Body!$A$4:$F$259,2,0),"") ->  | AM80: 0 | AN80: =IF(OR(TYPE(I80)>1,TYPE(MATCH(I80,I81:I$139,0))>1),0,MATCH(I80,I81:I$139,0))+IF(OR(TYPE(I80)>1,TYPE(MATCH(I80,O$11:O$139,0))>1),0,MATCH(I80,O$11:O$139,0))+IF(OR(TYPE(I80)>1,TYPE(MATCH(I80,U$11:U$139,0))>1),0,MATCH(I80,U$11:U$139,0))+IF(OR(TYPE(I80)>1,TYPE(MATCH(I80,AA$11:AA$139,0))>1),0,MATCH(I80,AA$11:AA$139,0)) -> 0 | AO80: =IF(OR(TYPE(O80)>1,TYPE(MATCH(O80,I$11:I$139,0))>1),0,MATCH(O80,I$11:I$139,0))+IF(OR(TYPE(O80)>1,TYPE(MATCH(O80,O81:O$139,0))>1),0,MATCH(O80,O81:O$139,0))+IF(OR(TYPE(O80)>1,TYPE(MATCH(O80,U$11:U$139,0))>1),0,MATCH(O80,U$11:U$139,0))+IF(OR(TYPE(O80)>1,TYPE(MATCH(O80,AA$11:AA$139,0))>1),0,MATCH(O80,AA$11:AA$139,0)) -> 0 | AP80: =IF(OR(TYPE(U80)>1,TYPE(MATCH(U80,I$11:I$139,0))>1),0,MATCH(U80,I$11:I$139,0))+IF(OR(TYPE(U80)>1,TYPE(MATCH(U80,O$11:O$139,0))>1),0,MATCH(U80,O$11:O$139,0))+IF(OR(TYPE(U80)>1,TYPE(MATCH(U80,U81:U$139,0))>1),0,MATCH(U80,U81:U$139,0))+IF(OR(TYPE(U80)>1,TYPE(MATCH(U80,AA$11:AA$139,0))>1),0,MATCH(U80,AA$11:AA$139,0)) -> 0 | AQ80: =IF(OR(TYPE(AA80)>1,TYPE(MATCH(AA80,I$11:I$139,0))>1),0,MATCH(AA80,I$11:I$139,0))+IF(OR(TYPE(AA80)>1,TYPE(MATCH(AA80,O$11:O$139,0))>1),0,MATCH(AA80,O$11:O$139,0))+IF(OR(TYPE(AA80)>1,TYPE(MATCH(AA80,U$11:U$139,0))>1),0,MATCH(U80,U$11:U$139,0))+IF(OR(TYPE(AA80)>1,TYPE(MATCH(AA80,AA81:AA$139,0))>1),0,MATCH(AA80,AA81:AA$139,0)) -> 0 | AR80: 0 | AT80: 0 | AU80: =IF(AND(N(I80)>0,TYPE(VLOOKUP(I80,Hraci!$A$5:$A$800,1,0))>3),1,0) + IF(AND(N(O80)>0,TYPE(VLOOKUP(O80,Hraci!$A$5:$A$800,1,0))>3),1,0) + IF(AND(N(U80)>0,TYPE(VLOOKUP(U80,Hraci!$A$5:$A$800,1,0))>3),1,0) -> 0
A81: 0 | B81: 0 | C81: 0 | D81: 99999 | E81: 9999 | F81: 90000000900000990000503922 | G81: TRUE | H81: 71 | M81: 9999 | N81: 0 | S81: 9999 | T81: 0 | Y81: 9999 | Z81: 0 | AE81: 9999 | AF81: 0 | AH81: =IF(TYPE(VLOOKUP(H81,Centrum!$A$3:$E$130,5,0))<4,VLOOKUP(H81,Centrum!$A$3:$E$130,5,0),0) -> 0 | AI81: =IF(N($AH81)>0,VLOOKUP($AH81,Body!$A$4:$F$259,5,0),"") ->  | AJ81: =IF(N($AH81)>0,VLOOKUP($AH81,Body!$A$4:$F$259,6,0),"") ->  | AK81: =IF(N($AH81)>0,VLOOKUP($AH81,Body!$A$4:$F$259,2,0),"") ->  | AM81: 0 | AN81: =IF(OR(TYPE(I81)>1,TYPE(MATCH(I81,I82:I$139,0))>1),0,MATCH(I81,I82:I$139,0))+IF(OR(TYPE(I81)>1,TYPE(MATCH(I81,O$11:O$139,0))>1),0,MATCH(I81,O$11:O$139,0))+IF(OR(TYPE(I81)>1,TYPE(MATCH(I81,U$11:U$139,0))>1),0,MATCH(I81,U$11:U$139,0))+IF(OR(TYPE(I81)>1,TYPE(MATCH(I81,AA$11:AA$139,0))>1),0,MATCH(I81,AA$11:AA$139,0)) -> 0 | AO81: =IF(OR(TYPE(O81)>1,TYPE(MATCH(O81,I$11:I$139,0))>1),0,MATCH(O81,I$11:I$139,0))+IF(OR(TYPE(O81)>1,TYPE(MATCH(O81,O82:O$139,0))>1),0,MATCH(O81,O82:O$139,0))+IF(OR(TYPE(O81)>1,TYPE(MATCH(O81,U$11:U$139,0))>1),0,MATCH(O81,U$11:U$139,0))+IF(OR(TYPE(O81)>1,TYPE(MATCH(O81,AA$11:AA$139,0))>1),0,MATCH(O81,AA$11:AA$139,0)) -> 0 | AP81: =IF(OR(TYPE(U81)>1,TYPE(MATCH(U81,I$11:I$139,0))>1),0,MATCH(U81,I$11:I$139,0))+IF(OR(TYPE(U81)>1,TYPE(MATCH(U81,O$11:O$139,0))>1),0,MATCH(U81,O$11:O$139,0))+IF(OR(TYPE(U81)>1,TYPE(MATCH(U81,U82:U$139,0))>1),0,MATCH(U81,U82:U$139,0))+IF(OR(TYPE(U81)>1,TYPE(MATCH(U81,AA$11:AA$139,0))>1),0,MATCH(U81,AA$11:AA$139,0)) -> 0 | AQ81: =IF(OR(TYPE(AA81)>1,TYPE(MATCH(AA81,I$11:I$139,0))>1),0,MATCH(AA81,I$11:I$139,0))+IF(OR(TYPE(AA81)>1,TYPE(MATCH(AA81,O$11:O$139,0))>1),0,MATCH(AA81,O$11:O$139,0))+IF(OR(TYPE(AA81)>1,TYPE(MATCH(AA81,U$11:U$139,0))>1),0,MATCH(U81,U$11:U$139,0))+IF(OR(TYPE(AA81)>1,TYPE(MATCH(AA81,AA82:AA$139,0))>1),0,MATCH(AA81,AA82:AA$139,0)) -> 0 | AR81: 0 | AT81: 0 | AU81: =IF(AND(N(I81)>0,TYPE(VLOOKUP(I81,Hraci!$A$5:$A$800,1,0))>3),1,0) + IF(AND(N(O81)>0,TYPE(VLOOKUP(O81,Hraci!$A$5:$A$800,1,0))>3),1,0) + IF(AND(N(U81)>0,TYPE(VLOOKUP(U81,Hraci!$A$5:$A$800,1,0))>3),1,0) -> 0
A82: 0 | B82: 0 | C82: 0 | D82: 99999 | E82: 9999 | F82: 90000000900000990000975007 | G82: TRUE | H82: 72 | M82: 9999 | N82: 0 | S82: 9999 | T82: 0 | Y82: 9999 | Z82: 0 | AE82: 9999 | AF82: 0 | AH82: =IF(TYPE(VLOOKUP(H82,Centrum!$A$3:$E$130,5,0))<4,VLOOKUP(H82,Centrum!$A$3:$E$130,5,0),0) -> 0 | AI82: =IF(N($AH82)>0,VLOOKUP($AH82,Body!$A$4:$F$259,5,0),"") ->  | AJ82: =IF(N($AH82)>0,VLOOKUP($AH82,Body!$A$4:$F$259,6,0),"") ->  | AK82: =IF(N($AH82)>0,VLOOKUP($AH82,Body!$A$4:$F$259,2,0),"") ->  | AM82: 0 | AN82: =IF(OR(TYPE(I82)>1,TYPE(MATCH(I82,I83:I$139,0))>1),0,MATCH(I82,I83:I$139,0))+IF(OR(TYPE(I82)>1,TYPE(MATCH(I82,O$11:O$139,0))>1),0,MATCH(I82,O$11:O$139,0))+IF(OR(TYPE(I82)>1,TYPE(MATCH(I82,U$11:U$139,0))>1),0,MATCH(I82,U$11:U$139,0))+IF(OR(TYPE(I82)>1,TYPE(MATCH(I82,AA$11:AA$139,0))>1),0,MATCH(I82,AA$11:AA$139,0)) -> 0 | AO82: =IF(OR(TYPE(O82)>1,TYPE(MATCH(O82,I$11:I$139,0))>1),0,MATCH(O82,I$11:I$139,0))+IF(OR(TYPE(O82)>1,TYPE(MATCH(O82,O83:O$139,0))>1),0,MATCH(O82,O83:O$139,0))+IF(OR(TYPE(O82)>1,TYPE(MATCH(O82,U$11:U$139,0))>1),0,MATCH(O82,U$11:U$139,0))+IF(OR(TYPE(O82)>1,TYPE(MATCH(O82,AA$11:AA$139,0))>1),0,MATCH(O82,AA$11:AA$139,0)) -> 0 | AP82: =IF(OR(TYPE(U82)>1,TYPE(MATCH(U82,I$11:I$139,0))>1),0,MATCH(U82,I$11:I$139,0))+IF(OR(TYPE(U82)>1,TYPE(MATCH(U82,O$11:O$139,0))>1),0,MATCH(U82,O$11:O$139,0))+IF(OR(TYPE(U82)>1,TYPE(MATCH(U82,U83:U$139,0))>1),0,MATCH(U82,U83:U$139,0))+IF(OR(TYPE(U82)>1,TYPE(MATCH(U82,AA$11:AA$139,0))>1),0,MATCH(U82,AA$11:AA$139,0)) -> 0 | AQ82: =IF(OR(TYPE(AA82)>1,TYPE(MATCH(AA82,I$11:I$139,0))>1),0,MATCH(AA82,I$11:I$139,0))+IF(OR(TYPE(AA82)>1,TYPE(MATCH(AA82,O$11:O$139,0))>1),0,MATCH(AA82,O$11:O$139,0))+IF(OR(TYPE(AA82)>1,TYPE(MATCH(AA82,U$11:U$139,0))>1),0,MATCH(U82,U$11:U$139,0))+IF(OR(TYPE(AA82)>1,TYPE(MATCH(AA82,AA83:AA$139,0))>1),0,MATCH(AA82,AA83:AA$139,0)) -> 0 | AR82: 0 | AT82: 0 | AU82: =IF(AND(N(I82)>0,TYPE(VLOOKUP(I82,Hraci!$A$5:$A$800,1,0))>3),1,0) + IF(AND(N(O82)>0,TYPE(VLOOKUP(O82,Hraci!$A$5:$A$800,1,0))>3),1,0) + IF(AND(N(U82)>0,TYPE(VLOOKUP(U82,Hraci!$A$5:$A$800,1,0))>3),1,0) -> 0
A83: 0 | B83: 0 | C83: 0 | D83: 99999 | E83: 9999 | F83: 90000000900000990000613490 | G83: TRUE | H83: 73 | M83: 9999 | N83: 0 | S83: 9999 | T83: 0 | Y83: 9999 | Z83: 0 | AE83: 9999 | AF83: 0 | AH83: =IF(TYPE(VLOOKUP(H83,Centrum!$A$3:$E$130,5,0))<4,VLOOKUP(H83,Centrum!$A$3:$E$130,5,0),0) -> 0 | AI83: =IF(N($AH83)>0,VLOOKUP($AH83,Body!$A$4:$F$259,5,0),"") ->  | AJ83: =IF(N($AH83)>0,VLOOKUP($AH83,Body!$A$4:$F$259,6,0),"") ->  | AK83: =IF(N($AH83)>0,VLOOKUP($AH83,Body!$A$4:$F$259,2,0),"") ->  | AM83: 0 | AN83: =IF(OR(TYPE(I83)>1,TYPE(MATCH(I83,I84:I$139,0))>1),0,MATCH(I83,I84:I$139,0))+IF(OR(TYPE(I83)>1,TYPE(MATCH(I83,O$11:O$139,0))>1),0,MATCH(I83,O$11:O$139,0))+IF(OR(TYPE(I83)>1,TYPE(MATCH(I83,U$11:U$139,0))>1),0,MATCH(I83,U$11:U$139,0))+IF(OR(TYPE(I83)>1,TYPE(MATCH(I83,AA$11:AA$139,0))>1),0,MATCH(I83,AA$11:AA$139,0)) -> 0 | AO83: =IF(OR(TYPE(O83)>1,TYPE(MATCH(O83,I$11:I$139,0))>1),0,MATCH(O83,I$11:I$139,0))+IF(OR(TYPE(O83)>1,TYPE(MATCH(O83,O84:O$139,0))>1),0,MATCH(O83,O84:O$139,0))+IF(OR(TYPE(O83)>1,TYPE(MATCH(O83,U$11:U$139,0))>1),0,MATCH(O83,U$11:U$139,0))+IF(OR(TYPE(O83)>1,TYPE(MATCH(O83,AA$11:AA$139,0))>1),0,MATCH(O83,AA$11:AA$139,0)) -> 0 | AP83: =IF(OR(TYPE(U83)>1,TYPE(MATCH(U83,I$11:I$139,0))>1),0,MATCH(U83,I$11:I$139,0))+IF(OR(TYPE(U83)>1,TYPE(MATCH(U83,O$11:O$139,0))>1),0,MATCH(U83,O$11:O$139,0))+IF(OR(TYPE(U83)>1,TYPE(MATCH(U83,U84:U$139,0))>1),0,MATCH(U83,U84:U$139,0))+IF(OR(TYPE(U83)>1,TYPE(MATCH(U83,AA$11:AA$139,0))>1),0,MATCH(U83,AA$11:AA$139,0)) -> 0 | AQ83: =IF(OR(TYPE(AA83)>1,TYPE(MATCH(AA83,I$11:I$139,0))>1),0,MATCH(AA83,I$11:I$139,0))+IF(OR(TYPE(AA83)>1,TYPE(MATCH(AA83,O$11:O$139,0))>1),0,MATCH(AA83,O$11:O$139,0))+IF(OR(TYPE(AA83)>1,TYPE(MATCH(AA83,U$11:U$139,0))>1),0,MATCH(U83,U$11:U$139,0))+IF(OR(TYPE(AA83)>1,TYPE(MATCH(AA83,AA84:AA$139,0))>1),0,MATCH(AA83,AA84:AA$139,0)) -> 0 | AR83: 0 | AT83: 0 | AU83: =IF(AND(N(I83)>0,TYPE(VLOOKUP(I83,Hraci!$A$5:$A$800,1,0))>3),1,0) + IF(AND(N(O83)>0,TYPE(VLOOKUP(O83,Hraci!$A$5:$A$800,1,0))>3),1,0) + IF(AND(N(U83)>0,TYPE(VLOOKUP(U83,Hraci!$A$5:$A$800,1,0))>3),1,0) -> 0
A84: 0 | B84: 0 | C84: 0 | D84: 99999 | E84: 9999 | F84: 90000000900000990000563820 | G84: TRUE | H84: 74 | M84: 9999 | N84: 0 | S84: 9999 | T84: 0 | Y84: 9999 | Z84: 0 | AE84: 9999 | AF84: 0 | AH84: =IF(TYPE(VLOOKUP(H84,Centrum!$A$3:$E$130,5,0))<4,VLOOKUP(H84,Centrum!$A$3:$E$130,5,0),0) -> 0 | AI84: =IF(N($AH84)>0,VLOOKUP($AH84,Body!$A$4:$F$259,5,0),"") ->  | AJ84: =IF(N($AH84)>0,VLOOKUP($AH84,Body!$A$4:$F$259,6,0),"") ->  | AK84: =IF(N($AH84)>0,VLOOKUP($AH84,Body!$A$4:$F$259,2,0),"") ->  | AM84: 0 | AN84: =IF(OR(TYPE(I84)>1,TYPE(MATCH(I84,I85:I$139,0))>1),0,MATCH(I84,I85:I$139,0))+IF(OR(TYPE(I84)>1,TYPE(MATCH(I84,O$11:O$139,0))>1),0,MATCH(I84,O$11:O$139,0))+IF(OR(TYPE(I84)>1,TYPE(MATCH(I84,U$11:U$139,0))>1),0,MATCH(I84,U$11:U$139,0))+IF(OR(TYPE(I84)>1,TYPE(MATCH(I84,AA$11:AA$139,0))>1),0,MATCH(I84,AA$11:AA$139,0)) -> 0 | AO84: =IF(OR(TYPE(O84)>1,TYPE(MATCH(O84,I$11:I$139,0))>1),0,MATCH(O84,I$11:I$139,0))+IF(OR(TYPE(O84)>1,TYPE(MATCH(O84,O85:O$139,0))>1),0,MATCH(O84,O85:O$139,0))+IF(OR(TYPE(O84)>1,TYPE(MATCH(O84,U$11:U$139,0))>1),0,MATCH(O84,U$11:U$139,0))+IF(OR(TYPE(O84)>1,TYPE(MATCH(O84,AA$11:AA$139,0))>1),0,MATCH(O84,AA$11:AA$139,0)) -> 0 | AP84: =IF(OR(TYPE(U84)>1,TYPE(MATCH(U84,I$11:I$139,0))>1),0,MATCH(U84,I$11:I$139,0))+IF(OR(TYPE(U84)>1,TYPE(MATCH(U84,O$11:O$139,0))>1),0,MATCH(U84,O$11:O$139,0))+IF(OR(TYPE(U84)>1,TYPE(MATCH(U84,U85:U$139,0))>1),0,MATCH(U84,U85:U$139,0))+IF(OR(TYPE(U84)>1,TYPE(MATCH(U84,AA$11:AA$139,0))>1),0,MATCH(U84,AA$11:AA$139,0)) -> 0 | AQ84: =IF(OR(TYPE(AA84)>1,TYPE(MATCH(AA84,I$11:I$139,0))>1),0,MATCH(AA84,I$11:I$139,0))+IF(OR(TYPE(AA84)>1,TYPE(MATCH(AA84,O$11:O$139,0))>1),0,MATCH(AA84,O$11:O$139,0))+IF(OR(TYPE(AA84)>1,TYPE(MATCH(AA84,U$11:U$139,0))>1),0,MATCH(U84,U$11:U$139,0))+IF(OR(TYPE(AA84)>1,TYPE(MATCH(AA84,AA85:AA$139,0))>1),0,MATCH(AA84,AA85:AA$139,0)) -> 0 | AR84: 0 | AT84: 0 | AU84: =IF(AND(N(I84)>0,TYPE(VLOOKUP(I84,Hraci!$A$5:$A$800,1,0))>3),1,0) + IF(AND(N(O84)>0,TYPE(VLOOKUP(O84,Hraci!$A$5:$A$800,1,0))>3),1,0) + IF(AND(N(U84)>0,TYPE(VLOOKUP(U84,Hraci!$A$5:$A$800,1,0))>3),1,0) -> 0
A85: 0 | B85: 0 | C85: 0 | D85: 99999 | E85: 9999 | F85: 90000000900000990000001477 | G85: TRUE | H85: 75 | M85: 9999 | N85: 0 | S85: 9999 | T85: 0 | Y85: 9999 | Z85: 0 | AE85: 9999 | AF85: 0 | AH85: =IF(TYPE(VLOOKUP(H85,Centrum!$A$3:$E$130,5,0))<4,VLOOKUP(H85,Centrum!$A$3:$E$130,5,0),0) -> 0 | AI85: =IF(N($AH85)>0,VLOOKUP($AH85,Body!$A$4:$F$259,5,0),"") ->  | AJ85: =IF(N($AH85)>0,VLOOKUP($AH85,Body!$A$4:$F$259,6,0),"") ->  | AK85: =IF(N($AH85)>0,VLOOKUP($AH85,Body!$A$4:$F$259,2,0),"") ->  | AM85: 0 | AN85: =IF(OR(TYPE(I85)>1,TYPE(MATCH(I85,I86:I$139,0))>1),0,MATCH(I85,I86:I$139,0))+IF(OR(TYPE(I85)>1,TYPE(MATCH(I85,O$11:O$139,0))>1),0,MATCH(I85,O$11:O$139,0))+IF(OR(TYPE(I85)>1,TYPE(MATCH(I85,U$11:U$139,0))>1),0,MATCH(I85,U$11:U$139,0))+IF(OR(TYPE(I85)>1,TYPE(MATCH(I85,AA$11:AA$139,0))>1),0,MATCH(I85,AA$11:AA$139,0)) -> 0 | AO85: =IF(OR(TYPE(O85)>1,TYPE(MATCH(O85,I$11:I$139,0))>1),0,MATCH(O85,I$11:I$139,0))+IF(OR(TYPE(O85)>1,TYPE(MATCH(O85,O86:O$139,0))>1),0,MATCH(O85,O86:O$139,0))+IF(OR(TYPE(O85)>1,TYPE(MATCH(O85,U$11:U$139,0))>1),0,MATCH(O85,U$11:U$139,0))+IF(OR(TYPE(O85)>1,TYPE(MATCH(O85,AA$11:AA$139,0))>1),0,MATCH(O85,AA$11:AA$139,0)) -> 0 | AP85: =IF(OR(TYPE(U85)>1,TYPE(MATCH(U85,I$11:I$139,0))>1),0,MATCH(U85,I$11:I$139,0))+IF(OR(TYPE(U85)>1,TYPE(MATCH(U85,O$11:O$139,0))>1),0,MATCH(U85,O$11:O$139,0))+IF(OR(TYPE(U85)>1,TYPE(MATCH(U85,U86:U$139,0))>1),0,MATCH(U85,U86:U$139,0))+IF(OR(TYPE(U85)>1,TYPE(MATCH(U85,AA$11:AA$139,0))>1),0,MATCH(U85,AA$11:AA$139,0)) -> 0 | AQ85: =IF(OR(TYPE(AA85)>1,TYPE(MATCH(AA85,I$11:I$139,0))>1),0,MATCH(AA85,I$11:I$139,0))+IF(OR(TYPE(AA85)>1,TYPE(MATCH(AA85,O$11:O$139,0))>1),0,MATCH(AA85,O$11:O$139,0))+IF(OR(TYPE(AA85)>1,TYPE(MATCH(AA85,U$11:U$139,0))>1),0,MATCH(U85,U$11:U$139,0))+IF(OR(TYPE(AA85)>1,TYPE(MATCH(AA85,AA86:AA$139,0))>1),0,MATCH(AA85,AA86:AA$139,0)) -> 0 | AR85: 0 | AT85: 0 | AU85: =IF(AND(N(I85)>0,TYPE(VLOOKUP(I85,Hraci!$A$5:$A$800,1,0))>3),1,0) + IF(AND(N(O85)>0,TYPE(VLOOKUP(O85,Hraci!$A$5:$A$800,1,0))>3),1,0) + IF(AND(N(U85)>0,TYPE(VLOOKUP(U85,Hraci!$A$5:$A$800,1,0))>3),1,0) -> 0
A86: 0 | B86: 0 | C86: 0 | D86: 99999 | E86: 9999 | F86: 90000000900000990000501645 | G86: TRUE | H86: 76 | M86: 9999 | N86: 0 | S86: 9999 | T86: 0 | Y86: 9999 | Z86: 0 | AE86: 9999 | AF86: 0 | AH86: =IF(TYPE(VLOOKUP(H86,Centrum!$A$3:$E$130,5,0))<4,VLOOKUP(H86,Centrum!$A$3:$E$130,5,0),0) -> 0 | AI86: =IF(N($AH86)>0,VLOOKUP($AH86,Body!$A$4:$F$259,5,0),"") ->  | AJ86: =IF(N($AH86)>0,VLOOKUP($AH86,Body!$A$4:$F$259,6,0),"") ->  | AK86: =IF(N($AH86)>0,VLOOKUP($AH86,Body!$A$4:$F$259,2,0),"") ->  | AM86: 0 | AN86: =IF(OR(TYPE(I86)>1,TYPE(MATCH(I86,I87:I$139,0))>1),0,MATCH(I86,I87:I$139,0))+IF(OR(TYPE(I86)>1,TYPE(MATCH(I86,O$11:O$139,0))>1),0,MATCH(I86,O$11:O$139,0))+IF(OR(TYPE(I86)>1,TYPE(MATCH(I86,U$11:U$139,0))>1),0,MATCH(I86,U$11:U$139,0))+IF(OR(TYPE(I86)>1,TYPE(MATCH(I86,AA$11:AA$139,0))>1),0,MATCH(I86,AA$11:AA$139,0)) -> 0 | AO86: =IF(OR(TYPE(O86)>1,TYPE(MATCH(O86,I$11:I$139,0))>1),0,MATCH(O86,I$11:I$139,0))+IF(OR(TYPE(O86)>1,TYPE(MATCH(O86,O87:O$139,0))>1),0,MATCH(O86,O87:O$139,0))+IF(OR(TYPE(O86)>1,TYPE(MATCH(O86,U$11:U$139,0))>1),0,MATCH(O86,U$11:U$139,0))+IF(OR(TYPE(O86)>1,TYPE(MATCH(O86,AA$11:AA$139,0))>1),0,MATCH(O86,AA$11:AA$139,0)) -> 0 | AP86: =IF(OR(TYPE(U86)>1,TYPE(MATCH(U86,I$11:I$139,0))>1),0,MATCH(U86,I$11:I$139,0))+IF(OR(TYPE(U86)>1,TYPE(MATCH(U86,O$11:O$139,0))>1),0,MATCH(U86,O$11:O$139,0))+IF(OR(TYPE(U86)>1,TYPE(MATCH(U86,U87:U$139,0))>1),0,MATCH(U86,U87:U$139,0))+IF(OR(TYPE(U86)>1,TYPE(MATCH(U86,AA$11:AA$139,0))>1),0,MATCH(U86,AA$11:AA$139,0)) -> 0 | AQ86: =IF(OR(TYPE(AA86)>1,TYPE(MATCH(AA86,I$11:I$139,0))>1),0,MATCH(AA86,I$11:I$139,0))+IF(OR(TYPE(AA86)>1,TYPE(MATCH(AA86,O$11:O$139,0))>1),0,MATCH(AA86,O$11:O$139,0))+IF(OR(TYPE(AA86)>1,TYPE(MATCH(AA86,U$11:U$139,0))>1),0,MATCH(U86,U$11:U$139,0))+IF(OR(TYPE(AA86)>1,TYPE(MATCH(AA86,AA87:AA$139,0))>1),0,MATCH(AA86,AA87:AA$139,0)) -> 0 | AR86: 0 | AT86: 0 | AU86: =IF(AND(N(I86)>0,TYPE(VLOOKUP(I86,Hraci!$A$5:$A$800,1,0))>3),1,0) + IF(AND(N(O86)>0,TYPE(VLOOKUP(O86,Hraci!$A$5:$A$800,1,0))>3),1,0) + IF(AND(N(U86)>0,TYPE(VLOOKUP(U86,Hraci!$A$5:$A$800,1,0))>3),1,0) -> 0
A87: 0 | B87: 0 | C87: 0 | D87: 99999 | E87: 9999 | F87: 90000000900000990000696456 | G87: TRUE | H87: 77 | M87: 9999 | N87: 0 | S87: 9999 | T87: 0 | Y87: 9999 | Z87: 0 | AE87: 9999 | AF87: 0 | AH87: =IF(TYPE(VLOOKUP(H87,Centrum!$A$3:$E$130,5,0))<4,VLOOKUP(H87,Centrum!$A$3:$E$130,5,0),0) -> 0 | AI87: =IF(N($AH87)>0,VLOOKUP($AH87,Body!$A$4:$F$259,5,0),"") ->  | AJ87: =IF(N($AH87)>0,VLOOKUP($AH87,Body!$A$4:$F$259,6,0),"") ->  | AK87: =IF(N($AH87)>0,VLOOKUP($AH87,Body!$A$4:$F$259,2,0),"") ->  | AM87: 0 | AN87: =IF(OR(TYPE(I87)>1,TYPE(MATCH(I87,I88:I$139,0))>1),0,MATCH(I87,I88:I$139,0))+IF(OR(TYPE(I87)>1,TYPE(MATCH(I87,O$11:O$139,0))>1),0,MATCH(I87,O$11:O$139,0))+IF(OR(TYPE(I87)>1,TYPE(MATCH(I87,U$11:U$139,0))>1),0,MATCH(I87,U$11:U$139,0))+IF(OR(TYPE(I87)>1,TYPE(MATCH(I87,AA$11:AA$139,0))>1),0,MATCH(I87,AA$11:AA$139,0)) -> 0 | AO87: =IF(OR(TYPE(O87)>1,TYPE(MATCH(O87,I$11:I$139,0))>1),0,MATCH(O87,I$11:I$139,0))+IF(OR(TYPE(O87)>1,TYPE(MATCH(O87,O88:O$139,0))>1),0,MATCH(O87,O88:O$139,0))+IF(OR(TYPE(O87)>1,TYPE(MATCH(O87,U$11:U$139,0))>1),0,MATCH(O87,U$11:U$139,0))+IF(OR(TYPE(O87)>1,TYPE(MATCH(O87,AA$11:AA$139,0))>1),0,MATCH(O87,AA$11:AA$139,0)) -> 0 | AP87: =IF(OR(TYPE(U87)>1,TYPE(MATCH(U87,I$11:I$139,0))>1),0,MATCH(U87,I$11:I$139,0))+IF(OR(TYPE(U87)>1,TYPE(MATCH(U87,O$11:O$139,0))>1),0,MATCH(U87,O$11:O$139,0))+IF(OR(TYPE(U87)>1,TYPE(MATCH(U87,U88:U$139,0))>1),0,MATCH(U87,U88:U$139,0))+IF(OR(TYPE(U87)>1,TYPE(MATCH(U87,AA$11:AA$139,0))>1),0,MATCH(U87,AA$11:AA$139,0)) -> 0 | AQ87: =IF(OR(TYPE(AA87)>1,TYPE(MATCH(AA87,I$11:I$139,0))>1),0,MATCH(AA87,I$11:I$139,0))+IF(OR(TYPE(AA87)>1,TYPE(MATCH(AA87,O$11:O$139,0))>1),0,MATCH(AA87,O$11:O$139,0))+IF(OR(TYPE(AA87)>1,TYPE(MATCH(AA87,U$11:U$139,0))>1),0,MATCH(U87,U$11:U$139,0))+IF(OR(TYPE(AA87)>1,TYPE(MATCH(AA87,AA88:AA$139,0))>1),0,MATCH(AA87,AA88:AA$139,0)) -> 0 | AR87: 0 | AT87: 0 | AU87: =IF(AND(N(I87)>0,TYPE(VLOOKUP(I87,Hraci!$A$5:$A$800,1,0))>3),1,0) + IF(AND(N(O87)>0,TYPE(VLOOKUP(O87,Hraci!$A$5:$A$800,1,0))>3),1,0) + IF(AND(N(U87)>0,TYPE(VLOOKUP(U87,Hraci!$A$5:$A$800,1,0))>3),1,0) -> 0
A88: 0 | B88: 0 | C88: 0 | D88: 99999 | E88: 9999 | F88: 90000000900000990000087487 | G88: TRUE | H88: 78 | M88: 9999 | N88: 0 | S88: 9999 | T88: 0 | Y88: 9999 | Z88: 0 | AE88: 9999 | AF88: 0 | AH88: =IF(TYPE(VLOOKUP(H88,Centrum!$A$3:$E$130,5,0))<4,VLOOKUP(H88,Centrum!$A$3:$E$130,5,0),0) -> 0 | AI88: =IF(N($AH88)>0,VLOOKUP($AH88,Body!$A$4:$F$259,5,0),"") ->  | AJ88: =IF(N($AH88)>0,VLOOKUP($AH88,Body!$A$4:$F$259,6,0),"") ->  | AK88: =IF(N($AH88)>0,VLOOKUP($AH88,Body!$A$4:$F$259,2,0),"") ->  | AM88: 0 | AN88: =IF(OR(TYPE(I88)>1,TYPE(MATCH(I88,I89:I$139,0))>1),0,MATCH(I88,I89:I$139,0))+IF(OR(TYPE(I88)>1,TYPE(MATCH(I88,O$11:O$139,0))>1),0,MATCH(I88,O$11:O$139,0))+IF(OR(TYPE(I88)>1,TYPE(MATCH(I88,U$11:U$139,0))>1),0,MATCH(I88,U$11:U$139,0))+IF(OR(TYPE(I88)>1,TYPE(MATCH(I88,AA$11:AA$139,0))>1),0,MATCH(I88,AA$11:AA$139,0)) -> 0 | AO88: =IF(OR(TYPE(O88)>1,TYPE(MATCH(O88,I$11:I$139,0))>1),0,MATCH(O88,I$11:I$139,0))+IF(OR(TYPE(O88)>1,TYPE(MATCH(O88,O89:O$139,0))>1),0,MATCH(O88,O89:O$139,0))+IF(OR(TYPE(O88)>1,TYPE(MATCH(O88,U$11:U$139,0))>1),0,MATCH(O88,U$11:U$139,0))+IF(OR(TYPE(O88)>1,TYPE(MATCH(O88,AA$11:AA$139,0))>1),0,MATCH(O88,AA$11:AA$139,0)) -> 0 | AP88: =IF(OR(TYPE(U88)>1,TYPE(MATCH(U88,I$11:I$139,0))>1),0,MATCH(U88,I$11:I$139,0))+IF(OR(TYPE(U88)>1,TYPE(MATCH(U88,O$11:O$139,0))>1),0,MATCH(U88,O$11:O$139,0))+IF(OR(TYPE(U88)>1,TYPE(MATCH(U88,U89:U$139,0))>1),0,MATCH(U88,U89:U$139,0))+IF(OR(TYPE(U88)>1,TYPE(MATCH(U88,AA$11:AA$139,0))>1),0,MATCH(U88,AA$11:AA$139,0)) -> 0 | AQ88: =IF(OR(TYPE(AA88)>1,TYPE(MATCH(AA88,I$11:I$139,0))>1),0,MATCH(AA88,I$11:I$139,0))+IF(OR(TYPE(AA88)>1,TYPE(MATCH(AA88,O$11:O$139,0))>1),0,MATCH(AA88,O$11:O$139,0))+IF(OR(TYPE(AA88)>1,TYPE(MATCH(AA88,U$11:U$139,0))>1),0,MATCH(U88,U$11:U$139,0))+IF(OR(TYPE(AA88)>1,TYPE(MATCH(AA88,AA89:AA$139,0))>1),0,MATCH(AA88,AA89:AA$139,0)) -> 0 | AR88: 0 | AT88: 0 | AU88: =IF(AND(N(I88)>0,TYPE(VLOOKUP(I88,Hraci!$A$5:$A$800,1,0))>3),1,0) + IF(AND(N(O88)>0,TYPE(VLOOKUP(O88,Hraci!$A$5:$A$800,1,0))>3),1,0) + IF(AND(N(U88)>0,TYPE(VLOOKUP(U88,Hraci!$A$5:$A$800,1,0))>3),1,0) -> 0
A89: 0 | B89: 0 | C89: 0 | D89: 99999 | E89: 9999 | F89: 90000000900000990000191674 | G89: TRUE | H89: 79 | M89: 9999 | N89: 0 | S89: 9999 | T89: 0 | Y89: 9999 | Z89: 0 | AE89: 9999 | AF89: 0 | AH89: =IF(TYPE(VLOOKUP(H89,Centrum!$A$3:$E$130,5,0))<4,VLOOKUP(H89,Centrum!$A$3:$E$130,5,0),0) -> 0 | AI89: =IF(N($AH89)>0,VLOOKUP($AH89,Body!$A$4:$F$259,5,0),"") ->  | AJ89: =IF(N($AH89)>0,VLOOKUP($AH89,Body!$A$4:$F$259,6,0),"") ->  | AK89: =IF(N($AH89)>0,VLOOKUP($AH89,Body!$A$4:$F$259,2,0),"") ->  | AM89: 0 | AN89: =IF(OR(TYPE(I89)>1,TYPE(MATCH(I89,I90:I$139,0))>1),0,MATCH(I89,I90:I$139,0))+IF(OR(TYPE(I89)>1,TYPE(MATCH(I89,O$11:O$139,0))>1),0,MATCH(I89,O$11:O$139,0))+IF(OR(TYPE(I89)>1,TYPE(MATCH(I89,U$11:U$139,0))>1),0,MATCH(I89,U$11:U$139,0))+IF(OR(TYPE(I89)>1,TYPE(MATCH(I89,AA$11:AA$139,0))>1),0,MATCH(I89,AA$11:AA$139,0)) -> 0 | AO89: =IF(OR(TYPE(O89)>1,TYPE(MATCH(O89,I$11:I$139,0))>1),0,MATCH(O89,I$11:I$139,0))+IF(OR(TYPE(O89)>1,TYPE(MATCH(O89,O90:O$139,0))>1),0,MATCH(O89,O90:O$139,0))+IF(OR(TYPE(O89)>1,TYPE(MATCH(O89,U$11:U$139,0))>1),0,MATCH(O89,U$11:U$139,0))+IF(OR(TYPE(O89)>1,TYPE(MATCH(O89,AA$11:AA$139,0))>1),0,MATCH(O89,AA$11:AA$139,0)) -> 0 | AP89: =IF(OR(TYPE(U89)>1,TYPE(MATCH(U89,I$11:I$139,0))>1),0,MATCH(U89,I$11:I$139,0))+IF(OR(TYPE(U89)>1,TYPE(MATCH(U89,O$11:O$139,0))>1),0,MATCH(U89,O$11:O$139,0))+IF(OR(TYPE(U89)>1,TYPE(MATCH(U89,U90:U$139,0))>1),0,MATCH(U89,U90:U$139,0))+IF(OR(TYPE(U89)>1,TYPE(MATCH(U89,AA$11:AA$139,0))>1),0,MATCH(U89,AA$11:AA$139,0)) -> 0 | AQ89: =IF(OR(TYPE(AA89)>1,TYPE(MATCH(AA89,I$11:I$139,0))>1),0,MATCH(AA89,I$11:I$139,0))+IF(OR(TYPE(AA89)>1,TYPE(MATCH(AA89,O$11:O$139,0))>1),0,MATCH(AA89,O$11:O$139,0))+IF(OR(TYPE(AA89)>1,TYPE(MATCH(AA89,U$11:U$139,0))>1),0,MATCH(U89,U$11:U$139,0))+IF(OR(TYPE(AA89)>1,TYPE(MATCH(AA89,AA90:AA$139,0))>1),0,MATCH(AA89,AA90:AA$139,0)) -> 0 | AR89: 0 | AT89: 0 | AU89: =IF(AND(N(I89)>0,TYPE(VLOOKUP(I89,Hraci!$A$5:$A$800,1,0))>3),1,0) + IF(AND(N(O89)>0,TYPE(VLOOKUP(O89,Hraci!$A$5:$A$800,1,0))>3),1,0) + IF(AND(N(U89)>0,TYPE(VLOOKUP(U89,Hraci!$A$5:$A$800,1,0))>3),1,0) -> 0
A90: 0 | B90: 0 | C90: 0 | D90: 99999 | E90: 9999 | F90: 90000000900000990000540438 | G90: TRUE | H90: 80 | M90: 9999 | N90: 0 | S90: 9999 | T90: 0 | Y90: 9999 | Z90: 0 | AE90: 9999 | AF90: 0 | AH90: =IF(TYPE(VLOOKUP(H90,Centrum!$A$3:$E$130,5,0))<4,VLOOKUP(H90,Centrum!$A$3:$E$130,5,0),0) -> 0 | AI90: =IF(N($AH90)>0,VLOOKUP($AH90,Body!$A$4:$F$259,5,0),"") ->  | AJ90: =IF(N($AH90)>0,VLOOKUP($AH90,Body!$A$4:$F$259,6,0),"") ->  | AK90: =IF(N($AH90)>0,VLOOKUP($AH90,Body!$A$4:$F$259,2,0),"") ->  | AM90: 0 | AN90: =IF(OR(TYPE(I90)>1,TYPE(MATCH(I90,I91:I$139,0))>1),0,MATCH(I90,I91:I$139,0))+IF(OR(TYPE(I90)>1,TYPE(MATCH(I90,O$11:O$139,0))>1),0,MATCH(I90,O$11:O$139,0))+IF(OR(TYPE(I90)>1,TYPE(MATCH(I90,U$11:U$139,0))>1),0,MATCH(I90,U$11:U$139,0))+IF(OR(TYPE(I90)>1,TYPE(MATCH(I90,AA$11:AA$139,0))>1),0,MATCH(I90,AA$11:AA$139,0)) -> 0 | AO90: =IF(OR(TYPE(O90)>1,TYPE(MATCH(O90,I$11:I$139,0))>1),0,MATCH(O90,I$11:I$139,0))+IF(OR(TYPE(O90)>1,TYPE(MATCH(O90,O91:O$139,0))>1),0,MATCH(O90,O91:O$139,0))+IF(OR(TYPE(O90)>1,TYPE(MATCH(O90,U$11:U$139,0))>1),0,MATCH(O90,U$11:U$139,0))+IF(OR(TYPE(O90)>1,TYPE(MATCH(O90,AA$11:AA$139,0))>1),0,MATCH(O90,AA$11:AA$139,0)) -> 0 | AP90: =IF(OR(TYPE(U90)>1,TYPE(MATCH(U90,I$11:I$139,0))>1),0,MATCH(U90,I$11:I$139,0))+IF(OR(TYPE(U90)>1,TYPE(MATCH(U90,O$11:O$139,0))>1),0,MATCH(U90,O$11:O$139,0))+IF(OR(TYPE(U90)>1,TYPE(MATCH(U90,U91:U$139,0))>1),0,MATCH(U90,U91:U$139,0))+IF(OR(TYPE(U90)>1,TYPE(MATCH(U90,AA$11:AA$139,0))>1),0,MATCH(U90,AA$11:AA$139,0)) -> 0 | AQ90: =IF(OR(TYPE(AA90)>1,TYPE(MATCH(AA90,I$11:I$139,0))>1),0,MATCH(AA90,I$11:I$139,0))+IF(OR(TYPE(AA90)>1,TYPE(MATCH(AA90,O$11:O$139,0))>1),0,MATCH(AA90,O$11:O$139,0))+IF(OR(TYPE(AA90)>1,TYPE(MATCH(AA90,U$11:U$139,0))>1),0,MATCH(U90,U$11:U$139,0))+IF(OR(TYPE(AA90)>1,TYPE(MATCH(AA90,AA91:AA$139,0))>1),0,MATCH(AA90,AA91:AA$139,0)) -> 0 | AR90: 0 | AT90: 0 | AU90: =IF(AND(N(I90)>0,TYPE(VLOOKUP(I90,Hraci!$A$5:$A$800,1,0))>3),1,0) + IF(AND(N(O90)>0,TYPE(VLOOKUP(O90,Hraci!$A$5:$A$800,1,0))>3),1,0) + IF(AND(N(U90)>0,TYPE(VLOOKUP(U90,Hraci!$A$5:$A$800,1,0))>3),1,0) -> 0
A91: 0 | B91: 0 | C91: 0 | D91: 99999 | E91: 9999 | F91: 90000000900000990000744474 | G91: TRUE | H91: 81 | M91: 9999 | N91: 0 | S91: 9999 | T91: 0 | Y91: 9999 | Z91: 0 | AE91: 9999 | AF91: 0 | AH91: =IF(TYPE(VLOOKUP(H91,Centrum!$A$3:$E$130,5,0))<4,VLOOKUP(H91,Centrum!$A$3:$E$130,5,0),0) -> 0 | AI91: =IF(N($AH91)>0,VLOOKUP($AH91,Body!$A$4:$F$259,5,0),"") ->  | AJ91: =IF(N($AH91)>0,VLOOKUP($AH91,Body!$A$4:$F$259,6,0),"") ->  | AK91: =IF(N($AH91)>0,VLOOKUP($AH91,Body!$A$4:$F$259,2,0),"") ->  | AM91: 0 | AN91: =IF(OR(TYPE(I91)>1,TYPE(MATCH(I91,I92:I$139,0))>1),0,MATCH(I91,I92:I$139,0))+IF(OR(TYPE(I91)>1,TYPE(MATCH(I91,O$11:O$139,0))>1),0,MATCH(I91,O$11:O$139,0))+IF(OR(TYPE(I91)>1,TYPE(MATCH(I91,U$11:U$139,0))>1),0,MATCH(I91,U$11:U$139,0))+IF(OR(TYPE(I91)>1,TYPE(MATCH(I91,AA$11:AA$139,0))>1),0,MATCH(I91,AA$11:AA$139,0)) -> 0 | AO91: =IF(OR(TYPE(O91)>1,TYPE(MATCH(O91,I$11:I$139,0))>1),0,MATCH(O91,I$11:I$139,0))+IF(OR(TYPE(O91)>1,TYPE(MATCH(O91,O92:O$139,0))>1),0,MATCH(O91,O92:O$139,0))+IF(OR(TYPE(O91)>1,TYPE(MATCH(O91,U$11:U$139,0))>1),0,MATCH(O91,U$11:U$139,0))+IF(OR(TYPE(O91)>1,TYPE(MATCH(O91,AA$11:AA$139,0))>1),0,MATCH(O91,AA$11:AA$139,0)) -> 0 | AP91: =IF(OR(TYPE(U91)>1,TYPE(MATCH(U91,I$11:I$139,0))>1),0,MATCH(U91,I$11:I$139,0))+IF(OR(TYPE(U91)>1,TYPE(MATCH(U91,O$11:O$139,0))>1),0,MATCH(U91,O$11:O$139,0))+IF(OR(TYPE(U91)>1,TYPE(MATCH(U91,U92:U$139,0))>1),0,MATCH(U91,U92:U$139,0))+IF(OR(TYPE(U91)>1,TYPE(MATCH(U91,AA$11:AA$139,0))>1),0,MATCH(U91,AA$11:AA$139,0)) -> 0 | AQ91: =IF(OR(TYPE(AA91)>1,TYPE(MATCH(AA91,I$11:I$139,0))>1),0,MATCH(AA91,I$11:I$139,0))+IF(OR(TYPE(AA91)>1,TYPE(MATCH(AA91,O$11:O$139,0))>1),0,MATCH(AA91,O$11:O$139,0))+IF(OR(TYPE(AA91)>1,TYPE(MATCH(AA91,U$11:U$139,0))>1),0,MATCH(U91,U$11:U$139,0))+IF(OR(TYPE(AA91)>1,TYPE(MATCH(AA91,AA92:AA$139,0))>1),0,MATCH(AA91,AA92:AA$139,0)) -> 0 | AR91: 0 | AT91: 0 | AU91: =IF(AND(N(I91)>0,TYPE(VLOOKUP(I91,Hraci!$A$5:$A$800,1,0))>3),1,0) + IF(AND(N(O91)>0,TYPE(VLOOKUP(O91,Hraci!$A$5:$A$800,1,0))>3),1,0) + IF(AND(N(U91)>0,TYPE(VLOOKUP(U91,Hraci!$A$5:$A$800,1,0))>3),1,0) -> 0
A92: 0 | B92: 0 | C92: 0 | D92: 99999 | E92: 9999 | F92: 90000000900000990000657538 | G92: TRUE | H92: 82 | M92: 9999 | N92: 0 | S92: 9999 | T92: 0 | Y92: 9999 | Z92: 0 | AE92: 9999 | AF92: 0 | AH92: =IF(TYPE(VLOOKUP(H92,Centrum!$A$3:$E$130,5,0))<4,VLOOKUP(H92,Centrum!$A$3:$E$130,5,0),0) -> 0 | AI92: =IF(N($AH92)>0,VLOOKUP($AH92,Body!$A$4:$F$259,5,0),"") ->  | AJ92: =IF(N($AH92)>0,VLOOKUP($AH92,Body!$A$4:$F$259,6,0),"") ->  | AK92: =IF(N($AH92)>0,VLOOKUP($AH92,Body!$A$4:$F$259,2,0),"") ->  | AM92: 0 | AN92: =IF(OR(TYPE(I92)>1,TYPE(MATCH(I92,I93:I$139,0))>1),0,MATCH(I92,I93:I$139,0))+IF(OR(TYPE(I92)>1,TYPE(MATCH(I92,O$11:O$139,0))>1),0,MATCH(I92,O$11:O$139,0))+IF(OR(TYPE(I92)>1,TYPE(MATCH(I92,U$11:U$139,0))>1),0,MATCH(I92,U$11:U$139,0))+IF(OR(TYPE(I92)>1,TYPE(MATCH(I92,AA$11:AA$139,0))>1),0,MATCH(I92,AA$11:AA$139,0)) -> 0 | AO92: =IF(OR(TYPE(O92)>1,TYPE(MATCH(O92,I$11:I$139,0))>1),0,MATCH(O92,I$11:I$139,0))+IF(OR(TYPE(O92)>1,TYPE(MATCH(O92,O93:O$139,0))>1),0,MATCH(O92,O93:O$139,0))+IF(OR(TYPE(O92)>1,TYPE(MATCH(O92,U$11:U$139,0))>1),0,MATCH(O92,U$11:U$139,0))+IF(OR(TYPE(O92)>1,TYPE(MATCH(O92,AA$11:AA$139,0))>1),0,MATCH(O92,AA$11:AA$139,0)) -> 0 | AP92: =IF(OR(TYPE(U92)>1,TYPE(MATCH(U92,I$11:I$139,0))>1),0,MATCH(U92,I$11:I$139,0))+IF(OR(TYPE(U92)>1,TYPE(MATCH(U92,O$11:O$139,0))>1),0,MATCH(U92,O$11:O$139,0))+IF(OR(TYPE(U92)>1,TYPE(MATCH(U92,U93:U$139,0))>1),0,MATCH(U92,U93:U$139,0))+IF(OR(TYPE(U92)>1,TYPE(MATCH(U92,AA$11:AA$139,0))>1),0,MATCH(U92,AA$11:AA$139,0)) -> 0 | AQ92: =IF(OR(TYPE(AA92)>1,TYPE(MATCH(AA92,I$11:I$139,0))>1),0,MATCH(AA92,I$11:I$139,0))+IF(OR(TYPE(AA92)>1,TYPE(MATCH(AA92,O$11:O$139,0))>1),0,MATCH(AA92,O$11:O$139,0))+IF(OR(TYPE(AA92)>1,TYPE(MATCH(AA92,U$11:U$139,0))>1),0,MATCH(U92,U$11:U$139,0))+IF(OR(TYPE(AA92)>1,TYPE(MATCH(AA92,AA93:AA$139,0))>1),0,MATCH(AA92,AA93:AA$139,0)) -> 0 | AR92: 0 | AT92: 0 | AU92: =IF(AND(N(I92)>0,TYPE(VLOOKUP(I92,Hraci!$A$5:$A$800,1,0))>3),1,0) + IF(AND(N(O92)>0,TYPE(VLOOKUP(O92,Hraci!$A$5:$A$800,1,0))>3),1,0) + IF(AND(N(U92)>0,TYPE(VLOOKUP(U92,Hraci!$A$5:$A$800,1,0))>3),1,0) -> 0
A93: 0 | B93: 0 | C93: 0 | D93: 99999 | E93: 9999 | F93: 90000000900000990000179091 | G93: TRUE | H93: 83 | M93: 9999 | N93: 0 | S93: 9999 | T93: 0 | Y93: 9999 | Z93: 0 | AE93: 9999 | AF93: 0 | AH93: =IF(TYPE(VLOOKUP(H93,Centrum!$A$3:$E$130,5,0))<4,VLOOKUP(H93,Centrum!$A$3:$E$130,5,0),0) -> 0 | AI93: =IF(N($AH93)>0,VLOOKUP($AH93,Body!$A$4:$F$259,5,0),"") ->  | AJ93: =IF(N($AH93)>0,VLOOKUP($AH93,Body!$A$4:$F$259,6,0),"") ->  | AK93: =IF(N($AH93)>0,VLOOKUP($AH93,Body!$A$4:$F$259,2,0),"") ->  | AM93: 0 | AN93: =IF(OR(TYPE(I93)>1,TYPE(MATCH(I93,I94:I$139,0))>1),0,MATCH(I93,I94:I$139,0))+IF(OR(TYPE(I93)>1,TYPE(MATCH(I93,O$11:O$139,0))>1),0,MATCH(I93,O$11:O$139,0))+IF(OR(TYPE(I93)>1,TYPE(MATCH(I93,U$11:U$139,0))>1),0,MATCH(I93,U$11:U$139,0))+IF(OR(TYPE(I93)>1,TYPE(MATCH(I93,AA$11:AA$139,0))>1),0,MATCH(I93,AA$11:AA$139,0)) -> 0 | AO93: =IF(OR(TYPE(O93)>1,TYPE(MATCH(O93,I$11:I$139,0))>1),0,MATCH(O93,I$11:I$139,0))+IF(OR(TYPE(O93)>1,TYPE(MATCH(O93,O94:O$139,0))>1),0,MATCH(O93,O94:O$139,0))+IF(OR(TYPE(O93)>1,TYPE(MATCH(O93,U$11:U$139,0))>1),0,MATCH(O93,U$11:U$139,0))+IF(OR(TYPE(O93)>1,TYPE(MATCH(O93,AA$11:AA$139,0))>1),0,MATCH(O93,AA$11:AA$139,0)) -> 0 | AP93: =IF(OR(TYPE(U93)>1,TYPE(MATCH(U93,I$11:I$139,0))>1),0,MATCH(U93,I$11:I$139,0))+IF(OR(TYPE(U93)>1,TYPE(MATCH(U93,O$11:O$139,0))>1),0,MATCH(U93,O$11:O$139,0))+IF(OR(TYPE(U93)>1,TYPE(MATCH(U93,U94:U$139,0))>1),0,MATCH(U93,U94:U$139,0))+IF(OR(TYPE(U93)>1,TYPE(MATCH(U93,AA$11:AA$139,0))>1),0,MATCH(U93,AA$11:AA$139,0)) -> 0 | AQ93: =IF(OR(TYPE(AA93)>1,TYPE(MATCH(AA93,I$11:I$139,0))>1),0,MATCH(AA93,I$11:I$139,0))+IF(OR(TYPE(AA93)>1,TYPE(MATCH(AA93,O$11:O$139,0))>1),0,MATCH(AA93,O$11:O$139,0))+IF(OR(TYPE(AA93)>1,TYPE(MATCH(AA93,U$11:U$139,0))>1),0,MATCH(U93,U$11:U$139,0))+IF(OR(TYPE(AA93)>1,TYPE(MATCH(AA93,AA94:AA$139,0))>1),0,MATCH(AA93,AA94:AA$139,0)) -> 0 | AR93: 0 | AT93: 0 | AU93: =IF(AND(N(I93)>0,TYPE(VLOOKUP(I93,Hraci!$A$5:$A$800,1,0))>3),1,0) + IF(AND(N(O93)>0,TYPE(VLOOKUP(O93,Hraci!$A$5:$A$800,1,0))>3),1,0) + IF(AND(N(U93)>0,TYPE(VLOOKUP(U93,Hraci!$A$5:$A$800,1,0))>3),1,0) -> 0
A94: 0 | B94: 0 | C94: 0 | D94: 99999 | E94: 9999 | F94: 90000000900000990000097498 | G94: TRUE | H94: 84 | M94: 9999 | N94: 0 | S94: 9999 | T94: 0 | Y94: 9999 | Z94: 0 | AE94: 9999 | AF94: 0 | AH94: =IF(TYPE(VLOOKUP(H94,Centrum!$A$3:$E$130,5,0))<4,VLOOKUP(H94,Centrum!$A$3:$E$130,5,0),0) -> 0 | AI94: =IF(N($AH94)>0,VLOOKUP($AH94,Body!$A$4:$F$259,5,0),"") ->  | AJ94: =IF(N($AH94)>0,VLOOKUP($AH94,Body!$A$4:$F$259,6,0),"") ->  | AK94: =IF(N($AH94)>0,VLOOKUP($AH94,Body!$A$4:$F$259,2,0),"") ->  | AM94: 0 | AN94: =IF(OR(TYPE(I94)>1,TYPE(MATCH(I94,I95:I$139,0))>1),0,MATCH(I94,I95:I$139,0))+IF(OR(TYPE(I94)>1,TYPE(MATCH(I94,O$11:O$139,0))>1),0,MATCH(I94,O$11:O$139,0))+IF(OR(TYPE(I94)>1,TYPE(MATCH(I94,U$11:U$139,0))>1),0,MATCH(I94,U$11:U$139,0))+IF(OR(TYPE(I94)>1,TYPE(MATCH(I94,AA$11:AA$139,0))>1),0,MATCH(I94,AA$11:AA$139,0)) -> 0 | AO94: =IF(OR(TYPE(O94)>1,TYPE(MATCH(O94,I$11:I$139,0))>1),0,MATCH(O94,I$11:I$139,0))+IF(OR(TYPE(O94)>1,TYPE(MATCH(O94,O95:O$139,0))>1),0,MATCH(O94,O95:O$139,0))+IF(OR(TYPE(O94)>1,TYPE(MATCH(O94,U$11:U$139,0))>1),0,MATCH(O94,U$11:U$139,0))+IF(OR(TYPE(O94)>1,TYPE(MATCH(O94,AA$11:AA$139,0))>1),0,MATCH(O94,AA$11:AA$139,0)) -> 0 | AP94: =IF(OR(TYPE(U94)>1,TYPE(MATCH(U94,I$11:I$139,0))>1),0,MATCH(U94,I$11:I$139,0))+IF(OR(TYPE(U94)>1,TYPE(MATCH(U94,O$11:O$139,0))>1),0,MATCH(U94,O$11:O$139,0))+IF(OR(TYPE(U94)>1,TYPE(MATCH(U94,U95:U$139,0))>1),0,MATCH(U94,U95:U$139,0))+IF(OR(TYPE(U94)>1,TYPE(MATCH(U94,AA$11:AA$139,0))>1),0,MATCH(U94,AA$11:AA$139,0)) -> 0 | AQ94: =IF(OR(TYPE(AA94)>1,TYPE(MATCH(AA94,I$11:I$139,0))>1),0,MATCH(AA94,I$11:I$139,0))+IF(OR(TYPE(AA94)>1,TYPE(MATCH(AA94,O$11:O$139,0))>1),0,MATCH(AA94,O$11:O$139,0))+IF(OR(TYPE(AA94)>1,TYPE(MATCH(AA94,U$11:U$139,0))>1),0,MATCH(U94,U$11:U$139,0))+IF(OR(TYPE(AA94)>1,TYPE(MATCH(AA94,AA95:AA$139,0))>1),0,MATCH(AA94,AA95:AA$139,0)) -> 0 | AR94: 0 | AT94: 0 | AU94: =IF(AND(N(I94)>0,TYPE(VLOOKUP(I94,Hraci!$A$5:$A$800,1,0))>3),1,0) + IF(AND(N(O94)>0,TYPE(VLOOKUP(O94,Hraci!$A$5:$A$800,1,0))>3),1,0) + IF(AND(N(U94)>0,TYPE(VLOOKUP(U94,Hraci!$A$5:$A$800,1,0))>3),1,0) -> 0
A95: 0 | B95: 0 | C95: 0 | D95: 99999 | E95: 9999 | F95: 90000000900000990000844330 | G95: TRUE | H95: 85 | M95: 9999 | N95: 0 | S95: 9999 | T95: 0 | Y95: 9999 | Z95: 0 | AE95: 9999 | AF95: 0 | AH95: =IF(TYPE(VLOOKUP(H95,Centrum!$A$3:$E$130,5,0))<4,VLOOKUP(H95,Centrum!$A$3:$E$130,5,0),0) -> 0 | AI95: =IF(N($AH95)>0,VLOOKUP($AH95,Body!$A$4:$F$259,5,0),"") ->  | AJ95: =IF(N($AH95)>0,VLOOKUP($AH95,Body!$A$4:$F$259,6,0),"") ->  | AK95: =IF(N($AH95)>0,VLOOKUP($AH95,Body!$A$4:$F$259,2,0),"") ->  | AM95: 0 | AN95: =IF(OR(TYPE(I95)>1,TYPE(MATCH(I95,I96:I$139,0))>1),0,MATCH(I95,I96:I$139,0))+IF(OR(TYPE(I95)>1,TYPE(MATCH(I95,O$11:O$139,0))>1),0,MATCH(I95,O$11:O$139,0))+IF(OR(TYPE(I95)>1,TYPE(MATCH(I95,U$11:U$139,0))>1),0,MATCH(I95,U$11:U$139,0))+IF(OR(TYPE(I95)>1,TYPE(MATCH(I95,AA$11:AA$139,0))>1),0,MATCH(I95,AA$11:AA$139,0)) -> 0 | AO95: =IF(OR(TYPE(O95)>1,TYPE(MATCH(O95,I$11:I$139,0))>1),0,MATCH(O95,I$11:I$139,0))+IF(OR(TYPE(O95)>1,TYPE(MATCH(O95,O96:O$139,0))>1),0,MATCH(O95,O96:O$139,0))+IF(OR(TYPE(O95)>1,TYPE(MATCH(O95,U$11:U$139,0))>1),0,MATCH(O95,U$11:U$139,0))+IF(OR(TYPE(O95)>1,TYPE(MATCH(O95,AA$11:AA$139,0))>1),0,MATCH(O95,AA$11:AA$139,0)) -> 0 | AP95: =IF(OR(TYPE(U95)>1,TYPE(MATCH(U95,I$11:I$139,0))>1),0,MATCH(U95,I$11:I$139,0))+IF(OR(TYPE(U95)>1,TYPE(MATCH(U95,O$11:O$139,0))>1),0,MATCH(U95,O$11:O$139,0))+IF(OR(TYPE(U95)>1,TYPE(MATCH(U95,U96:U$139,0))>1),0,MATCH(U95,U96:U$139,0))+IF(OR(TYPE(U95)>1,TYPE(MATCH(U95,AA$11:AA$139,0))>1),0,MATCH(U95,AA$11:AA$139,0)) -> 0 | AQ95: =IF(OR(TYPE(AA95)>1,TYPE(MATCH(AA95,I$11:I$139,0))>1),0,MATCH(AA95,I$11:I$139,0))+IF(OR(TYPE(AA95)>1,TYPE(MATCH(AA95,O$11:O$139,0))>1),0,MATCH(AA95,O$11:O$139,0))+IF(OR(TYPE(AA95)>1,TYPE(MATCH(AA95,U$11:U$139,0))>1),0,MATCH(U95,U$11:U$139,0))+IF(OR(TYPE(AA95)>1,TYPE(MATCH(AA95,AA96:AA$139,0))>1),0,MATCH(AA95,AA96:AA$139,0)) -> 0 | AR95: 0 | AT95: 0 | AU95: =IF(AND(N(I95)>0,TYPE(VLOOKUP(I95,Hraci!$A$5:$A$800,1,0))>3),1,0) + IF(AND(N(O95)>0,TYPE(VLOOKUP(O95,Hraci!$A$5:$A$800,1,0))>3),1,0) + IF(AND(N(U95)>0,TYPE(VLOOKUP(U95,Hraci!$A$5:$A$800,1,0))>3),1,0) -> 0
A96: 0 | B96: 0 | C96: 0 | D96: 99999 | E96: 9999 | F96: 90000000900000990000859025 | G96: TRUE | H96: 86 | M96: 9999 | N96: 0 | S96: 9999 | T96: 0 | Y96: 9999 | Z96: 0 | AE96: 9999 | AF96: 0 | AH96: =IF(TYPE(VLOOKUP(H96,Centrum!$A$3:$E$130,5,0))<4,VLOOKUP(H96,Centrum!$A$3:$E$130,5,0),0) -> 0 | AI96: =IF(N($AH96)>0,VLOOKUP($AH96,Body!$A$4:$F$259,5,0),"") ->  | AJ96: =IF(N($AH96)>0,VLOOKUP($AH96,Body!$A$4:$F$259,6,0),"") ->  | AK96: =IF(N($AH96)>0,VLOOKUP($AH96,Body!$A$4:$F$259,2,0),"") ->  | AM96: 0 | AN96: =IF(OR(TYPE(I96)>1,TYPE(MATCH(I96,I97:I$139,0))>1),0,MATCH(I96,I97:I$139,0))+IF(OR(TYPE(I96)>1,TYPE(MATCH(I96,O$11:O$139,0))>1),0,MATCH(I96,O$11:O$139,0))+IF(OR(TYPE(I96)>1,TYPE(MATCH(I96,U$11:U$139,0))>1),0,MATCH(I96,U$11:U$139,0))+IF(OR(TYPE(I96)>1,TYPE(MATCH(I96,AA$11:AA$139,0))>1),0,MATCH(I96,AA$11:AA$139,0)) -> 0 | AO96: =IF(OR(TYPE(O96)>1,TYPE(MATCH(O96,I$11:I$139,0))>1),0,MATCH(O96,I$11:I$139,0))+IF(OR(TYPE(O96)>1,TYPE(MATCH(O96,O97:O$139,0))>1),0,MATCH(O96,O97:O$139,0))+IF(OR(TYPE(O96)>1,TYPE(MATCH(O96,U$11:U$139,0))>1),0,MATCH(O96,U$11:U$139,0))+IF(OR(TYPE(O96)>1,TYPE(MATCH(O96,AA$11:AA$139,0))>1),0,MATCH(O96,AA$11:AA$139,0)) -> 0 | AP96: =IF(OR(TYPE(U96)>1,TYPE(MATCH(U96,I$11:I$139,0))>1),0,MATCH(U96,I$11:I$139,0))+IF(OR(TYPE(U96)>1,TYPE(MATCH(U96,O$11:O$139,0))>1),0,MATCH(U96,O$11:O$139,0))+IF(OR(TYPE(U96)>1,TYPE(MATCH(U96,U97:U$139,0))>1),0,MATCH(U96,U97:U$139,0))+IF(OR(TYPE(U96)>1,TYPE(MATCH(U96,AA$11:AA$139,0))>1),0,MATCH(U96,AA$11:AA$139,0)) -> 0 | AQ96: =IF(OR(TYPE(AA96)>1,TYPE(MATCH(AA96,I$11:I$139,0))>1),0,MATCH(AA96,I$11:I$139,0))+IF(OR(TYPE(AA96)>1,TYPE(MATCH(AA96,O$11:O$139,0))>1),0,MATCH(AA96,O$11:O$139,0))+IF(OR(TYPE(AA96)>1,TYPE(MATCH(AA96,U$11:U$139,0))>1),0,MATCH(U96,U$11:U$139,0))+IF(OR(TYPE(AA96)>1,TYPE(MATCH(AA96,AA97:AA$139,0))>1),0,MATCH(AA96,AA97:AA$139,0)) -> 0 | AR96: 0 | AT96: 0 | AU96: =IF(AND(N(I96)>0,TYPE(VLOOKUP(I96,Hraci!$A$5:$A$800,1,0))>3),1,0) + IF(AND(N(O96)>0,TYPE(VLOOKUP(O96,Hraci!$A$5:$A$800,1,0))>3),1,0) + IF(AND(N(U96)>0,TYPE(VLOOKUP(U96,Hraci!$A$5:$A$800,1,0))>3),1,0) -> 0
A97: 0 | B97: 0 | C97: 0 | D97: 99999 | E97: 9999 | F97: 90000000900000990000123875 | G97: TRUE | H97: 87 | M97: 9999 | N97: 0 | S97: 9999 | T97: 0 | Y97: 9999 | Z97: 0 | AE97: 9999 | AF97: 0 | AH97: =IF(TYPE(VLOOKUP(H97,Centrum!$A$3:$E$130,5,0))<4,VLOOKUP(H97,Centrum!$A$3:$E$130,5,0),0) -> 0 | AI97: =IF(N($AH97)>0,VLOOKUP($AH97,Body!$A$4:$F$259,5,0),"") ->  | AJ97: =IF(N($AH97)>0,VLOOKUP($AH97,Body!$A$4:$F$259,6,0),"") ->  | AK97: =IF(N($AH97)>0,VLOOKUP($AH97,Body!$A$4:$F$259,2,0),"") ->  | AM97: 0 | AN97: =IF(OR(TYPE(I97)>1,TYPE(MATCH(I97,I98:I$139,0))>1),0,MATCH(I97,I98:I$139,0))+IF(OR(TYPE(I97)>1,TYPE(MATCH(I97,O$11:O$139,0))>1),0,MATCH(I97,O$11:O$139,0))+IF(OR(TYPE(I97)>1,TYPE(MATCH(I97,U$11:U$139,0))>1),0,MATCH(I97,U$11:U$139,0))+IF(OR(TYPE(I97)>1,TYPE(MATCH(I97,AA$11:AA$139,0))>1),0,MATCH(I97,AA$11:AA$139,0)) -> 0 | AO97: =IF(OR(TYPE(O97)>1,TYPE(MATCH(O97,I$11:I$139,0))>1),0,MATCH(O97,I$11:I$139,0))+IF(OR(TYPE(O97)>1,TYPE(MATCH(O97,O98:O$139,0))>1),0,MATCH(O97,O98:O$139,0))+IF(OR(TYPE(O97)>1,TYPE(MATCH(O97,U$11:U$139,0))>1),0,MATCH(O97,U$11:U$139,0))+IF(OR(TYPE(O97)>1,TYPE(MATCH(O97,AA$11:AA$139,0))>1),0,MATCH(O97,AA$11:AA$139,0)) -> 0 | AP97: =IF(OR(TYPE(U97)>1,TYPE(MATCH(U97,I$11:I$139,0))>1),0,MATCH(U97,I$11:I$139,0))+IF(OR(TYPE(U97)>1,TYPE(MATCH(U97,O$11:O$139,0))>1),0,MATCH(U97,O$11:O$139,0))+IF(OR(TYPE(U97)>1,TYPE(MATCH(U97,U98:U$139,0))>1),0,MATCH(U97,U98:U$139,0))+IF(OR(TYPE(U97)>1,TYPE(MATCH(U97,AA$11:AA$139,0))>1),0,MATCH(U97,AA$11:AA$139,0)) -> 0 | AQ97: =IF(OR(TYPE(AA97)>1,TYPE(MATCH(AA97,I$11:I$139,0))>1),0,MATCH(AA97,I$11:I$139,0))+IF(OR(TYPE(AA97)>1,TYPE(MATCH(AA97,O$11:O$139,0))>1),0,MATCH(AA97,O$11:O$139,0))+IF(OR(TYPE(AA97)>1,TYPE(MATCH(AA97,U$11:U$139,0))>1),0,MATCH(U97,U$11:U$139,0))+IF(OR(TYPE(AA97)>1,TYPE(MATCH(AA97,AA98:AA$139,0))>1),0,MATCH(AA97,AA98:AA$139,0)) -> 0 | AR97: 0 | AT97: 0 | AU97: =IF(AND(N(I97)>0,TYPE(VLOOKUP(I97,Hraci!$A$5:$A$800,1,0))>3),1,0) + IF(AND(N(O97)>0,TYPE(VLOOKUP(O97,Hraci!$A$5:$A$800,1,0))>3),1,0) + IF(AND(N(U97)>0,TYPE(VLOOKUP(U97,Hraci!$A$5:$A$800,1,0))>3),1,0) -> 0
A98: 0 | B98: 0 | C98: 0 | D98: 99999 | E98: 9999 | F98: 90000000900000990000516985 | G98: TRUE | H98: 88 | M98: 9999 | N98: 0 | S98: 9999 | T98: 0 | Y98: 9999 | Z98: 0 | AE98: 9999 | AF98: 0 | AH98: =IF(TYPE(VLOOKUP(H98,Centrum!$A$3:$E$130,5,0))<4,VLOOKUP(H98,Centrum!$A$3:$E$130,5,0),0) -> 0 | AI98: =IF(N($AH98)>0,VLOOKUP($AH98,Body!$A$4:$F$259,5,0),"") ->  | AJ98: =IF(N($AH98)>0,VLOOKUP($AH98,Body!$A$4:$F$259,6,0),"") ->  | AK98: =IF(N($AH98)>0,VLOOKUP($AH98,Body!$A$4:$F$259,2,0),"") ->  | AM98: 0 | AN98: =IF(OR(TYPE(I98)>1,TYPE(MATCH(I98,I99:I$139,0))>1),0,MATCH(I98,I99:I$139,0))+IF(OR(TYPE(I98)>1,TYPE(MATCH(I98,O$11:O$139,0))>1),0,MATCH(I98,O$11:O$139,0))+IF(OR(TYPE(I98)>1,TYPE(MATCH(I98,U$11:U$139,0))>1),0,MATCH(I98,U$11:U$139,0))+IF(OR(TYPE(I98)>1,TYPE(MATCH(I98,AA$11:AA$139,0))>1),0,MATCH(I98,AA$11:AA$139,0)) -> 0 | AO98: =IF(OR(TYPE(O98)>1,TYPE(MATCH(O98,I$11:I$139,0))>1),0,MATCH(O98,I$11:I$139,0))+IF(OR(TYPE(O98)>1,TYPE(MATCH(O98,O99:O$139,0))>1),0,MATCH(O98,O99:O$139,0))+IF(OR(TYPE(O98)>1,TYPE(MATCH(O98,U$11:U$139,0))>1),0,MATCH(O98,U$11:U$139,0))+IF(OR(TYPE(O98)>1,TYPE(MATCH(O98,AA$11:AA$139,0))>1),0,MATCH(O98,AA$11:AA$139,0)) -> 0 | AP98: =IF(OR(TYPE(U98)>1,TYPE(MATCH(U98,I$11:I$139,0))>1),0,MATCH(U98,I$11:I$139,0))+IF(OR(TYPE(U98)>1,TYPE(MATCH(U98,O$11:O$139,0))>1),0,MATCH(U98,O$11:O$139,0))+IF(OR(TYPE(U98)>1,TYPE(MATCH(U98,U99:U$139,0))>1),0,MATCH(U98,U99:U$139,0))+IF(OR(TYPE(U98)>1,TYPE(MATCH(U98,AA$11:AA$139,0))>1),0,MATCH(U98,AA$11:AA$139,0)) -> 0 | AQ98: =IF(OR(TYPE(AA98)>1,TYPE(MATCH(AA98,I$11:I$139,0))>1),0,MATCH(AA98,I$11:I$139,0))+IF(OR(TYPE(AA98)>1,TYPE(MATCH(AA98,O$11:O$139,0))>1),0,MATCH(AA98,O$11:O$139,0))+IF(OR(TYPE(AA98)>1,TYPE(MATCH(AA98,U$11:U$139,0))>1),0,MATCH(U98,U$11:U$139,0))+IF(OR(TYPE(AA98)>1,TYPE(MATCH(AA98,AA99:AA$139,0))>1),0,MATCH(AA98,AA99:AA$139,0)) -> 0 | AR98: 0 | AT98: 0 | AU98: =IF(AND(N(I98)>0,TYPE(VLOOKUP(I98,Hraci!$A$5:$A$800,1,0))>3),1,0) + IF(AND(N(O98)>0,TYPE(VLOOKUP(O98,Hraci!$A$5:$A$800,1,0))>3),1,0) + IF(AND(N(U98)>0,TYPE(VLOOKUP(U98,Hraci!$A$5:$A$800,1,0))>3),1,0) -> 0
A99: 0 | B99: 0 | C99: 0 | D99: 99999 | E99: 9999 | F99: 90000000900000990000738247 | G99: TRUE | H99: 89 | M99: 9999 | N99: 0 | S99: 9999 | T99: 0 | Y99: 9999 | Z99: 0 | AE99: 9999 | AF99: 0 | AH99: =IF(TYPE(VLOOKUP(H99,Centrum!$A$3:$E$130,5,0))<4,VLOOKUP(H99,Centrum!$A$3:$E$130,5,0),0) -> 0 | AI99: =IF(N($AH99)>0,VLOOKUP($AH99,Body!$A$4:$F$259,5,0),"") ->  | AJ99: =IF(N($AH99)>0,VLOOKUP($AH99,Body!$A$4:$F$259,6,0),"") ->  | AK99: =IF(N($AH99)>0,VLOOKUP($AH99,Body!$A$4:$F$259,2,0),"") ->  | AM99: 0 | AN99: =IF(OR(TYPE(I99)>1,TYPE(MATCH(I99,I100:I$139,0))>1),0,MATCH(I99,I100:I$139,0))+IF(OR(TYPE(I99)>1,TYPE(MATCH(I99,O$11:O$139,0))>1),0,MATCH(I99,O$11:O$139,0))+IF(OR(TYPE(I99)>1,TYPE(MATCH(I99,U$11:U$139,0))>1),0,MATCH(I99,U$11:U$139,0))+IF(OR(TYPE(I99)>1,TYPE(MATCH(I99,AA$11:AA$139,0))>1),0,MATCH(I99,AA$11:AA$139,0)) -> 0 | AO99: =IF(OR(TYPE(O99)>1,TYPE(MATCH(O99,I$11:I$139,0))>1),0,MATCH(O99,I$11:I$139,0))+IF(OR(TYPE(O99)>1,TYPE(MATCH(O99,O100:O$139,0))>1),0,MATCH(O99,O100:O$139,0))+IF(OR(TYPE(O99)>1,TYPE(MATCH(O99,U$11:U$139,0))>1),0,MATCH(O99,U$11:U$139,0))+IF(OR(TYPE(O99)>1,TYPE(MATCH(O99,AA$11:AA$139,0))>1),0,MATCH(O99,AA$11:AA$139,0)) -> 0 | AP99: =IF(OR(TYPE(U99)>1,TYPE(MATCH(U99,I$11:I$139,0))>1),0,MATCH(U99,I$11:I$139,0))+IF(OR(TYPE(U99)>1,TYPE(MATCH(U99,O$11:O$139,0))>1),0,MATCH(U99,O$11:O$139,0))+IF(OR(TYPE(U99)>1,TYPE(MATCH(U99,U100:U$139,0))>1),0,MATCH(U99,U100:U$139,0))+IF(OR(TYPE(U99)>1,TYPE(MATCH(U99,AA$11:AA$139,0))>1),0,MATCH(U99,AA$11:AA$139,0)) -> 0 | AQ99: =IF(OR(TYPE(AA99)>1,TYPE(MATCH(AA99,I$11:I$139,0))>1),0,MATCH(AA99,I$11:I$139,0))+IF(OR(TYPE(AA99)>1,TYPE(MATCH(AA99,O$11:O$139,0))>1),0,MATCH(AA99,O$11:O$139,0))+IF(OR(TYPE(AA99)>1,TYPE(MATCH(AA99,U$11:U$139,0))>1),0,MATCH(U99,U$11:U$139,0))+IF(OR(TYPE(AA99)>1,TYPE(MATCH(AA99,AA100:AA$139,0))>1),0,MATCH(AA99,AA100:AA$139,0)) -> 0 | AR99: 0 | AT99: 0 | AU99: =IF(AND(N(I99)>0,TYPE(VLOOKUP(I99,Hraci!$A$5:$A$800,1,0))>3),1,0) + IF(AND(N(O99)>0,TYPE(VLOOKUP(O99,Hraci!$A$5:$A$800,1,0))>3),1,0) + IF(AND(N(U99)>0,TYPE(VLOOKUP(U99,Hraci!$A$5:$A$800,1,0))>3),1,0) -> 0
A100: 0 | B100: 0 | C100: 0 | D100: 99999 | E100: 9999 | F100: 90000000900000990000510623 | G100: TRUE | H100: 90 | M100: 9999 | N100: 0 | S100: 9999 | T100: 0 | Y100: 9999 | Z100: 0 | AE100: 9999 | AF100: 0 | AH100: =IF(TYPE(VLOOKUP(H100,Centrum!$A$3:$E$130,5,0))<4,VLOOKUP(H100,Centrum!$A$3:$E$130,5,0),0) -> 0 | AI100: =IF(N($AH100)>0,VLOOKUP($AH100,Body!$A$4:$F$259,5,0),"") ->  | AJ100: =IF(N($AH100)>0,VLOOKUP($AH100,Body!$A$4:$F$259,6,0),"") ->  | AK100: =IF(N($AH100)>0,VLOOKUP($AH100,Body!$A$4:$F$259,2,0),"") ->  | AM100: 0 | AN100: =IF(OR(TYPE(I100)>1,TYPE(MATCH(I100,I101:I$139,0))>1),0,MATCH(I100,I101:I$139,0))+IF(OR(TYPE(I100)>1,TYPE(MATCH(I100,O$11:O$139,0))>1),0,MATCH(I100,O$11:O$139,0))+IF(OR(TYPE(I100)>1,TYPE(MATCH(I100,U$11:U$139,0))>1),0,MATCH(I100,U$11:U$139,0))+IF(OR(TYPE(I100)>1,TYPE(MATCH(I100,AA$11:AA$139,0))>1),0,MATCH(I100,AA$11:AA$139,0)) -> 0 | AO100: =IF(OR(TYPE(O100)>1,TYPE(MATCH(O100,I$11:I$139,0))>1),0,MATCH(O100,I$11:I$139,0))+IF(OR(TYPE(O100)>1,TYPE(MATCH(O100,O101:O$139,0))>1),0,MATCH(O100,O101:O$139,0))+IF(OR(TYPE(O100)>1,TYPE(MATCH(O100,U$11:U$139,0))>1),0,MATCH(O100,U$11:U$139,0))+IF(OR(TYPE(O100)>1,TYPE(MATCH(O100,AA$11:AA$139,0))>1),0,MATCH(O100,AA$11:AA$139,0)) -> 0 | AP100: =IF(OR(TYPE(U100)>1,TYPE(MATCH(U100,I$11:I$139,0))>1),0,MATCH(U100,I$11:I$139,0))+IF(OR(TYPE(U100)>1,TYPE(MATCH(U100,O$11:O$139,0))>1),0,MATCH(U100,O$11:O$139,0))+IF(OR(TYPE(U100)>1,TYPE(MATCH(U100,U101:U$139,0))>1),0,MATCH(U100,U101:U$139,0))+IF(OR(TYPE(U100)>1,TYPE(MATCH(U100,AA$11:AA$139,0))>1),0,MATCH(U100,AA$11:AA$139,0)) -> 0 | AQ100: =IF(OR(TYPE(AA100)>1,TYPE(MATCH(AA100,I$11:I$139,0))>1),0,MATCH(AA100,I$11:I$139,0))+IF(OR(TYPE(AA100)>1,TYPE(MATCH(AA100,O$11:O$139,0))>1),0,MATCH(AA100,O$11:O$139,0))+IF(OR(TYPE(AA100)>1,TYPE(MATCH(AA100,U$11:U$139,0))>1),0,MATCH(U100,U$11:U$139,0))+IF(OR(TYPE(AA100)>1,TYPE(MATCH(AA100,AA101:AA$139,0))>1),0,MATCH(AA100,AA101:AA$139,0)) -> 0 | AR100: 0 | AT100: 0 | AU100: =IF(AND(N(I100)>0,TYPE(VLOOKUP(I100,Hraci!$A$5:$A$800,1,0))>3),1,0) + IF(AND(N(O100)>0,TYPE(VLOOKUP(O100,Hraci!$A$5:$A$800,1,0))>3),1,0) + IF(AND(N(U100)>0,TYPE(VLOOKUP(U100,Hraci!$A$5:$A$800,1,0))>3),1,0) -> 0
A101: 0 | B101: 0 | C101: 0 | D101: 99999 | E101: 9999 | F101: 90000000900000990000309898 | G101: TRUE | H101: 91 | M101: 9999 | N101: 0 | S101: 9999 | T101: 0 | Y101: 9999 | Z101: 0 | AE101: 9999 | AF101: 0 | AH101: =IF(TYPE(VLOOKUP(H101,Centrum!$A$3:$E$130,5,0))<4,VLOOKUP(H101,Centrum!$A$3:$E$130,5,0),0) -> 0 | AI101: =IF(N($AH101)>0,VLOOKUP($AH101,Body!$A$4:$F$259,5,0),"") ->  | AJ101: =IF(N($AH101)>0,VLOOKUP($AH101,Body!$A$4:$F$259,6,0),"") ->  | AK101: =IF(N($AH101)>0,VLOOKUP($AH101,Body!$A$4:$F$259,2,0),"") ->  | AM101: 0 | AN101: =IF(OR(TYPE(I101)>1,TYPE(MATCH(I101,I102:I$139,0))>1),0,MATCH(I101,I102:I$139,0))+IF(OR(TYPE(I101)>1,TYPE(MATCH(I101,O$11:O$139,0))>1),0,MATCH(I101,O$11:O$139,0))+IF(OR(TYPE(I101)>1,TYPE(MATCH(I101,U$11:U$139,0))>1),0,MATCH(I101,U$11:U$139,0))+IF(OR(TYPE(I101)>1,TYPE(MATCH(I101,AA$11:AA$139,0))>1),0,MATCH(I101,AA$11:AA$139,0)) -> 0 | AO101: =IF(OR(TYPE(O101)>1,TYPE(MATCH(O101,I$11:I$139,0))>1),0,MATCH(O101,I$11:I$139,0))+IF(OR(TYPE(O101)>1,TYPE(MATCH(O101,O102:O$139,0))>1),0,MATCH(O101,O102:O$139,0))+IF(OR(TYPE(O101)>1,TYPE(MATCH(O101,U$11:U$139,0))>1),0,MATCH(O101,U$11:U$139,0))+IF(OR(TYPE(O101)>1,TYPE(MATCH(O101,AA$11:AA$139,0))>1),0,MATCH(O101,AA$11:AA$139,0)) -> 0 | AP101: =IF(OR(TYPE(U101)>1,TYPE(MATCH(U101,I$11:I$139,0))>1),0,MATCH(U101,I$11:I$139,0))+IF(OR(TYPE(U101)>1,TYPE(MATCH(U101,O$11:O$139,0))>1),0,MATCH(U101,O$11:O$139,0))+IF(OR(TYPE(U101)>1,TYPE(MATCH(U101,U102:U$139,0))>1),0,MATCH(U101,U102:U$139,0))+IF(OR(TYPE(U101)>1,TYPE(MATCH(U101,AA$11:AA$139,0))>1),0,MATCH(U101,AA$11:AA$139,0)) -> 0 | AQ101: =IF(OR(TYPE(AA101)>1,TYPE(MATCH(AA101,I$11:I$139,0))>1),0,MATCH(AA101,I$11:I$139,0))+IF(OR(TYPE(AA101)>1,TYPE(MATCH(AA101,O$11:O$139,0))>1),0,MATCH(AA101,O$11:O$139,0))+IF(OR(TYPE(AA101)>1,TYPE(MATCH(AA101,U$11:U$139,0))>1),0,MATCH(U101,U$11:U$139,0))+IF(OR(TYPE(AA101)>1,TYPE(MATCH(AA101,AA102:AA$139,0))>1),0,MATCH(AA101,AA102:AA$139,0)) -> 0 | AR101: 0 | AT101: 0 | AU101: =IF(AND(N(I101)>0,TYPE(VLOOKUP(I101,Hraci!$A$5:$A$800,1,0))>3),1,0) + IF(AND(N(O101)>0,TYPE(VLOOKUP(O101,Hraci!$A$5:$A$800,1,0))>3),1,0) + IF(AND(N(U101)>0,TYPE(VLOOKUP(U101,Hraci!$A$5:$A$800,1,0))>3),1,0) -> 0
A102: 0 | B102: 0 | C102: 0 | D102: 99999 | E102: 9999 | F102: 90000000900000990000651417 | G102: TRUE | H102: 92 | M102: 9999 | N102: 0 | S102: 9999 | T102: 0 | Y102: 9999 | Z102: 0 | AE102: 9999 | AF102: 0 | AH102: =IF(TYPE(VLOOKUP(H102,Centrum!$A$3:$E$130,5,0))<4,VLOOKUP(H102,Centrum!$A$3:$E$130,5,0),0) -> 0 | AI102: =IF(N($AH102)>0,VLOOKUP($AH102,Body!$A$4:$F$259,5,0),"") ->  | AJ102: =IF(N($AH102)>0,VLOOKUP($AH102,Body!$A$4:$F$259,6,0),"") ->  | AK102: =IF(N($AH102)>0,VLOOKUP($AH102,Body!$A$4:$F$259,2,0),"") ->  | AM102: 0 | AN102: =IF(OR(TYPE(I102)>1,TYPE(MATCH(I102,I103:I$139,0))>1),0,MATCH(I102,I103:I$139,0))+IF(OR(TYPE(I102)>1,TYPE(MATCH(I102,O$11:O$139,0))>1),0,MATCH(I102,O$11:O$139,0))+IF(OR(TYPE(I102)>1,TYPE(MATCH(I102,U$11:U$139,0))>1),0,MATCH(I102,U$11:U$139,0))+IF(OR(TYPE(I102)>1,TYPE(MATCH(I102,AA$11:AA$139,0))>1),0,MATCH(I102,AA$11:AA$139,0)) -> 0 | AO102: =IF(OR(TYPE(O102)>1,TYPE(MATCH(O102,I$11:I$139,0))>1),0,MATCH(O102,I$11:I$139,0))+IF(OR(TYPE(O102)>1,TYPE(MATCH(O102,O103:O$139,0))>1),0,MATCH(O102,O103:O$139,0))+IF(OR(TYPE(O102)>1,TYPE(MATCH(O102,U$11:U$139,0))>1),0,MATCH(O102,U$11:U$139,0))+IF(OR(TYPE(O102)>1,TYPE(MATCH(O102,AA$11:AA$139,0))>1),0,MATCH(O102,AA$11:AA$139,0)) -> 0 | AP102: =IF(OR(TYPE(U102)>1,TYPE(MATCH(U102,I$11:I$139,0))>1),0,MATCH(U102,I$11:I$139,0))+IF(OR(TYPE(U102)>1,TYPE(MATCH(U102,O$11:O$139,0))>1),0,MATCH(U102,O$11:O$139,0))+IF(OR(TYPE(U102)>1,TYPE(MATCH(U102,U103:U$139,0))>1),0,MATCH(U102,U103:U$139,0))+IF(OR(TYPE(U102)>1,TYPE(MATCH(U102,AA$11:AA$139,0))>1),0,MATCH(U102,AA$11:AA$139,0)) -> 0 | AQ102: =IF(OR(TYPE(AA102)>1,TYPE(MATCH(AA102,I$11:I$139,0))>1),0,MATCH(AA102,I$11:I$139,0))+IF(OR(TYPE(AA102)>1,TYPE(MATCH(AA102,O$11:O$139,0))>1),0,MATCH(AA102,O$11:O$139,0))+IF(OR(TYPE(AA102)>1,TYPE(MATCH(AA102,U$11:U$139,0))>1),0,MATCH(U102,U$11:U$139,0))+IF(OR(TYPE(AA102)>1,TYPE(MATCH(AA102,AA103:AA$139,0))>1),0,MATCH(AA102,AA103:AA$139,0)) -> 0 | AR102: 0 | AT102: 0 | AU102: =IF(AND(N(I102)>0,TYPE(VLOOKUP(I102,Hraci!$A$5:$A$800,1,0))>3),1,0) + IF(AND(N(O102)>0,TYPE(VLOOKUP(O102,Hraci!$A$5:$A$800,1,0))>3),1,0) + IF(AND(N(U102)>0,TYPE(VLOOKUP(U102,Hraci!$A$5:$A$800,1,0))>3),1,0) -> 0
A103: 0 | B103: 0 | C103: 0 | D103: 99999 | E103: 9999 | F103: 90000000900000990000407220 | G103: TRUE | H103: 93 | M103: 9999 | N103: 0 | S103: 9999 | T103: 0 | Y103: 9999 | Z103: 0 | AE103: 9999 | AF103: 0 | AH103: =IF(TYPE(VLOOKUP(H103,Centrum!$A$3:$E$130,5,0))<4,VLOOKUP(H103,Centrum!$A$3:$E$130,5,0),0) -> 0 | AI103: =IF(N($AH103)>0,VLOOKUP($AH103,Body!$A$4:$F$259,5,0),"") ->  | AJ103: =IF(N($AH103)>0,VLOOKUP($AH103,Body!$A$4:$F$259,6,0),"") ->  | AK103: =IF(N($AH103)>0,VLOOKUP($AH103,Body!$A$4:$F$259,2,0),"") ->  | AM103: 0 | AN103: =IF(OR(TYPE(I103)>1,TYPE(MATCH(I103,I104:I$139,0))>1),0,MATCH(I103,I104:I$139,0))+IF(OR(TYPE(I103)>1,TYPE(MATCH(I103,O$11:O$139,0))>1),0,MATCH(I103,O$11:O$139,0))+IF(OR(TYPE(I103)>1,TYPE(MATCH(I103,U$11:U$139,0))>1),0,MATCH(I103,U$11:U$139,0))+IF(OR(TYPE(I103)>1,TYPE(MATCH(I103,AA$11:AA$139,0))>1),0,MATCH(I103,AA$11:AA$139,0)) -> 0 | AO103: =IF(OR(TYPE(O103)>1,TYPE(MATCH(O103,I$11:I$139,0))>1),0,MATCH(O103,I$11:I$139,0))+IF(OR(TYPE(O103)>1,TYPE(MATCH(O103,O104:O$139,0))>1),0,MATCH(O103,O104:O$139,0))+IF(OR(TYPE(O103)>1,TYPE(MATCH(O103,U$11:U$139,0))>1),0,MATCH(O103,U$11:U$139,0))+IF(OR(TYPE(O103)>1,TYPE(MATCH(O103,AA$11:AA$139,0))>1),0,MATCH(O103,AA$11:AA$139,0)) -> 0 | AP103: =IF(OR(TYPE(U103)>1,TYPE(MATCH(U103,I$11:I$139,0))>1),0,MATCH(U103,I$11:I$139,0))+IF(OR(TYPE(U103)>1,TYPE(MATCH(U103,O$11:O$139,0))>1),0,MATCH(U103,O$11:O$139,0))+IF(OR(TYPE(U103)>1,TYPE(MATCH(U103,U104:U$139,0))>1),0,MATCH(U103,U104:U$139,0))+IF(OR(TYPE(U103)>1,TYPE(MATCH(U103,AA$11:AA$139,0))>1),0,MATCH(U103,AA$11:AA$139,0)) -> 0 | AQ103: =IF(OR(TYPE(AA103)>1,TYPE(MATCH(AA103,I$11:I$139,0))>1),0,MATCH(AA103,I$11:I$139,0))+IF(OR(TYPE(AA103)>1,TYPE(MATCH(AA103,O$11:O$139,0))>1),0,MATCH(AA103,O$11:O$139,0))+IF(OR(TYPE(AA103)>1,TYPE(MATCH(AA103,U$11:U$139,0))>1),0,MATCH(U103,U$11:U$139,0))+IF(OR(TYPE(AA103)>1,TYPE(MATCH(AA103,AA104:AA$139,0))>1),0,MATCH(AA103,AA104:AA$139,0)) -> 0 | AR103: 0 | AT103: 0 | AU103: =IF(AND(N(I103)>0,TYPE(VLOOKUP(I103,Hraci!$A$5:$A$800,1,0))>3),1,0) + IF(AND(N(O103)>0,TYPE(VLOOKUP(O103,Hraci!$A$5:$A$800,1,0))>3),1,0) + IF(AND(N(U103)>0,TYPE(VLOOKUP(U103,Hraci!$A$5:$A$800,1,0))>3),1,0) -> 0
A104: 0 | B104: 0 | C104: 0 | D104: 99999 | E104: 9999 | F104: 90000000900000990000101195 | G104: TRUE | H104: 94 | M104: 9999 | N104: 0 | S104: 9999 | T104: 0 | Y104: 9999 | Z104: 0 | AE104: 9999 | AF104: 0 | AH104: =IF(TYPE(VLOOKUP(H104,Centrum!$A$3:$E$130,5,0))<4,VLOOKUP(H104,Centrum!$A$3:$E$130,5,0),0) -> 0 | AI104: =IF(N($AH104)>0,VLOOKUP($AH104,Body!$A$4:$F$259,5,0),"") ->  | AJ104: =IF(N($AH104)>0,VLOOKUP($AH104,Body!$A$4:$F$259,6,0),"") ->  | AK104: =IF(N($AH104)>0,VLOOKUP($AH104,Body!$A$4:$F$259,2,0),"") ->  | AM104: 0 | AN104: =IF(OR(TYPE(I104)>1,TYPE(MATCH(I104,I105:I$139,0))>1),0,MATCH(I104,I105:I$139,0))+IF(OR(TYPE(I104)>1,TYPE(MATCH(I104,O$11:O$139,0))>1),0,MATCH(I104,O$11:O$139,0))+IF(OR(TYPE(I104)>1,TYPE(MATCH(I104,U$11:U$139,0))>1),0,MATCH(I104,U$11:U$139,0))+IF(OR(TYPE(I104)>1,TYPE(MATCH(I104,AA$11:AA$139,0))>1),0,MATCH(I104,AA$11:AA$139,0)) -> 0 | AO104: =IF(OR(TYPE(O104)>1,TYPE(MATCH(O104,I$11:I$139,0))>1),0,MATCH(O104,I$11:I$139,0))+IF(OR(TYPE(O104)>1,TYPE(MATCH(O104,O105:O$139,0))>1),0,MATCH(O104,O105:O$139,0))+IF(OR(TYPE(O104)>1,TYPE(MATCH(O104,U$11:U$139,0))>1),0,MATCH(O104,U$11:U$139,0))+IF(OR(TYPE(O104)>1,TYPE(MATCH(O104,AA$11:AA$139,0))>1),0,MATCH(O104,AA$11:AA$139,0)) -> 0 | AP104: =IF(OR(TYPE(U104)>1,TYPE(MATCH(U104,I$11:I$139,0))>1),0,MATCH(U104,I$11:I$139,0))+IF(OR(TYPE(U104)>1,TYPE(MATCH(U104,O$11:O$139,0))>1),0,MATCH(U104,O$11:O$139,0))+IF(OR(TYPE(U104)>1,TYPE(MATCH(U104,U105:U$139,0))>1),0,MATCH(U104,U105:U$139,0))+IF(OR(TYPE(U104)>1,TYPE(MATCH(U104,AA$11:AA$139,0))>1),0,MATCH(U104,AA$11:AA$139,0)) -> 0 | AQ104: =IF(OR(TYPE(AA104)>1,TYPE(MATCH(AA104,I$11:I$139,0))>1),0,MATCH(AA104,I$11:I$139,0))+IF(OR(TYPE(AA104)>1,TYPE(MATCH(AA104,O$11:O$139,0))>1),0,MATCH(AA104,O$11:O$139,0))+IF(OR(TYPE(AA104)>1,TYPE(MATCH(AA104,U$11:U$139,0))>1),0,MATCH(U104,U$11:U$139,0))+IF(OR(TYPE(AA104)>1,TYPE(MATCH(AA104,AA105:AA$139,0))>1),0,MATCH(AA104,AA105:AA$139,0)) -> 0 | AR104: 0 | AT104: 0 | AU104: =IF(AND(N(I104)>0,TYPE(VLOOKUP(I104,Hraci!$A$5:$A$800,1,0))>3),1,0) + IF(AND(N(O104)>0,TYPE(VLOOKUP(O104,Hraci!$A$5:$A$800,1,0))>3),1,0) + IF(AND(N(U104)>0,TYPE(VLOOKUP(U104,Hraci!$A$5:$A$800,1,0))>3),1,0) -> 0
A105: 0 | B105: 0 | C105: 0 | D105: 99999 | E105: 9999 | F105: 90000000900000990000295742 | G105: TRUE | H105: 95 | M105: 9999 | N105: 0 | S105: 9999 | T105: 0 | Y105: 9999 | Z105: 0 | AE105: 9999 | AF105: 0 | AH105: =IF(TYPE(VLOOKUP(H105,Centrum!$A$3:$E$130,5,0))<4,VLOOKUP(H105,Centrum!$A$3:$E$130,5,0),0) -> 0 | AI105: =IF(N($AH105)>0,VLOOKUP($AH105,Body!$A$4:$F$259,5,0),"") ->  | AJ105: =IF(N($AH105)>0,VLOOKUP($AH105,Body!$A$4:$F$259,6,0),"") ->  | AK105: =IF(N($AH105)>0,VLOOKUP($AH105,Body!$A$4:$F$259,2,0),"") ->  | AM105: 0 | AN105: =IF(OR(TYPE(I105)>1,TYPE(MATCH(I105,I106:I$139,0))>1),0,MATCH(I105,I106:I$139,0))+IF(OR(TYPE(I105)>1,TYPE(MATCH(I105,O$11:O$139,0))>1),0,MATCH(I105,O$11:O$139,0))+IF(OR(TYPE(I105)>1,TYPE(MATCH(I105,U$11:U$139,0))>1),0,MATCH(I105,U$11:U$139,0))+IF(OR(TYPE(I105)>1,TYPE(MATCH(I105,AA$11:AA$139,0))>1),0,MATCH(I105,AA$11:AA$139,0)) -> 0 | AO105: =IF(OR(TYPE(O105)>1,TYPE(MATCH(O105,I$11:I$139,0))>1),0,MATCH(O105,I$11:I$139,0))+IF(OR(TYPE(O105)>1,TYPE(MATCH(O105,O106:O$139,0))>1),0,MATCH(O105,O106:O$139,0))+IF(OR(TYPE(O105)>1,TYPE(MATCH(O105,U$11:U$139,0))>1),0,MATCH(O105,U$11:U$139,0))+IF(OR(TYPE(O105)>1,TYPE(MATCH(O105,AA$11:AA$139,0))>1),0,MATCH(O105,AA$11:AA$139,0)) -> 0 | AP105: =IF(OR(TYPE(U105)>1,TYPE(MATCH(U105,I$11:I$139,0))>1),0,MATCH(U105,I$11:I$139,0))+IF(OR(TYPE(U105)>1,TYPE(MATCH(U105,O$11:O$139,0))>1),0,MATCH(U105,O$11:O$139,0))+IF(OR(TYPE(U105)>1,TYPE(MATCH(U105,U106:U$139,0))>1),0,MATCH(U105,U106:U$139,0))+IF(OR(TYPE(U105)>1,TYPE(MATCH(U105,AA$11:AA$139,0))>1),0,MATCH(U105,AA$11:AA$139,0)) -> 0 | AQ105: =IF(OR(TYPE(AA105)>1,TYPE(MATCH(AA105,I$11:I$139,0))>1),0,MATCH(AA105,I$11:I$139,0))+IF(OR(TYPE(AA105)>1,TYPE(MATCH(AA105,O$11:O$139,0))>1),0,MATCH(AA105,O$11:O$139,0))+IF(OR(TYPE(AA105)>1,TYPE(MATCH(AA105,U$11:U$139,0))>1),0,MATCH(U105,U$11:U$139,0))+IF(OR(TYPE(AA105)>1,TYPE(MATCH(AA105,AA106:AA$139,0))>1),0,MATCH(AA105,AA106:AA$139,0)) -> 0 | AR105: 0 | AT105: 0 | AU105: =IF(AND(N(I105)>0,TYPE(VLOOKUP(I105,Hraci!$A$5:$A$800,1,0))>3),1,0) + IF(AND(N(O105)>0,TYPE(VLOOKUP(O105,Hraci!$A$5:$A$800,1,0))>3),1,0) + IF(AND(N(U105)>0,TYPE(VLOOKUP(U105,Hraci!$A$5:$A$800,1,0))>3),1,0) -> 0
A106: 0 | B106: 0 | C106: 0 | D106: 99999 | E106: 9999 | F106: 90000000900000990000702750 | G106: TRUE | H106: 96 | M106: 9999 | N106: 0 | S106: 9999 | T106: 0 | Y106: 9999 | Z106: 0 | AE106: 9999 | AF106: 0 | AH106: =IF(TYPE(VLOOKUP(H106,Centrum!$A$3:$E$130,5,0))<4,VLOOKUP(H106,Centrum!$A$3:$E$130,5,0),0) -> 0 | AI106: =IF(N($AH106)>0,VLOOKUP($AH106,Body!$A$4:$F$259,5,0),"") ->  | AJ106: =IF(N($AH106)>0,VLOOKUP($AH106,Body!$A$4:$F$259,6,0),"") ->  | AK106: =IF(N($AH106)>0,VLOOKUP($AH106,Body!$A$4:$F$259,2,0),"") ->  | AM106: 0 | AN106: =IF(OR(TYPE(I106)>1,TYPE(MATCH(I106,I107:I$139,0))>1),0,MATCH(I106,I107:I$139,0))+IF(OR(TYPE(I106)>1,TYPE(MATCH(I106,O$11:O$139,0))>1),0,MATCH(I106,O$11:O$139,0))+IF(OR(TYPE(I106)>1,TYPE(MATCH(I106,U$11:U$139,0))>1),0,MATCH(I106,U$11:U$139,0))+IF(OR(TYPE(I106)>1,TYPE(MATCH(I106,AA$11:AA$139,0))>1),0,MATCH(I106,AA$11:AA$139,0)) -> 0 | AO106: =IF(OR(TYPE(O106)>1,TYPE(MATCH(O106,I$11:I$139,0))>1),0,MATCH(O106,I$11:I$139,0))+IF(OR(TYPE(O106)>1,TYPE(MATCH(O106,O107:O$139,0))>1),0,MATCH(O106,O107:O$139,0))+IF(OR(TYPE(O106)>1,TYPE(MATCH(O106,U$11:U$139,0))>1),0,MATCH(O106,U$11:U$139,0))+IF(OR(TYPE(O106)>1,TYPE(MATCH(O106,AA$11:AA$139,0))>1),0,MATCH(O106,AA$11:AA$139,0)) -> 0 | AP106: =IF(OR(TYPE(U106)>1,TYPE(MATCH(U106,I$11:I$139,0))>1),0,MATCH(U106,I$11:I$139,0))+IF(OR(TYPE(U106)>1,TYPE(MATCH(U106,O$11:O$139,0))>1),0,MATCH(U106,O$11:O$139,0))+IF(OR(TYPE(U106)>1,TYPE(MATCH(U106,U107:U$139,0))>1),0,MATCH(U106,U107:U$139,0))+IF(OR(TYPE(U106)>1,TYPE(MATCH(U106,AA$11:AA$139,0))>1),0,MATCH(U106,AA$11:AA$139,0)) -> 0 | AQ106: =IF(OR(TYPE(AA106)>1,TYPE(MATCH(AA106,I$11:I$139,0))>1),0,MATCH(AA106,I$11:I$139,0))+IF(OR(TYPE(AA106)>1,TYPE(MATCH(AA106,O$11:O$139,0))>1),0,MATCH(AA106,O$11:O$139,0))+IF(OR(TYPE(AA106)>1,TYPE(MATCH(AA106,U$11:U$139,0))>1),0,MATCH(U106,U$11:U$139,0))+IF(OR(TYPE(AA106)>1,TYPE(MATCH(AA106,AA107:AA$139,0))>1),0,MATCH(AA106,AA107:AA$139,0)) -> 0 | AR106: 0 | AT106: 0 | AU106: =IF(AND(N(I106)>0,TYPE(VLOOKUP(I106,Hraci!$A$5:$A$800,1,0))>3),1,0) + IF(AND(N(O106)>0,TYPE(VLOOKUP(O106,Hraci!$A$5:$A$800,1,0))>3),1,0) + IF(AND(N(U106)>0,TYPE(VLOOKUP(U106,Hraci!$A$5:$A$800,1,0))>3),1,0) -> 0
A107: =IF(OR(LEFT(J107,1)=" ",ISBLANK(J107)),0,1)+IF(OR(LEFT(P107,1)=" ",ISBLANK(P107)),0,1)+IF(OR(LEFT(V107,1)=" ",ISBLANK(V107)),0,1) -> 0 | B107: =IF(AND(TYPE(G107<15),G107=FALSE),1,0) -> 0 | C107: =IF(B107=0,0,N107+T107+Z107) -> 0 | D107: =IF(B107=0,99999,M107+S107+Y107) -> 99999 | E107: =MIN(M107,S107,Y107) -> 9999 | F107: =CONCATENATE(IF(AND($P$4=1,H107>$O$7),"0","9"),TEXT(B107,"0"),IF(AND($P$4=1,H107>$O$7),"000000",TEXT(1000*C107,"000000")),IF(AND($P$4=1,H107>$O$7),"000000",TEXT(999999-D107,"000000")),IF(AND($P$4=1,H107>$O$7),"000000",TEXT(999999-E107,"000000")),TEXT(999999*RAND(),"000000")) -> 90000000900000990000971131 | G107: =IF(OR($K$6>A107,AR107>0),TRUE,FALSE) -> TRUE | H107: =ROW(H107)-10 -> 97 | M107: 9999 | N107: 0 | S107: 9999 | T107: 0 | Y107: 9999 | Z107: 0 | AE107: 9999 | AF107: 0 | AH107: =IF(TYPE(VLOOKUP(H107,Centrum!$A$3:$E$130,5,0))<4,VLOOKUP(H107,Centrum!$A$3:$E$130,5,0),0) -> 0 | AI107: =IF(N($AH107)>0,VLOOKUP($AH107,Body!$A$4:$F$259,5,0),"") ->  | AJ107: =IF(N($AH107)>0,VLOOKUP($AH107,Body!$A$4:$F$259,6,0),"") ->  | AK107: =IF(N($AH107)>0,VLOOKUP($AH107,Body!$A$4:$F$259,2,0),"") ->  | AL107: =IF(N(H107)>$K$7,"",CONCATENATE(IF($AK$7="","",H107&" "),L107,IF(L107="",""," - "),J107," ",K107)) ->  | AM107: =C107 -> 0 | AN107: =IF(OR(TYPE(I107)>1,TYPE(MATCH(I107,I108:I$139,0))>1),0,MATCH(I107,I108:I$139,0))+IF(OR(TYPE(I107)>1,TYPE(MATCH(I107,O$11:O$139,0))>1),0,MATCH(I107,O$11:O$139,0))+IF(OR(TYPE(I107)>1,TYPE(MATCH(I107,U$11:U$139,0))>1),0,MATCH(I107,U$11:U$139,0))+IF(OR(TYPE(I107)>1,TYPE(MATCH(I107,AA$11:AA$139,0))>1),0,MATCH(I107,AA$11:AA$139,0)) -> 0 | AO107: =IF(OR(TYPE(O107)>1,TYPE(MATCH(O107,I$11:I$139,0))>1),0,MATCH(O107,I$11:I$139,0))+IF(OR(TYPE(O107)>1,TYPE(MATCH(O107,O108:O$139,0))>1),0,MATCH(O107,O108:O$139,0))+IF(OR(TYPE(O107)>1,TYPE(MATCH(O107,U$11:U$139,0))>1),0,MATCH(O107,U$11:U$139,0))+IF(OR(TYPE(O107)>1,TYPE(MATCH(O107,AA$11:AA$139,0))>1),0,MATCH(O107,AA$11:AA$139,0)) -> 0 | AP107: =IF(OR(TYPE(U107)>1,TYPE(MATCH(U107,I$11:I$139,0))>1),0,MATCH(U107,I$11:I$139,0))+IF(OR(TYPE(U107)>1,TYPE(MATCH(U107,O$11:O$139,0))>1),0,MATCH(U107,O$11:O$139,0))+IF(OR(TYPE(U107)>1,TYPE(MATCH(U107,U108:U$139,0))>1),0,MATCH(U107,U108:U$139,0))+IF(OR(TYPE(U107)>1,TYPE(MATCH(U107,AA$11:AA$139,0))>1),0,MATCH(U107,AA$11:AA$139,0)) -> 0 | AQ107: =IF(OR(TYPE(AA107)>1,TYPE(MATCH(AA107,I$11:I$139,0))>1),0,MATCH(AA107,I$11:I$139,0))+IF(OR(TYPE(AA107)>1,TYPE(MATCH(AA107,O$11:O$139,0))>1),0,MATCH(AA107,O$11:O$139,0))+IF(OR(TYPE(AA107)>1,TYPE(MATCH(AA107,U$11:U$139,0))>1),0,MATCH(U107,U$11:U$139,0))+IF(OR(TYPE(AA107)>1,TYPE(MATCH(AA107,AA108:AA$139,0))>1),0,MATCH(AA107,AA108:AA$139,0)) -> 0 | AR107: =SUM(AN107:AQ107) -> 0 | AT107: =IF(AU107=$K$6,1,0) -> 0 | AU107: =IF(AND(N(I107)>0,TYPE(VLOOKUP(I107,Hraci!$A$5:$A$800,1,0))>3),1,0) + IF(AND(N(O107)>0,TYPE(VLOOKUP(O107,Hraci!$A$5:$A$800,1,0))>3),1,0) + IF(AND(N(U107)>0,TYPE(VLOOKUP(U107,Hraci!$A$5:$A$800,1,0))>3),1,0) -> 0
A108: 0 | B108: 0 | C108: 0 | D108: 99999 | E108: 9999 | F108: 90000000900000990000876951 | G108: TRUE | H108: 98 | M108: 9999 | N108: 0 | S108: 9999 | T108: 0 | Y108: 9999 | Z108: 0 | AE108: 9999 | AF108: 0 | AH108: =IF(TYPE(VLOOKUP(H108,Centrum!$A$3:$E$130,5,0))<4,VLOOKUP(H108,Centrum!$A$3:$E$130,5,0),0) -> 0 | AI108: =IF(N($AH108)>0,VLOOKUP($AH108,Body!$A$4:$F$259,5,0),"") ->  | AJ108: =IF(N($AH108)>0,VLOOKUP($AH108,Body!$A$4:$F$259,6,0),"") ->  | AK108: =IF(N($AH108)>0,VLOOKUP($AH108,Body!$A$4:$F$259,2,0),"") ->  | AM108: 0 | AN108: =IF(OR(TYPE(I108)>1,TYPE(MATCH(I108,I109:I$139,0))>1),0,MATCH(I108,I109:I$139,0))+IF(OR(TYPE(I108)>1,TYPE(MATCH(I108,O$11:O$139,0))>1),0,MATCH(I108,O$11:O$139,0))+IF(OR(TYPE(I108)>1,TYPE(MATCH(I108,U$11:U$139,0))>1),0,MATCH(I108,U$11:U$139,0))+IF(OR(TYPE(I108)>1,TYPE(MATCH(I108,AA$11:AA$139,0))>1),0,MATCH(I108,AA$11:AA$139,0)) -> 0 | AO108: =IF(OR(TYPE(O108)>1,TYPE(MATCH(O108,I$11:I$139,0))>1),0,MATCH(O108,I$11:I$139,0))+IF(OR(TYPE(O108)>1,TYPE(MATCH(O108,O109:O$139,0))>1),0,MATCH(O108,O109:O$139,0))+IF(OR(TYPE(O108)>1,TYPE(MATCH(O108,U$11:U$139,0))>1),0,MATCH(O108,U$11:U$139,0))+IF(OR(TYPE(O108)>1,TYPE(MATCH(O108,AA$11:AA$139,0))>1),0,MATCH(O108,AA$11:AA$139,0)) -> 0 | AP108: =IF(OR(TYPE(U108)>1,TYPE(MATCH(U108,I$11:I$139,0))>1),0,MATCH(U108,I$11:I$139,0))+IF(OR(TYPE(U108)>1,TYPE(MATCH(U108,O$11:O$139,0))>1),0,MATCH(U108,O$11:O$139,0))+IF(OR(TYPE(U108)>1,TYPE(MATCH(U108,U109:U$139,0))>1),0,MATCH(U108,U109:U$139,0))+IF(OR(TYPE(U108)>1,TYPE(MATCH(U108,AA$11:AA$139,0))>1),0,MATCH(U108,AA$11:AA$139,0)) -> 0 | AQ108: =IF(OR(TYPE(AA108)>1,TYPE(MATCH(AA108,I$11:I$139,0))>1),0,MATCH(AA108,I$11:I$139,0))+IF(OR(TYPE(AA108)>1,TYPE(MATCH(AA108,O$11:O$139,0))>1),0,MATCH(AA108,O$11:O$139,0))+IF(OR(TYPE(AA108)>1,TYPE(MATCH(AA108,U$11:U$139,0))>1),0,MATCH(U108,U$11:U$139,0))+IF(OR(TYPE(AA108)>1,TYPE(MATCH(AA108,AA109:AA$139,0))>1),0,MATCH(AA108,AA109:AA$139,0)) -> 0 | AR108: 0 | AT108: 0 | AU108: =IF(AND(N(I108)>0,TYPE(VLOOKUP(I108,Hraci!$A$5:$A$800,1,0))>3),1,0) + IF(AND(N(O108)>0,TYPE(VLOOKUP(O108,Hraci!$A$5:$A$800,1,0))>3),1,0) + IF(AND(N(U108)>0,TYPE(VLOOKUP(U108,Hraci!$A$5:$A$800,1,0))>3),1,0) -> 0
A109: 0 | B109: 0 | C109: 0 | D109: 99999 | E109: 9999 | F109: 90000000900000990000591960 | G109: TRUE | H109: 99 | M109: 9999 | N109: 0 | S109: 9999 | T109: 0 | Y109: 9999 | Z109: 0 | AE109: 9999 | AF109: 0 | AH109: =IF(TYPE(VLOOKUP(H109,Centrum!$A$3:$E$130,5,0))<4,VLOOKUP(H109,Centrum!$A$3:$E$130,5,0),0) -> 0 | AI109: =IF(N($AH109)>0,VLOOKUP($AH109,Body!$A$4:$F$259,5,0),"") ->  | AJ109: =IF(N($AH109)>0,VLOOKUP($AH109,Body!$A$4:$F$259,6,0),"") ->  | AK109: =IF(N($AH109)>0,VLOOKUP($AH109,Body!$A$4:$F$259,2,0),"") ->  | AM109: 0 | AN109: =IF(OR(TYPE(I109)>1,TYPE(MATCH(I109,I110:I$139,0))>1),0,MATCH(I109,I110:I$139,0))+IF(OR(TYPE(I109)>1,TYPE(MATCH(I109,O$11:O$139,0))>1),0,MATCH(I109,O$11:O$139,0))+IF(OR(TYPE(I109)>1,TYPE(MATCH(I109,U$11:U$139,0))>1),0,MATCH(I109,U$11:U$139,0))+IF(OR(TYPE(I109)>1,TYPE(MATCH(I109,AA$11:AA$139,0))>1),0,MATCH(I109,AA$11:AA$139,0)) -> 0 | AO109: =IF(OR(TYPE(O109)>1,TYPE(MATCH(O109,I$11:I$139,0))>1),0,MATCH(O109,I$11:I$139,0))+IF(OR(TYPE(O109)>1,TYPE(MATCH(O109,O110:O$139,0))>1),0,MATCH(O109,O110:O$139,0))+IF(OR(TYPE(O109)>1,TYPE(MATCH(O109,U$11:U$139,0))>1),0,MATCH(O109,U$11:U$139,0))+IF(OR(TYPE(O109)>1,TYPE(MATCH(O109,AA$11:AA$139,0))>1),0,MATCH(O109,AA$11:AA$139,0)) -> 0 | AP109: =IF(OR(TYPE(U109)>1,TYPE(MATCH(U109,I$11:I$139,0))>1),0,MATCH(U109,I$11:I$139,0))+IF(OR(TYPE(U109)>1,TYPE(MATCH(U109,O$11:O$139,0))>1),0,MATCH(U109,O$11:O$139,0))+IF(OR(TYPE(U109)>1,TYPE(MATCH(U109,U110:U$139,0))>1),0,MATCH(U109,U110:U$139,0))+IF(OR(TYPE(U109)>1,TYPE(MATCH(U109,AA$11:AA$139,0))>1),0,MATCH(U109,AA$11:AA$139,0)) -> 0 | AQ109: =IF(OR(TYPE(AA109)>1,TYPE(MATCH(AA109,I$11:I$139,0))>1),0,MATCH(AA109,I$11:I$139,0))+IF(OR(TYPE(AA109)>1,TYPE(MATCH(AA109,O$11:O$139,0))>1),0,MATCH(AA109,O$11:O$139,0))+IF(OR(TYPE(AA109)>1,TYPE(MATCH(AA109,U$11:U$139,0))>1),0,MATCH(U109,U$11:U$139,0))+IF(OR(TYPE(AA109)>1,TYPE(MATCH(AA109,AA110:AA$139,0))>1),0,MATCH(AA109,AA110:AA$139,0)) -> 0 | AR109: 0 | AT109: 0 | AU109: =IF(AND(N(I109)>0,TYPE(VLOOKUP(I109,Hraci!$A$5:$A$800,1,0))>3),1,0) + IF(AND(N(O109)>0,TYPE(VLOOKUP(O109,Hraci!$A$5:$A$800,1,0))>3),1,0) + IF(AND(N(U109)>0,TYPE(VLOOKUP(U109,Hraci!$A$5:$A$800,1,0))>3),1,0) -> 0
A110: 0 | B110: 0 | C110: 0 | D110: 99999 | E110: 9999 | F110: 90000000900000990000308675 | G110: TRUE | H110: 100 | M110: 9999 | N110: 0 | S110: 9999 | T110: 0 | Y110: 9999 | Z110: 0 | AE110: 9999 | AF110: 0 | AH110: =IF(TYPE(VLOOKUP(H110,Centrum!$A$3:$E$130,5,0))<4,VLOOKUP(H110,Centrum!$A$3:$E$130,5,0),0) -> 0 | AI110: =IF(N($AH110)>0,VLOOKUP($AH110,Body!$A$4:$F$259,5,0),"") ->  | AJ110: =IF(N($AH110)>0,VLOOKUP($AH110,Body!$A$4:$F$259,6,0),"") ->  | AK110: =IF(N($AH110)>0,VLOOKUP($AH110,Body!$A$4:$F$259,2,0),"") ->  | AM110: 0 | AN110: =IF(OR(TYPE(I110)>1,TYPE(MATCH(I110,I111:I$139,0))>1),0,MATCH(I110,I111:I$139,0))+IF(OR(TYPE(I110)>1,TYPE(MATCH(I110,O$11:O$139,0))>1),0,MATCH(I110,O$11:O$139,0))+IF(OR(TYPE(I110)>1,TYPE(MATCH(I110,U$11:U$139,0))>1),0,MATCH(I110,U$11:U$139,0))+IF(OR(TYPE(I110)>1,TYPE(MATCH(I110,AA$11:AA$139,0))>1),0,MATCH(I110,AA$11:AA$139,0)) -> 0 | AO110: =IF(OR(TYPE(O110)>1,TYPE(MATCH(O110,I$11:I$139,0))>1),0,MATCH(O110,I$11:I$139,0))+IF(OR(TYPE(O110)>1,TYPE(MATCH(O110,O111:O$139,0))>1),0,MATCH(O110,O111:O$139,0))+IF(OR(TYPE(O110)>1,TYPE(MATCH(O110,U$11:U$139,0))>1),0,MATCH(O110,U$11:U$139,0))+IF(OR(TYPE(O110)>1,TYPE(MATCH(O110,AA$11:AA$139,0))>1),0,MATCH(O110,AA$11:AA$139,0)) -> 0 | AP110: =IF(OR(TYPE(U110)>1,TYPE(MATCH(U110,I$11:I$139,0))>1),0,MATCH(U110,I$11:I$139,0))+IF(OR(TYPE(U110)>1,TYPE(MATCH(U110,O$11:O$139,0))>1),0,MATCH(U110,O$11:O$139,0))+IF(OR(TYPE(U110)>1,TYPE(MATCH(U110,U111:U$139,0))>1),0,MATCH(U110,U111:U$139,0))+IF(OR(TYPE(U110)>1,TYPE(MATCH(U110,AA$11:AA$139,0))>1),0,MATCH(U110,AA$11:AA$139,0)) -> 0 | AQ110: =IF(OR(TYPE(AA110)>1,TYPE(MATCH(AA110,I$11:I$139,0))>1),0,MATCH(AA110,I$11:I$139,0))+IF(OR(TYPE(AA110)>1,TYPE(MATCH(AA110,O$11:O$139,0))>1),0,MATCH(AA110,O$11:O$139,0))+IF(OR(TYPE(AA110)>1,TYPE(MATCH(AA110,U$11:U$139,0))>1),0,MATCH(U110,U$11:U$139,0))+IF(OR(TYPE(AA110)>1,TYPE(MATCH(AA110,AA111:AA$139,0))>1),0,MATCH(AA110,AA111:AA$139,0)) -> 0 | AR110: 0 | AT110: 0 | AU110: =IF(AND(N(I110)>0,TYPE(VLOOKUP(I110,Hraci!$A$5:$A$800,1,0))>3),1,0) + IF(AND(N(O110)>0,TYPE(VLOOKUP(O110,Hraci!$A$5:$A$800,1,0))>3),1,0) + IF(AND(N(U110)>0,TYPE(VLOOKUP(U110,Hraci!$A$5:$A$800,1,0))>3),1,0) -> 0
A111: 0 | B111: 0 | C111: 0 | D111: 99999 | E111: 9999 | F111: 90000000900000990000459522 | G111: TRUE | H111: 101 | M111: 9999 | N111: 0 | S111: 9999 | T111: 0 | Y111: 9999 | Z111: 0 | AE111: 9999 | AF111: 0 | AH111: =IF(TYPE(VLOOKUP(H111,Centrum!$A$3:$E$130,5,0))<4,VLOOKUP(H111,Centrum!$A$3:$E$130,5,0),0) -> 0 | AI111: =IF(N($AH111)>0,VLOOKUP($AH111,Body!$A$4:$F$259,5,0),"") ->  | AJ111: =IF(N($AH111)>0,VLOOKUP($AH111,Body!$A$4:$F$259,6,0),"") ->  | AK111: =IF(N($AH111)>0,VLOOKUP($AH111,Body!$A$4:$F$259,2,0),"") ->  | AM111: 0 | AN111: =IF(OR(TYPE(I111)>1,TYPE(MATCH(I111,I112:I$139,0))>1),0,MATCH(I111,I112:I$139,0))+IF(OR(TYPE(I111)>1,TYPE(MATCH(I111,O$11:O$139,0))>1),0,MATCH(I111,O$11:O$139,0))+IF(OR(TYPE(I111)>1,TYPE(MATCH(I111,U$11:U$139,0))>1),0,MATCH(I111,U$11:U$139,0))+IF(OR(TYPE(I111)>1,TYPE(MATCH(I111,AA$11:AA$139,0))>1),0,MATCH(I111,AA$11:AA$139,0)) -> 0 | AO111: =IF(OR(TYPE(O111)>1,TYPE(MATCH(O111,I$11:I$139,0))>1),0,MATCH(O111,I$11:I$139,0))+IF(OR(TYPE(O111)>1,TYPE(MATCH(O111,O112:O$139,0))>1),0,MATCH(O111,O112:O$139,0))+IF(OR(TYPE(O111)>1,TYPE(MATCH(O111,U$11:U$139,0))>1),0,MATCH(O111,U$11:U$139,0))+IF(OR(TYPE(O111)>1,TYPE(MATCH(O111,AA$11:AA$139,0))>1),0,MATCH(O111,AA$11:AA$139,0)) -> 0 | AP111: =IF(OR(TYPE(U111)>1,TYPE(MATCH(U111,I$11:I$139,0))>1),0,MATCH(U111,I$11:I$139,0))+IF(OR(TYPE(U111)>1,TYPE(MATCH(U111,O$11:O$139,0))>1),0,MATCH(U111,O$11:O$139,0))+IF(OR(TYPE(U111)>1,TYPE(MATCH(U111,U112:U$139,0))>1),0,MATCH(U111,U112:U$139,0))+IF(OR(TYPE(U111)>1,TYPE(MATCH(U111,AA$11:AA$139,0))>1),0,MATCH(U111,AA$11:AA$139,0)) -> 0 | AQ111: =IF(OR(TYPE(AA111)>1,TYPE(MATCH(AA111,I$11:I$139,0))>1),0,MATCH(AA111,I$11:I$139,0))+IF(OR(TYPE(AA111)>1,TYPE(MATCH(AA111,O$11:O$139,0))>1),0,MATCH(AA111,O$11:O$139,0))+IF(OR(TYPE(AA111)>1,TYPE(MATCH(AA111,U$11:U$139,0))>1),0,MATCH(U111,U$11:U$139,0))+IF(OR(TYPE(AA111)>1,TYPE(MATCH(AA111,AA112:AA$139,0))>1),0,MATCH(AA111,AA112:AA$139,0)) -> 0 | AR111: 0 | AT111: 0 | AU111: =IF(AND(N(I111)>0,TYPE(VLOOKUP(I111,Hraci!$A$5:$A$800,1,0))>3),1,0) + IF(AND(N(O111)>0,TYPE(VLOOKUP(O111,Hraci!$A$5:$A$800,1,0))>3),1,0) + IF(AND(N(U111)>0,TYPE(VLOOKUP(U111,Hraci!$A$5:$A$800,1,0))>3),1,0) -> 0
A112: 0 | B112: 0 | C112: 0 | D112: 99999 | E112: 9999 | F112: 90000000900000990000836097 | G112: TRUE | H112: 102 | M112: 9999 | N112: 0 | S112: 9999 | T112: 0 | Y112: 9999 | Z112: 0 | AE112: 9999 | AF112: 0 | AH112: =IF(TYPE(VLOOKUP(H112,Centrum!$A$3:$E$130,5,0))<4,VLOOKUP(H112,Centrum!$A$3:$E$130,5,0),0) -> 0 | AI112: =IF(N($AH112)>0,VLOOKUP($AH112,Body!$A$4:$F$259,5,0),"") ->  | AJ112: =IF(N($AH112)>0,VLOOKUP($AH112,Body!$A$4:$F$259,6,0),"") ->  | AK112: =IF(N($AH112)>0,VLOOKUP($AH112,Body!$A$4:$F$259,2,0),"") ->  | AM112: 0 | AN112: =IF(OR(TYPE(I112)>1,TYPE(MATCH(I112,I113:I$139,0))>1),0,MATCH(I112,I113:I$139,0))+IF(OR(TYPE(I112)>1,TYPE(MATCH(I112,O$11:O$139,0))>1),0,MATCH(I112,O$11:O$139,0))+IF(OR(TYPE(I112)>1,TYPE(MATCH(I112,U$11:U$139,0))>1),0,MATCH(I112,U$11:U$139,0))+IF(OR(TYPE(I112)>1,TYPE(MATCH(I112,AA$11:AA$139,0))>1),0,MATCH(I112,AA$11:AA$139,0)) -> 0 | AO112: =IF(OR(TYPE(O112)>1,TYPE(MATCH(O112,I$11:I$139,0))>1),0,MATCH(O112,I$11:I$139,0))+IF(OR(TYPE(O112)>1,TYPE(MATCH(O112,O113:O$139,0))>1),0,MATCH(O112,O113:O$139,0))+IF(OR(TYPE(O112)>1,TYPE(MATCH(O112,U$11:U$139,0))>1),0,MATCH(O112,U$11:U$139,0))+IF(OR(TYPE(O112)>1,TYPE(MATCH(O112,AA$11:AA$139,0))>1),0,MATCH(O112,AA$11:AA$139,0)) -> 0 | AP112: =IF(OR(TYPE(U112)>1,TYPE(MATCH(U112,I$11:I$139,0))>1),0,MATCH(U112,I$11:I$139,0))+IF(OR(TYPE(U112)>1,TYPE(MATCH(U112,O$11:O$139,0))>1),0,MATCH(U112,O$11:O$139,0))+IF(OR(TYPE(U112)>1,TYPE(MATCH(U112,U113:U$139,0))>1),0,MATCH(U112,U113:U$139,0))+IF(OR(TYPE(U112)>1,TYPE(MATCH(U112,AA$11:AA$139,0))>1),0,MATCH(U112,AA$11:AA$139,0)) -> 0 | AQ112: =IF(OR(TYPE(AA112)>1,TYPE(MATCH(AA112,I$11:I$139,0))>1),0,MATCH(AA112,I$11:I$139,0))+IF(OR(TYPE(AA112)>1,TYPE(MATCH(AA112,O$11:O$139,0))>1),0,MATCH(AA112,O$11:O$139,0))+IF(OR(TYPE(AA112)>1,TYPE(MATCH(AA112,U$11:U$139,0))>1),0,MATCH(U112,U$11:U$139,0))+IF(OR(TYPE(AA112)>1,TYPE(MATCH(AA112,AA113:AA$139,0))>1),0,MATCH(AA112,AA113:AA$139,0)) -> 0 | AR112: 0 | AT112: 0 | AU112: =IF(AND(N(I112)>0,TYPE(VLOOKUP(I112,Hraci!$A$5:$A$800,1,0))>3),1,0) + IF(AND(N(O112)>0,TYPE(VLOOKUP(O112,Hraci!$A$5:$A$800,1,0))>3),1,0) + IF(AND(N(U112)>0,TYPE(VLOOKUP(U112,Hraci!$A$5:$A$800,1,0))>3),1,0) -> 0
A113: 0 | B113: 0 | C113: 0 | D113: 99999 | E113: 9999 | F113: 90000000900000990000986205 | G113: TRUE | H113: 103 | M113: 9999 | N113: 0 | S113: 9999 | T113: 0 | Y113: 9999 | Z113: 0 | AE113: 9999 | AF113: 0 | AH113: =IF(TYPE(VLOOKUP(H113,Centrum!$A$3:$E$130,5,0))<4,VLOOKUP(H113,Centrum!$A$3:$E$130,5,0),0) -> 0 | AI113: =IF(N($AH113)>0,VLOOKUP($AH113,Body!$A$4:$F$259,5,0),"") ->  | AJ113: =IF(N($AH113)>0,VLOOKUP($AH113,Body!$A$4:$F$259,6,0),"") ->  | AK113: =IF(N($AH113)>0,VLOOKUP($AH113,Body!$A$4:$F$259,2,0),"") ->  | AM113: 0 | AN113: =IF(OR(TYPE(I113)>1,TYPE(MATCH(I113,I114:I$139,0))>1),0,MATCH(I113,I114:I$139,0))+IF(OR(TYPE(I113)>1,TYPE(MATCH(I113,O$11:O$139,0))>1),0,MATCH(I113,O$11:O$139,0))+IF(OR(TYPE(I113)>1,TYPE(MATCH(I113,U$11:U$139,0))>1),0,MATCH(I113,U$11:U$139,0))+IF(OR(TYPE(I113)>1,TYPE(MATCH(I113,AA$11:AA$139,0))>1),0,MATCH(I113,AA$11:AA$139,0)) -> 0 | AO113: =IF(OR(TYPE(O113)>1,TYPE(MATCH(O113,I$11:I$139,0))>1),0,MATCH(O113,I$11:I$139,0))+IF(OR(TYPE(O113)>1,TYPE(MATCH(O113,O114:O$139,0))>1),0,MATCH(O113,O114:O$139,0))+IF(OR(TYPE(O113)>1,TYPE(MATCH(O113,U$11:U$139,0))>1),0,MATCH(O113,U$11:U$139,0))+IF(OR(TYPE(O113)>1,TYPE(MATCH(O113,AA$11:AA$139,0))>1),0,MATCH(O113,AA$11:AA$139,0)) -> 0 | AP113: =IF(OR(TYPE(U113)>1,TYPE(MATCH(U113,I$11:I$139,0))>1),0,MATCH(U113,I$11:I$139,0))+IF(OR(TYPE(U113)>1,TYPE(MATCH(U113,O$11:O$139,0))>1),0,MATCH(U113,O$11:O$139,0))+IF(OR(TYPE(U113)>1,TYPE(MATCH(U113,U114:U$139,0))>1),0,MATCH(U113,U114:U$139,0))+IF(OR(TYPE(U113)>1,TYPE(MATCH(U113,AA$11:AA$139,0))>1),0,MATCH(U113,AA$11:AA$139,0)) -> 0 | AQ113: =IF(OR(TYPE(AA113)>1,TYPE(MATCH(AA113,I$11:I$139,0))>1),0,MATCH(AA113,I$11:I$139,0))+IF(OR(TYPE(AA113)>1,TYPE(MATCH(AA113,O$11:O$139,0))>1),0,MATCH(AA113,O$11:O$139,0))+IF(OR(TYPE(AA113)>1,TYPE(MATCH(AA113,U$11:U$139,0))>1),0,MATCH(U113,U$11:U$139,0))+IF(OR(TYPE(AA113)>1,TYPE(MATCH(AA113,AA114:AA$139,0))>1),0,MATCH(AA113,AA114:AA$139,0)) -> 0 | AR113: 0 | AT113: 0 | AU113: =IF(AND(N(I113)>0,TYPE(VLOOKUP(I113,Hraci!$A$5:$A$800,1,0))>3),1,0) + IF(AND(N(O113)>0,TYPE(VLOOKUP(O113,Hraci!$A$5:$A$800,1,0))>3),1,0) + IF(AND(N(U113)>0,TYPE(VLOOKUP(U113,Hraci!$A$5:$A$800,1,0))>3),1,0) -> 0
A114: 0 | B114: 0 | C114: 0 | D114: 99999 | E114: 9999 | F114: 90000000900000990000187415 | G114: TRUE | H114: 104 | M114: 9999 | N114: 0 | S114: 9999 | T114: 0 | Y114: 9999 | Z114: 0 | AE114: 9999 | AF114: 0 | AH114: =IF(TYPE(VLOOKUP(H114,Centrum!$A$3:$E$130,5,0))<4,VLOOKUP(H114,Centrum!$A$3:$E$130,5,0),0) -> 0 | AI114: =IF(N($AH114)>0,VLOOKUP($AH114,Body!$A$4:$F$259,5,0),"") ->  | AJ114: =IF(N($AH114)>0,VLOOKUP($AH114,Body!$A$4:$F$259,6,0),"") ->  | AK114: =IF(N($AH114)>0,VLOOKUP($AH114,Body!$A$4:$F$259,2,0),"") ->  | AM114: 0 | AN114: =IF(OR(TYPE(I114)>1,TYPE(MATCH(I114,I115:I$139,0))>1),0,MATCH(I114,I115:I$139,0))+IF(OR(TYPE(I114)>1,TYPE(MATCH(I114,O$11:O$139,0))>1),0,MATCH(I114,O$11:O$139,0))+IF(OR(TYPE(I114)>1,TYPE(MATCH(I114,U$11:U$139,0))>1),0,MATCH(I114,U$11:U$139,0))+IF(OR(TYPE(I114)>1,TYPE(MATCH(I114,AA$11:AA$139,0))>1),0,MATCH(I114,AA$11:AA$139,0)) -> 0 | AO114: =IF(OR(TYPE(O114)>1,TYPE(MATCH(O114,I$11:I$139,0))>1),0,MATCH(O114,I$11:I$139,0))+IF(OR(TYPE(O114)>1,TYPE(MATCH(O114,O115:O$139,0))>1),0,MATCH(O114,O115:O$139,0))+IF(OR(TYPE(O114)>1,TYPE(MATCH(O114,U$11:U$139,0))>1),0,MATCH(O114,U$11:U$139,0))+IF(OR(TYPE(O114)>1,TYPE(MATCH(O114,AA$11:AA$139,0))>1),0,MATCH(O114,AA$11:AA$139,0)) -> 0 | AP114: =IF(OR(TYPE(U114)>1,TYPE(MATCH(U114,I$11:I$139,0))>1),0,MATCH(U114,I$11:I$139,0))+IF(OR(TYPE(U114)>1,TYPE(MATCH(U114,O$11:O$139,0))>1),0,MATCH(U114,O$11:O$139,0))+IF(OR(TYPE(U114)>1,TYPE(MATCH(U114,U115:U$139,0))>1),0,MATCH(U114,U115:U$139,0))+IF(OR(TYPE(U114)>1,TYPE(MATCH(U114,AA$11:AA$139,0))>1),0,MATCH(U114,AA$11:AA$139,0)) -> 0 | AQ114: =IF(OR(TYPE(AA114)>1,TYPE(MATCH(AA114,I$11:I$139,0))>1),0,MATCH(AA114,I$11:I$139,0))+IF(OR(TYPE(AA114)>1,TYPE(MATCH(AA114,O$11:O$139,0))>1),0,MATCH(AA114,O$11:O$139,0))+IF(OR(TYPE(AA114)>1,TYPE(MATCH(AA114,U$11:U$139,0))>1),0,MATCH(U114,U$11:U$139,0))+IF(OR(TYPE(AA114)>1,TYPE(MATCH(AA114,AA115:AA$139,0))>1),0,MATCH(AA114,AA115:AA$139,0)) -> 0 | AR114: 0 | AT114: 0 | AU114: =IF(AND(N(I114)>0,TYPE(VLOOKUP(I114,Hraci!$A$5:$A$800,1,0))>3),1,0) + IF(AND(N(O114)>0,TYPE(VLOOKUP(O114,Hraci!$A$5:$A$800,1,0))>3),1,0) + IF(AND(N(U114)>0,TYPE(VLOOKUP(U114,Hraci!$A$5:$A$800,1,0))>3),1,0) -> 0
A115: 0 | B115: 0 | C115: 0 | D115: 99999 | E115: 9999 | F115: 90000000900000990000587575 | G115: TRUE | H115: 105 | M115: 9999 | N115: 0 | S115: 9999 | T115: 0 | Y115: 9999 | Z115: 0 | AE115: 9999 | AF115: 0 | AH115: =IF(TYPE(VLOOKUP(H115,Centrum!$A$3:$E$130,5,0))<4,VLOOKUP(H115,Centrum!$A$3:$E$130,5,0),0) -> 0 | AI115: =IF(N($AH115)>0,VLOOKUP($AH115,Body!$A$4:$F$259,5,0),"") ->  | AJ115: =IF(N($AH115)>0,VLOOKUP($AH115,Body!$A$4:$F$259,6,0),"") ->  | AK115: =IF(N($AH115)>0,VLOOKUP($AH115,Body!$A$4:$F$259,2,0),"") ->  | AM115: 0 | AN115: =IF(OR(TYPE(I115)>1,TYPE(MATCH(I115,I116:I$139,0))>1),0,MATCH(I115,I116:I$139,0))+IF(OR(TYPE(I115)>1,TYPE(MATCH(I115,O$11:O$139,0))>1),0,MATCH(I115,O$11:O$139,0))+IF(OR(TYPE(I115)>1,TYPE(MATCH(I115,U$11:U$139,0))>1),0,MATCH(I115,U$11:U$139,0))+IF(OR(TYPE(I115)>1,TYPE(MATCH(I115,AA$11:AA$139,0))>1),0,MATCH(I115,AA$11:AA$139,0)) -> 0 | AO115: =IF(OR(TYPE(O115)>1,TYPE(MATCH(O115,I$11:I$139,0))>1),0,MATCH(O115,I$11:I$139,0))+IF(OR(TYPE(O115)>1,TYPE(MATCH(O115,O116:O$139,0))>1),0,MATCH(O115,O116:O$139,0))+IF(OR(TYPE(O115)>1,TYPE(MATCH(O115,U$11:U$139,0))>1),0,MATCH(O115,U$11:U$139,0))+IF(OR(TYPE(O115)>1,TYPE(MATCH(O115,AA$11:AA$139,0))>1),0,MATCH(O115,AA$11:AA$139,0)) -> 0 | AP115: =IF(OR(TYPE(U115)>1,TYPE(MATCH(U115,I$11:I$139,0))>1),0,MATCH(U115,I$11:I$139,0))+IF(OR(TYPE(U115)>1,TYPE(MATCH(U115,O$11:O$139,0))>1),0,MATCH(U115,O$11:O$139,0))+IF(OR(TYPE(U115)>1,TYPE(MATCH(U115,U116:U$139,0))>1),0,MATCH(U115,U116:U$139,0))+IF(OR(TYPE(U115)>1,TYPE(MATCH(U115,AA$11:AA$139,0))>1),0,MATCH(U115,AA$11:AA$139,0)) -> 0 | AQ115: =IF(OR(TYPE(AA115)>1,TYPE(MATCH(AA115,I$11:I$139,0))>1),0,MATCH(AA115,I$11:I$139,0))+IF(OR(TYPE(AA115)>1,TYPE(MATCH(AA115,O$11:O$139,0))>1),0,MATCH(AA115,O$11:O$139,0))+IF(OR(TYPE(AA115)>1,TYPE(MATCH(AA115,U$11:U$139,0))>1),0,MATCH(U115,U$11:U$139,0))+IF(OR(TYPE(AA115)>1,TYPE(MATCH(AA115,AA116:AA$139,0))>1),0,MATCH(AA115,AA116:AA$139,0)) -> 0 | AR115: 0 | AT115: 0 | AU115: =IF(AND(N(I115)>0,TYPE(VLOOKUP(I115,Hraci!$A$5:$A$800,1,0))>3),1,0) + IF(AND(N(O115)>0,TYPE(VLOOKUP(O115,Hraci!$A$5:$A$800,1,0))>3),1,0) + IF(AND(N(U115)>0,TYPE(VLOOKUP(U115,Hraci!$A$5:$A$800,1,0))>3),1,0) -> 0
A116: 0 | B116: 0 | C116: 0 | D116: 99999 | E116: 9999 | F116: 90000000900000990000359115 | G116: TRUE | H116: 106 | M116: 9999 | N116: 0 | S116: 9999 | T116: 0 | Y116: 9999 | Z116: 0 | AE116: 9999 | AF116: 0 | AH116: =IF(TYPE(VLOOKUP(H116,Centrum!$A$3:$E$130,5,0))<4,VLOOKUP(H116,Centrum!$A$3:$E$130,5,0),0) -> 0 | AI116: =IF(N($AH116)>0,VLOOKUP($AH116,Body!$A$4:$F$259,5,0),"") ->  | AJ116: =IF(N($AH116)>0,VLOOKUP($AH116,Body!$A$4:$F$259,6,0),"") ->  | AK116: =IF(N($AH116)>0,VLOOKUP($AH116,Body!$A$4:$F$259,2,0),"") ->  | AM116: 0 | AN116: =IF(OR(TYPE(I116)>1,TYPE(MATCH(I116,I117:I$139,0))>1),0,MATCH(I116,I117:I$139,0))+IF(OR(TYPE(I116)>1,TYPE(MATCH(I116,O$11:O$139,0))>1),0,MATCH(I116,O$11:O$139,0))+IF(OR(TYPE(I116)>1,TYPE(MATCH(I116,U$11:U$139,0))>1),0,MATCH(I116,U$11:U$139,0))+IF(OR(TYPE(I116)>1,TYPE(MATCH(I116,AA$11:AA$139,0))>1),0,MATCH(I116,AA$11:AA$139,0)) -> 0 | AO116: =IF(OR(TYPE(O116)>1,TYPE(MATCH(O116,I$11:I$139,0))>1),0,MATCH(O116,I$11:I$139,0))+IF(OR(TYPE(O116)>1,TYPE(MATCH(O116,O117:O$139,0))>1),0,MATCH(O116,O117:O$139,0))+IF(OR(TYPE(O116)>1,TYPE(MATCH(O116,U$11:U$139,0))>1),0,MATCH(O116,U$11:U$139,0))+IF(OR(TYPE(O116)>1,TYPE(MATCH(O116,AA$11:AA$139,0))>1),0,MATCH(O116,AA$11:AA$139,0)) -> 0 | AP116: =IF(OR(TYPE(U116)>1,TYPE(MATCH(U116,I$11:I$139,0))>1),0,MATCH(U116,I$11:I$139,0))+IF(OR(TYPE(U116)>1,TYPE(MATCH(U116,O$11:O$139,0))>1),0,MATCH(U116,O$11:O$139,0))+IF(OR(TYPE(U116)>1,TYPE(MATCH(U116,U117:U$139,0))>1),0,MATCH(U116,U117:U$139,0))+IF(OR(TYPE(U116)>1,TYPE(MATCH(U116,AA$11:AA$139,0))>1),0,MATCH(U116,AA$11:AA$139,0)) -> 0 | AQ116: =IF(OR(TYPE(AA116)>1,TYPE(MATCH(AA116,I$11:I$139,0))>1),0,MATCH(AA116,I$11:I$139,0))+IF(OR(TYPE(AA116)>1,TYPE(MATCH(AA116,O$11:O$139,0))>1),0,MATCH(AA116,O$11:O$139,0))+IF(OR(TYPE(AA116)>1,TYPE(MATCH(AA116,U$11:U$139,0))>1),0,MATCH(U116,U$11:U$139,0))+IF(OR(TYPE(AA116)>1,TYPE(MATCH(AA116,AA117:AA$139,0))>1),0,MATCH(AA116,AA117:AA$139,0)) -> 0 | AR116: 0 | AT116: 0 | AU116: =IF(AND(N(I116)>0,TYPE(VLOOKUP(I116,Hraci!$A$5:$A$800,1,0))>3),1,0) + IF(AND(N(O116)>0,TYPE(VLOOKUP(O116,Hraci!$A$5:$A$800,1,0))>3),1,0) + IF(AND(N(U116)>0,TYPE(VLOOKUP(U116,Hraci!$A$5:$A$800,1,0))>3),1,0) -> 0
A117: 0 | B117: 0 | C117: 0 | D117: 99999 | E117: 9999 | F117: 90000000900000990000392306 | G117: TRUE | H117: 107 | M117: 9999 | N117: 0 | S117: 9999 | T117: 0 | Y117: 9999 | Z117: 0 | AE117: 9999 | AF117: 0 | AH117: =IF(TYPE(VLOOKUP(H117,Centrum!$A$3:$E$130,5,0))<4,VLOOKUP(H117,Centrum!$A$3:$E$130,5,0),0) -> 0 | AI117: =IF(N($AH117)>0,VLOOKUP($AH117,Body!$A$4:$F$259,5,0),"") ->  | AJ117: =IF(N($AH117)>0,VLOOKUP($AH117,Body!$A$4:$F$259,6,0),"") ->  | AK117: =IF(N($AH117)>0,VLOOKUP($AH117,Body!$A$4:$F$259,2,0),"") ->  | AM117: 0 | AN117: =IF(OR(TYPE(I117)>1,TYPE(MATCH(I117,I118:I$139,0))>1),0,MATCH(I117,I118:I$139,0))+IF(OR(TYPE(I117)>1,TYPE(MATCH(I117,O$11:O$139,0))>1),0,MATCH(I117,O$11:O$139,0))+IF(OR(TYPE(I117)>1,TYPE(MATCH(I117,U$11:U$139,0))>1),0,MATCH(I117,U$11:U$139,0))+IF(OR(TYPE(I117)>1,TYPE(MATCH(I117,AA$11:AA$139,0))>1),0,MATCH(I117,AA$11:AA$139,0)) -> 0 | AO117: =IF(OR(TYPE(O117)>1,TYPE(MATCH(O117,I$11:I$139,0))>1),0,MATCH(O117,I$11:I$139,0))+IF(OR(TYPE(O117)>1,TYPE(MATCH(O117,O118:O$139,0))>1),0,MATCH(O117,O118:O$139,0))+IF(OR(TYPE(O117)>1,TYPE(MATCH(O117,U$11:U$139,0))>1),0,MATCH(O117,U$11:U$139,0))+IF(OR(TYPE(O117)>1,TYPE(MATCH(O117,AA$11:AA$139,0))>1),0,MATCH(O117,AA$11:AA$139,0)) -> 0 | AP117: =IF(OR(TYPE(U117)>1,TYPE(MATCH(U117,I$11:I$139,0))>1),0,MATCH(U117,I$11:I$139,0))+IF(OR(TYPE(U117)>1,TYPE(MATCH(U117,O$11:O$139,0))>1),0,MATCH(U117,O$11:O$139,0))+IF(OR(TYPE(U117)>1,TYPE(MATCH(U117,U118:U$139,0))>1),0,MATCH(U117,U118:U$139,0))+IF(OR(TYPE(U117)>1,TYPE(MATCH(U117,AA$11:AA$139,0))>1),0,MATCH(U117,AA$11:AA$139,0)) -> 0 | AQ117: =IF(OR(TYPE(AA117)>1,TYPE(MATCH(AA117,I$11:I$139,0))>1),0,MATCH(AA117,I$11:I$139,0))+IF(OR(TYPE(AA117)>1,TYPE(MATCH(AA117,O$11:O$139,0))>1),0,MATCH(AA117,O$11:O$139,0))+IF(OR(TYPE(AA117)>1,TYPE(MATCH(AA117,U$11:U$139,0))>1),0,MATCH(U117,U$11:U$139,0))+IF(OR(TYPE(AA117)>1,TYPE(MATCH(AA117,AA118:AA$139,0))>1),0,MATCH(AA117,AA118:AA$139,0)) -> 0 | AR117: 0 | AT117: 0 | AU117: =IF(AND(N(I117)>0,TYPE(VLOOKUP(I117,Hraci!$A$5:$A$800,1,0))>3),1,0) + IF(AND(N(O117)>0,TYPE(VLOOKUP(O117,Hraci!$A$5:$A$800,1,0))>3),1,0) + IF(AND(N(U117)>0,TYPE(VLOOKUP(U117,Hraci!$A$5:$A$800,1,0))>3),1,0) -> 0
A118: 0 | B118: 0 | C118: 0 | D118: 99999 | E118: 9999 | F118: 90000000900000990000592403 | G118: TRUE | H118: 108 | M118: 9999 | N118: 0 | S118: 9999 | T118: 0 | Y118: 9999 | Z118: 0 | AE118: 9999 | AF118: 0 | AH118: =IF(TYPE(VLOOKUP(H118,Centrum!$A$3:$E$130,5,0))<4,VLOOKUP(H118,Centrum!$A$3:$E$130,5,0),0) -> 0 | AI118: =IF(N($AH118)>0,VLOOKUP($AH118,Body!$A$4:$F$259,5,0),"") ->  | AJ118: =IF(N($AH118)>0,VLOOKUP($AH118,Body!$A$4:$F$259,6,0),"") ->  | AK118: =IF(N($AH118)>0,VLOOKUP($AH118,Body!$A$4:$F$259,2,0),"") ->  | AM118: 0 | AN118: =IF(OR(TYPE(I118)>1,TYPE(MATCH(I118,I119:I$139,0))>1),0,MATCH(I118,I119:I$139,0))+IF(OR(TYPE(I118)>1,TYPE(MATCH(I118,O$11:O$139,0))>1),0,MATCH(I118,O$11:O$139,0))+IF(OR(TYPE(I118)>1,TYPE(MATCH(I118,U$11:U$139,0))>1),0,MATCH(I118,U$11:U$139,0))+IF(OR(TYPE(I118)>1,TYPE(MATCH(I118,AA$11:AA$139,0))>1),0,MATCH(I118,AA$11:AA$139,0)) -> 0 | AO118: =IF(OR(TYPE(O118)>1,TYPE(MATCH(O118,I$11:I$139,0))>1),0,MATCH(O118,I$11:I$139,0))+IF(OR(TYPE(O118)>1,TYPE(MATCH(O118,O119:O$139,0))>1),0,MATCH(O118,O119:O$139,0))+IF(OR(TYPE(O118)>1,TYPE(MATCH(O118,U$11:U$139,0))>1),0,MATCH(O118,U$11:U$139,0))+IF(OR(TYPE(O118)>1,TYPE(MATCH(O118,AA$11:AA$139,0))>1),0,MATCH(O118,AA$11:AA$139,0)) -> 0 | AP118: =IF(OR(TYPE(U118)>1,TYPE(MATCH(U118,I$11:I$139,0))>1),0,MATCH(U118,I$11:I$139,0))+IF(OR(TYPE(U118)>1,TYPE(MATCH(U118,O$11:O$139,0))>1),0,MATCH(U118,O$11:O$139,0))+IF(OR(TYPE(U118)>1,TYPE(MATCH(U118,U119:U$139,0))>1),0,MATCH(U118,U119:U$139,0))+IF(OR(TYPE(U118)>1,TYPE(MATCH(U118,AA$11:AA$139,0))>1),0,MATCH(U118,AA$11:AA$139,0)) -> 0 | AQ118: =IF(OR(TYPE(AA118)>1,TYPE(MATCH(AA118,I$11:I$139,0))>1),0,MATCH(AA118,I$11:I$139,0))+IF(OR(TYPE(AA118)>1,TYPE(MATCH(AA118,O$11:O$139,0))>1),0,MATCH(AA118,O$11:O$139,0))+IF(OR(TYPE(AA118)>1,TYPE(MATCH(AA118,U$11:U$139,0))>1),0,MATCH(U118,U$11:U$139,0))+IF(OR(TYPE(AA118)>1,TYPE(MATCH(AA118,AA119:AA$139,0))>1),0,MATCH(AA118,AA119:AA$139,0)) -> 0 | AR118: 0 | AT118: 0 | AU118: =IF(AND(N(I118)>0,TYPE(VLOOKUP(I118,Hraci!$A$5:$A$800,1,0))>3),1,0) + IF(AND(N(O118)>0,TYPE(VLOOKUP(O118,Hraci!$A$5:$A$800,1,0))>3),1,0) + IF(AND(N(U118)>0,TYPE(VLOOKUP(U118,Hraci!$A$5:$A$800,1,0))>3),1,0) -> 0
A119: 0 | B119: 0 | C119: 0 | D119: 99999 | E119: 9999 | F119: 90000000900000990000722922 | G119: TRUE | H119: 109 | M119: 9999 | N119: 0 | S119: 9999 | T119: 0 | Y119: 9999 | Z119: 0 | AE119: 9999 | AF119: 0 | AH119: =IF(TYPE(VLOOKUP(H119,Centrum!$A$3:$E$130,5,0))<4,VLOOKUP(H119,Centrum!$A$3:$E$130,5,0),0) -> 0 | AI119: =IF(N($AH119)>0,VLOOKUP($AH119,Body!$A$4:$F$259,5,0),"") ->  | AJ119: =IF(N($AH119)>0,VLOOKUP($AH119,Body!$A$4:$F$259,6,0),"") ->  | AK119: =IF(N($AH119)>0,VLOOKUP($AH119,Body!$A$4:$F$259,2,0),"") ->  | AM119: 0 | AN119: =IF(OR(TYPE(I119)>1,TYPE(MATCH(I119,I120:I$139,0))>1),0,MATCH(I119,I120:I$139,0))+IF(OR(TYPE(I119)>1,TYPE(MATCH(I119,O$11:O$139,0))>1),0,MATCH(I119,O$11:O$139,0))+IF(OR(TYPE(I119)>1,TYPE(MATCH(I119,U$11:U$139,0))>1),0,MATCH(I119,U$11:U$139,0))+IF(OR(TYPE(I119)>1,TYPE(MATCH(I119,AA$11:AA$139,0))>1),0,MATCH(I119,AA$11:AA$139,0)) -> 0 | AO119: =IF(OR(TYPE(O119)>1,TYPE(MATCH(O119,I$11:I$139,0))>1),0,MATCH(O119,I$11:I$139,0))+IF(OR(TYPE(O119)>1,TYPE(MATCH(O119,O120:O$139,0))>1),0,MATCH(O119,O120:O$139,0))+IF(OR(TYPE(O119)>1,TYPE(MATCH(O119,U$11:U$139,0))>1),0,MATCH(O119,U$11:U$139,0))+IF(OR(TYPE(O119)>1,TYPE(MATCH(O119,AA$11:AA$139,0))>1),0,MATCH(O119,AA$11:AA$139,0)) -> 0 | AP119: =IF(OR(TYPE(U119)>1,TYPE(MATCH(U119,I$11:I$139,0))>1),0,MATCH(U119,I$11:I$139,0))+IF(OR(TYPE(U119)>1,TYPE(MATCH(U119,O$11:O$139,0))>1),0,MATCH(U119,O$11:O$139,0))+IF(OR(TYPE(U119)>1,TYPE(MATCH(U119,U120:U$139,0))>1),0,MATCH(U119,U120:U$139,0))+IF(OR(TYPE(U119)>1,TYPE(MATCH(U119,AA$11:AA$139,0))>1),0,MATCH(U119,AA$11:AA$139,0)) -> 0 | AQ119: =IF(OR(TYPE(AA119)>1,TYPE(MATCH(AA119,I$11:I$139,0))>1),0,MATCH(AA119,I$11:I$139,0))+IF(OR(TYPE(AA119)>1,TYPE(MATCH(AA119,O$11:O$139,0))>1),0,MATCH(AA119,O$11:O$139,0))+IF(OR(TYPE(AA119)>1,TYPE(MATCH(AA119,U$11:U$139,0))>1),0,MATCH(U119,U$11:U$139,0))+IF(OR(TYPE(AA119)>1,TYPE(MATCH(AA119,AA120:AA$139,0))>1),0,MATCH(AA119,AA120:AA$139,0)) -> 0 | AR119: 0 | AT119: 0 | AU119: =IF(AND(N(I119)>0,TYPE(VLOOKUP(I119,Hraci!$A$5:$A$800,1,0))>3),1,0) + IF(AND(N(O119)>0,TYPE(VLOOKUP(O119,Hraci!$A$5:$A$800,1,0))>3),1,0) + IF(AND(N(U119)>0,TYPE(VLOOKUP(U119,Hraci!$A$5:$A$800,1,0))>3),1,0) -> 0
